Workbook

Sheet Help
B3: LAST UPDATE :- 10-04-2025
B4: For Help
B5: For Help watch the video on my Youtube Channel
B6: https://youtu.be/QWmVZqxh1yE
B7: OR search the youtube channel "Learn with ummed tarad"
B8: नोट:-हालाँकि यह प्रोग्राम पूर्णतया सावधानी के साथ बनाया गया है फिर भी किसी त्रुटि की स्थिति में आपके विवेक के साथ विभागीय नियम ही अंतिम रूप से मान्य होंगे, इसे अंतिम रूप देने से पहले अच्छी तरह से अवश्य जाँच लेवें और ज्यादा जानकारी के लिए उपर Click Here बटन पर क्लिक करें. किसी प्रकार की हेल्प हेतु निर्माणकर्त्ता को कॉल नहीं करें.

Sheet Master
B2: t; fgUn | G2: oUns ekrje~ | N2: t; fgUn
B4: RESULT PREPARATION PROGRAM | K4: 108 | L4: School Logo ® | Z4: 2019-20 | AA4: PRIMARY
K5: Subject Detail | M5: Staff Detail | Z5: 2019-21 | AA5: UPPER PRIMARY
B6: SESSION | D6: :- | E6: 2024-25 | K6: Sr. No. | L6: Subject's Name | M6: Sr. No. | N6: Teacher's Name | O6: Sr. No. | P6: Teacher's Name | Z6: 2019-22 | AA6: SECONDARY
K7: =IF(L7>1,1,0) -> 1 | L7: HINDI | M7: =IF(N7>1,1,0) -> 1 | N7: A | O7: =IF(P7>1,M20+1,0) -> 0 | Z7: 2019-21 | AA7: UPPER PRIMARY
B8: SCHOOL'S FULL NAME | D8: :- | E8: Govt. Sr. Secondary School | K8: =IF(L8>1,K7+1,0) -> 2 | L8: ENGLISH | M8: =IF(N8>1,M7+1,0) -> 2 | N8: B | O8: =IF(P8>1,O7+1,0) -> 0
K9: =IF(L9>1,K8+1,0) -> 3 | L9: SANSKRIT | M9: =IF(N9>1,M8+1,0) -> 3 | N9: C | O9: =IF(P9>1,O8+1,0) -> 0 | Z9: 2019-22 | AA9: SECONDARY
K10: =IF(L10>1,K9+1,0) -> 4 | L10: SCIENCE | M10: =IF(N10>1,M9+1,0) -> 4 | N10: D | O10: 0 | R10: CREATOR:- | Z10: 2019-23 | AA10: SR. SECONDARY
B11: ADDRESS | D11: :- | E11: P.S.-Bapini (Jodhpur) | K11: =IF(L11>1,K10+1,0) -> 5 | L11: MATHEMATICS | M11: =IF(N11>1,M10+1,0) -> 5 | N11: E | O11: 0
K12: =IF(L12>1,K11+1,0) -> 6 | L12: SOCIAL SCIENCE | M12: =IF(N12>1,M11+1,0) -> 6 | N12: F | O12: 0 | R12: UMMED TARAD | Z12: 2019-24
K13: =IF(L13>1,K12+1,0) -> 7 | L13: Work Exp. | M13: 7 | N13: G | O13: 0 | Z13: 2019-23 | AA13: SR. SECONDARY
B14: U-DISE CODE | D14: :- | E14: 08151106901 | K14: 8 | L14: Art Edu. | M14: 0 | O14: 0 | R14: (GSSS RAIMALWADA) | Z14: 2019-24
K15: 9 | L15: H&P Edu. | M15: 0 | O15: 0 | Z15: 2019-25
B16: NAME OF PRINCIPAL | D16: :- | K16: 0 | M16: 0 | O16: 0 | R16: EMAIL ID-ummedtrdedu@gmail.com | Z16: 2019-26
K17: 0 | M17: 0 | O17: 0 | R17: Update On :- 10-04-2025
B18: SCHOOL TYPE | D18: :- | E18: Sr. Secondary | K18: 0 | M18: 0 | O18: 0
K19: 0 | M19: 0 | O19: 0 | Z19: 2019-25
B20: Result Date | D20: :- | E20: 2024-05-07 | K20: 0 | M20: 0 | O20: 0 | Z20: 2019-26
Z21: 2019-27

Sheet Marks Entry
C1: =Master!E8 -> Govt. Sr. Secondary School
L2: Result Date:- | AA2: =Master!E20 -> 2024-05-07 | AF2: Result Entry
C3: School U-Dise Code :- | G3: =Master!E14 -> 08151106901 | I3: Session :- | J3: =Master!E6 -> 2024-25 | L3: HINDI | AF3: ENGLISH | AZ3: SANSKRIT | BT3: SCIENCE | CN3: MATHEMATICS | DH3: SOCIAL SCIENCE | EB3: =Master!L13 -> Work Exp. | EK3: =Master!L14 -> Art Edu. | ET3: HEALTH & PHY. EDU. | FC3: Attendance | FF3: Statics | FN3: Remark | FO3: Subject Wise Result | FU3: Total Grd "A" | FV3: Total Grd "B" | FW3: Total Grd "C" | FX3: Total Grd "D" | FY3: Total Grd "E"
C4: Class - | G4: 6 | I4: Saction :- | J4: (A) | L4: 0 | AF4: 0 | AZ4: 0 | BT4: 0 | CN4: 0 | DH4: 0 | FC4: Total Attendance | FD4: Student's Attendance | FE4: Attandance % | FF4: Total Maximum Marks | FG4: Obtained Marks | FH4: Percentage | FI4: Overall Div. | FJ4: Overall Grade. | FK4: Result | FM4: Position in Class
C5: Student Related Basic Details | L5: First Test | O5: Second Test | R5: No Bag Day Activity | U5: Total Tests | V5: Half Yearly | Y5: Yearly Exam | AB5: Total Marks | AC5: MARKS % | AE5: Grd | AF5: First Test | AI5: Second Test | AL5: No Bag Day Activity | AO5: Total Tests | AP5: Half Yearly | AS5: Yearly Exam | AV5: Total Marks | AW5: MARKS % | AY5: Grd | AZ5: First Test | BC5: Second Test | BF5: No Bag Day Activity | BI5: Total Tests | BJ5: Half Yearly | BM5: Yearly Exam | BP5: Total Marks | BQ5: MARKS % | BS5: Grd | BT5: First Test | BW5: Second Test | BZ5: No Bag Day Activity | CC5: Total Tests | CD5: Half Yearly | CG5: Yearly Exam | CJ5: Total Marks | CK5: MARKS % | CM5: Grd | CN5: First Test | CQ5: Second Test | CT5: No Bag Day Activity | CW5: Total Tests | CX5: Half Yearly | DA5: Yearly Exam | DD5: Total Marks | DE5: MARKS % | DG5: Grd | DH5: First Test | DK5: Second Test | DN5: No Bag Day Activity | DQ5: Total Tests | DR5: Half Yearly | DU5: Yearly Exam | DX5: Total Marks | DY5: MARKS % | EA5: Grd | EB5: FIRST EVO. | EC5: SECOND EVO. | ED5: THIRD EVO. | EE5: FOURTH EVO. | EF5: FIFTH EVO. | EG5: Total | EH5: MARKS % | EJ5: Grd. | EK5: FIRST EVO. | EL5: SECOND EVO. | EM5: THIRD EVO. | EN5: FOURTH EVO. | EO5: FIFTH EVO. | EP5: Total | EQ5: MARKS % | ES5: Grd. | ET5: FIRST EVO. | EU5: SECOND EVO. | EV5: THIRD EVO. | EW5: FOURTH EVO. | EX5: FIFTH EVO. | EY5: Total | EZ5: MARKS % | FB5: Grd. | FO5: Hindi | FP5: English | FQ5: Sanskrit | FR5: Math | FS5: Science | FT5: social Science
C6: Sr. No. | D6: Class | E6: Scholar Number | F6: School Adm. Date | G6: Roll Number | H6: Student's Name | I6: Father's Name | J6: Mother's Name | K6: Date Of Birth | L6: Written | M6: Act/Oral | N6: Total | O6: Written | P6: Act/Oral | Q6: Total | R6: Activity | T6: Total | V6: Written | W6: Act/Oral | X6: Total H.Y. | Y6: Written | Z6: Act/Oral | AA6: Total Yearly | AE6: A+/A/B/C/D | AF6: Written | AG6: Act/Oral | AH6: Total | AI6: Written | AJ6: Act/Oral | AK6: Total | AL6: Activity | AN6: Total | AP6: Written | AQ6: Act/Oral | AR6: Total H.Y. | AS6: Written | AT6: Act/Oral | AU6: Total Yearly | AY6: A+/A/B/C/D | AZ6: Written | BA6: Act/Oral | BB6: Total | BC6: Written | BD6: Act/Oral | BE6: Total | BF6: Activity | BH6: Total | BJ6: Written | BK6: Act/Oral | BL6: Total H.Y. | BM6: Written | BN6: Act/Oral | BO6: Total Yearly | BS6: A+/A/B/C/D | BT6: Written | BU6: Act/Oral | BV6: Total | BW6: Written | BX6: Act/Oral | BY6: Total | BZ6: Activity | CB6: Total | CD6: Written | CE6: Act/Oral | CF6: Total H.Y. | CG6: Written | CH6: Act/Oral | CI6: Total Yearly | CM6: A+/A/B/C/D | CN6: Written | CO6: Act/Oral | CP6: Total | CQ6: Written | CR6: Act/Oral | CS6: Total | CT6: Activity | CV6: Total | CX6: Written | CY6: Act/Oral | CZ6: Total H.Y. | DA6: Written | DB6: Act/Oral | DC6: Total Yearly | DG6: A+/A/B/C/D | DH6: Written | DI6: Act/Oral | DJ6: Total | DK6: Written | DL6: Act/Oral | DM6: Total | DN6: Activity | DP6: Total | DR6: Written | DS6: Act/Oral | DT6: Total H.Y. | DU6: Written | DV6: Act/Oral | DW6: Total Yearly | EA6: A+/A/B/C/D | EJ6: A/B/C/D/E | ES6: A/B/C/D/E | FB6: A/B/C/D/E | GU6: COUNT ABSENT | GV6: COUNT ML | GW6: COUNT BLANK | GX6: COUNT 'E'
L7: 5 | M7: 5 | N7: =SUM(L7:M7) -> 10 | O7: 5 | P7: 5 | Q7: =SUM(O7:P7) -> 10 | R7: 10 | T7: =SUM(R7:S7) -> 10 | U7: =SUM(T7,Q7,N7) -> 30 | V7: 50 | W7: 20 | X7: =SUM(V7:W7) -> 70 | Y7: 70 | Z7: 30 | AA7: =SUM(Y7:Z7) -> 100 | AB7: =SUM(U7,X7,AA7) -> 200 | AF7: 5 | AG7: 5 | AH7: =SUM(AF7:AG7) -> 10 | AI7: 5 | AJ7: 5 | AK7: =SUM(AI7:AJ7) -> 10 | AL7: 10 | AN7: =SUM(AL7:AM7) -> 10 | AO7: =SUM(AN7,AK7,AH7) -> 30 | AP7: 50 | AQ7: 20 | AR7: =SUM(AP7:AQ7) -> 70 | AS7: 70 | AT7: 30 | AU7: =SUM(AS7:AT7) -> 100 | AV7: =SUM(AO7,AR7,AU7) -> 200 | AZ7: 5 | BA7: 5 | BB7: =SUM(AZ7:BA7) -> 10 | BC7: 5 | BD7: 5 | BE7: =SUM(BC7:BD7) -> 10 | BF7: 10 | BH7: =SUM(BF7:BG7) -> 10 | BI7: =SUM(BH7,BE7,BB7) -> 30 | BJ7: 50 | BK7: 20 | BL7: =SUM(BJ7:BK7) -> 70 | BM7: 70 | BN7: 30 | BO7: =SUM(BM7:BN7) -> 100 | BP7: =SUM(BI7,BL7,BO7) -> 200 | BT7: 5 | BU7: 5 | BV7: =SUM(BT7:BU7) -> 10 | BW7: 5 | BX7: 5 | BY7: =SUM(BW7:BX7) -> 10 | BZ7: 10 | CB7: =SUM(BZ7:CA7) -> 10 | CC7: =SUM(CB7,BY7,BV7) -> 30 | CD7: 50 | CE7: 20 | CF7: =SUM(CD7:CE7) -> 70 | CG7: 70 | CH7: 30 | CI7: =SUM(CG7:CH7) -> 100 | CJ7: =SUM(CC7,CF7,CI7) -> 200 | CN7: 5 | CO7: 5 | CP7: =SUM(CN7:CO7) -> 10 | CQ7: 5 | CR7: 5 | CS7: =SUM(CQ7:CR7) -> 10 | CT7: 10 | CV7: =SUM(CT7:CU7) -> 10 | CW7: =SUM(CV7,CS7,CP7) -> 30 | CX7: 50 | CY7: 20 | CZ7: =SUM(CX7:CY7) -> 70 | DA7: 70 | DB7: 30 | DC7: =SUM(DA7:DB7) -> 100 | DD7: =SUM(CW7,CZ7,DC7) -> 200 | DH7: 5 | DI7: 5 | DJ7: =SUM(DH7:DI7) -> 10 | DK7: 5 | DL7: 5 | DM7: =SUM(DK7:DL7) -> 10 | DN7: 10 | DP7: =SUM(DN7:DO7) -> 10 | DQ7: =SUM(DP7,DM7,DJ7) -> 30 | DR7: 50 | DS7: 20 | DT7: =SUM(DR7:DS7) -> 70 | DU7: 70 | DV7: 30 | DW7: =SUM(DU7:DV7) -> 100 | DX7: =SUM(DQ7,DT7,DW7) -> 200 | EB7: 20 | EC7: 20 | ED7: 20 | EE7: 20 | EF7: 20 | EG7: =SUM(EB7:EF7) -> 100 | EK7: 20 | EL7: 20 | EM7: 20 | EN7: 20 | EO7: 20 | EP7: =SUM(EK7:EO7) -> 100 | ET7: 20 | EU7: 20 | EV7: 20 | EW7: 20 | EX7: 20 | EY7: =SUM(ET7:EX7) -> 100 | GB7: WORK EXP. | GF7: ART | GJ7: H & PHY EDU
C8: 0 | D8: 0 | E8: 0 | F8: 0 | H8: 0 | I8: 0 | J8: 0 | K8: 0 | U8: =SUM(L8:M8) -> 0 | V8: 0 | X8: =SUM(U8,V8) -> 0 | Y8: =SUM(#REF!,#REF!) ->  | AA8: 0 | AB8: =IF(#REF!="NA",#REF!+#REF!+AA8,#REF!+#REF!+#REF!) ->  | AC8: =IF(OR(AB8="",$AB$7=""),"",ROUNDUP(AB8/$AB$7*100,0)) ->  | AE8: =IF(OR(#REF!="",#REF!=0,#REF!="S",#REF!="F",#REF!="AB"),#REF!,IF(AC8>=75,"D",IF(AC8>=60,"I",IF(AC8>=48,"II",IF(AC8>=36,"III",#REF!))))) ->  | AO8: =SUM(AF8:AG8) -> 0 | AP8: 0 | AR8: =SUM(AO8,AP8) -> 0 | AS8: =SUM(#REF!,#REF!) ->  | AU8: 0 | AV8: =IF(#REF!="NA",#REF!+#REF!+AU8,#REF!+#REF!+#REF!) ->  | AW8: =IF(OR(AV8="",$AB$7=""),"",ROUNDUP(AV8/$AB$7*100,0)) ->  | AY8: =IF(OR(#REF!="",#REF!=0,#REF!="S",#REF!="F",#REF!="AB"),#REF!,IF(AW8>=75,"D",IF(AW8>=60,"I",IF(AW8>=48,"II",IF(AW8>=36,"III",#REF!))))) ->  | BI8: =SUM(AZ8:BA8) -> 0 | BJ8: 0 | BL8: =SUM(BI8,BJ8) -> 0 | BM8: =SUM(#REF!,#REF!) ->  | BO8: 0 | BP8: =IF(#REF!="NA",#REF!+#REF!+BO8,#REF!+#REF!+#REF!) ->  | BQ8: =IF(OR(BP8="",$AB$7=""),"",ROUNDUP(BP8/$AB$7*100,0)) ->  | BS8: =IF(OR(#REF!="",#REF!=0,#REF!="S",#REF!="F",#REF!="AB"),#REF!,IF(BQ8>=75,"D",IF(BQ8>=60,"I",IF(BQ8>=48,"II",IF(BQ8>=36,"III",#REF!))))) ->  | CC8: =SUM(BT8:BU8) -> 0 | CD8: 0 | CF8: =SUM(CC8,CD8) -> 0 | CG8: =SUM(#REF!,#REF!) ->  | CI8: 0 | CJ8: =IF(#REF!="NA",#REF!+#REF!+CI8,#REF!+#REF!+#REF!) ->  | CK8: =IF(OR(CJ8="",$AB$7=""),"",ROUNDUP(CJ8/$AB$7*100,0)) ->  | CM8: =IF(OR(#REF!="",#REF!=0,#REF!="S",#REF!="F",#REF!="AB"),#REF!,IF(CK8>=75,"D",IF(CK8>=60,"I",IF(CK8>=48,"II",IF(CK8>=36,"III",#REF!))))) ->  | CW8: =SUM(CN8:CO8) -> 0 | CX8: 0 | CZ8: =SUM(CW8,CX8) -> 0 | DA8: =SUM(#REF!,#REF!) ->  | DC8: 0 | DD8: =IF(#REF!="NA",#REF!+#REF!+DC8,#REF!+#REF!+#REF!) ->  | DE8: =IF(OR(DD8="",$AB$7=""),"",ROUNDUP(DD8/$AB$7*100,0)) ->  | DG8: =IF(OR(#REF!="",#REF!=0,#REF!="S",#REF!="F",#REF!="AB"),#REF!,IF(DE8>=75,"D",IF(DE8>=60,"I",IF(DE8>=48,"II",IF(DE8>=36,"III",#REF!))))) ->  | DQ8: =SUM(DH8:DI8) -> 0 | DR8: 0 | DT8: =SUM(DQ8,DR8) -> 0 | DU8: =SUM(#REF!,#REF!) ->  | DW8: 0 | DX8: =IF(#REF!="NA",#REF!+#REF!+DW8,#REF!+#REF!+#REF!) ->  | DY8: =IF(OR(DX8="",$AB$7=""),"",ROUNDUP(DX8/$AB$7*100,0)) ->  | EA8: =IF(OR(#REF!="",#REF!=0,#REF!="S",#REF!="F",#REF!="AB"),#REF!,IF(DY8>=75,"D",IF(DY8>=60,"I",IF(DY8>=48,"II",IF(DY8>=36,"III",#REF!))))) ->  | EB8: 0 | EC8: 0 | ED8: 0 | EG8: 0 | EJ8: 0 | EK8: 0 | EL8: 0 | EM8: 0 | EP8: 0 | ES8: 0 | ET8: 0 | EU8: 0 | EV8: 0 | EY8: 0 | FB8: 0 | FC8: 0 | FD8: 0 | FE8: 0 | FF8: 0 | FG8: 0 | FH8: 0 | FI8: =IF(AND(FH8>=60,FK8="Pass"),"First",IF(AND(FH8>=60,FK8="Pass With G"),"First",IF(AND(FH8>=48,FK8="Pass"),"Second;",IF(AND(FH8>=48,FK8="Pass With G"),"Second",IF(OR(FK8="Pass",FK8="Pass With G"),"Third",FK8))))) ->  | FK8: =IF($G8="NSO","NSO",IF(OR($G8="",$G8=0,V8="",AP8="",BJ8="",CD8="",CX8="",DR8=""),"",IF(OR(#REF!>0,(#REF!+#REF!+#REF!)>2),"FAIL",IF(OR(#REF!>0,#REF!>1),"SUPP.",IF(AND(#REF!>0,#REF!>0),"SUPP.",IF((#REF!+#REF!),"PASS With G","PASS")))))) ->  | FM8: 0 | FN8: =IF(FH8>81,"Excellent",IF(FH8>60,"Verry Good",IF(FH8>48,"Good",IF(FH8>36,"Average",IF(FH8=0,0,"Need Improvement"))))) -> 0 | FO8: =AE8 ->  | FP8: =AY8 ->  | FQ8: =BS8 ->  | FR8: =CM8 ->  | FS8: =DG8 ->  | FT8: =EA8 ->  | GU8: =COUNTIF(FK8:GT8,"AB") -> 0 | GV8: =COUNTIF(FK8:GT8,"ML") -> 0 | GW8: =COUNTBLANK(FK8:GT8) -> 28 | GX8: =COUNTIF(FK8:GT8,"E") -> 0
A9: =G9 -> 901 | B9: 1 | C9: 1 | D9: =IF(E9>0,$G$4,0) -> 6 | E9: 793 | G9: 901 | H9: ABHISHEK | I9: RAMU KHAN | J9: SEEPA DEVI | K9: 2005-07-22 | L9: ml | M9: 1 | N9: =IF(L9="AB","AB",IF(L9="ML","ML",SUM(L9:M9))) -> ML | O9: 5 | P9: 2 | Q9: =IF(O9="AB","AB",IF(O9="ML","ML",SUM(O9:P9))) -> 7 | R9: 2 | T9: =IF(R9="AB","AB",IF(R9="ML","ML",SUM(R9:S9))) -> 2 | U9: =SUM(N9,Q9,T9) -> 9 | V9: 30 | W9: 5 | X9: =IF(V9="AB","AB",IF(V9="ML","ML",SUM(V9:W9))) -> 35 | Y9: 40 | Z9: 15 | AA9: =IF(Y9="AB","AB",IF(Y9="ML","ML",SUM(Y9:Z9))) -> 55 | AB9: =SUM(U9,X9,AA9) -> 99 | AC9: =IF(OR(AB9="",AB$7=""),"",AB9/AB$7*100) -> 49.50 | AD9: =IF(G9="","",IF($G9="nso","NSO",IF(AA9="ab",AA9,IF(AA9="ML",AA9,IF(AC9>=86,"A",IF(AC9>=71,"B",IF(AC9>=51,"C",IF(AC9>=31,"D","E")))))))) -> D | AE9: =IF($G9>0,AD9,$G9) -> D | AF9: 2 | AG9: 2 | AH9: =IF(AF9="AB","AB",IF(AF9="ML","ML",SUM(AF9:AG9))) -> 4 | AI9: 2 | AJ9: 2 | AK9: =IF(AI9="AB","AB",IF(AI9="ML","ML",SUM(AI9:AJ9))) -> 4 | AL9: 2 | AN9: =IF(AL9="AB","AB",IF(AL9="ML","ML",SUM(AL9:AM9))) -> 2 | AO9: =SUM(AH9,AK9,AN9) -> 10 | AP9: 30 | AQ9: 5 | AR9: =IF(AP9="AB","AB",IF(AP9="ML","ML",SUM(AP9:AQ9))) -> 35 | AS9: 38 | AT9: 15 | AU9: =IF(AS9="AB","AB",IF(AS9="ML","ML",SUM(AS9:AT9))) -> 53 | AV9: =SUM(AO9,AR9,AU9) -> 98 | AW9: =IF(OR(AV9="",AV$7=""),"",AV9/AV$7*100) -> 49.00 | AX9: =IF($G9="nso","NSO",IF(AU9="ab",AU9,IF(AU9="ML",AU9,IF(AW9>=86,"A",IF(AW9>=71,"B",IF(AW9>=51,"C",IF(AW9>=31,"D","E"))))))) -> D | AY9: =IF($G9>0,AX9,$G9) -> D | AZ9: 2 | BA9: 2 | BB9: =IF(AZ9="AB","AB",IF(AZ9="ML","ML",SUM(AZ9:BA9))) -> 4 | BC9: 2 | BD9: 2 | BE9: =IF(BC9="AB","AB",IF(BC9="ML","ML",SUM(BC9:BD9))) -> 4 | BF9: 2 | BH9: =IF(BF9="AB","AB",IF(BF9="ML","ML",SUM(BF9:BG9))) -> 2 | BI9: =SUM(BB9,BE9,BH9) -> 10 | BJ9: 30 | BK9: 5 | BL9: =IF(BJ9="AB","AB",IF(BJ9="ML","ML",SUM(BJ9:BK9))) -> 35 | BM9: 38 | BN9: 15 | BO9: =IF(BM9="AB","AB",IF(BM9="ML","ML",SUM(BM9:BN9))) -> 53 | BP9: =SUM(BI9,BL9,BO9) -> 98 | BQ9: =IF(OR(BP9="",BP$7=""),"",BP9/BP$7*100) -> 49.00 | BR9: =IF($G9="nso","NSO",IF(BO9="ab",BO9,IF(BO9="ML",BO9,IF(BQ9>=86,"A",IF(BQ9>=71,"B",IF(BQ9>=51,"C",IF(BQ9>=31,"D","E"))))))) -> D | BS9: =IF($G9>0,BR9,$G9) -> D | BT9: 2 | BU9: 5 | BV9: =IF(BT9="AB","AB",IF(BT9="ML","ML",SUM(BT9:BU9))) -> 7 | BW9: 2 | BX9: 2 | BY9: =IF(BW9="AB","AB",IF(BW9="ML","ML",SUM(BW9:BX9))) -> 4 | BZ9: 2 | CB9: =IF(BZ9="AB","AB",IF(BZ9="ML","ML",SUM(BZ9:CA9))) -> 2 | CC9: =SUM(BV9,BY9,CB9) -> 13 | CD9: 30 | CE9: 5 | CF9: =IF(CD9="AB","AB",IF(CD9="ML","ML",SUM(CD9:CE9))) -> 35 | CG9: 38 | CH9: 15 | CI9: =IF(CG9="AB","AB",IF(CG9="ML","ML",SUM(CG9:CH9))) -> 53 | CJ9: =SUM(CC9,CF9,CI9) -> 101 | CK9: =IF(OR(CJ9="",CJ$7=""),"",CJ9/CJ$7*100) -> 50.50 | CL9: =IF($G9="nso","NSO",IF(CI9="ab",CI9,IF(CI9="ML",CI9,IF(CK9>=86,"A",IF(CK9>=71,"B",IF(CK9>=51,"C",IF(CK9>=31,"D","E"))))))) -> D | CM9: =IF($G9>0,CL9,$G9) -> D | CN9: 2 | CO9: 3 | CP9: =IF(CN9="AB","AB",IF(CN9="ML","ML",SUM(CN9:CO9))) -> 5 | CQ9: 2 | CR9: 2 | CS9: =IF(CQ9="AB","AB",IF(CQ9="ML","ML",SUM(CQ9:CR9))) -> 4 | CT9: 2 | CV9: =IF(CT9="AB","AB",IF(CT9="ML","ML",SUM(CT9:CU9))) -> 2 | CW9: =SUM(CP9,CS9,CV9) -> 11 | CX9: 30 | CY9: 5 | CZ9: =IF(CX9="AB","AB",IF(CX9="ML","ML",SUM(CX9:CY9))) -> 35 | DA9: 38 | DB9: 15 | DC9: =IF(DA9="AB","AB",IF(DA9="ML","ML",SUM(DA9:DB9))) -> 53 | DD9: =SUM(CW9,CZ9,DC9) -> 99 | DE9: =IF(OR(DD9="",DD$7=""),"",DD9/DD$7*100) -> 49.50 | DF9: =IF($G9="nso","NSO",IF(DC9="ab",DC9,IF(DC9="ML",DC9,IF(DE9>=86,"A",IF(DE9>=71,"B",IF(DE9>=51,"C",IF(DE9>=31,"D","E"))))))) -> D | DG9: =IF($G9>0,DF9,$G9) -> D | DH9: 2 | DI9: 2 | DJ9: =IF(DH9="AB","AB",IF(DH9="ML","ML",SUM(DH9:DI9))) -> 4 | DK9: 2 | DL9: 2 | DM9: =IF(DK9="AB","AB",IF(DK9="ML","ML",SUM(DK9:DL9))) -> 4 | DN9: 2 | DP9: =IF(DN9="AB","AB",IF(DN9="ML","ML",SUM(DN9:DO9))) -> 2 | DQ9: =SUM(DJ9,DM9,DP9) -> 10 | DR9: 25 | DS9: 0 | DT9: =IF(DR9="AB","AB",IF(DR9="ML","ML",SUM(DR9:DS9))) -> 25 | DU9: 38 | DV9: 15 | DW9: =IF(DU9="AB","AB",IF(DU9="ML","ML",SUM(DU9:DV9))) -> 53 | DX9: =SUM(DQ9,DT9,DW9) -> 88 | DY9: =IF(OR(DX9="",DX$7=""),"",DX9/DX$7*100) -> 44.00 | DZ9: =IF($G9="nso","NSO",IF(DW9="ab",DW9,IF(DW9="ML",DW9,IF(DY9>=86,"A",IF(DY9>=71,"B",IF(DY9>=51,"C",IF(DY9>=31,"D","E"))))))) -> D | EA9: =IF($G9>0,DZ9,$G9) -> D | EB9: 15 | EC9: 15 | ED9: 11 | EE9: 20 | EF9: 10 | EG9: =SUM(EB9:EF9) -> 71 | EH9: =IF(OR(EG9="",EG$7=""),"",EG9/EG$7*100) -> 71.00 | EI9: =IF($G9="nso","NSO",IF(EF9="ab",EF9,IF(EF9="ML",EF9,IF(EH9>=86,"A",IF(EH9>=71,"B",IF(EH9>=51,"C",IF(EH9>=31,"D","E"))))))) -> B | EJ9: =IF($G9>0,EI9,$G9) -> B | EK9: 15 | EL9: 15 | EM9: 11 | EN9: 10 | EO9: 10 | EP9: =SUM(EK9:EO9) -> 61 | EQ9: =IF(OR(EP9="",EP$7=""),"",EP9/EP$7*100) -> 61.00 | ER9: =IF($G9="nso","NSO",IF(EO9="ab",EO9,IF(EO9="ML",EO9,IF(EQ9>=86,"A",IF(EQ9>=71,"B",IF(EQ9>=51,"C",IF(EQ9>=31,"D","E"))))))) -> C | ES9: =IF($G9>0,ER9,$G9) -> C | ET9: 15 | EU9: 15 | EV9: 11 | EW9: 10 | EX9: 10 | EY9: =SUM(ET9:EX9) -> 61 | EZ9: =IF(OR(EY9="",EY$7=""),"",EY9/EY$7*100) -> 61.00 | FA9: =IF($G9="nso","NSO",IF(EX9="ab",EX9,IF(EX9="ML",EX9,IF(EZ9>=86,"A",IF(EZ9>=71,"B",IF(EZ9>=51,"C",IF(EZ9>=31,"D","E"))))))) -> C | FB9: =IF($G9>0,FA9,$G9) -> C | FC9: 362 | FD9: 274 | FE9: =IF(OR(FC9="",FD9=""),"",FD9/FC9*100) -> 75.69 | FF9: =IF(G9=0,0,SUM($AB$7,$AV$7,$BP$7,$CJ$7,$DD$7,$DX$7)) -> 1200 | FG9: =SUM(AB9,AV9,BP9,CJ9,DD9,DX9) -> 583 | FH9: =IF(AND(FK9="Passed",FF9>0),FG9/FF9*100,IF(AND(FK9="Promoted",FF9>0),FG9/FF9*100,"")) -> 48.58 | FI9: =IF(AND(FH9>=60,FK9="Passed"),"First",IF(AND(FH9>=48,FK9="Passed"),"Second",IF(OR(FK9="passed"),"Third",""))) -> Second | FJ9: =IF(OR(FH9="",FK9<>"PASSED"),"",IF(FH9>85,"A",IF(FH9>70,"B",IF(FH9>50,"C",IF(FH9>30,"D","E"))))) -> D | FK9: =IF(OR(G9=0,G9=""),"",IF(G9="TC","TRANSFERRED",IF(G9="NSO","NSO",IF(G9="DROP","DROP",IF(GU9>0,"ABSENT",IF(GV9>0,"LEAVE",IF(GW9>4,"",IF(AND(GX9>0,$G$4=8),"",IF(GX9>0,"PROMOTED","PASSED"))))))))) -> PASSED | FL9: =IF(FK9="Passed",FH9,"") -> 48.583 | FM9: =IF(FL9="","",SUMPRODUCT((FL9<FL$9:FL$108)/COUNTIF(FL$9:FL$108,FL$9:FL$108))) -> 3 | FN9: =IF(FH9="","",IF(FH9>=86,"Excellent",IF(FH9>=71,"Very Good",IF(FH9>=50,"Good",IF(FH9>31,"Average","Need Improvement"))))) -> Average | FO9: =AE9 -> D | FP9: =AY9 -> D | FQ9: =BS9 -> D | FR9: =CM9 -> D | FS9: =DG9 -> D | FT9: =EA9 -> D | FU9: =COUNTIF($FO9:$FT9,"A") -> 0 | FV9: =COUNTIF($FO9:$FT9,"B") -> 0 | FW9: =COUNTIF($FO9:$FT9,"C") -> 0 | FX9: =COUNTIF($FO9:$FT9,"D") -> 6 | FY9: =COUNTIF($FO9:$FT9,"E") -> 0 | GB9: =EG9 -> 71 | GC9: / | GD9: =$EG$7 -> 100 | GE9: =CONCATENATE(GB9,GC9,GD9) -> 71/100 | GF9: =EP9 -> 61 | GG9: / | GH9: =$EP$7 -> 100 | GI9: =CONCATENATE(GF9,GG9,GH9) -> 61/100 | GJ9: =EY9 -> 61 | GK9: / | GL9: =$EY$7 -> 100 | GM9: =CONCATENATE(GJ9,GK9,GL9) -> 61/100 | GO9: =AE9 -> D | GP9: =AY9 -> D | GQ9: =BS9 -> D | GR9: =CM9 -> D | GS9: =DG9 -> D | GT9: =EA9 -> D | GU9: =COUNTIF(GO9:GT9,"ab") -> 0 | GV9: =COUNTIF(GO9:GT9,"ml") -> 0 | GW9: =COUNTBLANK(GO9:GT9) -> 0 | GX9: =COUNTIF(GO9:GT9,"e") -> 0
A10: =G10 -> 902 | B10: 2 | C10: 2 | D10: =IF(E10>0,$G$4,0) -> 6 | E10: 1490 | G10: 902 | H10: ACHALA RAM | I10: HEMA RAM | J10: TULACHHI DEVI | K10: 2005-07-02 | L10: 2 | M10: 2 | N10: =IF(L10="AB","AB",IF(L10="ML","ML",SUM(L10:M10))) -> 4 | O10: 3 | P10: 4 | Q10: =IF(O10="AB","AB",IF(O10="ML","ML",SUM(O10:P10))) -> 7 | R10: 5 | T10: =IF(R10="AB","AB",IF(R10="ML","ML",SUM(R10:S10))) -> 5 | U10: =SUM(N10,Q10,T10) -> 16 | V10: 20 | W10: 15 | X10: =IF(V10="AB","AB",IF(V10="ML","ML",SUM(V10:W10))) -> 35 | Y10: 40 | Z10: 25 | AA10: =IF(Y10="AB","AB",IF(Y10="ML","ML",SUM(Y10:Z10))) -> 65 | AB10: =SUM(U10,X10,AA10) -> 116 | AC10: =IF(OR(AB10="",AB$7=""),"",AB10/AB$7*100) -> 58.00 | AD10: =IF(G10="","",IF($G10="nso","NSO",IF(AA10="ab",AA10,IF(AA10="ML",AA10,IF(AC10>=86,"A",IF(AC10>=71,"B",IF(AC10>=51,"C",IF(AC10>=31,"D","E")))))))) -> C | AE10: =IF($G10>0,AD10,$G10) -> C | AF10: 4 | AG10: 5 | AH10: =IF(AF10="AB","AB",IF(AF10="ML","ML",SUM(AF10:AG10))) -> 9 | AI10: 4 | AJ10: 5 | AK10: =IF(AI10="AB","AB",IF(AI10="ML","ML",SUM(AI10:AJ10))) -> 9 | AL10: 2 | AN10: =IF(AL10="AB","AB",IF(AL10="ML","ML",SUM(AL10:AM10))) -> 2 | AO10: =SUM(AH10,AK10,AN10) -> 20 | AP10: 35 | AQ10: 18 | AR10: =IF(AP10="AB","AB",IF(AP10="ML","ML",SUM(AP10:AQ10))) -> 53 | AS10: 45 | AT10: 20 | AU10: =IF(AS10="AB","AB",IF(AS10="ML","ML",SUM(AS10:AT10))) -> 65 | AV10: =SUM(AO10,AR10,AU10) -> 138 | AW10: =IF(OR(AV10="",AV$7=""),"",AV10/AV$7*100) -> 69.00 | AX10: =IF($G10="nso","NSO",IF(AU10="ab",AU10,IF(AU10="ML",AU10,IF(AW10>=86,"A",IF(AW10>=71,"B",IF(AW10>=51,"C",IF(AW10>=31,"D","E"))))))) -> C | AY10: =IF($G10>0,AX10,$G10) -> C | AZ10: 2 | BA10: 3 | BB10: =IF(AZ10="AB","AB",IF(AZ10="ML","ML",SUM(AZ10:BA10))) -> 5 | BC10: 5 | BD10: 3 | BE10: =IF(BC10="AB","AB",IF(BC10="ML","ML",SUM(BC10:BD10))) -> 8 | BF10: 2 | BH10: =IF(BF10="AB","AB",IF(BF10="ML","ML",SUM(BF10:BG10))) -> 2 | BI10: =SUM(BB10,BE10,BH10) -> 15 | BJ10: 15 | BK10: 20 | BL10: =IF(BJ10="AB","AB",IF(BJ10="ML","ML",SUM(BJ10:BK10))) -> 35 | BM10: 45 | BN10: 15 | BO10: =IF(BM10="AB","AB",IF(BM10="ML","ML",SUM(BM10:BN10))) -> 60 | BP10: =SUM(BI10,BL10,BO10) -> 110 | BQ10: =IF(OR(BP10="",BP$7=""),"",BP10/BP$7*100) -> 55.00 | BR10: =IF($G10="nso","NSO",IF(BO10="ab",BO10,IF(BO10="ML",BO10,IF(BQ10>=86,"A",IF(BQ10>=71,"B",IF(BQ10>=51,"C",IF(BQ10>=31,"D","E"))))))) -> C | BS10: =IF($G10>0,BR10,$G10) -> C | BT10: 1 | BU10: 1 | BV10: =IF(BT10="AB","AB",IF(BT10="ML","ML",SUM(BT10:BU10))) -> 2 | BW10: 1 | BX10: 1 | BY10: =IF(BW10="AB","AB",IF(BW10="ML","ML",SUM(BW10:BX10))) -> 2 | BZ10: 1 | CB10: =IF(BZ10="AB","AB",IF(BZ10="ML","ML",SUM(BZ10:CA10))) -> 1 | CC10: =SUM(BV10,BY10,CB10) -> 5 | CD10: 15 | CE10: 15 | CF10: =IF(CD10="AB","AB",IF(CD10="ML","ML",SUM(CD10:CE10))) -> 30 | CG10: 35 | CH10: 20 | CI10: =IF(CG10="AB","AB",IF(CG10="ML","ML",SUM(CG10:CH10))) -> 55 | CJ10: =SUM(CC10,CF10,CI10) -> 90 | CK10: =IF(OR(CJ10="",CJ$7=""),"",CJ10/CJ$7*100) -> 45.00 | CL10: =IF($G10="nso","NSO",IF(CI10="ab",CI10,IF(CI10="ML",CI10,IF(CK10>=86,"A",IF(CK10>=71,"B",IF(CK10>=51,"C",IF(CK10>=31,"D","E"))))))) -> D | CM10: =IF($G10>0,CL10,$G10) -> D | CN10: 1 | CO10: 1 | CP10: =IF(CN10="AB","AB",IF(CN10="ML","ML",SUM(CN10:CO10))) -> 2 | CQ10: 2 | CR10: 2 | CS10: =IF(CQ10="AB","AB",IF(CQ10="ML","ML",SUM(CQ10:CR10))) -> 4 | CT10: 2 | CV10: =IF(CT10="AB","AB",IF(CT10="ML","ML",SUM(CT10:CU10))) -> 2 | CW10: =SUM(CP10,CS10,CV10) -> 8 | CX10: 25 | CY10: 20 | CZ10: =IF(CX10="AB","AB",IF(CX10="ML","ML",SUM(CX10:CY10))) -> 45 | DA10: 33 | DB10: 17 | DC10: =IF(DA10="AB","AB",IF(DA10="ML","ML",SUM(DA10:DB10))) -> 50 | DD10: =SUM(CW10,CZ10,DC10) -> 103 | DE10: =IF(OR(DD10="",DD$7=""),"",DD10/DD$7*100) -> 51.50 | DF10: =IF($G10="nso","NSO",IF(DC10="ab",DC10,IF(DC10="ML",DC10,IF(DE10>=86,"A",IF(DE10>=71,"B",IF(DE10>=51,"C",IF(DE10>=31,"D","E"))))))) -> C | DG10: =IF($G10>0,DF10,$G10) -> C | DH10: 3 | DI10: 3 | DJ10: =IF(DH10="AB","AB",IF(DH10="ML","ML",SUM(DH10:DI10))) -> 6 | DK10: 3 | DL10: 3 | DM10: =IF(DK10="AB","AB",IF(DK10="ML","ML",SUM(DK10:DL10))) -> 6 | DN10: 3 | DP10: =IF(DN10="AB","AB",IF(DN10="ML","ML",SUM(DN10:DO10))) -> 3 | DQ10: =SUM(DJ10,DM10,DP10) -> 15 | DR10: 25 | DS10: 20 | DT10: =IF(DR10="AB","AB",IF(DR10="ML","ML",SUM(DR10:DS10))) -> 45 | DU10: 45 | DV10: 20 | DW10: =IF(DU10="AB","AB",IF(DU10="ML","ML",SUM(DU10:DV10))) -> 65 | DX10: =SUM(DQ10,DT10,DW10) -> 125 | DY10: =IF(OR(DX10="",DX$7=""),"",DX10/DX$7*100) -> 62.50 | DZ10: =IF($G10="nso","NSO",IF(DW10="ab",DW10,IF(DW10="ML",DW10,IF(DY10>=86,"A",IF(DY10>=71,"B",IF(DY10>=51,"C",IF(DY10>=31,"D","E"))))))) -> C | EA10: =IF($G10>0,DZ10,$G10) -> C | EB10: 10 | EC10: 10 | ED10: 10 | EE10: 10 | EF10: 10 | EG10: =SUM(EB10:EF10) -> 50 | EH10: =IF(OR(EG10="",EG$7=""),"",EG10/EG$7*100) -> 50.00 | EI10: =IF($G10="nso","NSO",IF(EF10="ab",EF10,IF(EF10="ML",EF10,IF(EH10>=86,"A",IF(EH10>=71,"B",IF(EH10>=51,"C",IF(EH10>=31,"D","E"))))))) -> D | EJ10: =IF($G10>0,EI10,$G10) -> D | EK10: 10 | EL10: 15 | EM10: 20 | EN10: 20 | EO10: 15 | EP10: =SUM(EK10:EO10) -> 80 | EQ10: =IF(OR(EP10="",EP$7=""),"",EP10/EP$7*100) -> 80.00 | ER10: =IF($G10="nso","NSO",IF(EO10="ab",EO10,IF(EO10="ML",EO10,IF(EQ10>=86,"A",IF(EQ10>=71,"B",IF(EQ10>=51,"C",IF(EQ10>=31,"D","E"))))))) -> B | ES10: =IF($G10>0,ER10,$G10) -> B | ET10: 15 | EU10: 15 | EV10: 15 | EW10: 15 | EX10: 15 | EY10: =SUM(ET10:EX10) -> 75 | EZ10: =IF(OR(EY10="",EY$7=""),"",EY10/EY$7*100) -> 75.00 | FA10: =IF($G10="nso","NSO",IF(EX10="ab",EX10,IF(EX10="ML",EX10,IF(EZ10>=86,"A",IF(EZ10>=71,"B",IF(EZ10>=51,"C",IF(EZ10>=31,"D","E"))))))) -> B | FB10: =IF($G10>0,FA10,$G10) -> B | FE10: =IF(OR(FC10="",FD10=""),"",FD10/FC10*100) ->  | FF10: 1200 | FG10: 682 | FH10: =IF(AND(FK10="Passed",FF10>0),FG10/FF10*100,IF(AND(FK10="Promoted",FF10>0),FG10/FF10*100,"")) -> 56.83 | FI10: =IF(AND(FH10>=60,FK10="Passed"),"First",IF(AND(FH10>=48,FK10="Passed"),"Second",IF(OR(FK10="passed"),"Third",""))) -> Second | FJ10: =IF(OR(FH10="",FK10<>"PASSED"),"",IF(FH10>85,"A",IF(FH10>70,"B",IF(FH10>50,"C",IF(FH10>30,"D","E"))))) -> C | FK10: =IF(OR(G10=0,G10=""),"",IF(G10="TC","TRANSFERRED",IF(G10="NSO","NSO",IF(G10="DROP","DROP",IF(GU10>0,"ABSENT",IF(GV10>0,"LEAVE",IF(GW10>4,"",IF(AND(GX10>0,$G$4=8),"",IF(GX10>0,"PROMOTED","PASSED"))))))))) -> PASSED | FL10: =IF(FK10="Passed",FH10,"") -> 56.83333333 | FM10: =IF(FL10="","",SUMPRODUCT((FL10<FL$9:FL$108)/COUNTIF(FL$9:FL$108,FL$9:FL$108))) -> 2 | FN10: =IF(FH10="","",IF(FH10>=86,"Excellent",IF(FH10>=71,"Very Good",IF(FH10>=50,"Good",IF(FH10>31,"Average","Need Improvement"))))) -> Good | FO10: C | FP10: C | FQ10: C | FR10: D | FS10: C | FT10: C | FU10: =COUNTIF($FO10:$FT10,"A") -> 0 | FV10: =COUNTIF($FO10:$FT10,"B") -> 0 | FW10: =COUNTIF($FO10:$FT10,"C") -> 5 | FX10: =COUNTIF($FO10:$FT10,"D") -> 1 | FY10: =COUNTIF($FO10:$FT10,"E") -> 0 | GB10: =EG10 -> 50 | GC10: / | GD10: =$EG$7 -> 100 | GE10: =CONCATENATE(GB10,GC10,GD10) -> 50/100 | GF10: =EP10 -> 80 | GG10: / | GH10: =$EP$7 -> 100 | GI10: =CONCATENATE(GF10,GG10,GH10) -> 80/100 | GJ10: =EY10 -> 75 | GK10: / | GL10: =$EY$7 -> 100 | GM10: =CONCATENATE(GJ10,GK10,GL10) -> 75/100 | GO10: =AE10 -> C | GP10: =AY10 -> C | GQ10: =BS10 -> C | GR10: =CM10 -> D | GS10: =DG10 -> C | GT10: =EA10 -> C | GU10: =COUNTIF(GO10:GT10,"ab") -> 0 | GV10: =COUNTIF(GO10:GT10,"ml") -> 0 | GW10: =COUNTBLANK(GO10:GT10) -> 0 | GX10: =COUNTIF(GO10:GT10,"e") -> 0
A11: 903 | B11: 3 | C11: 3 | D11: 6 | E11: 1458 | G11: 903 | H11: ANITA | I11: DUDA RAM | J11: SUKHI | K11: 2006-06-25 | L11: 5 | M11: 2 | N11: =IF(L11="AB","AB",IF(L11="ML","ML",SUM(L11:M11))) -> 7 | O11: 5 | P11: 2 | Q11: 7 | R11: 5 | T11: 5 | U11: =SUM(N11,Q11,T11) -> 19 | V11: 15 | W11: 12 | X11: =IF(V11="AB","AB",IF(V11="ML","ML",SUM(V11:W11))) -> 27 | Y11: 15 | Z11: 12 | AA11: =IF(Y11="AB","AB",IF(Y11="ML","ML",SUM(Y11:Z11))) -> 27 | AB11: =SUM(U11,X11,AA11) -> 73 | AC11: =IF(OR(AB11="",AB$7=""),"",AB11/AB$7*100) -> 36.50 | AD11: D | AE11: =IF($G11>0,AD11,$G11) -> D | AF11: 5 | AG11: 2 | AH11: 7 | AI11: 5 | AJ11: 2 | AK11: 7 | AL11: 5 | AN11: 5 | AO11: =SUM(AH11,AK11,AN11) -> 19 | AP11: 30 | AQ11: 5 | AR11: =IF(AP11="AB","AB",IF(AP11="ML","ML",SUM(AP11:AQ11))) -> 35 | AS11: 30 | AT11: 5 | AU11: =IF(AS11="AB","AB",IF(AS11="ML","ML",SUM(AS11:AT11))) -> 35 | AV11: =SUM(AO11,AR11,AU11) -> 89 | AW11: 44.50 | AX11: D | AY11: D | AZ11: 5 | BA11: 2 | BB11: 7 | BC11: 5 | BD11: 2 | BE11: 7 | BF11: 5 | BH11: 5 | BI11: =SUM(BB11,BE11,BH11) -> 19 | BJ11: 30 | BK11: 5 | BL11: =IF(BJ11="AB","AB",IF(BJ11="ML","ML",SUM(BJ11:BK11))) -> 35 | BM11: 30 | BN11: 5 | BO11: =IF(BM11="AB","AB",IF(BM11="ML","ML",SUM(BM11:BN11))) -> 35 | BP11: =SUM(BI11,BL11,BO11) -> 89 | BQ11: 44.50 | BR11: D | BS11: D | BT11: 5 | BU11: 2 | BV11: 7 | BW11: 5 | BX11: 2 | BY11: 7 | BZ11: 5 | CB11: 5 | CC11: =SUM(BV11,BY11,CB11) -> 19 | CD11: 30 | CE11: 5 | CF11: =IF(CD11="AB","AB",IF(CD11="ML","ML",SUM(CD11:CE11))) -> 35 | CG11: 30 | CH11: 5 | CI11: =IF(CG11="AB","AB",IF(CG11="ML","ML",SUM(CG11:CH11))) -> 35 | CJ11: =SUM(CC11,CF11,CI11) -> 89 | CK11: 44.50 | CL11: D | CM11: D | CN11: 5 | CO11: 2 | CP11: 7 | CQ11: 5 | CR11: 2 | CS11: 7 | CT11: 5 | CV11: 5 | CW11: =SUM(CP11,CS11,CV11) -> 19 | CX11: 30 | CY11: 5 | CZ11: =IF(CX11="AB","AB",IF(CX11="ML","ML",SUM(CX11:CY11))) -> 35 | DA11: 30 | DB11: 5 | DC11: =IF(DA11="AB","AB",IF(DA11="ML","ML",SUM(DA11:DB11))) -> 35 | DD11: =SUM(CW11,CZ11,DC11) -> 89 | DE11: 44.50 | DF11: D | DG11: D | DH11: 5 | DI11: 2 | DJ11: 7 | DK11: 5 | DL11: 2 | DM11: 7 | DN11: 5 | DP11: 5 | DQ11: =SUM(DJ11,DM11,DP11) -> 19 | DR11: 30 | DS11: 5 | DT11: =IF(DR11="AB","AB",IF(DR11="ML","ML",SUM(DR11:DS11))) -> 35 | DU11: 30 | DV11: 5 | DW11: =IF(DU11="AB","AB",IF(DU11="ML","ML",SUM(DU11:DV11))) -> 35 | DX11: =SUM(DQ11,DT11,DW11) -> 89 | DY11: 44.50 | DZ11: D | EA11: D | EB11: 15 | EC11: 15 | ED11: 11 | EE11: 20 | EF11: 10 | EG11: 71 | EH11: 71.00 | EI11: B | EJ11: B | EK11: 15 | EL11: 15 | EM11: 11 | EN11: 20 | EO11: 10 | EP11: 71 | EQ11: 71.00 | ER11: B | ES11: B | ET11: 15 | EU11: 15 | EV11: 11 | EW11: 20 | EX11: 10 | EY11: 71 | EZ11: 71.00 | FA11: B | FB11: B | FF11: 1200 | FG11: 518 | FH11: 43.17 | FI11: Third | FJ11: D | FK11: PASSED | FL11: 43.16666667 | FM11: 6 | FN11: Average | FO11: D | FP11: D | FQ11: D | FR11: D | FS11: D | FT11: D | FU11: 0 | FV11: 0 | FW11: 0 | FX11: 6 | FY11: 0 | GB11: 71 | GC11: / | GD11: 100 | GE11: 71/100 | GF11: 71 | GG11: / | GH11: 100 | GI11: 71/100 | GJ11: 71 | GK11: / | GL11: 100 | GM11: 71/100 | GO11: D | GP11: D | GQ11: D | GR11: D | GS11: D | GT11: D | GU11: 0 | GV11: 0 | GW11: 0 | GX11: 0
A12: 904 | B12: 4 | C12: 4 | D12: 6 | E12: 1470 | G12: 904 | H12: ANOPI | I12: HARI RAM | J12: RUKI | K12: 2007-08-15 | L12: 3 | M12: 4 | N12: 7 | O12: 3 | P12: 4 | Q12: 7 | R12: 3 | T12: 3 | U12: 17 | V12: 20 | W12: 18 | X12: 38 | Y12: 20 | Z12: 18 | AA12: 38 | AB12: 93 | AC12: 46.50 | AD12: D | AE12: D | AF12: 3 | AG12: 4 | AH12: 7 | AI12: 3 | AJ12: 4 | AK12: 7 | AL12: 3 | AN12: 3 | AO12: 17 | AP12: 20 | AQ12: 15 | AR12: 35 | AS12: 20 | AT12: 15 | AU12: 35 | AV12: 87 | AW12: 43.50 | AX12: D | AY12: D | AZ12: 3 | BA12: 4 | BB12: 7 | BC12: 3 | BD12: 4 | BE12: 7 | BF12: 3 | BH12: 3 | BI12: 17 | BJ12: 20 | BK12: 15 | BL12: 35 | BM12: 20 | BN12: 15 | BO12: 35 | BP12: 87 | BQ12: 43.50 | BR12: D | BS12: D | BT12: 3 | BU12: 4 | BV12: 7 | BW12: 3 | BX12: 4 | BY12: 7 | BZ12: 3 | CB12: 3 | CC12: 17 | CD12: 20 | CE12: 15 | CF12: 35 | CG12: 20 | CH12: 15 | CI12: 35 | CJ12: 87 | CK12: 43.50 | CL12: D | CM12: D | CN12: 3 | CO12: 4 | CP12: 7 | CQ12: 3 | CR12: 4 | CS12: 7 | CT12: 3 | CV12: 3 | CW12: 17 | CX12: 20 | CY12: 15 | CZ12: 35 | DA12: 20 | DB12: 15 | DC12: 35 | DD12: 87 | DE12: 43.50 | DF12: D | DG12: D | DH12: 3 | DI12: 4 | DJ12: 7 | DK12: 3 | DL12: 4 | DM12: 7 | DN12: 3 | DP12: 3 | DQ12: 17 | DR12: 20 | DS12: 15 | DT12: 35 | DU12: 20 | DV12: 15 | DW12: 35 | DX12: 87 | DY12: 43.50 | DZ12: D | EA12: D | EB12: 15 | EC12: 15 | ED12: 11 | EE12: 20 | EF12: 10 | EG12: 71 | EH12: 71.00 | EI12: B | EJ12: B | EK12: 15 | EL12: 15 | EM12: 11 | EN12: 20 | EO12: 10 | EP12: 71 | EQ12: 71.00 | ER12: B | ES12: B | ET12: 15 | EU12: 15 | EV12: 11 | EW12: 20 | EX12: 10 | EY12: 71 | EZ12: 71.00 | FA12: B | FB12: B | FE12: =IF(OR(FC12="",FD12=""),"",FD12/FC12*100) ->  | FF12: 1200 | FG12: 528 | FH12: 44.00 | FI12: Third | FJ12: D | FK12: PASSED | FL12: 44 | FM12: 5 | FN12: Average | FO12: D | FP12: D | FQ12: D | FR12: D | FS12: D | FT12: D | FU12: 0 | FV12: 0 | FW12: 0 | FX12: 6 | FY12: 0 | GB12: 71 | GC12: / | GD12: 100 | GE12: 71/100 | GF12: 71 | GG12: / | GH12: 100 | GI12: 71/100 | GJ12: 71 | GK12: / | GL12: 100 | GM12: 71/100 | GO12: D | GP12: D | GQ12: D | GR12: D | GS12: D | GT12: D | GU12: 0 | GV12: 0 | GW12: 0 | GX12: 0
A13: 905 | B13: 5 | C13: 5 | D13: =IF(E13>0,$G$4,0) -> 6 | E13: 968 | G13: 905 | H13: ANU JANDU | I13: HEERA RAM JANDU | J13: MANU DEVI | K13: 2006-08-17 | L13: 5 | M13: 2 | N13: 7 | O13: 5 | P13: 2 | Q13: 7 | R13: 5 | T13: 5 | U13: 19 | V13: 15 | W13: 12 | X13: 27 | Y13: 15 | Z13: 12 | AA13: 27 | AB13: 73 | AC13: 36.50 | AD13: D | AE13: D | AF13: 5 | AG13: 2 | AH13: 7 | AI13: 5 | AJ13: 2 | AK13: 7 | AL13: 5 | AN13: 5 | AO13: 19 | AP13: 15 | AQ13: 12 | AR13: 27 | AS13: 15 | AT13: 12 | AU13: 27 | AV13: 73 | AW13: 36.50 | AX13: D | AY13: D | AZ13: 5 | BA13: 2 | BB13: 7 | BC13: 5 | BD13: 2 | BE13: 7 | BF13: 5 | BH13: 5 | BI13: 19 | BJ13: 15 | BK13: 12 | BL13: 27 | BM13: 15 | BN13: 12 | BO13: 27 | BP13: 73 | BQ13: 36.50 | BR13: D | BS13: D | BT13: 5 | BU13: 2 | BV13: 7 | BW13: 5 | BX13: 2 | BY13: 7 | BZ13: 5 | CB13: 5 | CC13: 19 | CD13: 15 | CE13: 12 | CF13: 27 | CG13: 15 | CH13: 12 | CI13: 27 | CJ13: 73 | CK13: 36.50 | CL13: D | CM13: D | CN13: 5 | CO13: 2 | CP13: 7 | CQ13: 5 | CR13: 2 | CS13: 7 | CT13: 5 | CV13: 5 | CW13: 19 | CX13: 15 | CY13: 12 | CZ13: 27 | DA13: 15 | DB13: 12 | DC13: 27 | DD13: 73 | DE13: 36.50 | DF13: D | DG13: D | DH13: 5 | DI13: 2 | DJ13: 7 | DK13: 5 | DL13: 2 | DM13: 7 | DN13: 5 | DP13: 5 | DQ13: 19 | DR13: 15 | DS13: 12 | DT13: 27 | DU13: 15 | DV13: 12 | DW13: 27 | DX13: 73 | DY13: 36.50 | DZ13: D | EA13: D | EB13: 15 | EC13: 15 | ED13: 11 | EE13: 20 | EF13: 10 | EG13: 71 | EH13: 71.00 | EI13: B | EJ13: B | EK13: 15 | EL13: 15 | EM13: 11 | EN13: 20 | EO13: 10 | EP13: 71 | EQ13: 71.00 | ER13: B | ES13: B | ET13: 15 | EU13: 15 | EV13: 11 | EW13: 20 | EX13: 10 | EY13: 71 | EZ13: 71.00 | FA13: B | FB13: B | FF13: 1200 | FG13: 438 | FH13: 36.50 | FI13: Third | FJ13: D | FK13: PASSED | FL13: 36.5 | FM13: 7 | FN13: Average | FO13: D | FP13: D | FQ13: D | FR13: D | FS13: D | FT13: D | FU13: 0 | FV13: 0 | FW13: 0 | FX13: 6 | FY13: 0 | GB13: 71 | GC13: / | GD13: 100 | GE13: 71/100 | GF13: 71 | GG13: / | GH13: 100 | GI13: 71/100 | GJ13: 71 | GK13: / | GL13: 100 | GM13: 71/100 | GO13: D | GP13: D | GQ13: D | GR13: D | GS13: D | GT13: D | GU13: 0 | GV13: 0 | GW13: 0 | GX13: 0
A14: 906 | B14: 6 | C14: 6 | D14: 6 | E14: 1404 | G14: 906 | H14: ASHOKA SUTHAR | I14: SATYNARYAN | J14: SANTU | K14: 2006-06-08 | L14: 3 | M14: 4 | N14: 7 | O14: 3 | P14: 4 | Q14: 7 | R14: 3 | T14: 3 | U14: 17 | V14: 20 | W14: 18 | X14: 38 | Y14: 20 | Z14: 18 | AA14: 38 | AB14: 93 | AC14: 46.50 | AD14: D | AE14: D | AF14: 3 | AG14: 4 | AH14: 7 | AI14: 3 | AJ14: 4 | AK14: 7 | AL14: 3 | AN14: 3 | AO14: 17 | AP14: 20 | AQ14: 18 | AR14: 38 | AS14: 20 | AT14: 18 | AU14: 38 | AV14: 93 | AW14: 46.50 | AX14: D | AY14: D | AZ14: 3 | BA14: 4 | BB14: 7 | BC14: 3 | BD14: 4 | BE14: 7 | BF14: 3 | BH14: 3 | BI14: 17 | BJ14: 20 | BK14: 18 | BL14: 38 | BM14: 20 | BN14: 18 | BO14: 38 | BP14: 93 | BQ14: 46.50 | BR14: D | BS14: D | BT14: 3 | BU14: 4 | BV14: 7 | BW14: 3 | BX14: 4 | BY14: 7 | BZ14: 3 | CB14: 3 | CC14: 17 | CD14: 20 | CE14: 18 | CF14: 38 | CG14: 20 | CH14: 18 | CI14: 38 | CJ14: 93 | CK14: 46.50 | CL14: D | CM14: D | CN14: 3 | CO14: 4 | CP14: 7 | CQ14: 3 | CR14: 4 | CS14: 7 | CT14: 3 | CV14: 3 | CW14: 17 | CX14: 20 | CY14: 18 | CZ14: 38 | DA14: 20 | DB14: 18 | DC14: 38 | DD14: 93 | DE14: 46.50 | DF14: D | DG14: D | DH14: 3 | DI14: 4 | DJ14: 7 | DK14: 3 | DL14: 4 | DM14: 7 | DN14: 3 | DP14: 3 | DQ14: 17 | DR14: 20 | DS14: 18 | DT14: 38 | DU14: 20 | DV14: 18 | DW14: 38 | DX14: 93 | DY14: 46.50 | DZ14: D | EA14: D | EB14: 15 | EC14: 15 | ED14: 11 | EE14: 20 | EF14: 10 | EG14: 71 | EH14: 71.00 | EI14: B | EJ14: B | EK14: 15 | EL14: 15 | EM14: 11 | EN14: 20 | EO14: 10 | EP14: 71 | EQ14: 71.00 | ER14: B | ES14: B | ET14: 15 | EU14: 15 | EV14: 11 | EW14: 20 | EX14: 10 | EY14: 71 | EZ14: 71.00 | FA14: B | FB14: B | FF14: 1200 | FG14: 558 | FH14: 46.50 | FI14: Third | FJ14: D | FK14: PASSED | FL14: 46.5 | FM14: 4 | FN14: Average | FO14: D | FP14: D | FQ14: D | FR14: D | FS14: D | FT14: D | FU14: 0 | FV14: 0 | FW14: 0 | FX14: 6 | FY14: 0 | GB14: 71 | GC14: / | GD14: 100 | GE14: 71/100 | GF14: 71 | GG14: / | GH14: 100 | GI14: 71/100 | GJ14: 71 | GK14: / | GL14: 100 | GM14: 71/100 | GO14: D | GP14: D | GQ14: D | GR14: D | GS14: D | GT14: D | GU14: 0 | GV14: 0 | GW14: 0 | GX14: 0
A15: 907 | B15: 7 | C15: 7 | D15: 6 | E15: 1453 | G15: 907 | H15: BAJRANG VISHNOI | I15: OM PRAKASH VISHNOI | J15: LOONGA DEVI | K15: 2006-10-01 | L15: 2 | M15: 2 | N15: 4 | O15: 2 | P15: 2 | Q15: 4 | R15: 2 | T15: 2 | U15: 10 | V15: 15 | W15: 15 | X15: 30 | Y15: 45 | Z15: 15 | AA15: 60 | AB15: 100 | AC15: 50.00 | AD15: D | AE15: D | AF15: 3 | AG15: 3 | AH15: 6 | AI15: 3 | AJ15: 3 | AK15: 6 | AL15: 3 | AN15: 3 | AO15: 15 | AP15: 25 | AQ15: 15 | AR15: 40 | AS15: 55 | AT15: 15 | AU15: 70 | AV15: 125 | AW15: 62.50 | AX15: C | AY15: C | AZ15: 4 | BA15: 4 | BB15: 8 | BC15: 4 | BD15: 4 | BE15: 8 | BF15: 4 | BH15: 4 | BI15: 20 | BJ15: 25 | BK15: 20 | BL15: 45 | BM15: 65 | BN15: 15 | BO15: 80 | BP15: 145 | BQ15: 72.50 | BR15: B | BS15: B | BT15: 2 | BU15: 2 | BV15: 4 | BW15: 2 | BX15: 2 | BY15: 4 | BZ15: 2 | CB15: 2 | CC15: 10 | CD15: 30 | CE15: 15 | CF15: 45 | CG15: 45 | CH15: 15 | CI15: 60 | CJ15: 115 | CK15: 57.50 | CL15: C | CM15: C | CN15: 4 | CO15: 4 | CP15: 8 | CQ15: 4 | CR15: 4 | CS15: 8 | CT15: 4 | CV15: 4 | CW15: 20 | CX15: 15 | CY15: 15 | CZ15: 30 | DA15: 45 | DB15: 15 | DC15: 60 | DD15: 110 | DE15: 55.00 | DF15: C | DG15: C | DH15: 5 | DI15: 5 | DJ15: 10 | DK15: 5 | DL15: 5 | DM15: 10 | DN15: 5 | DP15: 5 | DQ15: 25 | DR15: 25 | DS15: 15 | DT15: 40 | DU15: 65 | DV15: 25 | DW15: 90 | DX15: 155 | DY15: 77.50 | DZ15: B | EA15: B | EB15: 15 | EC15: 15 | ED15: 11 | EE15: 20 | EF15: 10 | EG15: 71 | EH15: 71.00 | EI15: B | EJ15: B | EK15: 15 | EL15: 15 | EM15: 11 | EN15: 20 | EO15: 10 | EP15: 71 | EQ15: 71.00 | ER15: B | ES15: B | ET15: 15 | EU15: 15 | EV15: 11 | EW15: 20 | EX15: 10 | EY15: 71 | EZ15: 71.00 | FA15: B | FB15: B | FF15: 1200 | FG15: 750 | FH15: 62.50 | FI15: First | FJ15: C | FK15: PASSED | FL15: 62.5 | FM15: 1 | FN15: Good | FO15: D | FP15: C | FQ15: B | FR15: C | FS15: C | FT15: B | FU15: 0 | FV15: 2 | FW15: 3 | FX15: 1 | FY15: 0 | GB15: 71 | GC15: / | GD15: 100 | GE15: 71/100 | GF15: 71 | GG15: / | GH15: 100 | GI15: 71/100 | GJ15: 71 | GK15: / | GL15: 100 | GM15: 71/100 | GO15: D | GP15: C | GQ15: B | GR15: C | GS15: C | GT15: B | GU15: 0 | GV15: 0 | GW15: 0 | GX15: 0
A16: 908 | B16: 8 | C16: 8 | D16: 6 | E16: 1 | G16: 908 | N16: 0 | Q16: 0 | T16: 0 | U16: 0 | X16: 0 | AA16: 0 | AB16: 0 | AC16: 0.00 | AD16: E | AE16: E | AH16: 0 | AK16: 0 | AN16: 0 | AO16: 0 | AR16: 0 | AU16: 0 | AV16: 0 | AW16: 0.00 | AX16: E | AY16: E | BB16: 0 | BE16: 0 | BH16: 0 | BI16: 0 | BL16: 0 | BO16: 0 | BP16: 0 | BQ16: 0.00 | BR16: E | BS16: E | BV16: 0 | BY16: 0 | CB16: 0 | CC16: 0 | CF16: 0 | CI16: 0 | CJ16: 0 | CK16: 0.00 | CL16: E | CM16: E | CP16: 0 | CS16: 0 | CV16: 0 | CW16: 0 | CZ16: 0 | DC16: 0 | DD16: 0 | DE16: 0.00 | DF16: E | DG16: E | DJ16: 0 | DM16: 0 | DP16: 0 | DQ16: 0 | DT16: 0 | DW16: 0 | DX16: 0 | DY16: 0.00 | DZ16: E | EA16: E | EB16: 0 | EC16: 0 | ED16: 0 | EG16: 0 | EH16: 0.00 | EI16: E | EJ16: E | EK16: 0 | EL16: 0 | EM16: 0 | EP16: 0 | EQ16: 0.00 | ER16: E | ES16: E | ET16: 0 | EU16: 0 | EV16: 0 | EY16: 0 | EZ16: 0.00 | FA16: E | FB16: E | FF16: 1200 | FG16: 0 | FH16: 0.00 | FK16: PROMOTED | FN16: Need Improvement | FO16: E | FP16: E | FQ16: E | FR16: E | FS16: E | FT16: E | FU16: 0 | FV16: 0 | FW16: 0 | FX16: 0 | FY16: 6 | GB16: 0 | GC16: / | GD16: 100 | GE16: 0/100 | GF16: 0 | GG16: / | GH16: 100 | GI16: 0/100 | GJ16: 0 | GK16: / | GL16: 100 | GM16: 0/100 | GO16: E | GP16: E | GQ16: E | GR16: E | GS16: E | GT16: E | GU16: 0 | GV16: 0 | GW16: 0 | GX16: 6
A17: 909 | B17: 9 | C17: 9 | D17: 6 | E17: 2 | G17: 909 | N17: 0 | Q17: 0 | T17: 0 | U17: 0 | X17: 0 | AA17: 0 | AB17: 0 | AC17: 0.00 | AD17: E | AE17: E | AH17: 0 | AK17: 0 | AN17: 0 | AO17: 0 | AR17: 0 | AU17: 0 | AV17: 0 | AW17: 0.00 | AX17: E | AY17: E | BB17: 0 | BE17: 0 | BH17: 0 | BI17: 0 | BL17: 0 | BO17: 0 | BP17: 0 | BQ17: 0.00 | BR17: E | BS17: E | BV17: 0 | BY17: 0 | CB17: 0 | CC17: 0 | CF17: 0 | CI17: 0 | CJ17: 0 | CK17: 0.00 | CL17: E | CM17: E | CP17: 0 | CS17: 0 | CV17: 0 | CW17: 0 | CZ17: 0 | DC17: 0 | DD17: 0 | DE17: 0.00 | DF17: E | DG17: E | DJ17: 0 | DM17: 0 | DP17: 0 | DQ17: 0 | DT17: 0 | DW17: 0 | DX17: 0 | DY17: 0.00 | DZ17: E | EA17: E | EB17: 0 | EC17: 0 | ED17: 0 | EG17: 0 | EH17: 0.00 | EI17: E | EJ17: E | EK17: 0 | EL17: 0 | EM17: 0 | EP17: 0 | EQ17: 0.00 | ER17: E | ES17: E | ET17: 0 | EU17: 0 | EV17: 0 | EY17: 0 | EZ17: 0.00 | FA17: E | FB17: E | FF17: 1200 | FG17: 0 | FH17: 0.00 | FK17: PROMOTED | FN17: Need Improvement | FO17: E | FP17: E | FQ17: E | FR17: E | FS17: E | FT17: E | FU17: 0 | FV17: 0 | FW17: 0 | FX17: 0 | FY17: 6 | GB17: 0 | GC17: / | GD17: 100 | GE17: 0/100 | GF17: 0 | GG17: / | GH17: 100 | GI17: 0/100 | GJ17: 0 | GK17: / | GL17: 100 | GM17: 0/100 | GO17: E | GP17: E | GQ17: E | GR17: E | GS17: E | GT17: E | GU17: 0 | GV17: 0 | GW17: 0 | GX17: 6
A18: 0 | B18: 10 | C18: 10 | D18: 0 | N18: 0 | Q18: 0 | T18: 0 | U18: 0 | X18: 0 | AA18: 0 | AB18: 0 | AC18: 0.00 | AE18: 0 | AH18: 0 | AK18: 0 | AN18: 0 | AO18: 0 | AR18: 0 | AU18: 0 | AV18: 0 | AW18: 0.00 | AX18: E | AY18: 0 | BB18: 0 | BE18: 0 | BH18: 0 | BI18: 0 | BL18: 0 | BO18: 0 | BP18: 0 | BQ18: 0.00 | BR18: E | BS18: 0 | BV18: 0 | BY18: 0 | CB18: 0 | CC18: 0 | CF18: 0 | CI18: 0 | CJ18: 0 | CK18: 0.00 | CL18: E | CM18: 0 | CP18: 0 | CS18: 0 | CV18: 0 | CW18: 0 | CZ18: 0 | DC18: 0 | DD18: 0 | DE18: 0.00 | DF18: E | DG18: 0 | DJ18: 0 | DM18: 0 | DP18: 0 | DQ18: 0 | DT18: 0 | DW18: 0 | DX18: 0 | DY18: 0.00 | DZ18: E | EA18: 0 | EB18: 0 | EC18: 0 | ED18: 0 | EG18: 0 | EH18: 0.00 | EI18: E | EJ18: 0 | EK18: 0 | EL18: 0 | EM18: 0 | EP18: 0 | EQ18: 0.00 | ER18: E | ES18: 0 | ET18: 0 | EU18: 0 | EV18: 0 | EY18: 0 | EZ18: 0.00 | FA18: E | FB18: 0 | FF18: 0 | FG18: 0 | FO18: 0 | FP18: 0 | FQ18: 0 | FR18: 0 | FS18: 0 | FT18: 0 | FU18: 0 | FV18: 0 | FW18: 0 | FX18: 0 | FY18: 0 | GB18: 0 | GC18: / | GD18: 100 | GE18: 0/100 | GF18: 0 | GG18: / | GH18: 100 | GI18: 0/100 | GJ18: 0 | GK18: / | GL18: 100 | GM18: 0/100 | GO18: 0 | GP18: 0 | GQ18: 0 | GR18: 0 | GS18: 0 | GT18: 0 | GU18: 0 | GV18: 0 | GW18: 0 | GX18: 0
A19: 0 | B19: 11 | C19: 11 | D19: 0 | N19: 0 | Q19: 0 | T19: 0 | U19: 0 | X19: 0 | AA19: 0 | AB19: 0 | AC19: 0.00 | AE19: 0 | AH19: 0 | AK19: 0 | AN19: 0 | AO19: 0 | AR19: 0 | AU19: 0 | AV19: 0 | AW19: 0.00 | AX19: E | AY19: 0 | BB19: 0 | BE19: 0 | BH19: 0 | BI19: 0 | BL19: 0 | BO19: 0 | BP19: 0 | BQ19: 0.00 | BR19: E | BS19: 0 | BV19: 0 | BY19: 0 | CB19: 0 | CC19: 0 | CF19: 0 | CI19: 0 | CJ19: 0 | CK19: 0.00 | CL19: E | CM19: 0 | CP19: 0 | CS19: 0 | CV19: 0 | CW19: 0 | CZ19: 0 | DC19: 0 | DD19: 0 | DE19: 0.00 | DF19: E | DG19: 0 | DJ19: 0 | DM19: 0 | DP19: 0 | DQ19: 0 | DT19: 0 | DW19: 0 | DX19: 0 | DY19: 0.00 | DZ19: E | EA19: 0 | EB19: 0 | EC19: 0 | ED19: 0 | EG19: 0 | EH19: 0.00 | EI19: E | EJ19: 0 | EK19: 0 | EL19: 0 | EM19: 0 | EP19: 0 | EQ19: 0.00 | ER19: E | ES19: 0 | ET19: 0 | EU19: 0 | EV19: 0 | EY19: 0 | EZ19: 0.00 | FA19: E | FB19: 0 | FF19: 0 | FG19: 0 | FO19: 0 | FP19: 0 | FQ19: 0 | FR19: 0 | FS19: 0 | FT19: 0 | FU19: 0 | FV19: 0 | FW19: 0 | FX19: 0 | FY19: 0 | GB19: 0 | GC19: / | GD19: 100 | GE19: 0/100 | GF19: 0 | GG19: / | GH19: 100 | GI19: 0/100 | GJ19: 0 | GK19: / | GL19: 100 | GM19: 0/100 | GO19: 0 | GP19: 0 | GQ19: 0 | GR19: 0 | GS19: 0 | GT19: 0 | GU19: 0 | GV19: 0 | GW19: 0 | GX19: 0
A20: 0 | B20: 12 | C20: 12 | D20: 0 | N20: 0 | Q20: 0 | T20: 0 | U20: 0 | X20: 0 | AA20: 0 | AB20: 0 | AC20: 0.00 | AE20: 0 | AH20: 0 | AK20: 0 | AN20: 0 | AO20: 0 | AR20: 0 | AU20: 0 | AV20: 0 | AW20: 0.00 | AX20: E | AY20: 0 | BB20: 0 | BE20: 0 | BH20: 0 | BI20: 0 | BL20: 0 | BO20: 0 | BP20: 0 | BQ20: 0.00 | BR20: E | BS20: 0 | BV20: 0 | BY20: 0 | CB20: 0 | CC20: 0 | CF20: 0 | CI20: 0 | CJ20: 0 | CK20: 0.00 | CL20: E | CM20: 0 | CP20: 0 | CS20: 0 | CV20: 0 | CW20: 0 | CZ20: 0 | DC20: 0 | DD20: 0 | DE20: 0.00 | DF20: E | DG20: 0 | DJ20: 0 | DM20: 0 | DP20: 0 | DQ20: 0 | DT20: 0 | DW20: 0 | DX20: 0 | DY20: 0.00 | DZ20: E | EA20: 0 | EB20: 0 | EC20: 0 | ED20: 0 | EG20: 0 | EH20: 0.00 | EI20: E | EJ20: 0 | EK20: 0 | EL20: 0 | EM20: 0 | EP20: 0 | EQ20: 0.00 | ER20: E | ES20: 0 | ET20: 0 | EU20: 0 | EV20: 0 | EY20: 0 | EZ20: 0.00 | FA20: E | FB20: 0 | FF20: 0 | FG20: 0 | FO20: 0 | FP20: 0 | FQ20: 0 | FR20: 0 | FS20: 0 | FT20: 0 | FU20: 0 | FV20: 0 | FW20: 0 | FX20: 0 | FY20: 0 | GB20: 0 | GC20: / | GD20: 100 | GE20: 0/100 | GF20: 0 | GG20: / | GH20: 100 | GI20: 0/100 | GJ20: 0 | GK20: / | GL20: 100 | GM20: 0/100 | GO20: 0 | GP20: 0 | GQ20: 0 | GR20: 0 | GS20: 0 | GT20: 0 | GU20: 0 | GV20: 0 | GW20: 0 | GX20: 0
A21: 0 | B21: 13 | C21: 13 | D21: 0 | N21: 0 | Q21: 0 | T21: 0 | U21: 0 | X21: 0 | AA21: 0 | AB21: 0 | AC21: 0.00 | AE21: 0 | AH21: 0 | AK21: 0 | AN21: 0 | AO21: 0 | AR21: 0 | AU21: 0 | AV21: 0 | AW21: 0.00 | AX21: E | AY21: 0 | BB21: 0 | BE21: 0 | BH21: 0 | BI21: 0 | BL21: 0 | BO21: 0 | BP21: 0 | BQ21: 0.00 | BR21: E | BS21: 0 | BV21: 0 | BY21: 0 | CB21: 0 | CC21: 0 | CF21: 0 | CI21: 0 | CJ21: 0 | CK21: 0.00 | CL21: E | CM21: 0 | CP21: 0 | CS21: 0 | CV21: 0 | CW21: 0 | CZ21: 0 | DC21: 0 | DD21: 0 | DE21: 0.00 | DF21: E | DG21: 0 | DJ21: 0 | DM21: 0 | DP21: 0 | DQ21: 0 | DT21: 0 | DW21: 0 | DX21: 0 | DY21: 0.00 | DZ21: E | EA21: 0 | EB21: 0 | EC21: 0 | ED21: 0 | EG21: 0 | EH21: 0.00 | EI21: E | EJ21: 0 | EK21: 0 | EL21: 0 | EM21: 0 | EP21: 0 | EQ21: 0.00 | ER21: E | ES21: 0 | ET21: 0 | EU21: 0 | EV21: 0 | EY21: 0 | EZ21: 0.00 | FA21: E | FB21: 0 | FF21: 0 | FG21: 0 | FO21: 0 | FP21: 0 | FQ21: 0 | FR21: 0 | FS21: 0 | FT21: 0 | FU21: 0 | FV21: 0 | FW21: 0 | FX21: 0 | FY21: 0 | GB21: 0 | GC21: / | GD21: 100 | GE21: 0/100 | GF21: 0 | GG21: / | GH21: 100 | GI21: 0/100 | GJ21: 0 | GK21: / | GL21: 100 | GM21: 0/100 | GO21: 0 | GP21: 0 | GQ21: 0 | GR21: 0 | GS21: 0 | GT21: 0 | GU21: 0 | GV21: 0 | GW21: 0 | GX21: 0
A22: 0 | B22: 14 | C22: 14 | D22: 0 | N22: 0 | Q22: 0 | T22: 0 | U22: 0 | X22: 0 | AA22: 0 | AB22: 0 | AC22: 0.00 | AE22: 0 | AH22: 0 | AK22: 0 | AN22: 0 | AO22: 0 | AR22: 0 | AU22: 0 | AV22: 0 | AW22: 0.00 | AX22: E | AY22: 0 | BB22: 0 | BE22: 0 | BH22: 0 | BI22: 0 | BL22: 0 | BO22: 0 | BP22: 0 | BQ22: 0.00 | BR22: E | BS22: 0 | BV22: 0 | BY22: 0 | CB22: 0 | CC22: 0 | CF22: 0 | CI22: 0 | CJ22: 0 | CK22: 0.00 | CL22: E | CM22: 0 | CP22: 0 | CS22: 0 | CV22: 0 | CW22: 0 | CZ22: 0 | DC22: 0 | DD22: 0 | DE22: 0.00 | DF22: E | DG22: 0 | DJ22: 0 | DM22: 0 | DP22: 0 | DQ22: 0 | DT22: 0 | DW22: 0 | DX22: 0 | DY22: 0.00 | DZ22: E | EA22: 0 | EB22: 0 | EC22: 0 | ED22: 0 | EG22: 0 | EH22: 0.00 | EI22: E | EJ22: 0 | EK22: 0 | EL22: 0 | EM22: 0 | EP22: 0 | EQ22: 0.00 | ER22: E | ES22: 0 | ET22: 0 | EU22: 0 | EV22: 0 | EY22: 0 | EZ22: 0.00 | FA22: E | FB22: 0 | FF22: 0 | FG22: 0 | FO22: 0 | FP22: 0 | FQ22: 0 | FR22: 0 | FS22: 0 | FT22: 0 | FU22: 0 | FV22: 0 | FW22: 0 | FX22: 0 | FY22: 0 | GB22: 0 | GC22: / | GD22: 100 | GE22: 0/100 | GF22: 0 | GG22: / | GH22: 100 | GI22: 0/100 | GJ22: 0 | GK22: / | GL22: 100 | GM22: 0/100 | GO22: 0 | GP22: 0 | GQ22: 0 | GR22: 0 | GS22: 0 | GT22: 0 | GU22: 0 | GV22: 0 | GW22: 0 | GX22: 0
A23: 0 | B23: 15 | C23: 15 | D23: 0 | N23: 0 | Q23: 0 | T23: 0 | U23: 0 | X23: 0 | AA23: 0 | AB23: 0 | AC23: 0.00 | AE23: 0 | AH23: 0 | AK23: 0 | AN23: 0 | AO23: 0 | AR23: 0 | AU23: 0 | AV23: 0 | AW23: 0.00 | AX23: E | AY23: 0 | BB23: 0 | BE23: 0 | BH23: 0 | BI23: 0 | BL23: 0 | BO23: 0 | BP23: 0 | BQ23: 0.00 | BR23: E | BS23: 0 | BV23: 0 | BY23: 0 | CB23: 0 | CC23: 0 | CF23: 0 | CI23: 0 | CJ23: 0 | CK23: 0.00 | CL23: E | CM23: 0 | CP23: 0 | CS23: 0 | CV23: 0 | CW23: 0 | CZ23: 0 | DC23: 0 | DD23: 0 | DE23: 0.00 | DF23: E | DG23: 0 | DJ23: 0 | DM23: 0 | DP23: 0 | DQ23: 0 | DT23: 0 | DW23: 0 | DX23: 0 | DY23: 0.00 | DZ23: E | EA23: 0 | EB23: 0 | EC23: 0 | ED23: 0 | EG23: 0 | EH23: 0.00 | EI23: E | EJ23: 0 | EK23: 0 | EL23: 0 | EM23: 0 | EP23: 0 | EQ23: 0.00 | ER23: E | ES23: 0 | ET23: 0 | EU23: 0 | EV23: 0 | EY23: 0 | EZ23: 0.00 | FA23: E | FB23: 0 | FF23: 0 | FG23: 0 | FO23: 0 | FP23: 0 | FQ23: 0 | FR23: 0 | FS23: 0 | FT23: 0 | FU23: 0 | FV23: 0 | FW23: 0 | FX23: 0 | FY23: 0 | GB23: 0 | GC23: / | GD23: 100 | GE23: 0/100 | GF23: 0 | GG23: / | GH23: 100 | GI23: 0/100 | GJ23: 0 | GK23: / | GL23: 100 | GM23: 0/100 | GO23: 0 | GP23: 0 | GQ23: 0 | GR23: 0 | GS23: 0 | GT23: 0 | GU23: 0 | GV23: 0 | GW23: 0 | GX23: 0
A24: 0 | B24: 16 | C24: 16 | D24: 0 | N24: 0 | Q24: 0 | T24: 0 | U24: 0 | X24: 0 | AA24: 0 | AB24: 0 | AC24: 0.00 | AE24: 0 | AH24: 0 | AK24: 0 | AN24: 0 | AO24: 0 | AR24: 0 | AU24: 0 | AV24: 0 | AW24: 0.00 | AX24: E | AY24: 0 | BB24: 0 | BE24: 0 | BH24: 0 | BI24: 0 | BL24: 0 | BO24: 0 | BP24: 0 | BQ24: 0.00 | BR24: E | BS24: 0 | BV24: 0 | BY24: 0 | CB24: 0 | CC24: 0 | CF24: 0 | CI24: 0 | CJ24: 0 | CK24: 0.00 | CL24: E | CM24: 0 | CP24: 0 | CS24: 0 | CV24: 0 | CW24: 0 | CZ24: 0 | DC24: 0 | DD24: 0 | DE24: 0.00 | DF24: E | DG24: 0 | DJ24: 0 | DM24: 0 | DP24: 0 | DQ24: 0 | DT24: 0 | DW24: 0 | DX24: 0 | DY24: 0.00 | DZ24: E | EA24: 0 | EB24: 0 | EC24: 0 | ED24: 0 | EG24: 0 | EH24: 0.00 | EI24: E | EJ24: 0 | EK24: 0 | EL24: 0 | EM24: 0 | EP24: 0 | EQ24: 0.00 | ER24: E | ES24: 0 | ET24: 0 | EU24: 0 | EV24: 0 | EY24: 0 | EZ24: 0.00 | FA24: E | FB24: 0 | FF24: 0 | FG24: 0 | FO24: 0 | FP24: 0 | FQ24: 0 | FR24: 0 | FS24: 0 | FT24: 0 | FU24: 0 | FV24: 0 | FW24: 0 | FX24: 0 | FY24: 0 | GB24: 0 | GC24: / | GD24: 100 | GE24: 0/100 | GF24: 0 | GG24: / | GH24: 100 | GI24: 0/100 | GJ24: 0 | GK24: / | GL24: 100 | GM24: 0/100 | GO24: 0 | GP24: 0 | GQ24: 0 | GR24: 0 | GS24: 0 | GT24: 0 | GU24: 0 | GV24: 0 | GW24: 0 | GX24: 0
A25: 0 | B25: 17 | C25: 17 | D25: 0 | N25: 0 | Q25: 0 | T25: 0 | U25: 0 | X25: 0 | AA25: 0 | AB25: 0 | AC25: 0.00 | AE25: 0 | AH25: 0 | AK25: 0 | AN25: 0 | AO25: 0 | AR25: 0 | AU25: 0 | AV25: 0 | AW25: 0.00 | AX25: E | AY25: 0 | BB25: 0 | BE25: 0 | BH25: 0 | BI25: 0 | BL25: 0 | BO25: 0 | BP25: 0 | BQ25: 0.00 | BR25: E | BS25: 0 | BV25: 0 | BY25: 0 | CB25: 0 | CC25: 0 | CF25: 0 | CI25: 0 | CJ25: 0 | CK25: 0.00 | CL25: E | CM25: 0 | CP25: 0 | CS25: 0 | CV25: 0 | CW25: 0 | CZ25: 0 | DC25: 0 | DD25: 0 | DE25: 0.00 | DF25: E | DG25: 0 | DJ25: 0 | DM25: 0 | DP25: 0 | DQ25: 0 | DT25: 0 | DW25: 0 | DX25: 0 | DY25: 0.00 | DZ25: E | EA25: 0 | EB25: 0 | EC25: 0 | ED25: 0 | EG25: 0 | EH25: 0.00 | EI25: E | EJ25: 0 | EK25: 0 | EL25: 0 | EM25: 0 | EP25: 0 | EQ25: 0.00 | ER25: E | ES25: 0 | ET25: 0 | EU25: 0 | EV25: 0 | EY25: 0 | EZ25: 0.00 | FA25: E | FB25: 0 | FF25: 0 | FG25: 0 | FO25: 0 | FP25: 0 | FQ25: 0 | FR25: 0 | FS25: 0 | FT25: 0 | FU25: 0 | FV25: 0 | FW25: 0 | FX25: 0 | FY25: 0 | GB25: 0 | GC25: / | GD25: 100 | GE25: 0/100 | GF25: 0 | GG25: / | GH25: 100 | GI25: 0/100 | GJ25: 0 | GK25: / | GL25: 100 | GM25: 0/100 | GO25: 0 | GP25: 0 | GQ25: 0 | GR25: 0 | GS25: 0 | GT25: 0 | GU25: 0 | GV25: 0 | GW25: 0 | GX25: 0
A26: 0 | B26: 18 | C26: 18 | D26: 0 | N26: 0 | Q26: 0 | T26: 0 | U26: 0 | X26: 0 | AA26: 0 | AB26: 0 | AC26: 0.00 | AE26: 0 | AH26: 0 | AK26: 0 | AN26: 0 | AO26: 0 | AR26: 0 | AU26: 0 | AV26: 0 | AW26: 0.00 | AX26: E | AY26: 0 | BB26: 0 | BE26: 0 | BH26: 0 | BI26: 0 | BL26: 0 | BO26: 0 | BP26: 0 | BQ26: 0.00 | BR26: E | BS26: 0 | BV26: 0 | BY26: 0 | CB26: 0 | CC26: 0 | CF26: 0 | CI26: 0 | CJ26: 0 | CK26: 0.00 | CL26: E | CM26: 0 | CP26: 0 | CS26: 0 | CV26: 0 | CW26: 0 | CZ26: 0 | DC26: 0 | DD26: 0 | DE26: 0.00 | DF26: E | DG26: 0 | DJ26: 0 | DM26: 0 | DP26: 0 | DQ26: 0 | DT26: 0 | DW26: 0 | DX26: 0 | DY26: 0.00 | DZ26: E | EA26: 0 | EB26: 0 | EC26: 0 | ED26: 0 | EG26: 0 | EH26: 0.00 | EI26: E | EJ26: 0 | EK26: 0 | EL26: 0 | EM26: 0 | EP26: 0 | EQ26: 0.00 | ER26: E | ES26: 0 | ET26: 0 | EU26: 0 | EV26: 0 | EY26: 0 | EZ26: 0.00 | FA26: E | FB26: 0 | FF26: 0 | FG26: 0 | FO26: 0 | FP26: 0 | FQ26: 0 | FR26: 0 | FS26: 0 | FT26: 0 | FU26: 0 | FV26: 0 | FW26: 0 | FX26: 0 | FY26: 0 | GB26: 0 | GC26: / | GD26: 100 | GE26: 0/100 | GF26: 0 | GG26: / | GH26: 100 | GI26: 0/100 | GJ26: 0 | GK26: / | GL26: 100 | GM26: 0/100 | GO26: 0 | GP26: 0 | GQ26: 0 | GR26: 0 | GS26: 0 | GT26: 0 | GU26: 0 | GV26: 0 | GW26: 0 | GX26: 0
A27: 0 | B27: 19 | C27: 19 | D27: 0 | N27: 0 | Q27: 0 | T27: 0 | U27: 0 | X27: 0 | AA27: 0 | AB27: 0 | AC27: 0.00 | AE27: 0 | AH27: 0 | AK27: 0 | AN27: 0 | AO27: 0 | AR27: 0 | AU27: 0 | AV27: 0 | AW27: 0.00 | AX27: E | AY27: 0 | BB27: 0 | BE27: 0 | BH27: 0 | BI27: 0 | BL27: 0 | BO27: 0 | BP27: 0 | BQ27: 0.00 | BR27: E | BS27: 0 | BV27: 0 | BY27: 0 | CB27: 0 | CC27: 0 | CF27: 0 | CI27: 0 | CJ27: 0 | CK27: 0.00 | CL27: E | CM27: 0 | CP27: 0 | CS27: 0 | CV27: 0 | CW27: 0 | CZ27: 0 | DC27: 0 | DD27: 0 | DE27: 0.00 | DF27: E | DG27: 0 | DJ27: 0 | DM27: 0 | DP27: 0 | DQ27: 0 | DT27: 0 | DW27: 0 | DX27: 0 | DY27: 0.00 | DZ27: E | EA27: 0 | EB27: 0 | EC27: 0 | ED27: 0 | EG27: 0 | EH27: 0.00 | EI27: E | EJ27: 0 | EK27: 0 | EL27: 0 | EM27: 0 | EP27: 0 | EQ27: 0.00 | ER27: E | ES27: 0 | ET27: 0 | EU27: 0 | EV27: 0 | EY27: 0 | EZ27: 0.00 | FA27: E | FB27: 0 | FF27: 0 | FG27: 0 | FO27: 0 | FP27: 0 | FQ27: 0 | FR27: 0 | FS27: 0 | FT27: 0 | FU27: 0 | FV27: 0 | FW27: 0 | FX27: 0 | FY27: 0 | GB27: 0 | GC27: / | GD27: 100 | GE27: 0/100 | GF27: 0 | GG27: / | GH27: 100 | GI27: 0/100 | GJ27: 0 | GK27: / | GL27: 100 | GM27: 0/100 | GO27: 0 | GP27: 0 | GQ27: 0 | GR27: 0 | GS27: 0 | GT27: 0 | GU27: 0 | GV27: 0 | GW27: 0 | GX27: 0
A28: 0 | B28: 20 | C28: 20 | D28: 0 | N28: 0 | Q28: 0 | T28: 0 | U28: 0 | X28: 0 | AA28: 0 | AB28: 0 | AC28: 0.00 | AE28: 0 | AH28: 0 | AK28: 0 | AN28: 0 | AO28: 0 | AR28: 0 | AU28: 0 | AV28: 0 | AW28: 0.00 | AX28: E | AY28: 0 | BB28: 0 | BE28: 0 | BH28: 0 | BI28: 0 | BL28: 0 | BO28: 0 | BP28: 0 | BQ28: 0.00 | BR28: E | BS28: 0 | BV28: 0 | BY28: 0 | CB28: 0 | CC28: 0 | CF28: 0 | CI28: 0 | CJ28: 0 | CK28: 0.00 | CL28: E | CM28: 0 | CP28: 0 | CS28: 0 | CV28: 0 | CW28: 0 | CZ28: 0 | DC28: 0 | DD28: 0 | DE28: 0.00 | DF28: E | DG28: 0 | DJ28: 0 | DM28: 0 | DP28: 0 | DQ28: 0 | DT28: 0 | DW28: 0 | DX28: 0 | DY28: 0.00 | DZ28: E | EA28: 0 | EB28: 0 | EC28: 0 | ED28: 0 | EG28: 0 | EH28: 0.00 | EI28: E | EJ28: 0 | EK28: 0 | EL28: 0 | EM28: 0 | EP28: 0 | EQ28: 0.00 | ER28: E | ES28: 0 | ET28: 0 | EU28: 0 | EV28: 0 | EY28: 0 | EZ28: 0.00 | FA28: E | FB28: 0 | FF28: 0 | FG28: 0 | FO28: 0 | FP28: 0 | FQ28: 0 | FR28: 0 | FS28: 0 | FT28: 0 | FU28: 0 | FV28: 0 | FW28: 0 | FX28: 0 | FY28: 0 | GB28: 0 | GC28: / | GD28: 100 | GE28: 0/100 | GF28: 0 | GG28: / | GH28: 100 | GI28: 0/100 | GJ28: 0 | GK28: / | GL28: 100 | GM28: 0/100 | GO28: 0 | GP28: 0 | GQ28: 0 | GR28: 0 | GS28: 0 | GT28: 0 | GU28: 0 | GV28: 0 | GW28: 0 | GX28: 0
A29: 0 | B29: 21 | C29: 21 | D29: 0 | N29: 0 | Q29: 0 | T29: 0 | U29: 0 | X29: 0 | AA29: 0 | AB29: 0 | AC29: 0.00 | AE29: 0 | AH29: 0 | AK29: 0 | AN29: 0 | AO29: 0 | AR29: 0 | AU29: 0 | AV29: 0 | AW29: 0.00 | AX29: E | AY29: 0 | BB29: 0 | BE29: 0 | BH29: 0 | BI29: 0 | BL29: 0 | BO29: 0 | BP29: 0 | BQ29: 0.00 | BR29: E | BS29: 0 | BV29: 0 | BY29: 0 | CB29: 0 | CC29: 0 | CF29: 0 | CI29: 0 | CJ29: 0 | CK29: 0.00 | CL29: E | CM29: 0 | CP29: 0 | CS29: 0 | CV29: 0 | CW29: 0 | CZ29: 0 | DC29: 0 | DD29: 0 | DE29: 0.00 | DF29: E | DG29: 0 | DJ29: 0 | DM29: 0 | DP29: 0 | DQ29: 0 | DT29: 0 | DW29: 0 | DX29: 0 | DY29: 0.00 | DZ29: E | EA29: 0 | EB29: 0 | EC29: 0 | ED29: 0 | EG29: 0 | EH29: 0.00 | EI29: E | EJ29: 0 | EK29: 0 | EL29: 0 | EM29: 0 | EP29: 0 | EQ29: 0.00 | ER29: E | ES29: 0 | ET29: 0 | EU29: 0 | EV29: 0 | EY29: 0 | EZ29: 0.00 | FA29: E | FB29: 0 | FF29: 0 | FG29: 0 | FO29: 0 | FP29: 0 | FQ29: 0 | FR29: 0 | FS29: 0 | FT29: 0 | FU29: 0 | FV29: 0 | FW29: 0 | FX29: 0 | FY29: 0 | GB29: 0 | GC29: / | GD29: 100 | GE29: 0/100 | GF29: 0 | GG29: / | GH29: 100 | GI29: 0/100 | GJ29: 0 | GK29: / | GL29: 100 | GM29: 0/100 | GO29: 0 | GP29: 0 | GQ29: 0 | GR29: 0 | GS29: 0 | GT29: 0 | GU29: 0 | GV29: 0 | GW29: 0 | GX29: 0
A30: 0 | B30: 22 | C30: 22 | D30: 0 | N30: 0 | Q30: 0 | T30: 0 | U30: 0 | X30: 0 | AA30: 0 | AB30: 0 | AC30: 0.00 | AE30: 0 | AH30: 0 | AK30: 0 | AN30: 0 | AO30: 0 | AR30: 0 | AU30: 0 | AV30: 0 | AW30: 0.00 | AX30: E | AY30: 0 | BB30: 0 | BE30: 0 | BH30: 0 | BI30: 0 | BL30: 0 | BO30: 0 | BP30: 0 | BQ30: 0.00 | BR30: E | BS30: 0 | BV30: 0 | BY30: 0 | CB30: 0 | CC30: 0 | CF30: 0 | CI30: 0 | CJ30: 0 | CK30: 0.00 | CL30: E | CM30: 0 | CP30: 0 | CS30: 0 | CV30: 0 | CW30: 0 | CZ30: 0 | DC30: 0 | DD30: 0 | DE30: 0.00 | DF30: E | DG30: 0 | DJ30: 0 | DM30: 0 | DP30: 0 | DQ30: 0 | DT30: 0 | DW30: 0 | DX30: 0 | DY30: 0.00 | DZ30: E | EA30: 0 | EB30: 0 | EC30: 0 | ED30: 0 | EG30: 0 | EH30: 0.00 | EI30: E | EJ30: 0 | EK30: 0 | EL30: 0 | EM30: 0 | EP30: 0 | EQ30: 0.00 | ER30: E | ES30: 0 | ET30: 0 | EU30: 0 | EV30: 0 | EY30: 0 | EZ30: 0.00 | FA30: E | FB30: 0 | FF30: 0 | FG30: 0 | FO30: 0 | FP30: 0 | FQ30: 0 | FR30: 0 | FS30: 0 | FT30: 0 | FU30: 0 | FV30: 0 | FW30: 0 | FX30: 0 | FY30: 0 | GB30: 0 | GC30: / | GD30: 100 | GE30: 0/100 | GF30: 0 | GG30: / | GH30: 100 | GI30: 0/100 | GJ30: 0 | GK30: / | GL30: 100 | GM30: 0/100 | GO30: 0 | GP30: 0 | GQ30: 0 | GR30: 0 | GS30: 0 | GT30: 0 | GU30: 0 | GV30: 0 | GW30: 0 | GX30: 0
A31: 0 | B31: 23 | C31: 23 | D31: 0 | N31: 0 | Q31: 0 | T31: 0 | U31: 0 | X31: 0 | AA31: 0 | AB31: 0 | AC31: 0.00 | AE31: 0 | AH31: 0 | AK31: 0 | AN31: 0 | AO31: 0 | AR31: 0 | AU31: 0 | AV31: 0 | AW31: 0.00 | AX31: E | AY31: 0 | BB31: 0 | BE31: 0 | BH31: 0 | BI31: 0 | BL31: 0 | BO31: 0 | BP31: 0 | BQ31: 0.00 | BR31: E | BS31: 0 | BV31: 0 | BY31: 0 | CB31: 0 | CC31: 0 | CF31: 0 | CI31: 0 | CJ31: 0 | CK31: 0.00 | CL31: E | CM31: 0 | CP31: 0 | CS31: 0 | CV31: 0 | CW31: 0 | CZ31: 0 | DC31: 0 | DD31: 0 | DE31: 0.00 | DF31: E | DG31: 0 | DJ31: 0 | DM31: 0 | DP31: 0 | DQ31: 0 | DT31: 0 | DW31: 0 | DX31: 0 | DY31: 0.00 | DZ31: E | EA31: 0 | EB31: 0 | EC31: 0 | ED31: 0 | EG31: 0 | EH31: 0.00 | EI31: E | EJ31: 0 | EK31: 0 | EL31: 0 | EM31: 0 | EP31: 0 | EQ31: 0.00 | ER31: E | ES31: 0 | ET31: 0 | EU31: 0 | EV31: 0 | EY31: 0 | EZ31: 0.00 | FA31: E | FB31: 0 | FF31: 0 | FG31: 0 | FO31: 0 | FP31: 0 | FQ31: 0 | FR31: 0 | FS31: 0 | FT31: 0 | FU31: 0 | FV31: 0 | FW31: 0 | FX31: 0 | FY31: 0 | GB31: 0 | GC31: / | GD31: 100 | GE31: 0/100 | GF31: 0 | GG31: / | GH31: 100 | GI31: 0/100 | GJ31: 0 | GK31: / | GL31: 100 | GM31: 0/100 | GO31: 0 | GP31: 0 | GQ31: 0 | GR31: 0 | GS31: 0 | GT31: 0 | GU31: 0 | GV31: 0 | GW31: 0 | GX31: 0
A32: 0 | B32: 24 | C32: 24 | D32: 0 | N32: 0 | Q32: 0 | T32: 0 | U32: 0 | X32: 0 | AA32: 0 | AB32: 0 | AC32: 0.00 | AE32: 0 | AH32: 0 | AK32: 0 | AN32: 0 | AO32: 0 | AR32: 0 | AU32: 0 | AV32: 0 | AW32: 0.00 | AX32: E | AY32: 0 | BB32: 0 | BE32: 0 | BH32: 0 | BI32: 0 | BL32: 0 | BO32: 0 | BP32: 0 | BQ32: 0.00 | BR32: E | BS32: 0 | BV32: 0 | BY32: 0 | CB32: 0 | CC32: 0 | CF32: 0 | CI32: 0 | CJ32: 0 | CK32: 0.00 | CL32: E | CM32: 0 | CP32: 0 | CS32: 0 | CV32: 0 | CW32: 0 | CZ32: 0 | DC32: 0 | DD32: 0 | DE32: 0.00 | DF32: E | DG32: 0 | DJ32: 0 | DM32: 0 | DP32: 0 | DQ32: 0 | DT32: 0 | DW32: 0 | DX32: 0 | DY32: 0.00 | DZ32: E | EA32: 0 | EB32: 0 | EC32: 0 | ED32: 0 | EG32: 0 | EH32: 0.00 | EI32: E | EJ32: 0 | EK32: 0 | EL32: 0 | EM32: 0 | EP32: 0 | EQ32: 0.00 | ER32: E | ES32: 0 | ET32: 0 | EU32: 0 | EV32: 0 | EY32: 0 | EZ32: 0.00 | FA32: E | FB32: 0 | FF32: 0 | FG32: 0 | FO32: 0 | FP32: 0 | FQ32: 0 | FR32: 0 | FS32: 0 | FT32: 0 | FU32: 0 | FV32: 0 | FW32: 0 | FX32: 0 | FY32: 0 | GB32: 0 | GC32: / | GD32: 100 | GE32: 0/100 | GF32: 0 | GG32: / | GH32: 100 | GI32: 0/100 | GJ32: 0 | GK32: / | GL32: 100 | GM32: 0/100 | GO32: 0 | GP32: 0 | GQ32: 0 | GR32: 0 | GS32: 0 | GT32: 0 | GU32: 0 | GV32: 0 | GW32: 0 | GX32: 0
A33: 0 | B33: 25 | C33: 25 | D33: 0 | N33: 0 | Q33: 0 | T33: 0 | U33: 0 | X33: 0 | AA33: 0 | AB33: 0 | AC33: 0.00 | AE33: 0 | AH33: 0 | AK33: 0 | AN33: 0 | AO33: 0 | AR33: 0 | AU33: 0 | AV33: 0 | AW33: 0.00 | AX33: E | AY33: 0 | BB33: 0 | BE33: 0 | BH33: 0 | BI33: 0 | BL33: 0 | BO33: 0 | BP33: 0 | BQ33: 0.00 | BR33: E | BS33: 0 | BV33: 0 | BY33: 0 | CB33: 0 | CC33: 0 | CF33: 0 | CI33: 0 | CJ33: 0 | CK33: 0.00 | CL33: E | CM33: 0 | CP33: 0 | CS33: 0 | CV33: 0 | CW33: 0 | CZ33: 0 | DC33: 0 | DD33: 0 | DE33: 0.00 | DF33: E | DG33: 0 | DJ33: 0 | DM33: 0 | DP33: 0 | DQ33: 0 | DT33: 0 | DW33: 0 | DX33: 0 | DY33: 0.00 | DZ33: E | EA33: 0 | EB33: 0 | EC33: 0 | ED33: 0 | EG33: 0 | EH33: 0.00 | EI33: E | EJ33: 0 | EK33: 0 | EL33: 0 | EM33: 0 | EP33: 0 | EQ33: 0.00 | ER33: E | ES33: 0 | ET33: 0 | EU33: 0 | EV33: 0 | EY33: 0 | EZ33: 0.00 | FA33: E | FB33: 0 | FF33: 0 | FG33: 0 | FO33: 0 | FP33: 0 | FQ33: 0 | FR33: 0 | FS33: 0 | FT33: 0 | FU33: 0 | FV33: 0 | FW33: 0 | FX33: 0 | FY33: 0 | GB33: 0 | GC33: / | GD33: 100 | GE33: 0/100 | GF33: 0 | GG33: / | GH33: 100 | GI33: 0/100 | GJ33: 0 | GK33: / | GL33: 100 | GM33: 0/100 | GO33: 0 | GP33: 0 | GQ33: 0 | GR33: 0 | GS33: 0 | GT33: 0 | GU33: 0 | GV33: 0 | GW33: 0 | GX33: 0
A34: 0 | B34: 26 | C34: 26 | D34: 0 | N34: 0 | Q34: 0 | T34: 0 | U34: 0 | X34: 0 | AA34: 0 | AB34: 0 | AC34: 0.00 | AE34: 0 | AH34: 0 | AK34: 0 | AN34: 0 | AO34: 0 | AR34: 0 | AU34: 0 | AV34: 0 | AW34: 0.00 | AX34: E | AY34: 0 | BB34: 0 | BE34: 0 | BH34: 0 | BI34: 0 | BL34: 0 | BO34: 0 | BP34: 0 | BQ34: 0.00 | BR34: E | BS34: 0 | BV34: 0 | BY34: 0 | CB34: 0 | CC34: 0 | CF34: 0 | CI34: 0 | CJ34: 0 | CK34: 0.00 | CL34: E | CM34: 0 | CP34: 0 | CS34: 0 | CV34: 0 | CW34: 0 | CZ34: 0 | DC34: 0 | DD34: 0 | DE34: 0.00 | DF34: E | DG34: 0 | DJ34: 0 | DM34: 0 | DP34: 0 | DQ34: 0 | DT34: 0 | DW34: 0 | DX34: 0 | DY34: 0.00 | DZ34: E | EA34: 0 | EB34: 0 | EC34: 0 | ED34: 0 | EG34: 0 | EH34: 0.00 | EI34: E | EJ34: 0 | EK34: 0 | EL34: 0 | EM34: 0 | EP34: 0 | EQ34: 0.00 | ER34: E | ES34: 0 | ET34: 0 | EU34: 0 | EV34: 0 | EY34: 0 | EZ34: 0.00 | FA34: E | FB34: 0 | FF34: 0 | FG34: 0 | FO34: 0 | FP34: 0 | FQ34: 0 | FR34: 0 | FS34: 0 | FT34: 0 | FU34: 0 | FV34: 0 | FW34: 0 | FX34: 0 | FY34: 0 | GB34: 0 | GC34: / | GD34: 100 | GE34: 0/100 | GF34: 0 | GG34: / | GH34: 100 | GI34: 0/100 | GJ34: 0 | GK34: / | GL34: 100 | GM34: 0/100 | GO34: 0 | GP34: 0 | GQ34: 0 | GR34: 0 | GS34: 0 | GT34: 0 | GU34: 0 | GV34: 0 | GW34: 0 | GX34: 0
A35: 0 | B35: 27 | C35: 27 | D35: 0 | N35: 0 | Q35: 0 | T35: 0 | U35: 0 | X35: 0 | AA35: 0 | AB35: 0 | AC35: 0.00 | AE35: 0 | AH35: 0 | AK35: 0 | AN35: 0 | AO35: 0 | AR35: 0 | AU35: 0 | AV35: 0 | AW35: 0.00 | AX35: E | AY35: 0 | BB35: 0 | BE35: 0 | BH35: 0 | BI35: 0 | BL35: 0 | BO35: 0 | BP35: 0 | BQ35: 0.00 | BR35: E | BS35: 0 | BV35: 0 | BY35: 0 | CB35: 0 | CC35: 0 | CF35: 0 | CI35: 0 | CJ35: 0 | CK35: 0.00 | CL35: E | CM35: 0 | CP35: 0 | CS35: 0 | CV35: 0 | CW35: 0 | CZ35: 0 | DC35: 0 | DD35: 0 | DE35: 0.00 | DF35: E | DG35: 0 | DJ35: 0 | DM35: 0 | DP35: 0 | DQ35: 0 | DT35: 0 | DW35: 0 | DX35: 0 | DY35: 0.00 | DZ35: E | EA35: 0 | EB35: 0 | EC35: 0 | ED35: 0 | EG35: 0 | EH35: 0.00 | EI35: E | EJ35: 0 | EK35: 0 | EL35: 0 | EM35: 0 | EP35: 0 | EQ35: 0.00 | ER35: E | ES35: 0 | ET35: 0 | EU35: 0 | EV35: 0 | EY35: 0 | EZ35: 0.00 | FA35: E | FB35: 0 | FF35: 0 | FG35: 0 | FO35: 0 | FP35: 0 | FQ35: 0 | FR35: 0 | FS35: 0 | FT35: 0 | FU35: 0 | FV35: 0 | FW35: 0 | FX35: 0 | FY35: 0 | GB35: 0 | GC35: / | GD35: 100 | GE35: 0/100 | GF35: 0 | GG35: / | GH35: 100 | GI35: 0/100 | GJ35: 0 | GK35: / | GL35: 100 | GM35: 0/100 | GO35: 0 | GP35: 0 | GQ35: 0 | GR35: 0 | GS35: 0 | GT35: 0 | GU35: 0 | GV35: 0 | GW35: 0 | GX35: 0
A36: 0 | B36: 28 | C36: 28 | D36: 0 | N36: 0 | Q36: 0 | T36: 0 | U36: 0 | X36: 0 | AA36: 0 | AB36: 0 | AC36: 0.00 | AE36: 0 | AH36: 0 | AK36: 0 | AN36: 0 | AO36: 0 | AR36: 0 | AU36: 0 | AV36: 0 | AW36: 0.00 | AX36: E | AY36: 0 | BB36: 0 | BE36: 0 | BH36: 0 | BI36: 0 | BL36: 0 | BO36: 0 | BP36: 0 | BQ36: 0.00 | BR36: E | BS36: 0 | BV36: 0 | BY36: 0 | CB36: 0 | CC36: 0 | CF36: 0 | CI36: 0 | CJ36: 0 | CK36: 0.00 | CL36: E | CM36: 0 | CP36: 0 | CS36: 0 | CV36: 0 | CW36: 0 | CZ36: 0 | DC36: 0 | DD36: 0 | DE36: 0.00 | DF36: E | DG36: 0 | DJ36: 0 | DM36: 0 | DP36: 0 | DQ36: 0 | DT36: 0 | DW36: 0 | DX36: 0 | DY36: 0.00 | DZ36: E | EA36: 0 | EB36: 0 | EC36: 0 | ED36: 0 | EG36: 0 | EH36: 0.00 | EI36: E | EJ36: 0 | EK36: 0 | EL36: 0 | EM36: 0 | EP36: 0 | EQ36: 0.00 | ER36: E | ES36: 0 | ET36: 0 | EU36: 0 | EV36: 0 | EY36: 0 | EZ36: 0.00 | FA36: E | FB36: 0 | FF36: 0 | FG36: 0 | FO36: 0 | FP36: 0 | FQ36: 0 | FR36: 0 | FS36: 0 | FT36: 0 | FU36: 0 | FV36: 0 | FW36: 0 | FX36: 0 | FY36: 0 | GB36: 0 | GC36: / | GD36: 100 | GE36: 0/100 | GF36: 0 | GG36: / | GH36: 100 | GI36: 0/100 | GJ36: 0 | GK36: / | GL36: 100 | GM36: 0/100 | GO36: 0 | GP36: 0 | GQ36: 0 | GR36: 0 | GS36: 0 | GT36: 0 | GU36: 0 | GV36: 0 | GW36: 0 | GX36: 0
A37: 0 | B37: 29 | C37: 29 | D37: 0 | N37: 0 | Q37: 0 | T37: 0 | U37: 0 | X37: 0 | AA37: 0 | AB37: 0 | AC37: 0.00 | AE37: 0 | AH37: 0 | AK37: 0 | AN37: 0 | AO37: 0 | AR37: 0 | AU37: 0 | AV37: 0 | AW37: 0.00 | AX37: E | AY37: 0 | BB37: 0 | BE37: 0 | BH37: 0 | BI37: 0 | BL37: 0 | BO37: 0 | BP37: 0 | BQ37: 0.00 | BR37: E | BS37: 0 | BV37: 0 | BY37: 0 | CB37: 0 | CC37: 0 | CF37: 0 | CI37: 0 | CJ37: 0 | CK37: 0.00 | CL37: E | CM37: 0 | CP37: 0 | CS37: 0 | CV37: 0 | CW37: 0 | CZ37: 0 | DC37: 0 | DD37: 0 | DE37: 0.00 | DF37: E | DG37: 0 | DJ37: 0 | DM37: 0 | DP37: 0 | DQ37: 0 | DT37: 0 | DW37: 0 | DX37: 0 | DY37: 0.00 | DZ37: E | EA37: 0 | EB37: 0 | EC37: 0 | ED37: 0 | EG37: 0 | EH37: 0.00 | EI37: E | EJ37: 0 | EK37: 0 | EL37: 0 | EM37: 0 | EP37: 0 | EQ37: 0.00 | ER37: E | ES37: 0 | ET37: 0 | EU37: 0 | EV37: 0 | EY37: 0 | EZ37: 0.00 | FA37: E | FB37: 0 | FF37: 0 | FG37: 0 | FO37: 0 | FP37: 0 | FQ37: 0 | FR37: 0 | FS37: 0 | FT37: 0 | FU37: 0 | FV37: 0 | FW37: 0 | FX37: 0 | FY37: 0 | GB37: 0 | GC37: / | GD37: 100 | GE37: 0/100 | GF37: 0 | GG37: / | GH37: 100 | GI37: 0/100 | GJ37: 0 | GK37: / | GL37: 100 | GM37: 0/100 | GO37: 0 | GP37: 0 | GQ37: 0 | GR37: 0 | GS37: 0 | GT37: 0 | GU37: 0 | GV37: 0 | GW37: 0 | GX37: 0
A38: 0 | B38: 30 | C38: 30 | D38: 0 | N38: 0 | Q38: 0 | T38: 0 | U38: 0 | X38: 0 | AA38: 0 | AB38: 0 | AC38: 0.00 | AE38: 0 | AH38: 0 | AK38: 0 | AN38: 0 | AO38: 0 | AR38: 0 | AU38: 0 | AV38: 0 | AW38: 0.00 | AX38: E | AY38: 0 | BB38: 0 | BE38: 0 | BH38: 0 | BI38: 0 | BL38: 0 | BO38: 0 | BP38: 0 | BQ38: 0.00 | BR38: E | BS38: 0 | BV38: 0 | BY38: 0 | CB38: 0 | CC38: 0 | CF38: 0 | CI38: 0 | CJ38: 0 | CK38: 0.00 | CL38: E | CM38: 0 | CP38: 0 | CS38: 0 | CV38: 0 | CW38: 0 | CZ38: 0 | DC38: 0 | DD38: 0 | DE38: 0.00 | DF38: E | DG38: 0 | DJ38: 0 | DM38: 0 | DP38: 0 | DQ38: 0 | DT38: 0 | DW38: 0 | DX38: 0 | DY38: 0.00 | DZ38: E | EA38: 0 | EB38: 0 | EC38: 0 | ED38: 0 | EG38: 0 | EH38: 0.00 | EI38: E | EJ38: 0 | EK38: 0 | EL38: 0 | EM38: 0 | EP38: 0 | EQ38: 0.00 | ER38: E | ES38: 0 | ET38: 0 | EU38: 0 | EV38: 0 | EY38: 0 | EZ38: 0.00 | FA38: E | FB38: 0 | FF38: 0 | FG38: 0 | FO38: 0 | FP38: 0 | FQ38: 0 | FR38: 0 | FS38: 0 | FT38: 0 | FU38: 0 | FV38: 0 | FW38: 0 | FX38: 0 | FY38: 0 | GB38: 0 | GC38: / | GD38: 100 | GE38: 0/100 | GF38: 0 | GG38: / | GH38: 100 | GI38: 0/100 | GJ38: 0 | GK38: / | GL38: 100 | GM38: 0/100 | GO38: 0 | GP38: 0 | GQ38: 0 | GR38: 0 | GS38: 0 | GT38: 0 | GU38: 0 | GV38: 0 | GW38: 0 | GX38: 0
A39: 0 | B39: 31 | C39: 31 | D39: 0 | N39: 0 | Q39: 0 | T39: 0 | U39: 0 | X39: 0 | AA39: 0 | AB39: 0 | AC39: 0.00 | AE39: 0 | AH39: 0 | AK39: 0 | AN39: 0 | AO39: 0 | AR39: 0 | AU39: 0 | AV39: 0 | AW39: 0.00 | AX39: E | AY39: 0 | BB39: 0 | BE39: 0 | BH39: 0 | BI39: 0 | BL39: 0 | BO39: 0 | BP39: 0 | BQ39: 0.00 | BR39: E | BS39: 0 | BV39: 0 | BY39: 0 | CB39: 0 | CC39: 0 | CF39: 0 | CI39: 0 | CJ39: 0 | CK39: 0.00 | CL39: E | CM39: 0 | CP39: 0 | CS39: 0 | CV39: 0 | CW39: 0 | CZ39: 0 | DC39: 0 | DD39: 0 | DE39: 0.00 | DF39: E | DG39: 0 | DJ39: 0 | DM39: 0 | DP39: 0 | DQ39: 0 | DT39: 0 | DW39: 0 | DX39: 0 | DY39: 0.00 | DZ39: E | EA39: 0 | EB39: 0 | EC39: 0 | ED39: 0 | EG39: 0 | EH39: 0.00 | EI39: E | EJ39: 0 | EK39: 0 | EL39: 0 | EM39: 0 | EP39: 0 | EQ39: 0.00 | ER39: E | ES39: 0 | ET39: 0 | EU39: 0 | EV39: 0 | EY39: 0 | EZ39: 0.00 | FA39: E | FB39: 0 | FF39: 0 | FG39: 0 | FO39: 0 | FP39: 0 | FQ39: 0 | FR39: 0 | FS39: 0 | FT39: 0 | FU39: 0 | FV39: 0 | FW39: 0 | FX39: 0 | FY39: 0 | GB39: 0 | GC39: / | GD39: 100 | GE39: 0/100 | GF39: 0 | GG39: / | GH39: 100 | GI39: 0/100 | GJ39: 0 | GK39: / | GL39: 100 | GM39: 0/100 | GO39: 0 | GP39: 0 | GQ39: 0 | GR39: 0 | GS39: 0 | GT39: 0 | GU39: 0 | GV39: 0 | GW39: 0 | GX39: 0
A40: 0 | B40: 32 | C40: 32 | D40: 0 | N40: 0 | Q40: 0 | T40: 0 | U40: 0 | X40: 0 | AA40: 0 | AB40: 0 | AC40: 0.00 | AE40: 0 | AH40: 0 | AK40: 0 | AN40: 0 | AO40: 0 | AR40: 0 | AU40: 0 | AV40: 0 | AW40: 0.00 | AX40: E | AY40: 0 | BB40: 0 | BE40: 0 | BH40: 0 | BI40: 0 | BL40: 0 | BO40: 0 | BP40: 0 | BQ40: 0.00 | BR40: E | BS40: 0 | BV40: 0 | BY40: 0 | CB40: 0 | CC40: 0 | CF40: 0 | CI40: 0 | CJ40: 0 | CK40: 0.00 | CL40: E | CM40: 0 | CP40: 0 | CS40: 0 | CV40: 0 | CW40: 0 | CZ40: 0 | DC40: 0 | DD40: 0 | DE40: 0.00 | DF40: E | DG40: 0 | DJ40: 0 | DM40: 0 | DP40: 0 | DQ40: 0 | DT40: 0 | DW40: 0 | DX40: 0 | DY40: 0.00 | DZ40: E | EA40: 0 | EB40: 0 | EC40: 0 | ED40: 0 | EG40: 0 | EH40: 0.00 | EI40: E | EJ40: 0 | EK40: 0 | EL40: 0 | EM40: 0 | EP40: 0 | EQ40: 0.00 | ER40: E | ES40: 0 | ET40: 0 | EU40: 0 | EV40: 0 | EY40: 0 | EZ40: 0.00 | FA40: E | FB40: 0 | FF40: 0 | FG40: 0 | FO40: 0 | FP40: 0 | FQ40: 0 | FR40: 0 | FS40: 0 | FT40: 0 | FU40: 0 | FV40: 0 | FW40: 0 | FX40: 0 | FY40: 0 | GB40: 0 | GC40: / | GD40: 100 | GE40: 0/100 | GF40: 0 | GG40: / | GH40: 100 | GI40: 0/100 | GJ40: 0 | GK40: / | GL40: 100 | GM40: 0/100 | GO40: 0 | GP40: 0 | GQ40: 0 | GR40: 0 | GS40: 0 | GT40: 0 | GU40: 0 | GV40: 0 | GW40: 0 | GX40: 0
A41: 0 | B41: 33 | C41: 33 | D41: 0 | N41: 0 | Q41: 0 | T41: 0 | U41: 0 | X41: 0 | AA41: 0 | AB41: 0 | AC41: 0.00 | AE41: 0 | AH41: 0 | AK41: 0 | AN41: 0 | AO41: 0 | AR41: 0 | AU41: 0 | AV41: 0 | AW41: 0.00 | AX41: E | AY41: 0 | BB41: 0 | BE41: 0 | BH41: 0 | BI41: 0 | BL41: 0 | BO41: 0 | BP41: 0 | BQ41: 0.00 | BR41: E | BS41: 0 | BV41: 0 | BY41: 0 | CB41: 0 | CC41: 0 | CF41: 0 | CI41: 0 | CJ41: 0 | CK41: 0.00 | CL41: E | CM41: 0 | CP41: 0 | CS41: 0 | CV41: 0 | CW41: 0 | CZ41: 0 | DC41: 0 | DD41: 0 | DE41: 0.00 | DF41: E | DG41: 0 | DJ41: 0 | DM41: 0 | DP41: 0 | DQ41: 0 | DT41: 0 | DW41: 0 | DX41: 0 | DY41: 0.00 | DZ41: E | EA41: 0 | EB41: 0 | EC41: 0 | ED41: 0 | EG41: 0 | EH41: 0.00 | EI41: E | EJ41: 0 | EK41: 0 | EL41: 0 | EM41: 0 | EP41: 0 | EQ41: 0.00 | ER41: E | ES41: 0 | ET41: 0 | EU41: 0 | EV41: 0 | EY41: 0 | EZ41: 0.00 | FA41: E | FB41: 0 | FF41: =IF(G41=0,0,SUM($AB$7,$AV$7,$BP$7,$CJ$7,$DD$7,$DX$7)) -> 0 | FG41: =SUM(AB41,AV41,BP41,CJ41,DD41,DX41) -> 0 | FO41: 0 | FP41: 0 | FQ41: 0 | FR41: 0 | FS41: 0 | FT41: 0 | FU41: 0 | FV41: 0 | FW41: 0 | FX41: 0 | FY41: 0 | GB41: 0 | GC41: / | GD41: 100 | GE41: 0/100 | GF41: 0 | GG41: / | GH41: 100 | GI41: 0/100 | GJ41: 0 | GK41: / | GL41: 100 | GM41: 0/100 | GO41: 0 | GP41: 0 | GQ41: 0 | GR41: 0 | GS41: 0 | GT41: 0 | GU41: 0 | GV41: 0 | GW41: 0 | GX41: 0
A42: 0 | B42: 34 | C42: 34 | D42: 0 | N42: 0 | Q42: 0 | T42: 0 | U42: 0 | X42: 0 | AA42: 0 | AB42: 0 | AC42: 0.00 | AE42: 0 | AH42: 0 | AK42: 0 | AN42: 0 | AO42: 0 | AR42: 0 | AU42: 0 | AV42: 0 | AW42: 0.00 | AX42: E | AY42: 0 | BB42: 0 | BE42: 0 | BH42: 0 | BI42: 0 | BL42: 0 | BO42: 0 | BP42: 0 | BQ42: 0.00 | BR42: E | BS42: 0 | BV42: 0 | BY42: 0 | CB42: 0 | CC42: 0 | CF42: 0 | CI42: 0 | CJ42: 0 | CK42: 0.00 | CL42: E | CM42: 0 | CP42: 0 | CS42: 0 | CV42: 0 | CW42: 0 | CZ42: 0 | DC42: 0 | DD42: 0 | DE42: 0.00 | DF42: E | DG42: 0 | DJ42: 0 | DM42: 0 | DP42: 0 | DQ42: 0 | DT42: 0 | DW42: 0 | DX42: 0 | DY42: 0.00 | DZ42: E | EA42: 0 | EB42: 0 | EC42: 0 | ED42: 0 | EG42: 0 | EH42: 0.00 | EI42: E | EJ42: 0 | EK42: 0 | EL42: 0 | EM42: 0 | EP42: 0 | EQ42: 0.00 | ER42: E | ES42: 0 | ET42: 0 | EU42: 0 | EV42: 0 | EY42: 0 | EZ42: 0.00 | FA42: E | FB42: 0 | FF42: 0 | FG42: 0 | FO42: 0 | FP42: 0 | FQ42: 0 | FR42: 0 | FS42: 0 | FT42: 0 | FU42: 0 | FV42: 0 | FW42: 0 | FX42: 0 | FY42: 0 | GB42: 0 | GC42: / | GD42: 100 | GE42: 0/100 | GF42: 0 | GG42: / | GH42: 100 | GI42: 0/100 | GJ42: 0 | GK42: / | GL42: 100 | GM42: 0/100 | GO42: 0 | GP42: 0 | GQ42: 0 | GR42: 0 | GS42: 0 | GT42: 0 | GU42: 0 | GV42: 0 | GW42: 0 | GX42: 0
A43: 0 | B43: 35 | C43: 35 | D43: 0 | N43: 0 | Q43: 0 | T43: 0 | U43: 0 | X43: 0 | AA43: 0 | AB43: 0 | AC43: 0.00 | AE43: 0 | AH43: 0 | AK43: 0 | AN43: 0 | AO43: 0 | AR43: 0 | AU43: 0 | AV43: 0 | AW43: 0.00 | AX43: E | AY43: 0 | BB43: 0 | BE43: 0 | BH43: 0 | BI43: 0 | BL43: 0 | BO43: 0 | BP43: 0 | BQ43: 0.00 | BR43: E | BS43: 0 | BV43: 0 | BY43: 0 | CB43: 0 | CC43: 0 | CF43: 0 | CI43: 0 | CJ43: 0 | CK43: 0.00 | CL43: E | CM43: 0 | CP43: 0 | CS43: 0 | CV43: 0 | CW43: 0 | CZ43: 0 | DC43: 0 | DD43: 0 | DE43: 0.00 | DF43: E | DG43: 0 | DJ43: 0 | DM43: 0 | DP43: 0 | DQ43: 0 | DT43: 0 | DW43: 0 | DX43: 0 | DY43: 0.00 | DZ43: E | EA43: 0 | EB43: 0 | EC43: 0 | ED43: 0 | EG43: 0 | EH43: 0.00 | EI43: E | EJ43: 0 | EK43: 0 | EL43: 0 | EM43: 0 | EP43: 0 | EQ43: 0.00 | ER43: E | ES43: 0 | ET43: 0 | EU43: 0 | EV43: 0 | EY43: 0 | EZ43: 0.00 | FA43: E | FB43: 0 | FF43: 0 | FG43: 0 | FO43: 0 | FP43: 0 | FQ43: 0 | FR43: 0 | FS43: 0 | FT43: 0 | FU43: 0 | FV43: 0 | FW43: 0 | FX43: 0 | FY43: 0 | GB43: 0 | GC43: / | GD43: 100 | GE43: 0/100 | GF43: 0 | GG43: / | GH43: 100 | GI43: 0/100 | GJ43: 0 | GK43: / | GL43: 100 | GM43: 0/100 | GO43: 0 | GP43: 0 | GQ43: 0 | GR43: 0 | GS43: 0 | GT43: 0 | GU43: 0 | GV43: 0 | GW43: 0 | GX43: 0
A44: 0 | B44: 36 | C44: 36 | D44: 0 | N44: 0 | Q44: 0 | T44: 0 | U44: 0 | X44: 0 | AA44: 0 | AB44: 0 | AC44: 0.00 | AE44: 0 | AH44: 0 | AK44: 0 | AN44: 0 | AO44: 0 | AR44: 0 | AU44: 0 | AV44: 0 | AW44: 0.00 | AX44: E | AY44: 0 | BB44: 0 | BE44: 0 | BH44: 0 | BI44: 0 | BL44: 0 | BO44: 0 | BP44: 0 | BQ44: 0.00 | BR44: E | BS44: 0 | BV44: 0 | BY44: 0 | CB44: 0 | CC44: 0 | CF44: 0 | CI44: 0 | CJ44: 0 | CK44: 0.00 | CL44: E | CM44: 0 | CP44: 0 | CS44: 0 | CV44: 0 | CW44: 0 | CZ44: 0 | DC44: 0 | DD44: 0 | DE44: 0.00 | DF44: E | DG44: 0 | DJ44: 0 | DM44: 0 | DP44: 0 | DQ44: 0 | DT44: 0 | DW44: 0 | DX44: 0 | DY44: 0.00 | DZ44: E | EA44: 0 | EB44: 0 | EC44: 0 | ED44: 0 | EG44: 0 | EH44: 0.00 | EI44: E | EJ44: 0 | EK44: 0 | EL44: 0 | EM44: 0 | EP44: 0 | EQ44: 0.00 | ER44: E | ES44: 0 | ET44: 0 | EU44: 0 | EV44: 0 | EY44: 0 | EZ44: 0.00 | FA44: E | FB44: 0 | FF44: 0 | FG44: 0 | FO44: 0 | FP44: 0 | FQ44: 0 | FR44: 0 | FS44: 0 | FT44: 0 | FU44: 0 | FV44: 0 | FW44: 0 | FX44: 0 | FY44: 0 | GB44: 0 | GC44: / | GD44: 100 | GE44: 0/100 | GF44: 0 | GG44: / | GH44: 100 | GI44: 0/100 | GJ44: 0 | GK44: / | GL44: 100 | GM44: 0/100 | GO44: 0 | GP44: 0 | GQ44: 0 | GR44: 0 | GS44: 0 | GT44: 0 | GU44: 0 | GV44: 0 | GW44: 0 | GX44: 0
A45: 0 | B45: 37 | C45: 37 | D45: 0 | N45: 0 | Q45: 0 | T45: 0 | U45: 0 | X45: 0 | AA45: 0 | AB45: 0 | AC45: 0.00 | AE45: 0 | AH45: 0 | AK45: 0 | AN45: 0 | AO45: 0 | AR45: 0 | AU45: 0 | AV45: 0 | AW45: 0.00 | AX45: E | AY45: 0 | BB45: 0 | BE45: 0 | BH45: 0 | BI45: 0 | BL45: 0 | BO45: 0 | BP45: 0 | BQ45: 0.00 | BR45: E | BS45: 0 | BV45: 0 | BY45: 0 | CB45: 0 | CC45: 0 | CF45: 0 | CI45: 0 | CJ45: 0 | CK45: 0.00 | CL45: E | CM45: 0 | CP45: 0 | CS45: 0 | CV45: 0 | CW45: 0 | CZ45: 0 | DC45: 0 | DD45: 0 | DE45: 0.00 | DF45: E | DG45: 0 | DJ45: 0 | DM45: 0 | DP45: 0 | DQ45: 0 | DT45: 0 | DW45: 0 | DX45: 0 | DY45: 0.00 | DZ45: E | EA45: 0 | EB45: 0 | EC45: 0 | ED45: 0 | EG45: 0 | EH45: 0.00 | EI45: E | EJ45: 0 | EK45: 0 | EL45: 0 | EM45: 0 | EP45: 0 | EQ45: 0.00 | ER45: E | ES45: 0 | ET45: 0 | EU45: 0 | EV45: 0 | EY45: 0 | EZ45: 0.00 | FA45: E | FB45: 0 | FF45: 0 | FG45: 0 | FO45: 0 | FP45: 0 | FQ45: 0 | FR45: 0 | FS45: 0 | FT45: 0 | FU45: 0 | FV45: 0 | FW45: 0 | FX45: 0 | FY45: 0 | GB45: 0 | GC45: / | GD45: 100 | GE45: 0/100 | GF45: 0 | GG45: / | GH45: 100 | GI45: 0/100 | GJ45: 0 | GK45: / | GL45: 100 | GM45: 0/100 | GO45: 0 | GP45: 0 | GQ45: 0 | GR45: 0 | GS45: 0 | GT45: 0 | GU45: 0 | GV45: 0 | GW45: 0 | GX45: 0
A46: 0 | B46: 38 | C46: 38 | D46: 0 | N46: 0 | Q46: 0 | T46: 0 | U46: 0 | X46: 0 | AA46: 0 | AB46: 0 | AC46: 0.00 | AE46: 0 | AH46: 0 | AK46: 0 | AN46: 0 | AO46: 0 | AR46: 0 | AU46: 0 | AV46: 0 | AW46: 0.00 | AX46: E | AY46: 0 | BB46: 0 | BE46: 0 | BH46: 0 | BI46: 0 | BL46: 0 | BO46: 0 | BP46: 0 | BQ46: 0.00 | BR46: E | BS46: 0 | BV46: 0 | BY46: 0 | CB46: 0 | CC46: 0 | CF46: 0 | CI46: 0 | CJ46: 0 | CK46: 0.00 | CL46: E | CM46: 0 | CP46: 0 | CS46: 0 | CV46: 0 | CW46: 0 | CZ46: 0 | DC46: 0 | DD46: 0 | DE46: 0.00 | DF46: E | DG46: 0 | DJ46: 0 | DM46: 0 | DP46: 0 | DQ46: 0 | DT46: 0 | DW46: 0 | DX46: 0 | DY46: 0.00 | DZ46: E | EA46: 0 | EB46: 0 | EC46: 0 | ED46: 0 | EG46: 0 | EH46: 0.00 | EI46: E | EJ46: 0 | EK46: 0 | EL46: 0 | EM46: 0 | EP46: 0 | EQ46: 0.00 | ER46: E | ES46: 0 | ET46: 0 | EU46: 0 | EV46: 0 | EY46: 0 | EZ46: 0.00 | FA46: E | FB46: 0 | FF46: 0 | FG46: 0 | FO46: 0 | FP46: 0 | FQ46: 0 | FR46: 0 | FS46: 0 | FT46: 0 | FU46: 0 | FV46: 0 | FW46: 0 | FX46: 0 | FY46: 0 | GB46: 0 | GC46: / | GD46: 100 | GE46: 0/100 | GF46: 0 | GG46: / | GH46: 100 | GI46: 0/100 | GJ46: 0 | GK46: / | GL46: 100 | GM46: 0/100 | GO46: 0 | GP46: 0 | GQ46: 0 | GR46: 0 | GS46: 0 | GT46: 0 | GU46: 0 | GV46: 0 | GW46: 0 | GX46: 0
A47: 0 | B47: 39 | C47: 39 | D47: 0 | N47: 0 | Q47: 0 | T47: 0 | U47: 0 | X47: 0 | AA47: 0 | AB47: 0 | AC47: 0.00 | AE47: 0 | AH47: 0 | AK47: 0 | AN47: 0 | AO47: 0 | AR47: 0 | AU47: 0 | AV47: 0 | AW47: 0.00 | AX47: E | AY47: 0 | BB47: 0 | BE47: 0 | BH47: 0 | BI47: 0 | BL47: 0 | BO47: 0 | BP47: 0 | BQ47: 0.00 | BR47: E | BS47: 0 | BV47: 0 | BY47: 0 | CB47: 0 | CC47: 0 | CF47: 0 | CI47: 0 | CJ47: 0 | CK47: 0.00 | CL47: E | CM47: 0 | CP47: 0 | CS47: 0 | CV47: 0 | CW47: 0 | CZ47: 0 | DC47: 0 | DD47: 0 | DE47: 0.00 | DF47: E | DG47: 0 | DJ47: 0 | DM47: 0 | DP47: 0 | DQ47: 0 | DT47: 0 | DW47: 0 | DX47: 0 | DY47: 0.00 | DZ47: E | EA47: 0 | EB47: 0 | EC47: 0 | ED47: 0 | EG47: 0 | EH47: 0.00 | EI47: E | EJ47: 0 | EK47: 0 | EL47: 0 | EM47: 0 | EP47: 0 | EQ47: 0.00 | ER47: E | ES47: 0 | ET47: 0 | EU47: 0 | EV47: 0 | EY47: 0 | EZ47: 0.00 | FA47: E | FB47: 0 | FF47: 0 | FG47: 0 | FO47: 0 | FP47: 0 | FQ47: 0 | FR47: 0 | FS47: 0 | FT47: 0 | FU47: 0 | FV47: 0 | FW47: 0 | FX47: 0 | FY47: 0 | GB47: 0 | GC47: / | GD47: 100 | GE47: 0/100 | GF47: 0 | GG47: / | GH47: 100 | GI47: 0/100 | GJ47: 0 | GK47: / | GL47: 100 | GM47: 0/100 | GO47: 0 | GP47: 0 | GQ47: 0 | GR47: 0 | GS47: 0 | GT47: 0 | GU47: 0 | GV47: 0 | GW47: 0 | GX47: 0
A48: 0 | B48: 40 | C48: 40 | D48: 0 | N48: 0 | Q48: 0 | T48: 0 | U48: 0 | X48: 0 | AA48: 0 | AB48: 0 | AC48: 0.00 | AE48: 0 | AH48: 0 | AK48: 0 | AN48: 0 | AO48: 0 | AR48: 0 | AU48: 0 | AV48: 0 | AW48: 0.00 | AX48: E | AY48: 0 | BB48: 0 | BE48: 0 | BH48: 0 | BI48: 0 | BL48: 0 | BO48: 0 | BP48: 0 | BQ48: 0.00 | BR48: E | BS48: 0 | BV48: 0 | BY48: 0 | CB48: 0 | CC48: 0 | CF48: 0 | CI48: 0 | CJ48: 0 | CK48: 0.00 | CL48: E | CM48: 0 | CP48: 0 | CS48: 0 | CV48: 0 | CW48: 0 | CZ48: 0 | DC48: 0 | DD48: 0 | DE48: 0.00 | DF48: E | DG48: 0 | DJ48: 0 | DM48: 0 | DP48: 0 | DQ48: 0 | DT48: 0 | DW48: 0 | DX48: 0 | DY48: 0.00 | DZ48: E | EA48: 0 | EB48: 0 | EC48: 0 | ED48: 0 | EG48: 0 | EH48: 0.00 | EI48: E | EJ48: 0 | EK48: 0 | EL48: 0 | EM48: 0 | EP48: 0 | EQ48: 0.00 | ER48: E | ES48: 0 | ET48: 0 | EU48: 0 | EV48: 0 | EY48: 0 | EZ48: 0.00 | FA48: E | FB48: 0 | FF48: 0 | FG48: 0 | FO48: 0 | FP48: 0 | FQ48: 0 | FR48: 0 | FS48: 0 | FT48: 0 | FU48: 0 | FV48: 0 | FW48: 0 | FX48: 0 | FY48: 0 | GB48: 0 | GC48: / | GD48: 100 | GE48: 0/100 | GF48: 0 | GG48: / | GH48: 100 | GI48: 0/100 | GJ48: 0 | GK48: / | GL48: 100 | GM48: 0/100 | GO48: 0 | GP48: 0 | GQ48: 0 | GR48: 0 | GS48: 0 | GT48: 0 | GU48: 0 | GV48: 0 | GW48: 0 | GX48: 0
A49: 0 | B49: 41 | C49: 41 | D49: 0 | N49: 0 | Q49: 0 | T49: 0 | U49: 0 | X49: 0 | AA49: 0 | AB49: 0 | AC49: 0.00 | AE49: 0 | AH49: 0 | AK49: 0 | AN49: 0 | AO49: 0 | AR49: 0 | AU49: 0 | AV49: 0 | AW49: 0.00 | AX49: E | AY49: 0 | BB49: 0 | BE49: 0 | BH49: 0 | BI49: 0 | BL49: 0 | BO49: 0 | BP49: 0 | BQ49: 0.00 | BR49: E | BS49: 0 | BV49: 0 | BY49: 0 | CB49: 0 | CC49: 0 | CF49: 0 | CI49: 0 | CJ49: 0 | CK49: 0.00 | CL49: E | CM49: 0 | CP49: 0 | CS49: 0 | CV49: 0 | CW49: 0 | CZ49: 0 | DC49: 0 | DD49: 0 | DE49: 0.00 | DF49: E | DG49: 0 | DJ49: 0 | DM49: 0 | DP49: 0 | DQ49: 0 | DT49: 0 | DW49: 0 | DX49: 0 | DY49: 0.00 | DZ49: E | EA49: 0 | EB49: 0 | EC49: 0 | ED49: 0 | EG49: 0 | EH49: 0.00 | EI49: E | EJ49: 0 | EK49: 0 | EL49: 0 | EM49: 0 | EP49: 0 | EQ49: 0.00 | ER49: E | ES49: 0 | ET49: 0 | EU49: 0 | EV49: 0 | EY49: 0 | EZ49: 0.00 | FA49: E | FB49: 0 | FF49: 0 | FG49: 0 | FO49: 0 | FP49: 0 | FQ49: 0 | FR49: 0 | FS49: 0 | FT49: 0 | FU49: 0 | FV49: 0 | FW49: 0 | FX49: 0 | FY49: 0 | GB49: 0 | GC49: / | GD49: 100 | GE49: 0/100 | GF49: 0 | GG49: / | GH49: 100 | GI49: 0/100 | GJ49: 0 | GK49: / | GL49: 100 | GM49: 0/100 | GO49: 0 | GP49: 0 | GQ49: 0 | GR49: 0 | GS49: 0 | GT49: 0 | GU49: 0 | GV49: 0 | GW49: 0 | GX49: 0
A50: 0 | B50: 42 | C50: 42 | D50: 0 | N50: 0 | Q50: 0 | T50: 0 | U50: 0 | X50: 0 | AA50: 0 | AB50: 0 | AC50: 0.00 | AE50: 0 | AH50: 0 | AK50: 0 | AN50: 0 | AO50: 0 | AR50: 0 | AU50: 0 | AV50: 0 | AW50: 0.00 | AX50: E | AY50: 0 | BB50: 0 | BE50: 0 | BH50: 0 | BI50: 0 | BL50: 0 | BO50: 0 | BP50: 0 | BQ50: 0.00 | BR50: E | BS50: 0 | BV50: 0 | BY50: 0 | CB50: 0 | CC50: 0 | CF50: 0 | CI50: 0 | CJ50: 0 | CK50: 0.00 | CL50: E | CM50: 0 | CP50: 0 | CS50: 0 | CV50: 0 | CW50: 0 | CZ50: 0 | DC50: 0 | DD50: 0 | DE50: 0.00 | DF50: E | DG50: 0 | DJ50: 0 | DM50: 0 | DP50: 0 | DQ50: 0 | DT50: 0 | DW50: 0 | DX50: 0 | DY50: 0.00 | DZ50: E | EA50: 0 | EB50: 0 | EC50: 0 | ED50: 0 | EG50: 0 | EH50: 0.00 | EI50: E | EJ50: 0 | EK50: 0 | EL50: 0 | EM50: 0 | EP50: 0 | EQ50: 0.00 | ER50: E | ES50: 0 | ET50: 0 | EU50: 0 | EV50: 0 | EY50: 0 | EZ50: 0.00 | FA50: E | FB50: 0 | FE50: =IF(OR(FC50="",FD50=""),"",FD50/FC50*100) ->  | FF50: 0 | FG50: 0 | FO50: 0 | FP50: 0 | FQ50: 0 | FR50: 0 | FS50: 0 | FT50: 0 | FU50: 0 | FV50: 0 | FW50: 0 | FX50: 0 | FY50: 0 | GB50: 0 | GC50: / | GD50: 100 | GE50: 0/100 | GF50: 0 | GG50: / | GH50: 100 | GI50: 0/100 | GJ50: 0 | GK50: / | GL50: 100 | GM50: 0/100 | GO50: 0 | GP50: 0 | GQ50: 0 | GR50: 0 | GS50: 0 | GT50: 0 | GU50: 0 | GV50: 0 | GW50: 0 | GX50: 0
A51: 0 | B51: 43 | C51: 43 | D51: 0 | N51: 0 | Q51: 0 | T51: 0 | U51: 0 | X51: 0 | AA51: 0 | AB51: 0 | AC51: 0.00 | AE51: 0 | AH51: 0 | AK51: 0 | AN51: 0 | AO51: 0 | AR51: 0 | AU51: 0 | AV51: 0 | AW51: 0.00 | AX51: E | AY51: 0 | BB51: 0 | BE51: 0 | BH51: 0 | BI51: 0 | BL51: 0 | BO51: 0 | BP51: 0 | BQ51: 0.00 | BR51: E | BS51: 0 | BV51: 0 | BY51: 0 | CB51: 0 | CC51: 0 | CF51: 0 | CI51: 0 | CJ51: 0 | CK51: 0.00 | CL51: E | CM51: 0 | CP51: 0 | CS51: 0 | CV51: 0 | CW51: 0 | CZ51: 0 | DC51: 0 | DD51: 0 | DE51: 0.00 | DF51: E | DG51: 0 | DJ51: 0 | DM51: 0 | DP51: 0 | DQ51: 0 | DT51: 0 | DW51: 0 | DX51: 0 | DY51: 0.00 | DZ51: E | EA51: 0 | EB51: 0 | EC51: 0 | ED51: 0 | EG51: 0 | EH51: 0.00 | EI51: E | EJ51: 0 | EK51: 0 | EL51: 0 | EM51: 0 | EP51: 0 | EQ51: 0.00 | ER51: E | ES51: 0 | ET51: 0 | EU51: 0 | EV51: 0 | EY51: 0 | EZ51: 0.00 | FA51: E | FB51: 0 | FF51: 0 | FG51: 0 | FO51: 0 | FP51: 0 | FQ51: 0 | FR51: 0 | FS51: 0 | FT51: 0 | FU51: 0 | FV51: 0 | FW51: 0 | FX51: 0 | FY51: 0 | GB51: 0 | GC51: / | GD51: 100 | GE51: 0/100 | GF51: 0 | GG51: / | GH51: 100 | GI51: 0/100 | GJ51: 0 | GK51: / | GL51: 100 | GM51: 0/100 | GO51: 0 | GP51: 0 | GQ51: 0 | GR51: 0 | GS51: 0 | GT51: 0 | GU51: 0 | GV51: 0 | GW51: 0 | GX51: 0
A52: 0 | B52: 44 | C52: 44 | D52: 0 | N52: 0 | Q52: 0 | T52: 0 | U52: 0 | X52: 0 | AA52: 0 | AB52: 0 | AC52: 0.00 | AE52: 0 | AH52: 0 | AK52: 0 | AN52: 0 | AO52: 0 | AR52: 0 | AU52: 0 | AV52: 0 | AW52: 0.00 | AX52: E | AY52: 0 | BB52: 0 | BE52: 0 | BH52: 0 | BI52: 0 | BL52: 0 | BO52: 0 | BP52: 0 | BQ52: 0.00 | BR52: E | BS52: 0 | BV52: 0 | BY52: 0 | CB52: 0 | CC52: 0 | CF52: 0 | CI52: 0 | CJ52: 0 | CK52: 0.00 | CL52: E | CM52: 0 | CP52: 0 | CS52: 0 | CV52: 0 | CW52: 0 | CZ52: 0 | DC52: 0 | DD52: 0 | DE52: 0.00 | DF52: E | DG52: 0 | DJ52: 0 | DM52: 0 | DP52: 0 | DQ52: 0 | DT52: 0 | DW52: 0 | DX52: 0 | DY52: 0.00 | DZ52: E | EA52: 0 | EB52: 0 | EC52: 0 | ED52: 0 | EG52: 0 | EH52: 0.00 | EI52: E | EJ52: 0 | EK52: 0 | EL52: 0 | EM52: 0 | EP52: 0 | EQ52: 0.00 | ER52: E | ES52: 0 | ET52: 0 | EU52: 0 | EV52: 0 | EY52: 0 | EZ52: 0.00 | FA52: E | FB52: 0 | FF52: 0 | FG52: 0 | FO52: 0 | FP52: 0 | FQ52: 0 | FR52: 0 | FS52: 0 | FT52: 0 | FU52: 0 | FV52: 0 | FW52: 0 | FX52: 0 | FY52: 0 | GB52: 0 | GC52: / | GD52: 100 | GE52: 0/100 | GF52: 0 | GG52: / | GH52: 100 | GI52: 0/100 | GJ52: 0 | GK52: / | GL52: 100 | GM52: 0/100 | GO52: 0 | GP52: 0 | GQ52: 0 | GR52: 0 | GS52: 0 | GT52: 0 | GU52: 0 | GV52: 0 | GW52: 0 | GX52: 0
A53: 0 | B53: 45 | C53: 45 | D53: 0 | N53: 0 | Q53: 0 | T53: 0 | U53: 0 | X53: 0 | AA53: 0 | AB53: 0 | AC53: 0.00 | AE53: 0 | AH53: 0 | AK53: 0 | AN53: 0 | AO53: 0 | AR53: 0 | AU53: 0 | AV53: 0 | AW53: 0.00 | AX53: E | AY53: 0 | BB53: 0 | BE53: 0 | BH53: 0 | BI53: 0 | BL53: 0 | BO53: 0 | BP53: 0 | BQ53: 0.00 | BR53: E | BS53: 0 | BV53: 0 | BY53: 0 | CB53: 0 | CC53: 0 | CF53: 0 | CI53: 0 | CJ53: 0 | CK53: 0.00 | CL53: E | CM53: 0 | CP53: 0 | CS53: 0 | CV53: 0 | CW53: 0 | CZ53: 0 | DC53: 0 | DD53: 0 | DE53: 0.00 | DF53: E | DG53: 0 | DJ53: 0 | DM53: 0 | DP53: 0 | DQ53: 0 | DT53: 0 | DW53: 0 | DX53: 0 | DY53: 0.00 | DZ53: E | EA53: 0 | EB53: 0 | EC53: 0 | ED53: 0 | EG53: 0 | EH53: 0.00 | EI53: E | EJ53: 0 | EK53: 0 | EL53: 0 | EM53: 0 | EP53: 0 | EQ53: 0.00 | ER53: E | ES53: 0 | ET53: 0 | EU53: 0 | EV53: 0 | EY53: 0 | EZ53: 0.00 | FA53: E | FB53: 0 | FF53: 0 | FG53: 0 | FO53: 0 | FP53: 0 | FQ53: 0 | FR53: 0 | FS53: 0 | FT53: 0 | FU53: 0 | FV53: 0 | FW53: 0 | FX53: 0 | FY53: 0 | GB53: 0 | GC53: / | GD53: 100 | GE53: 0/100 | GF53: 0 | GG53: / | GH53: 100 | GI53: 0/100 | GJ53: 0 | GK53: / | GL53: 100 | GM53: 0/100 | GO53: 0 | GP53: 0 | GQ53: 0 | GR53: 0 | GS53: 0 | GT53: 0 | GU53: 0 | GV53: 0 | GW53: 0 | GX53: 0
A54: 0 | B54: 46 | C54: 46 | D54: 0 | N54: 0 | Q54: 0 | T54: 0 | U54: 0 | X54: 0 | AA54: 0 | AB54: 0 | AC54: 0.00 | AE54: 0 | AH54: 0 | AK54: 0 | AN54: 0 | AO54: 0 | AR54: 0 | AU54: 0 | AV54: 0 | AW54: 0.00 | AX54: E | AY54: 0 | BB54: 0 | BE54: 0 | BH54: 0 | BI54: 0 | BL54: 0 | BO54: 0 | BP54: 0 | BQ54: 0.00 | BR54: E | BS54: 0 | BV54: 0 | BY54: 0 | CB54: 0 | CC54: 0 | CF54: 0 | CI54: 0 | CJ54: 0 | CK54: 0.00 | CL54: E | CM54: 0 | CP54: 0 | CS54: 0 | CV54: 0 | CW54: 0 | CZ54: 0 | DC54: 0 | DD54: 0 | DE54: 0.00 | DF54: E | DG54: 0 | DJ54: 0 | DM54: 0 | DP54: 0 | DQ54: 0 | DT54: 0 | DW54: 0 | DX54: 0 | DY54: 0.00 | DZ54: E | EA54: 0 | EB54: 0 | EC54: 0 | ED54: 0 | EG54: 0 | EH54: 0.00 | EI54: E | EJ54: 0 | EK54: 0 | EL54: 0 | EM54: 0 | EP54: 0 | EQ54: 0.00 | ER54: E | ES54: 0 | ET54: 0 | EU54: 0 | EV54: 0 | EY54: 0 | EZ54: 0.00 | FA54: E | FB54: 0 | FF54: 0 | FG54: 0 | FO54: 0 | FP54: 0 | FQ54: 0 | FR54: 0 | FS54: 0 | FT54: 0 | FU54: 0 | FV54: 0 | FW54: 0 | FX54: 0 | FY54: 0 | GB54: 0 | GC54: / | GD54: 100 | GE54: 0/100 | GF54: 0 | GG54: / | GH54: 100 | GI54: 0/100 | GJ54: 0 | GK54: / | GL54: 100 | GM54: 0/100 | GO54: 0 | GP54: 0 | GQ54: 0 | GR54: 0 | GS54: 0 | GT54: 0 | GU54: 0 | GV54: 0 | GW54: 0 | GX54: 0
A55: 0 | B55: 47 | C55: 47 | D55: 0 | N55: 0 | Q55: 0 | T55: 0 | U55: 0 | X55: 0 | AA55: 0 | AB55: 0 | AC55: 0.00 | AE55: 0 | AH55: 0 | AK55: 0 | AN55: 0 | AO55: 0 | AR55: 0 | AU55: 0 | AV55: 0 | AW55: 0.00 | AX55: E | AY55: 0 | BB55: 0 | BE55: 0 | BH55: 0 | BI55: 0 | BL55: 0 | BO55: 0 | BP55: 0 | BQ55: 0.00 | BR55: E | BS55: 0 | BV55: 0 | BY55: 0 | CB55: 0 | CC55: 0 | CF55: 0 | CI55: 0 | CJ55: 0 | CK55: 0.00 | CL55: E | CM55: 0 | CP55: 0 | CS55: 0 | CV55: 0 | CW55: 0 | CZ55: 0 | DC55: 0 | DD55: 0 | DE55: 0.00 | DF55: E | DG55: 0 | DJ55: 0 | DM55: 0 | DP55: 0 | DQ55: 0 | DT55: 0 | DW55: 0 | DX55: 0 | DY55: 0.00 | DZ55: E | EA55: 0 | EB55: 0 | EC55: 0 | ED55: 0 | EG55: 0 | EH55: 0.00 | EI55: E | EJ55: 0 | EK55: 0 | EL55: 0 | EM55: 0 | EP55: 0 | EQ55: 0.00 | ER55: E | ES55: 0 | ET55: 0 | EU55: 0 | EV55: 0 | EY55: 0 | EZ55: 0.00 | FA55: E | FB55: 0 | FF55: 0 | FG55: 0 | FO55: 0 | FP55: 0 | FQ55: 0 | FR55: 0 | FS55: 0 | FT55: 0 | FU55: 0 | FV55: 0 | FW55: 0 | FX55: 0 | FY55: 0 | GB55: 0 | GC55: / | GD55: 100 | GE55: 0/100 | GF55: 0 | GG55: / | GH55: 100 | GI55: 0/100 | GJ55: 0 | GK55: / | GL55: 100 | GM55: 0/100 | GO55: 0 | GP55: 0 | GQ55: 0 | GR55: 0 | GS55: 0 | GT55: 0 | GU55: 0 | GV55: 0 | GW55: 0 | GX55: 0
A56: 0 | B56: 48 | C56: 48 | D56: 0 | N56: 0 | Q56: 0 | T56: 0 | U56: 0 | X56: 0 | AA56: 0 | AB56: 0 | AC56: 0.00 | AE56: 0 | AH56: 0 | AK56: 0 | AN56: 0 | AO56: 0 | AR56: 0 | AU56: 0 | AV56: 0 | AW56: 0.00 | AX56: E | AY56: 0 | BB56: 0 | BE56: 0 | BH56: 0 | BI56: 0 | BL56: 0 | BO56: 0 | BP56: 0 | BQ56: 0.00 | BR56: E | BS56: 0 | BV56: 0 | BY56: 0 | CB56: 0 | CC56: 0 | CF56: 0 | CI56: 0 | CJ56: 0 | CK56: 0.00 | CL56: E | CM56: 0 | CP56: 0 | CS56: 0 | CV56: 0 | CW56: 0 | CZ56: 0 | DC56: 0 | DD56: 0 | DE56: 0.00 | DF56: E | DG56: 0 | DJ56: 0 | DM56: 0 | DP56: 0 | DQ56: 0 | DT56: 0 | DW56: 0 | DX56: 0 | DY56: 0.00 | DZ56: E | EA56: 0 | EB56: 0 | EC56: 0 | ED56: 0 | EG56: 0 | EH56: 0.00 | EI56: E | EJ56: 0 | EK56: 0 | EL56: 0 | EM56: 0 | EP56: 0 | EQ56: 0.00 | ER56: E | ES56: 0 | ET56: 0 | EU56: 0 | EV56: 0 | EY56: 0 | EZ56: 0.00 | FA56: E | FB56: 0 | FF56: 0 | FG56: 0 | FO56: 0 | FP56: 0 | FQ56: 0 | FR56: 0 | FS56: 0 | FT56: 0 | FU56: 0 | FV56: 0 | FW56: 0 | FX56: 0 | FY56: 0 | GB56: 0 | GC56: / | GD56: 100 | GE56: 0/100 | GF56: 0 | GG56: / | GH56: 100 | GI56: 0/100 | GJ56: 0 | GK56: / | GL56: 100 | GM56: 0/100 | GO56: 0 | GP56: 0 | GQ56: 0 | GR56: 0 | GS56: 0 | GT56: 0 | GU56: 0 | GV56: 0 | GW56: 0 | GX56: 0
A57: 0 | B57: 49 | C57: 49 | D57: 0 | N57: 0 | Q57: 0 | T57: 0 | U57: 0 | X57: 0 | AA57: 0 | AB57: 0 | AC57: 0.00 | AE57: 0 | AH57: 0 | AK57: 0 | AN57: 0 | AO57: 0 | AR57: 0 | AU57: 0 | AV57: 0 | AW57: 0.00 | AX57: E | AY57: 0 | BB57: 0 | BE57: 0 | BH57: 0 | BI57: 0 | BL57: 0 | BO57: 0 | BP57: 0 | BQ57: 0.00 | BR57: E | BS57: 0 | BV57: 0 | BY57: 0 | CB57: 0 | CC57: 0 | CF57: 0 | CI57: 0 | CJ57: 0 | CK57: 0.00 | CL57: E | CM57: 0 | CP57: 0 | CS57: 0 | CV57: 0 | CW57: 0 | CZ57: 0 | DC57: 0 | DD57: 0 | DE57: 0.00 | DF57: E | DG57: 0 | DJ57: 0 | DM57: 0 | DP57: 0 | DQ57: 0 | DT57: 0 | DW57: 0 | DX57: 0 | DY57: 0.00 | DZ57: E | EA57: 0 | EB57: 0 | EC57: 0 | ED57: 0 | EG57: 0 | EH57: 0.00 | EI57: E | EJ57: 0 | EK57: 0 | EL57: 0 | EM57: 0 | EP57: 0 | EQ57: 0.00 | ER57: E | ES57: 0 | ET57: 0 | EU57: 0 | EV57: 0 | EY57: 0 | EZ57: 0.00 | FA57: E | FB57: 0 | FF57: 0 | FG57: 0 | FO57: 0 | FP57: 0 | FQ57: 0 | FR57: 0 | FS57: 0 | FT57: 0 | FU57: 0 | FV57: 0 | FW57: 0 | FX57: 0 | FY57: 0 | GB57: 0 | GC57: / | GD57: 100 | GE57: 0/100 | GF57: 0 | GG57: / | GH57: 100 | GI57: 0/100 | GJ57: 0 | GK57: / | GL57: 100 | GM57: 0/100 | GO57: 0 | GP57: 0 | GQ57: 0 | GR57: 0 | GS57: 0 | GT57: 0 | GU57: 0 | GV57: 0 | GW57: 0 | GX57: 0
A58: 0 | B58: 50 | C58: 50 | D58: 0 | N58: 0 | Q58: 0 | T58: 0 | U58: 0 | X58: 0 | AA58: 0 | AB58: 0 | AC58: 0.00 | AE58: 0 | AH58: 0 | AK58: 0 | AN58: 0 | AO58: 0 | AR58: 0 | AU58: 0 | AV58: 0 | AW58: 0.00 | AX58: E | AY58: 0 | BB58: 0 | BE58: 0 | BH58: 0 | BI58: 0 | BL58: 0 | BO58: 0 | BP58: 0 | BQ58: 0.00 | BR58: E | BS58: 0 | BV58: 0 | BY58: 0 | CB58: 0 | CC58: 0 | CF58: 0 | CI58: 0 | CJ58: 0 | CK58: 0.00 | CL58: E | CM58: 0 | CP58: 0 | CS58: 0 | CV58: 0 | CW58: 0 | CZ58: 0 | DC58: 0 | DD58: 0 | DE58: 0.00 | DF58: E | DG58: 0 | DJ58: 0 | DM58: 0 | DP58: 0 | DQ58: 0 | DT58: 0 | DW58: 0 | DX58: 0 | DY58: 0.00 | DZ58: E | EA58: 0 | EB58: 0 | EC58: 0 | ED58: 0 | EG58: 0 | EH58: 0.00 | EI58: E | EJ58: 0 | EK58: 0 | EL58: 0 | EM58: 0 | EP58: 0 | EQ58: 0.00 | ER58: E | ES58: 0 | ET58: 0 | EU58: 0 | EV58: 0 | EY58: 0 | EZ58: 0.00 | FA58: E | FB58: 0 | FF58: 0 | FG58: 0 | FO58: 0 | FP58: 0 | FQ58: 0 | FR58: 0 | FS58: 0 | FT58: 0 | FU58: 0 | FV58: 0 | FW58: 0 | FX58: 0 | FY58: 0 | GB58: 0 | GC58: / | GD58: 100 | GE58: 0/100 | GF58: 0 | GG58: / | GH58: 100 | GI58: 0/100 | GJ58: 0 | GK58: / | GL58: 100 | GM58: 0/100 | GO58: 0 | GP58: 0 | GQ58: 0 | GR58: 0 | GS58: 0 | GT58: 0 | GU58: 0 | GV58: 0 | GW58: 0 | GX58: 0
A59: 0 | B59: 51 | C59: 51 | D59: 0 | N59: 0 | Q59: 0 | T59: 0 | U59: 0 | X59: 0 | AA59: 0 | AB59: 0 | AC59: 0.00 | AE59: 0 | AH59: 0 | AK59: 0 | AN59: 0 | AO59: 0 | AR59: 0 | AU59: 0 | AV59: 0 | AW59: 0.00 | AX59: E | AY59: 0 | BB59: 0 | BE59: 0 | BH59: 0 | BI59: 0 | BL59: 0 | BO59: 0 | BP59: 0 | BQ59: 0.00 | BR59: E | BS59: 0 | BV59: 0 | BY59: 0 | CB59: 0 | CC59: 0 | CF59: 0 | CI59: 0 | CJ59: 0 | CK59: 0.00 | CL59: E | CM59: 0 | CP59: 0 | CS59: 0 | CV59: 0 | CW59: 0 | CZ59: 0 | DC59: 0 | DD59: 0 | DE59: 0.00 | DF59: E | DG59: 0 | DJ59: 0 | DM59: 0 | DP59: 0 | DQ59: 0 | DT59: 0 | DW59: 0 | DX59: 0 | DY59: 0.00 | DZ59: E | EA59: 0 | EB59: 0 | EC59: 0 | ED59: 0 | EG59: 0 | EH59: 0.00 | EI59: E | EJ59: 0 | EK59: 0 | EL59: 0 | EM59: 0 | EP59: 0 | EQ59: 0.00 | ER59: E | ES59: 0 | ET59: 0 | EU59: 0 | EV59: 0 | EY59: 0 | EZ59: 0.00 | FA59: E | FB59: 0 | FF59: 0 | FG59: 0 | FO59: 0 | FP59: 0 | FQ59: 0 | FR59: 0 | FS59: 0 | FT59: 0 | FU59: 0 | FV59: 0 | FW59: 0 | FX59: 0 | FY59: 0 | GB59: 0 | GC59: / | GD59: 100 | GE59: 0/100 | GF59: 0 | GG59: / | GH59: 100 | GI59: 0/100 | GJ59: 0 | GK59: / | GL59: 100 | GM59: 0/100 | GO59: 0 | GP59: 0 | GQ59: 0 | GR59: 0 | GS59: 0 | GT59: 0 | GU59: 0 | GV59: 0 | GW59: 0 | GX59: 0
A60: 0 | B60: 52 | C60: 52 | D60: 0 | N60: 0 | Q60: 0 | T60: 0 | U60: 0 | X60: 0 | AA60: 0 | AB60: 0 | AC60: 0.00 | AE60: 0 | AH60: 0 | AK60: 0 | AN60: 0 | AO60: 0 | AR60: 0 | AU60: 0 | AV60: 0 | AW60: 0.00 | AX60: E | AY60: 0 | BB60: 0 | BE60: 0 | BH60: 0 | BI60: 0 | BL60: 0 | BO60: 0 | BP60: 0 | BQ60: 0.00 | BR60: E | BS60: 0 | BV60: 0 | BY60: 0 | CB60: 0 | CC60: 0 | CF60: 0 | CI60: 0 | CJ60: 0 | CK60: 0.00 | CL60: E | CM60: 0 | CP60: 0 | CS60: 0 | CV60: 0 | CW60: 0 | CZ60: 0 | DC60: 0 | DD60: 0 | DE60: 0.00 | DF60: E | DG60: 0 | DJ60: 0 | DM60: 0 | DP60: 0 | DQ60: 0 | DT60: 0 | DW60: 0 | DX60: 0 | DY60: 0.00 | DZ60: E | EA60: 0 | EB60: 0 | EC60: 0 | ED60: 0 | EG60: 0 | EH60: 0.00 | EI60: E | EJ60: 0 | EK60: 0 | EL60: 0 | EM60: 0 | EP60: 0 | EQ60: 0.00 | ER60: E | ES60: 0 | ET60: 0 | EU60: 0 | EV60: 0 | EY60: 0 | EZ60: 0.00 | FA60: E | FB60: 0 | FF60: 0 | FG60: 0 | FO60: 0 | FP60: 0 | FQ60: 0 | FR60: 0 | FS60: 0 | FT60: 0 | FU60: 0 | FV60: 0 | FW60: 0 | FX60: 0 | FY60: 0 | GB60: 0 | GC60: / | GD60: 100 | GE60: 0/100 | GF60: 0 | GG60: / | GH60: 100 | GI60: 0/100 | GJ60: 0 | GK60: / | GL60: 100 | GM60: 0/100 | GO60: 0 | GP60: 0 | GQ60: 0 | GR60: 0 | GS60: 0 | GT60: 0 | GU60: 0 | GV60: 0 | GW60: 0 | GX60: 0
A61: 0 | B61: 53 | C61: 53 | D61: 0 | N61: 0 | Q61: 0 | T61: 0 | U61: 0 | X61: 0 | AA61: 0 | AB61: 0 | AC61: 0.00 | AE61: 0 | AH61: 0 | AK61: 0 | AN61: 0 | AO61: 0 | AR61: 0 | AU61: 0 | AV61: 0 | AW61: 0.00 | AX61: E | AY61: 0 | BB61: 0 | BE61: 0 | BH61: 0 | BI61: 0 | BL61: 0 | BO61: 0 | BP61: 0 | BQ61: 0.00 | BR61: E | BS61: 0 | BV61: 0 | BY61: 0 | CB61: 0 | CC61: 0 | CF61: 0 | CI61: 0 | CJ61: 0 | CK61: 0.00 | CL61: E | CM61: 0 | CP61: 0 | CS61: 0 | CV61: 0 | CW61: 0 | CZ61: 0 | DC61: 0 | DD61: 0 | DE61: 0.00 | DF61: E | DG61: 0 | DJ61: 0 | DM61: 0 | DP61: 0 | DQ61: 0 | DT61: 0 | DW61: 0 | DX61: 0 | DY61: 0.00 | DZ61: E | EA61: 0 | EB61: 0 | EC61: 0 | ED61: 0 | EG61: 0 | EH61: 0.00 | EI61: E | EJ61: 0 | EK61: 0 | EL61: 0 | EM61: 0 | EP61: 0 | EQ61: 0.00 | ER61: E | ES61: 0 | ET61: 0 | EU61: 0 | EV61: 0 | EY61: 0 | EZ61: 0.00 | FA61: E | FB61: 0 | FF61: 0 | FG61: 0 | FO61: 0 | FP61: 0 | FQ61: 0 | FR61: 0 | FS61: 0 | FT61: 0 | FU61: 0 | FV61: 0 | FW61: 0 | FX61: 0 | FY61: 0 | GB61: 0 | GC61: / | GD61: 100 | GE61: 0/100 | GF61: 0 | GG61: / | GH61: 100 | GI61: 0/100 | GJ61: 0 | GK61: / | GL61: 100 | GM61: 0/100 | GO61: 0 | GP61: 0 | GQ61: 0 | GR61: 0 | GS61: 0 | GT61: 0 | GU61: 0 | GV61: 0 | GW61: 0 | GX61: 0
A62: 0 | B62: 54 | C62: 54 | D62: 0 | N62: 0 | Q62: 0 | T62: 0 | U62: 0 | X62: 0 | AA62: 0 | AB62: 0 | AC62: 0.00 | AE62: 0 | AH62: 0 | AK62: 0 | AN62: 0 | AO62: 0 | AR62: 0 | AU62: 0 | AV62: 0 | AW62: 0.00 | AX62: E | AY62: 0 | BB62: 0 | BE62: 0 | BH62: 0 | BI62: 0 | BL62: 0 | BO62: 0 | BP62: 0 | BQ62: 0.00 | BR62: E | BS62: 0 | BV62: 0 | BY62: 0 | CB62: 0 | CC62: 0 | CF62: 0 | CI62: 0 | CJ62: 0 | CK62: 0.00 | CL62: E | CM62: 0 | CP62: 0 | CS62: 0 | CV62: 0 | CW62: 0 | CZ62: 0 | DC62: 0 | DD62: 0 | DE62: 0.00 | DF62: E | DG62: 0 | DJ62: 0 | DM62: 0 | DP62: 0 | DQ62: 0 | DT62: 0 | DW62: 0 | DX62: 0 | DY62: 0.00 | DZ62: E | EA62: 0 | EB62: 0 | EC62: 0 | ED62: 0 | EG62: 0 | EH62: 0.00 | EI62: E | EJ62: 0 | EK62: 0 | EL62: 0 | EM62: 0 | EP62: 0 | EQ62: 0.00 | ER62: E | ES62: 0 | ET62: 0 | EU62: 0 | EV62: 0 | EY62: 0 | EZ62: 0.00 | FA62: E | FB62: 0 | FF62: 0 | FG62: 0 | FO62: 0 | FP62: 0 | FQ62: 0 | FR62: 0 | FS62: 0 | FT62: 0 | FU62: 0 | FV62: 0 | FW62: 0 | FX62: 0 | FY62: 0 | GB62: 0 | GC62: / | GD62: 100 | GE62: 0/100 | GF62: 0 | GG62: / | GH62: 100 | GI62: 0/100 | GJ62: 0 | GK62: / | GL62: 100 | GM62: 0/100 | GO62: 0 | GP62: 0 | GQ62: 0 | GR62: 0 | GS62: 0 | GT62: 0 | GU62: 0 | GV62: 0 | GW62: 0 | GX62: 0
A63: 0 | B63: 55 | C63: 55 | D63: 0 | N63: 0 | Q63: 0 | T63: 0 | U63: 0 | X63: 0 | AA63: 0 | AB63: 0 | AC63: 0.00 | AE63: 0 | AH63: 0 | AK63: 0 | AN63: 0 | AO63: 0 | AR63: 0 | AU63: 0 | AV63: 0 | AW63: 0.00 | AX63: E | AY63: 0 | BB63: 0 | BE63: 0 | BH63: 0 | BI63: 0 | BL63: 0 | BO63: 0 | BP63: 0 | BQ63: 0.00 | BR63: E | BS63: 0 | BV63: 0 | BY63: 0 | CB63: 0 | CC63: 0 | CF63: 0 | CI63: 0 | CJ63: 0 | CK63: 0.00 | CL63: E | CM63: 0 | CP63: 0 | CS63: 0 | CV63: 0 | CW63: 0 | CZ63: 0 | DC63: 0 | DD63: 0 | DE63: 0.00 | DF63: E | DG63: 0 | DJ63: 0 | DM63: 0 | DP63: 0 | DQ63: 0 | DT63: 0 | DW63: 0 | DX63: 0 | DY63: 0.00 | DZ63: E | EA63: 0 | EB63: 0 | EC63: 0 | ED63: 0 | EG63: 0 | EH63: 0.00 | EI63: E | EJ63: 0 | EK63: 0 | EL63: 0 | EM63: 0 | EP63: 0 | EQ63: 0.00 | ER63: E | ES63: 0 | ET63: 0 | EU63: 0 | EV63: 0 | EY63: 0 | EZ63: 0.00 | FA63: E | FB63: 0 | FF63: 0 | FG63: 0 | FO63: 0 | FP63: 0 | FQ63: 0 | FR63: 0 | FS63: 0 | FT63: 0 | FU63: 0 | FV63: 0 | FW63: 0 | FX63: 0 | FY63: 0 | GB63: 0 | GC63: / | GD63: 100 | GE63: 0/100 | GF63: 0 | GG63: / | GH63: 100 | GI63: 0/100 | GJ63: 0 | GK63: / | GL63: 100 | GM63: 0/100 | GO63: 0 | GP63: 0 | GQ63: 0 | GR63: 0 | GS63: 0 | GT63: 0 | GU63: 0 | GV63: 0 | GW63: 0 | GX63: 0
A64: 0 | B64: 56 | C64: 56 | D64: 0 | N64: 0 | Q64: 0 | T64: 0 | U64: 0 | X64: 0 | AA64: 0 | AB64: 0 | AC64: 0.00 | AE64: 0 | AH64: 0 | AK64: 0 | AN64: 0 | AO64: 0 | AR64: 0 | AU64: 0 | AV64: 0 | AW64: 0.00 | AX64: E | AY64: 0 | BB64: 0 | BE64: 0 | BH64: 0 | BI64: 0 | BL64: 0 | BO64: 0 | BP64: 0 | BQ64: 0.00 | BR64: E | BS64: 0 | BV64: 0 | BY64: 0 | CB64: 0 | CC64: 0 | CF64: 0 | CI64: 0 | CJ64: 0 | CK64: 0.00 | CL64: E | CM64: 0 | CP64: 0 | CS64: 0 | CV64: 0 | CW64: 0 | CZ64: 0 | DC64: 0 | DD64: 0 | DE64: 0.00 | DF64: E | DG64: 0 | DJ64: 0 | DM64: 0 | DP64: 0 | DQ64: 0 | DT64: 0 | DW64: 0 | DX64: 0 | DY64: 0.00 | DZ64: E | EA64: 0 | EB64: 0 | EC64: 0 | ED64: 0 | EG64: 0 | EH64: 0.00 | EI64: E | EJ64: 0 | EK64: 0 | EL64: 0 | EM64: 0 | EP64: 0 | EQ64: 0.00 | ER64: E | ES64: 0 | ET64: 0 | EU64: 0 | EV64: 0 | EY64: 0 | EZ64: 0.00 | FA64: E | FB64: 0 | FF64: 0 | FG64: 0 | FO64: 0 | FP64: 0 | FQ64: 0 | FR64: 0 | FS64: 0 | FT64: 0 | FU64: 0 | FV64: 0 | FW64: 0 | FX64: 0 | FY64: 0 | GB64: 0 | GC64: / | GD64: 100 | GE64: 0/100 | GF64: 0 | GG64: / | GH64: 100 | GI64: 0/100 | GJ64: 0 | GK64: / | GL64: 100 | GM64: 0/100 | GO64: 0 | GP64: 0 | GQ64: 0 | GR64: 0 | GS64: 0 | GT64: 0 | GU64: 0 | GV64: 0 | GW64: 0 | GX64: 0
A65: 0 | B65: 57 | C65: 57 | D65: 0 | N65: 0 | Q65: 0 | T65: 0 | U65: 0 | X65: 0 | AA65: 0 | AB65: 0 | AC65: 0.00 | AE65: 0 | AH65: 0 | AK65: 0 | AN65: 0 | AO65: 0 | AR65: 0 | AU65: 0 | AV65: 0 | AW65: 0.00 | AX65: E | AY65: 0 | BB65: 0 | BE65: 0 | BH65: 0 | BI65: 0 | BL65: 0 | BO65: 0 | BP65: 0 | BQ65: 0.00 | BR65: E | BS65: 0 | BV65: 0 | BY65: 0 | CB65: 0 | CC65: 0 | CF65: 0 | CI65: 0 | CJ65: 0 | CK65: 0.00 | CL65: E | CM65: 0 | CP65: 0 | CS65: 0 | CV65: 0 | CW65: 0 | CZ65: 0 | DC65: 0 | DD65: 0 | DE65: 0.00 | DF65: E | DG65: 0 | DJ65: 0 | DM65: 0 | DP65: 0 | DQ65: 0 | DT65: 0 | DW65: 0 | DX65: 0 | DY65: 0.00 | DZ65: E | EA65: 0 | EB65: 0 | EC65: 0 | ED65: 0 | EG65: 0 | EH65: 0.00 | EI65: E | EJ65: 0 | EK65: 0 | EL65: 0 | EM65: 0 | EP65: 0 | EQ65: 0.00 | ER65: E | ES65: 0 | ET65: 0 | EU65: 0 | EV65: 0 | EY65: 0 | EZ65: 0.00 | FA65: E | FB65: 0 | FF65: 0 | FG65: 0 | FO65: 0 | FP65: 0 | FQ65: 0 | FR65: 0 | FS65: 0 | FT65: 0 | FU65: 0 | FV65: 0 | FW65: 0 | FX65: 0 | FY65: 0 | GB65: 0 | GC65: / | GD65: 100 | GE65: 0/100 | GF65: 0 | GG65: / | GH65: 100 | GI65: 0/100 | GJ65: 0 | GK65: / | GL65: 100 | GM65: 0/100 | GO65: 0 | GP65: 0 | GQ65: 0 | GR65: 0 | GS65: 0 | GT65: 0 | GU65: 0 | GV65: 0 | GW65: 0 | GX65: 0
A66: 0 | B66: 58 | C66: 58 | D66: 0 | N66: 0 | Q66: 0 | T66: 0 | U66: 0 | X66: 0 | AA66: 0 | AB66: 0 | AC66: 0.00 | AE66: 0 | AH66: 0 | AK66: 0 | AN66: 0 | AO66: 0 | AR66: 0 | AU66: 0 | AV66: 0 | AW66: 0.00 | AX66: E | AY66: 0 | BB66: 0 | BE66: 0 | BH66: 0 | BI66: 0 | BL66: 0 | BO66: 0 | BP66: 0 | BQ66: 0.00 | BR66: E | BS66: 0 | BV66: 0 | BY66: 0 | CB66: 0 | CC66: 0 | CF66: 0 | CI66: 0 | CJ66: 0 | CK66: 0.00 | CL66: E | CM66: 0 | CP66: 0 | CS66: 0 | CV66: 0 | CW66: 0 | CZ66: 0 | DC66: 0 | DD66: 0 | DE66: 0.00 | DF66: E | DG66: 0 | DJ66: 0 | DM66: 0 | DP66: 0 | DQ66: 0 | DT66: 0 | DW66: 0 | DX66: 0 | DY66: 0.00 | DZ66: E | EA66: 0 | EB66: 0 | EC66: 0 | ED66: 0 | EG66: 0 | EH66: 0.00 | EI66: E | EJ66: 0 | EK66: 0 | EL66: 0 | EM66: 0 | EP66: 0 | EQ66: 0.00 | ER66: E | ES66: 0 | ET66: 0 | EU66: 0 | EV66: 0 | EY66: 0 | EZ66: 0.00 | FA66: E | FB66: 0 | FF66: 0 | FG66: 0 | FO66: 0 | FP66: 0 | FQ66: 0 | FR66: 0 | FS66: 0 | FT66: 0 | FU66: 0 | FV66: 0 | FW66: 0 | FX66: 0 | FY66: 0 | GB66: 0 | GC66: / | GD66: 100 | GE66: 0/100 | GF66: 0 | GG66: / | GH66: 100 | GI66: 0/100 | GJ66: 0 | GK66: / | GL66: 100 | GM66: 0/100 | GO66: 0 | GP66: 0 | GQ66: 0 | GR66: 0 | GS66: 0 | GT66: 0 | GU66: 0 | GV66: 0 | GW66: 0 | GX66: 0
A67: 0 | B67: 59 | C67: 59 | D67: 0 | N67: 0 | Q67: 0 | T67: 0 | U67: 0 | X67: 0 | AA67: 0 | AB67: 0 | AC67: 0.00 | AE67: 0 | AH67: 0 | AK67: 0 | AN67: 0 | AO67: 0 | AR67: 0 | AU67: 0 | AV67: 0 | AW67: 0.00 | AX67: E | AY67: 0 | BB67: 0 | BE67: 0 | BH67: 0 | BI67: 0 | BL67: 0 | BO67: 0 | BP67: 0 | BQ67: 0.00 | BR67: E | BS67: 0 | BV67: 0 | BY67: 0 | CB67: 0 | CC67: 0 | CF67: 0 | CI67: 0 | CJ67: 0 | CK67: 0.00 | CL67: E | CM67: 0 | CP67: 0 | CS67: 0 | CV67: 0 | CW67: 0 | CZ67: 0 | DC67: 0 | DD67: 0 | DE67: 0.00 | DF67: E | DG67: 0 | DJ67: 0 | DM67: 0 | DP67: 0 | DQ67: 0 | DT67: 0 | DW67: 0 | DX67: 0 | DY67: 0.00 | DZ67: E | EA67: 0 | EB67: 0 | EC67: 0 | ED67: 0 | EG67: 0 | EH67: 0.00 | EI67: E | EJ67: 0 | EK67: 0 | EL67: 0 | EM67: 0 | EP67: 0 | EQ67: 0.00 | ER67: E | ES67: 0 | ET67: 0 | EU67: 0 | EV67: 0 | EY67: 0 | EZ67: 0.00 | FA67: E | FB67: 0 | FF67: 0 | FG67: 0 | FO67: 0 | FP67: 0 | FQ67: 0 | FR67: 0 | FS67: 0 | FT67: 0 | FU67: 0 | FV67: 0 | FW67: 0 | FX67: 0 | FY67: 0 | GB67: 0 | GC67: / | GD67: 100 | GE67: 0/100 | GF67: 0 | GG67: / | GH67: 100 | GI67: 0/100 | GJ67: 0 | GK67: / | GL67: 100 | GM67: 0/100 | GO67: 0 | GP67: 0 | GQ67: 0 | GR67: 0 | GS67: 0 | GT67: 0 | GU67: 0 | GV67: 0 | GW67: 0 | GX67: 0
A68: 0 | B68: 60 | C68: 60 | D68: 0 | N68: 0 | Q68: 0 | T68: 0 | U68: 0 | X68: 0 | AA68: 0 | AB68: 0 | AC68: 0.00 | AE68: 0 | AH68: 0 | AK68: 0 | AN68: 0 | AO68: 0 | AR68: 0 | AU68: 0 | AV68: 0 | AW68: 0.00 | AX68: E | AY68: 0 | BB68: 0 | BE68: 0 | BH68: 0 | BI68: 0 | BL68: 0 | BO68: 0 | BP68: 0 | BQ68: 0.00 | BR68: E | BS68: 0 | BV68: 0 | BY68: 0 | CB68: 0 | CC68: 0 | CF68: 0 | CI68: 0 | CJ68: 0 | CK68: 0.00 | CL68: E | CM68: 0 | CP68: 0 | CS68: 0 | CV68: 0 | CW68: 0 | CZ68: 0 | DC68: 0 | DD68: 0 | DE68: 0.00 | DF68: E | DG68: 0 | DJ68: 0 | DM68: 0 | DP68: 0 | DQ68: 0 | DT68: 0 | DW68: 0 | DX68: 0 | DY68: 0.00 | DZ68: E | EA68: 0 | EB68: 0 | EC68: 0 | ED68: 0 | EG68: 0 | EH68: 0.00 | EI68: E | EJ68: 0 | EK68: 0 | EL68: 0 | EM68: 0 | EP68: 0 | EQ68: 0.00 | ER68: E | ES68: 0 | ET68: 0 | EU68: 0 | EV68: 0 | EY68: 0 | EZ68: 0.00 | FA68: E | FB68: 0 | FF68: 0 | FG68: 0 | FO68: 0 | FP68: 0 | FQ68: 0 | FR68: 0 | FS68: 0 | FT68: 0 | FU68: 0 | FV68: 0 | FW68: 0 | FX68: 0 | FY68: 0 | GB68: 0 | GC68: / | GD68: 100 | GE68: 0/100 | GF68: 0 | GG68: / | GH68: 100 | GI68: 0/100 | GJ68: 0 | GK68: / | GL68: 100 | GM68: 0/100 | GO68: 0 | GP68: 0 | GQ68: 0 | GR68: 0 | GS68: 0 | GT68: 0 | GU68: 0 | GV68: 0 | GW68: 0 | GX68: 0
A69: 0 | B69: 61 | C69: 61 | D69: 0 | N69: 0 | Q69: 0 | T69: 0 | U69: 0 | X69: 0 | AA69: 0 | AB69: 0 | AC69: 0.00 | AE69: 0 | AH69: 0 | AK69: 0 | AN69: 0 | AO69: 0 | AR69: 0 | AU69: 0 | AV69: 0 | AW69: 0.00 | AX69: E | AY69: 0 | BB69: 0 | BE69: 0 | BH69: 0 | BI69: 0 | BL69: 0 | BO69: 0 | BP69: 0 | BQ69: 0.00 | BR69: E | BS69: 0 | BV69: 0 | BY69: 0 | CB69: 0 | CC69: 0 | CF69: 0 | CI69: 0 | CJ69: 0 | CK69: 0.00 | CL69: E | CM69: 0 | CP69: 0 | CS69: 0 | CV69: 0 | CW69: 0 | CZ69: 0 | DC69: 0 | DD69: 0 | DE69: 0.00 | DF69: E | DG69: 0 | DJ69: 0 | DM69: 0 | DP69: 0 | DQ69: 0 | DT69: 0 | DW69: 0 | DX69: 0 | DY69: 0.00 | DZ69: E | EA69: 0 | EB69: 0 | EC69: 0 | ED69: 0 | EG69: 0 | EH69: 0.00 | EI69: E | EJ69: 0 | EK69: 0 | EL69: 0 | EM69: 0 | EP69: 0 | EQ69: 0.00 | ER69: E | ES69: 0 | ET69: 0 | EU69: 0 | EV69: 0 | EY69: 0 | EZ69: 0.00 | FA69: E | FB69: 0 | FF69: 0 | FG69: 0 | FO69: 0 | FP69: 0 | FQ69: 0 | FR69: 0 | FS69: 0 | FT69: 0 | FU69: 0 | FV69: 0 | FW69: 0 | FX69: 0 | FY69: 0 | GB69: 0 | GC69: / | GD69: 100 | GE69: 0/100 | GF69: 0 | GG69: / | GH69: 100 | GI69: 0/100 | GJ69: 0 | GK69: / | GL69: 100 | GM69: 0/100 | GO69: 0 | GP69: 0 | GQ69: 0 | GR69: 0 | GS69: 0 | GT69: 0 | GU69: 0 | GV69: 0 | GW69: 0 | GX69: 0
A70: 0 | B70: 62 | C70: 62 | D70: 0 | N70: 0 | Q70: 0 | T70: 0 | U70: 0 | X70: 0 | AA70: 0 | AB70: 0 | AC70: 0.00 | AE70: 0 | AH70: 0 | AK70: 0 | AN70: 0 | AO70: 0 | AR70: 0 | AU70: 0 | AV70: 0 | AW70: 0.00 | AX70: E | AY70: 0 | BB70: 0 | BE70: 0 | BH70: 0 | BI70: 0 | BL70: 0 | BO70: 0 | BP70: 0 | BQ70: 0.00 | BR70: E | BS70: 0 | BV70: 0 | BY70: 0 | CB70: 0 | CC70: 0 | CF70: 0 | CI70: 0 | CJ70: 0 | CK70: 0.00 | CL70: E | CM70: 0 | CP70: 0 | CS70: 0 | CV70: 0 | CW70: 0 | CZ70: 0 | DC70: 0 | DD70: 0 | DE70: 0.00 | DF70: E | DG70: 0 | DJ70: 0 | DM70: 0 | DP70: 0 | DQ70: 0 | DT70: 0 | DW70: 0 | DX70: 0 | DY70: 0.00 | DZ70: E | EA70: 0 | EB70: 0 | EC70: 0 | ED70: 0 | EG70: 0 | EH70: 0.00 | EI70: E | EJ70: 0 | EK70: 0 | EL70: 0 | EM70: 0 | EP70: 0 | EQ70: 0.00 | ER70: E | ES70: 0 | ET70: 0 | EU70: 0 | EV70: 0 | EY70: 0 | EZ70: 0.00 | FA70: E | FB70: 0 | FF70: 0 | FG70: 0 | FO70: 0 | FP70: 0 | FQ70: 0 | FR70: 0 | FS70: 0 | FT70: 0 | FU70: 0 | FV70: 0 | FW70: 0 | FX70: 0 | FY70: 0 | GB70: 0 | GC70: / | GD70: 100 | GE70: 0/100 | GF70: 0 | GG70: / | GH70: 100 | GI70: 0/100 | GJ70: 0 | GK70: / | GL70: 100 | GM70: 0/100 | GO70: 0 | GP70: 0 | GQ70: 0 | GR70: 0 | GS70: 0 | GT70: 0 | GU70: 0 | GV70: 0 | GW70: 0 | GX70: 0
A71: 0 | B71: 63 | C71: 63 | D71: 0 | N71: 0 | Q71: 0 | T71: 0 | U71: 0 | X71: 0 | AA71: 0 | AB71: 0 | AC71: 0.00 | AE71: 0 | AH71: 0 | AK71: 0 | AN71: 0 | AO71: 0 | AR71: 0 | AU71: 0 | AV71: 0 | AW71: 0.00 | AX71: E | AY71: 0 | BB71: 0 | BE71: 0 | BH71: 0 | BI71: 0 | BL71: 0 | BO71: 0 | BP71: 0 | BQ71: 0.00 | BR71: E | BS71: 0 | BV71: 0 | BY71: 0 | CB71: 0 | CC71: 0 | CF71: 0 | CI71: 0 | CJ71: 0 | CK71: 0.00 | CL71: E | CM71: 0 | CP71: 0 | CS71: 0 | CV71: 0 | CW71: 0 | CZ71: 0 | DC71: 0 | DD71: 0 | DE71: 0.00 | DF71: E | DG71: 0 | DJ71: 0 | DM71: 0 | DP71: 0 | DQ71: 0 | DT71: 0 | DW71: 0 | DX71: 0 | DY71: 0.00 | DZ71: E | EA71: 0 | EB71: 0 | EC71: 0 | ED71: 0 | EG71: 0 | EH71: 0.00 | EI71: E | EJ71: 0 | EK71: 0 | EL71: 0 | EM71: 0 | EP71: 0 | EQ71: 0.00 | ER71: E | ES71: 0 | ET71: 0 | EU71: 0 | EV71: 0 | EY71: 0 | EZ71: 0.00 | FA71: E | FB71: 0 | FF71: 0 | FG71: 0 | FO71: 0 | FP71: 0 | FQ71: 0 | FR71: 0 | FS71: 0 | FT71: 0 | FU71: 0 | FV71: 0 | FW71: 0 | FX71: 0 | FY71: 0 | GB71: 0 | GC71: / | GD71: 100 | GE71: 0/100 | GF71: 0 | GG71: / | GH71: 100 | GI71: 0/100 | GJ71: 0 | GK71: / | GL71: 100 | GM71: 0/100 | GO71: 0 | GP71: 0 | GQ71: 0 | GR71: 0 | GS71: 0 | GT71: 0 | GU71: 0 | GV71: 0 | GW71: 0 | GX71: 0
A72: 0 | B72: 64 | C72: 64 | D72: 0 | N72: 0 | Q72: 0 | T72: 0 | U72: 0 | X72: 0 | AA72: 0 | AB72: 0 | AC72: 0.00 | AE72: 0 | AH72: 0 | AK72: 0 | AN72: 0 | AO72: 0 | AR72: 0 | AU72: 0 | AV72: 0 | AW72: 0.00 | AX72: E | AY72: 0 | BB72: 0 | BE72: 0 | BH72: 0 | BI72: 0 | BL72: 0 | BO72: 0 | BP72: 0 | BQ72: 0.00 | BR72: E | BS72: 0 | BV72: 0 | BY72: 0 | CB72: 0 | CC72: 0 | CF72: 0 | CI72: 0 | CJ72: 0 | CK72: 0.00 | CL72: E | CM72: 0 | CP72: 0 | CS72: 0 | CV72: 0 | CW72: 0 | CZ72: 0 | DC72: 0 | DD72: 0 | DE72: 0.00 | DF72: E | DG72: 0 | DJ72: 0 | DM72: 0 | DP72: 0 | DQ72: 0 | DT72: 0 | DW72: 0 | DX72: 0 | DY72: 0.00 | DZ72: E | EA72: 0 | EB72: 0 | EC72: 0 | ED72: 0 | EG72: 0 | EH72: 0.00 | EI72: E | EJ72: 0 | EK72: 0 | EL72: 0 | EM72: 0 | EP72: 0 | EQ72: 0.00 | ER72: E | ES72: 0 | ET72: 0 | EU72: 0 | EV72: 0 | EY72: 0 | EZ72: 0.00 | FA72: E | FB72: 0 | FF72: 0 | FG72: 0 | FO72: 0 | FP72: 0 | FQ72: 0 | FR72: 0 | FS72: 0 | FT72: 0 | FU72: 0 | FV72: 0 | FW72: 0 | FX72: 0 | FY72: 0 | GB72: 0 | GC72: / | GD72: 100 | GE72: 0/100 | GF72: 0 | GG72: / | GH72: 100 | GI72: 0/100 | GJ72: 0 | GK72: / | GL72: 100 | GM72: 0/100 | GO72: 0 | GP72: 0 | GQ72: 0 | GR72: 0 | GS72: 0 | GT72: 0 | GU72: 0 | GV72: 0 | GW72: 0 | GX72: 0
A73: 0 | B73: 65 | C73: 65 | D73: 0 | N73: 0 | Q73: 0 | T73: 0 | U73: 0 | X73: 0 | AA73: 0 | AB73: 0 | AC73: 0.00 | AE73: 0 | AH73: 0 | AK73: 0 | AN73: 0 | AO73: 0 | AR73: 0 | AU73: 0 | AV73: 0 | AW73: 0.00 | AX73: E | AY73: 0 | BB73: 0 | BE73: 0 | BH73: 0 | BI73: 0 | BL73: 0 | BO73: 0 | BP73: 0 | BQ73: 0.00 | BR73: E | BS73: 0 | BV73: 0 | BY73: 0 | CB73: 0 | CC73: 0 | CF73: 0 | CI73: 0 | CJ73: 0 | CK73: 0.00 | CL73: E | CM73: 0 | CP73: 0 | CS73: 0 | CV73: 0 | CW73: 0 | CZ73: 0 | DC73: 0 | DD73: 0 | DE73: 0.00 | DF73: E | DG73: 0 | DJ73: 0 | DM73: 0 | DP73: 0 | DQ73: 0 | DT73: 0 | DW73: 0 | DX73: 0 | DY73: 0.00 | DZ73: E | EA73: 0 | EB73: 0 | EC73: 0 | ED73: 0 | EG73: 0 | EH73: 0.00 | EI73: E | EJ73: 0 | EK73: 0 | EL73: 0 | EM73: 0 | EP73: 0 | EQ73: 0.00 | ER73: E | ES73: 0 | ET73: 0 | EU73: 0 | EV73: 0 | EY73: 0 | EZ73: 0.00 | FA73: E | FB73: 0 | FF73: =IF(G73=0,0,SUM($AB$7,$AV$7,$BP$7,$CJ$7,$DD$7,$DX$7)) -> 0 | FG73: =SUM(AB73,AV73,BP73,CJ73,DD73,DX73) -> 0 | FO73: =AE73 -> 0 | FP73: =AY73 -> 0 | FQ73: =BS73 -> 0 | FR73: =CM73 -> 0 | FS73: =DG73 -> 0 | FT73: =EA73 -> 0 | FU73: 0 | FV73: 0 | FW73: 0 | FX73: 0 | FY73: 0 | GB73: 0 | GC73: / | GD73: 100 | GE73: 0/100 | GF73: 0 | GG73: / | GH73: 100 | GI73: 0/100 | GJ73: 0 | GK73: / | GL73: 100 | GM73: 0/100 | GO73: 0 | GP73: 0 | GQ73: 0 | GR73: 0 | GS73: 0 | GT73: 0 | GU73: 0 | GV73: 0 | GW73: 0 | GX73: 0
A74: =G74 -> 0 | B74: 66 | C74: 66 | D74: =IF(E74>0,$G$4,0) -> 0 | N74: =IF(L74="AB","AB",IF(L74="ML","ML",SUM(L74:M74))) -> 0 | Q74: =IF(O74="AB","AB",IF(O74="ML","ML",SUM(O74:P74))) -> 0 | T74: =IF(R74="AB","AB",IF(R74="ML","ML",SUM(R74:S74))) -> 0 | U74: 0 | X74: 0 | AA74: 0 | AB74: 0 | AC74: 0.00 | AD74: =IF(G74="","",IF($G74="nso","NSO",IF(AA74="ab",AA74,IF(AA74="ML",AA74,IF(AC74>=86,"A",IF(AC74>=71,"B",IF(AC74>=51,"C",IF(AC74>=31,"D","E")))))))) ->  | AE74: 0 | AH74: =IF(AF74="AB","AB",IF(AF74="ML","ML",SUM(AF74:AG74))) -> 0 | AK74: =IF(AI74="AB","AB",IF(AI74="ML","ML",SUM(AI74:AJ74))) -> 0 | AN74: =IF(AL74="AB","AB",IF(AL74="ML","ML",SUM(AL74:AM74))) -> 0 | AO74: 0 | AR74: 0 | AU74: 0 | AV74: 0 | AW74: =IF(OR(AV74="",AV$7=""),"",AV74/AV$7*100) -> 0.00 | AX74: =IF($G74="nso","NSO",IF(AU74="ab",AU74,IF(AU74="ML",AU74,IF(AW74>=86,"A",IF(AW74>=71,"B",IF(AW74>=51,"C",IF(AW74>=31,"D","E"))))))) -> E | AY74: =IF($G74>0,AX74,$G74) -> 0 | BB74: =IF(AZ74="AB","AB",IF(AZ74="ML","ML",SUM(AZ74:BA74))) -> 0 | BE74: =IF(BC74="AB","AB",IF(BC74="ML","ML",SUM(BC74:BD74))) -> 0 | BH74: =IF(BF74="AB","AB",IF(BF74="ML","ML",SUM(BF74:BG74))) -> 0 | BI74: 0 | BL74: 0 | BO74: 0 | BP74: 0 | BQ74: =IF(OR(BP74="",BP$7=""),"",BP74/BP$7*100) -> 0.00 | BR74: =IF($G74="nso","NSO",IF(BO74="ab",BO74,IF(BO74="ML",BO74,IF(BQ74>=86,"A",IF(BQ74>=71,"B",IF(BQ74>=51,"C",IF(BQ74>=31,"D","E"))))))) -> E | BS74: =IF($G74>0,BR74,$G74) -> 0 | BV74: =IF(BT74="AB","AB",IF(BT74="ML","ML",SUM(BT74:BU74))) -> 0 | BY74: =IF(BW74="AB","AB",IF(BW74="ML","ML",SUM(BW74:BX74))) -> 0 | CB74: =IF(BZ74="AB","AB",IF(BZ74="ML","ML",SUM(BZ74:CA74))) -> 0 | CC74: 0 | CF74: 0 | CI74: 0 | CJ74: 0 | CK74: =IF(OR(CJ74="",CJ$7=""),"",CJ74/CJ$7*100) -> 0.00 | CL74: =IF($G74="nso","NSO",IF(CI74="ab",CI74,IF(CI74="ML",CI74,IF(CK74>=86,"A",IF(CK74>=71,"B",IF(CK74>=51,"C",IF(CK74>=31,"D","E"))))))) -> E | CM74: =IF($G74>0,CL74,$G74) -> 0 | CP74: =IF(CN74="AB","AB",IF(CN74="ML","ML",SUM(CN74:CO74))) -> 0 | CS74: =IF(CQ74="AB","AB",IF(CQ74="ML","ML",SUM(CQ74:CR74))) -> 0 | CV74: =IF(CT74="AB","AB",IF(CT74="ML","ML",SUM(CT74:CU74))) -> 0 | CW74: 0 | CZ74: 0 | DC74: 0 | DD74: 0 | DE74: =IF(OR(DD74="",DD$7=""),"",DD74/DD$7*100) -> 0.00 | DF74: =IF($G74="nso","NSO",IF(DC74="ab",DC74,IF(DC74="ML",DC74,IF(DE74>=86,"A",IF(DE74>=71,"B",IF(DE74>=51,"C",IF(DE74>=31,"D","E"))))))) -> E | DG74: =IF($G74>0,DF74,$G74) -> 0 | DJ74: =IF(DH74="AB","AB",IF(DH74="ML","ML",SUM(DH74:DI74))) -> 0 | DM74: =IF(DK74="AB","AB",IF(DK74="ML","ML",SUM(DK74:DL74))) -> 0 | DP74: =IF(DN74="AB","AB",IF(DN74="ML","ML",SUM(DN74:DO74))) -> 0 | DQ74: 0 | DT74: 0 | DW74: 0 | DX74: 0 | DY74: =IF(OR(DX74="",DX$7=""),"",DX74/DX$7*100) -> 0.00 | DZ74: =IF($G74="nso","NSO",IF(DW74="ab",DW74,IF(DW74="ML",DW74,IF(DY74>=86,"A",IF(DY74>=71,"B",IF(DY74>=51,"C",IF(DY74>=31,"D","E"))))))) -> E | EA74: =IF($G74>0,DZ74,$G74) -> 0 | EB74: 0 | EC74: 0 | ED74: 0 | EG74: =SUM(EB74:EF74) -> 0 | EH74: =IF(OR(EG74="",EG$7=""),"",EG74/EG$7*100) -> 0.00 | EI74: =IF($G74="nso","NSO",IF(EF74="ab",EF74,IF(EF74="ML",EF74,IF(EH74>=86,"A",IF(EH74>=71,"B",IF(EH74>=51,"C",IF(EH74>=31,"D","E"))))))) -> E | EJ74: =IF($G74>0,EI74,$G74) -> 0 | EK74: 0 | EL74: 0 | EM74: 0 | EP74: =SUM(EK74:EO74) -> 0 | EQ74: =IF(OR(EP74="",EP$7=""),"",EP74/EP$7*100) -> 0.00 | ER74: =IF($G74="nso","NSO",IF(EO74="ab",EO74,IF(EO74="ML",EO74,IF(EQ74>=86,"A",IF(EQ74>=71,"B",IF(EQ74>=51,"C",IF(EQ74>=31,"D","E"))))))) -> E | ES74: =IF($G74>0,ER74,$G74) -> 0 | ET74: 0 | EU74: 0 | EV74: 0 | EY74: =SUM(ET74:EX74) -> 0 | EZ74: =IF(OR(EY74="",EY$7=""),"",EY74/EY$7*100) -> 0.00 | FA74: =IF($G74="nso","NSO",IF(EX74="ab",EX74,IF(EX74="ML",EX74,IF(EZ74>=86,"A",IF(EZ74>=71,"B",IF(EZ74>=51,"C",IF(EZ74>=31,"D","E"))))))) -> E | FB74: =IF($G74>0,FA74,$G74) -> 0 | FF74: 0 | FG74: 0 | FH74: =IF(AND(FK74="Passed",FF74>0),FG74/FF74*100,IF(AND(FK74="Promoted",FF74>0),FG74/FF74*100,"")) ->  | FI74: =IF(AND(FH74>=60,FK74="Passed"),"First",IF(AND(FH74>=48,FK74="Passed"),"Second",IF(OR(FK74="passed"),"Third",""))) ->  | FJ74: =IF(OR(FH74="",FK74<>"PASSED"),"",IF(FH74>85,"A",IF(FH74>70,"B",IF(FH74>50,"C",IF(FH74>30,"D","E"))))) ->  | FK74: =IF(OR(G74=0,G74=""),"",IF(G74="TC","TRANSFERRED",IF(G74="NSO","NSO",IF(G74="DROP","DROP",IF(GU74>0,"ABSENT",IF(GV74>0,"LEAVE",IF(GW74>4,"",IF(AND(GX74>0,$G$4=8),"",IF(GX74>0,"PROMOTED","PASSED"))))))))) ->  | FL74: =IF(FK74="Passed",FH74,"") ->  | FM74: =IF(FL74="","",SUMPRODUCT((FL74<FL$9:FL$108)/COUNTIF(FL$9:FL$108,FL$9:FL$108))) ->  | FN74: =IF(FH74="","",IF(FH74>=86,"Excellent",IF(FH74>=71,"Very Good",IF(FH74>=50,"Good",IF(FH74>31,"Average","Need Improvement"))))) ->  | FO74: 0 | FP74: 0 | FQ74: 0 | FR74: 0 | FS74: 0 | FT74: 0 | FU74: =COUNTIF($FO74:$FT74,"A") -> 0 | FV74: =COUNTIF($FO74:$FT74,"B") -> 0 | FW74: =COUNTIF($FO74:$FT74,"C") -> 0 | FX74: =COUNTIF($FO74:$FT74,"D") -> 0 | FY74: =COUNTIF($FO74:$FT74,"E") -> 0 | GB74: =EG74 -> 0 | GC74: / | GD74: =$EG$7 -> 100 | GE74: =CONCATENATE(GB74,GC74,GD74) -> 0/100 | GF74: =EP74 -> 0 | GG74: / | GH74: =$EP$7 -> 100 | GI74: =CONCATENATE(GF74,GG74,GH74) -> 0/100 | GJ74: =EY74 -> 0 | GK74: / | GL74: =$EY$7 -> 100 | GM74: =CONCATENATE(GJ74,GK74,GL74) -> 0/100 | GO74: =AE74 -> 0 | GP74: =AY74 -> 0 | GQ74: =BS74 -> 0 | GR74: =CM74 -> 0 | GS74: =DG74 -> 0 | GT74: =EA74 -> 0 | GU74: =COUNTIF(GO74:GT74,"ab") -> 0 | GV74: =COUNTIF(GO74:GT74,"ml") -> 0 | GW74: =COUNTBLANK(GO74:GT74) -> 0 | GX74: =COUNTIF(GO74:GT74,"e") -> 0
A75: 0 | B75: 67 | C75: 67 | D75: 0 | N75: 0 | Q75: 0 | T75: 0 | U75: =SUM(N75,Q75,T75) -> 0 | X75: =IF(V75="AB","AB",IF(V75="ML","ML",SUM(V75:W75))) -> 0 | AA75: =IF(Y75="AB","AB",IF(Y75="ML","ML",SUM(Y75:Z75))) -> 0 | AB75: =SUM(U75,X75,AA75) -> 0 | AC75: =IF(OR(AB75="",AB$7=""),"",AB75/AB$7*100) -> 0.00 | AE75: =IF($G75>0,AD75,$G75) -> 0 | AH75: 0 | AK75: 0 | AN75: 0 | AO75: =SUM(AH75,AK75,AN75) -> 0 | AR75: =IF(AP75="AB","AB",IF(AP75="ML","ML",SUM(AP75:AQ75))) -> 0 | AU75: =IF(AS75="AB","AB",IF(AS75="ML","ML",SUM(AS75:AT75))) -> 0 | AV75: =SUM(AO75,AR75,AU75) -> 0 | AW75: 0.00 | AX75: E | AY75: 0 | BB75: 0 | BE75: 0 | BH75: 0 | BI75: =SUM(BB75,BE75,BH75) -> 0 | BL75: =IF(BJ75="AB","AB",IF(BJ75="ML","ML",SUM(BJ75:BK75))) -> 0 | BO75: =IF(BM75="AB","AB",IF(BM75="ML","ML",SUM(BM75:BN75))) -> 0 | BP75: =SUM(BI75,BL75,BO75) -> 0 | BQ75: 0.00 | BR75: E | BS75: 0 | BV75: 0 | BY75: 0 | CB75: 0 | CC75: =SUM(BV75,BY75,CB75) -> 0 | CF75: =IF(CD75="AB","AB",IF(CD75="ML","ML",SUM(CD75:CE75))) -> 0 | CI75: =IF(CG75="AB","AB",IF(CG75="ML","ML",SUM(CG75:CH75))) -> 0 | CJ75: =SUM(CC75,CF75,CI75) -> 0 | CK75: 0.00 | CL75: E | CM75: 0 | CP75: 0 | CS75: 0 | CV75: 0 | CW75: =SUM(CP75,CS75,CV75) -> 0 | CZ75: =IF(CX75="AB","AB",IF(CX75="ML","ML",SUM(CX75:CY75))) -> 0 | DC75: =IF(DA75="AB","AB",IF(DA75="ML","ML",SUM(DA75:DB75))) -> 0 | DD75: =SUM(CW75,CZ75,DC75) -> 0 | DE75: 0.00 | DF75: E | DG75: 0 | DJ75: 0 | DM75: 0 | DP75: 0 | DQ75: =SUM(DJ75,DM75,DP75) -> 0 | DT75: =IF(DR75="AB","AB",IF(DR75="ML","ML",SUM(DR75:DS75))) -> 0 | DW75: =IF(DU75="AB","AB",IF(DU75="ML","ML",SUM(DU75:DV75))) -> 0 | DX75: =SUM(DQ75,DT75,DW75) -> 0 | DY75: 0.00 | DZ75: E | EA75: 0 | EB75: 0 | EC75: 0 | ED75: 0 | EG75: 0 | EH75: 0.00 | EI75: E | EJ75: 0 | EK75: 0 | EL75: 0 | EM75: 0 | EP75: 0 | EQ75: 0.00 | ER75: E | ES75: 0 | ET75: 0 | EU75: 0 | EV75: 0 | EY75: 0 | EZ75: 0.00 | FA75: E | FB75: 0 | FF75: 0 | FG75: 0 | FO75: 0 | FP75: 0 | FQ75: 0 | FR75: 0 | FS75: 0 | FT75: 0 | FU75: 0 | FV75: 0 | FW75: 0 | FX75: 0 | FY75: 0 | GB75: 0 | GC75: / | GD75: 100 | GE75: 0/100 | GF75: 0 | GG75: / | GH75: 100 | GI75: 0/100 | GJ75: 0 | GK75: / | GL75: 100 | GM75: 0/100 | GO75: 0 | GP75: 0 | GQ75: 0 | GR75: 0 | GS75: 0 | GT75: 0 | GU75: 0 | GV75: 0 | GW75: 0 | GX75: 0
A76: 0 | B76: 68 | C76: 68 | D76: 0 | N76: 0 | Q76: 0 | T76: 0 | U76: 0 | X76: 0 | AA76: 0 | AB76: 0 | AC76: 0.00 | AE76: 0 | AH76: 0 | AK76: 0 | AN76: 0 | AO76: 0 | AR76: 0 | AU76: 0 | AV76: 0 | AW76: 0.00 | AX76: E | AY76: 0 | BB76: 0 | BE76: 0 | BH76: 0 | BI76: 0 | BL76: 0 | BO76: 0 | BP76: 0 | BQ76: 0.00 | BR76: E | BS76: 0 | BV76: 0 | BY76: 0 | CB76: 0 | CC76: 0 | CF76: 0 | CI76: 0 | CJ76: 0 | CK76: 0.00 | CL76: E | CM76: 0 | CP76: 0 | CS76: 0 | CV76: 0 | CW76: 0 | CZ76: 0 | DC76: 0 | DD76: 0 | DE76: 0.00 | DF76: E | DG76: 0 | DJ76: 0 | DM76: 0 | DP76: 0 | DQ76: 0 | DT76: 0 | DW76: 0 | DX76: 0 | DY76: 0.00 | DZ76: E | EA76: 0 | EB76: 0 | EC76: 0 | ED76: 0 | EG76: 0 | EH76: 0.00 | EI76: E | EJ76: 0 | EK76: 0 | EL76: 0 | EM76: 0 | EP76: 0 | EQ76: 0.00 | ER76: E | ES76: 0 | ET76: 0 | EU76: 0 | EV76: 0 | EY76: 0 | EZ76: 0.00 | FA76: E | FB76: 0 | FF76: 0 | FG76: 0 | FO76: 0 | FP76: 0 | FQ76: 0 | FR76: 0 | FS76: 0 | FT76: 0 | FU76: 0 | FV76: 0 | FW76: 0 | FX76: 0 | FY76: 0 | GB76: 0 | GC76: / | GD76: 100 | GE76: 0/100 | GF76: 0 | GG76: / | GH76: 100 | GI76: 0/100 | GJ76: 0 | GK76: / | GL76: 100 | GM76: 0/100 | GO76: 0 | GP76: 0 | GQ76: 0 | GR76: 0 | GS76: 0 | GT76: 0 | GU76: 0 | GV76: 0 | GW76: 0 | GX76: 0
A77: 0 | B77: 69 | C77: 69 | D77: 0 | N77: 0 | Q77: 0 | T77: 0 | U77: 0 | X77: 0 | AA77: 0 | AB77: 0 | AC77: 0.00 | AE77: 0 | AH77: 0 | AK77: 0 | AN77: 0 | AO77: 0 | AR77: 0 | AU77: 0 | AV77: 0 | AW77: 0.00 | AX77: E | AY77: 0 | BB77: 0 | BE77: 0 | BH77: 0 | BI77: 0 | BL77: 0 | BO77: 0 | BP77: 0 | BQ77: 0.00 | BR77: E | BS77: 0 | BV77: 0 | BY77: 0 | CB77: 0 | CC77: 0 | CF77: 0 | CI77: 0 | CJ77: 0 | CK77: 0.00 | CL77: E | CM77: 0 | CP77: 0 | CS77: 0 | CV77: 0 | CW77: 0 | CZ77: 0 | DC77: 0 | DD77: 0 | DE77: 0.00 | DF77: E | DG77: 0 | DJ77: 0 | DM77: 0 | DP77: 0 | DQ77: 0 | DT77: 0 | DW77: 0 | DX77: 0 | DY77: 0.00 | DZ77: E | EA77: 0 | EB77: 0 | EC77: 0 | ED77: 0 | EG77: 0 | EH77: 0.00 | EI77: E | EJ77: 0 | EK77: 0 | EL77: 0 | EM77: 0 | EP77: 0 | EQ77: 0.00 | ER77: E | ES77: 0 | ET77: 0 | EU77: 0 | EV77: 0 | EY77: 0 | EZ77: 0.00 | FA77: E | FB77: 0 | FF77: 0 | FG77: 0 | FO77: 0 | FP77: 0 | FQ77: 0 | FR77: 0 | FS77: 0 | FT77: 0 | FU77: 0 | FV77: 0 | FW77: 0 | FX77: 0 | FY77: 0 | GB77: 0 | GC77: / | GD77: 100 | GE77: 0/100 | GF77: 0 | GG77: / | GH77: 100 | GI77: 0/100 | GJ77: 0 | GK77: / | GL77: 100 | GM77: 0/100 | GO77: 0 | GP77: 0 | GQ77: 0 | GR77: 0 | GS77: 0 | GT77: 0 | GU77: 0 | GV77: 0 | GW77: 0 | GX77: 0
A78: 0 | B78: 70 | C78: 70 | D78: 0 | N78: 0 | Q78: 0 | T78: 0 | U78: 0 | X78: 0 | AA78: 0 | AB78: 0 | AC78: 0.00 | AE78: 0 | AH78: 0 | AK78: 0 | AN78: 0 | AO78: 0 | AR78: 0 | AU78: 0 | AV78: 0 | AW78: 0.00 | AX78: E | AY78: 0 | BB78: 0 | BE78: 0 | BH78: 0 | BI78: 0 | BL78: 0 | BO78: 0 | BP78: 0 | BQ78: 0.00 | BR78: E | BS78: 0 | BV78: 0 | BY78: 0 | CB78: 0 | CC78: 0 | CF78: 0 | CI78: 0 | CJ78: 0 | CK78: 0.00 | CL78: E | CM78: 0 | CP78: 0 | CS78: 0 | CV78: 0 | CW78: 0 | CZ78: 0 | DC78: 0 | DD78: 0 | DE78: 0.00 | DF78: E | DG78: 0 | DJ78: 0 | DM78: 0 | DP78: 0 | DQ78: 0 | DT78: 0 | DW78: 0 | DX78: 0 | DY78: 0.00 | DZ78: E | EA78: 0 | EB78: 0 | EC78: 0 | ED78: 0 | EG78: 0 | EH78: 0.00 | EI78: E | EJ78: 0 | EK78: 0 | EL78: 0 | EM78: 0 | EP78: 0 | EQ78: 0.00 | ER78: E | ES78: 0 | ET78: 0 | EU78: 0 | EV78: 0 | EY78: 0 | EZ78: 0.00 | FA78: E | FB78: 0 | FF78: 0 | FG78: 0 | FO78: 0 | FP78: 0 | FQ78: 0 | FR78: 0 | FS78: 0 | FT78: 0 | FU78: 0 | FV78: 0 | FW78: 0 | FX78: 0 | FY78: 0 | GB78: 0 | GC78: / | GD78: 100 | GE78: 0/100 | GF78: 0 | GG78: / | GH78: 100 | GI78: 0/100 | GJ78: 0 | GK78: / | GL78: 100 | GM78: 0/100 | GO78: 0 | GP78: 0 | GQ78: 0 | GR78: 0 | GS78: 0 | GT78: 0 | GU78: 0 | GV78: 0 | GW78: 0 | GX78: 0
A79: 0 | B79: 71 | C79: 71 | D79: 0 | N79: 0 | Q79: 0 | T79: 0 | U79: 0 | X79: 0 | AA79: 0 | AB79: 0 | AC79: 0.00 | AE79: 0 | AH79: 0 | AK79: 0 | AN79: 0 | AO79: 0 | AR79: 0 | AU79: 0 | AV79: 0 | AW79: 0.00 | AX79: E | AY79: 0 | BB79: 0 | BE79: 0 | BH79: 0 | BI79: 0 | BL79: 0 | BO79: 0 | BP79: 0 | BQ79: 0.00 | BR79: E | BS79: 0 | BV79: 0 | BY79: 0 | CB79: 0 | CC79: 0 | CF79: 0 | CI79: 0 | CJ79: 0 | CK79: 0.00 | CL79: E | CM79: 0 | CP79: 0 | CS79: 0 | CV79: 0 | CW79: 0 | CZ79: 0 | DC79: 0 | DD79: 0 | DE79: 0.00 | DF79: E | DG79: 0 | DJ79: 0 | DM79: 0 | DP79: 0 | DQ79: 0 | DT79: 0 | DW79: 0 | DX79: 0 | DY79: 0.00 | DZ79: E | EA79: 0 | EB79: 0 | EC79: 0 | ED79: 0 | EG79: 0 | EH79: 0.00 | EI79: E | EJ79: 0 | EK79: 0 | EL79: 0 | EM79: 0 | EP79: 0 | EQ79: 0.00 | ER79: E | ES79: 0 | ET79: 0 | EU79: 0 | EV79: 0 | EY79: 0 | EZ79: 0.00 | FA79: E | FB79: 0 | FF79: 0 | FG79: 0 | FO79: 0 | FP79: 0 | FQ79: 0 | FR79: 0 | FS79: 0 | FT79: 0 | FU79: 0 | FV79: 0 | FW79: 0 | FX79: 0 | FY79: 0 | GB79: 0 | GC79: / | GD79: 100 | GE79: 0/100 | GF79: 0 | GG79: / | GH79: 100 | GI79: 0/100 | GJ79: 0 | GK79: / | GL79: 100 | GM79: 0/100 | GO79: 0 | GP79: 0 | GQ79: 0 | GR79: 0 | GS79: 0 | GT79: 0 | GU79: 0 | GV79: 0 | GW79: 0 | GX79: 0
A80: 0 | B80: 72 | C80: 72 | D80: 0 | N80: 0 | Q80: 0 | T80: 0 | U80: 0 | X80: 0 | AA80: 0 | AB80: 0 | AC80: 0.00 | AE80: 0 | AH80: 0 | AK80: 0 | AN80: 0 | AO80: 0 | AR80: 0 | AU80: 0 | AV80: 0 | AW80: 0.00 | AX80: E | AY80: 0 | BB80: 0 | BE80: 0 | BH80: 0 | BI80: 0 | BL80: 0 | BO80: 0 | BP80: 0 | BQ80: 0.00 | BR80: E | BS80: 0 | BV80: 0 | BY80: 0 | CB80: 0 | CC80: 0 | CF80: 0 | CI80: 0 | CJ80: 0 | CK80: 0.00 | CL80: E | CM80: 0 | CP80: 0 | CS80: 0 | CV80: 0 | CW80: 0 | CZ80: 0 | DC80: 0 | DD80: 0 | DE80: 0.00 | DF80: E | DG80: 0 | DJ80: 0 | DM80: 0 | DP80: 0 | DQ80: 0 | DT80: 0 | DW80: 0 | DX80: 0 | DY80: 0.00 | DZ80: E | EA80: 0 | EB80: 0 | EC80: 0 | ED80: 0 | EG80: 0 | EH80: 0.00 | EI80: E | EJ80: 0 | EK80: 0 | EL80: 0 | EM80: 0 | EP80: 0 | EQ80: 0.00 | ER80: E | ES80: 0 | ET80: 0 | EU80: 0 | EV80: 0 | EY80: 0 | EZ80: 0.00 | FA80: E | FB80: 0 | FF80: 0 | FG80: 0 | FO80: 0 | FP80: 0 | FQ80: 0 | FR80: 0 | FS80: 0 | FT80: 0 | FU80: 0 | FV80: 0 | FW80: 0 | FX80: 0 | FY80: 0 | GB80: 0 | GC80: / | GD80: 100 | GE80: 0/100 | GF80: 0 | GG80: / | GH80: 100 | GI80: 0/100 | GJ80: 0 | GK80: / | GL80: 100 | GM80: 0/100 | GO80: 0 | GP80: 0 | GQ80: 0 | GR80: 0 | GS80: 0 | GT80: 0 | GU80: 0 | GV80: 0 | GW80: 0 | GX80: 0
A81: 0 | B81: 73 | C81: 73 | D81: 0 | N81: 0 | Q81: 0 | T81: 0 | U81: 0 | X81: 0 | AA81: 0 | AB81: 0 | AC81: 0.00 | AE81: 0 | AH81: 0 | AK81: 0 | AN81: 0 | AO81: 0 | AR81: 0 | AU81: 0 | AV81: 0 | AW81: 0.00 | AX81: E | AY81: 0 | BB81: 0 | BE81: 0 | BH81: 0 | BI81: 0 | BL81: 0 | BO81: 0 | BP81: 0 | BQ81: 0.00 | BR81: E | BS81: 0 | BV81: 0 | BY81: 0 | CB81: 0 | CC81: 0 | CF81: 0 | CI81: 0 | CJ81: 0 | CK81: 0.00 | CL81: E | CM81: 0 | CP81: 0 | CS81: 0 | CV81: 0 | CW81: 0 | CZ81: 0 | DC81: 0 | DD81: 0 | DE81: 0.00 | DF81: E | DG81: 0 | DJ81: 0 | DM81: 0 | DP81: 0 | DQ81: 0 | DT81: 0 | DW81: 0 | DX81: 0 | DY81: 0.00 | DZ81: E | EA81: 0 | EB81: 0 | EC81: 0 | ED81: 0 | EG81: 0 | EH81: 0.00 | EI81: E | EJ81: 0 | EK81: 0 | EL81: 0 | EM81: 0 | EP81: 0 | EQ81: 0.00 | ER81: E | ES81: 0 | ET81: 0 | EU81: 0 | EV81: 0 | EY81: 0 | EZ81: 0.00 | FA81: E | FB81: 0 | FF81: 0 | FG81: 0 | FO81: 0 | FP81: 0 | FQ81: 0 | FR81: 0 | FS81: 0 | FT81: 0 | FU81: 0 | FV81: 0 | FW81: 0 | FX81: 0 | FY81: 0 | GB81: 0 | GC81: / | GD81: 100 | GE81: 0/100 | GF81: 0 | GG81: / | GH81: 100 | GI81: 0/100 | GJ81: 0 | GK81: / | GL81: 100 | GM81: 0/100 | GO81: 0 | GP81: 0 | GQ81: 0 | GR81: 0 | GS81: 0 | GT81: 0 | GU81: 0 | GV81: 0 | GW81: 0 | GX81: 0
A82: 0 | B82: 74 | C82: 74 | D82: 0 | N82: 0 | Q82: 0 | T82: 0 | U82: 0 | X82: 0 | AA82: 0 | AB82: 0 | AC82: 0.00 | AE82: 0 | AH82: 0 | AK82: 0 | AN82: 0 | AO82: 0 | AR82: 0 | AU82: 0 | AV82: 0 | AW82: 0.00 | AX82: E | AY82: 0 | BB82: 0 | BE82: 0 | BH82: 0 | BI82: 0 | BL82: 0 | BO82: 0 | BP82: 0 | BQ82: 0.00 | BR82: E | BS82: 0 | BV82: 0 | BY82: 0 | CB82: 0 | CC82: 0 | CF82: 0 | CI82: 0 | CJ82: 0 | CK82: 0.00 | CL82: E | CM82: 0 | CP82: 0 | CS82: 0 | CV82: 0 | CW82: 0 | CZ82: 0 | DC82: 0 | DD82: 0 | DE82: 0.00 | DF82: E | DG82: 0 | DJ82: 0 | DM82: 0 | DP82: 0 | DQ82: 0 | DT82: 0 | DW82: 0 | DX82: 0 | DY82: 0.00 | DZ82: E | EA82: 0 | EB82: 0 | EC82: 0 | ED82: 0 | EG82: 0 | EH82: 0.00 | EI82: E | EJ82: 0 | EK82: 0 | EL82: 0 | EM82: 0 | EP82: 0 | EQ82: 0.00 | ER82: E | ES82: 0 | ET82: 0 | EU82: 0 | EV82: 0 | EY82: 0 | EZ82: 0.00 | FA82: E | FB82: 0 | FF82: 0 | FG82: 0 | FO82: 0 | FP82: 0 | FQ82: 0 | FR82: 0 | FS82: 0 | FT82: 0 | FU82: 0 | FV82: 0 | FW82: 0 | FX82: 0 | FY82: 0 | GB82: 0 | GC82: / | GD82: 100 | GE82: 0/100 | GF82: 0 | GG82: / | GH82: 100 | GI82: 0/100 | GJ82: 0 | GK82: / | GL82: 100 | GM82: 0/100 | GO82: 0 | GP82: 0 | GQ82: 0 | GR82: 0 | GS82: 0 | GT82: 0 | GU82: 0 | GV82: 0 | GW82: 0 | GX82: 0
A83: 0 | B83: 75 | C83: 75 | D83: 0 | N83: 0 | Q83: 0 | T83: 0 | U83: 0 | X83: 0 | AA83: 0 | AB83: 0 | AC83: 0.00 | AE83: 0 | AH83: 0 | AK83: 0 | AN83: 0 | AO83: 0 | AR83: 0 | AU83: 0 | AV83: 0 | AW83: 0.00 | AX83: E | AY83: 0 | BB83: 0 | BE83: 0 | BH83: 0 | BI83: 0 | BL83: 0 | BO83: 0 | BP83: 0 | BQ83: 0.00 | BR83: E | BS83: 0 | BV83: 0 | BY83: 0 | CB83: 0 | CC83: 0 | CF83: 0 | CI83: 0 | CJ83: 0 | CK83: 0.00 | CL83: E | CM83: 0 | CP83: 0 | CS83: 0 | CV83: 0 | CW83: 0 | CZ83: 0 | DC83: 0 | DD83: 0 | DE83: 0.00 | DF83: E | DG83: 0 | DJ83: 0 | DM83: 0 | DP83: 0 | DQ83: 0 | DT83: 0 | DW83: 0 | DX83: 0 | DY83: 0.00 | DZ83: E | EA83: 0 | EB83: 0 | EC83: 0 | ED83: 0 | EG83: 0 | EH83: 0.00 | EI83: E | EJ83: 0 | EK83: 0 | EL83: 0 | EM83: 0 | EP83: 0 | EQ83: 0.00 | ER83: E | ES83: 0 | ET83: 0 | EU83: 0 | EV83: 0 | EY83: 0 | EZ83: 0.00 | FA83: E | FB83: 0 | FF83: 0 | FG83: 0 | FO83: 0 | FP83: 0 | FQ83: 0 | FR83: 0 | FS83: 0 | FT83: 0 | FU83: 0 | FV83: 0 | FW83: 0 | FX83: 0 | FY83: 0 | GB83: 0 | GC83: / | GD83: 100 | GE83: 0/100 | GF83: 0 | GG83: / | GH83: 100 | GI83: 0/100 | GJ83: 0 | GK83: / | GL83: 100 | GM83: 0/100 | GO83: 0 | GP83: 0 | GQ83: 0 | GR83: 0 | GS83: 0 | GT83: 0 | GU83: 0 | GV83: 0 | GW83: 0 | GX83: 0
A84: 0 | B84: 76 | C84: 76 | D84: 0 | N84: 0 | Q84: 0 | T84: 0 | U84: 0 | X84: 0 | AA84: 0 | AB84: 0 | AC84: 0.00 | AE84: 0 | AH84: 0 | AK84: 0 | AN84: 0 | AO84: 0 | AR84: 0 | AU84: 0 | AV84: 0 | AW84: 0.00 | AX84: E | AY84: 0 | BB84: 0 | BE84: 0 | BH84: 0 | BI84: 0 | BL84: 0 | BO84: 0 | BP84: 0 | BQ84: 0.00 | BR84: E | BS84: 0 | BV84: 0 | BY84: 0 | CB84: 0 | CC84: 0 | CF84: 0 | CI84: 0 | CJ84: 0 | CK84: 0.00 | CL84: E | CM84: 0 | CP84: 0 | CS84: 0 | CV84: 0 | CW84: 0 | CZ84: 0 | DC84: 0 | DD84: 0 | DE84: 0.00 | DF84: E | DG84: 0 | DJ84: 0 | DM84: 0 | DP84: 0 | DQ84: 0 | DT84: 0 | DW84: 0 | DX84: 0 | DY84: 0.00 | DZ84: E | EA84: 0 | EB84: 0 | EC84: 0 | ED84: 0 | EG84: 0 | EH84: 0.00 | EI84: E | EJ84: 0 | EK84: 0 | EL84: 0 | EM84: 0 | EP84: 0 | EQ84: 0.00 | ER84: E | ES84: 0 | ET84: 0 | EU84: 0 | EV84: 0 | EY84: 0 | EZ84: 0.00 | FA84: E | FB84: 0 | FF84: 0 | FG84: 0 | FO84: 0 | FP84: 0 | FQ84: 0 | FR84: 0 | FS84: 0 | FT84: 0 | FU84: 0 | FV84: 0 | FW84: 0 | FX84: 0 | FY84: 0 | GB84: 0 | GC84: / | GD84: 100 | GE84: 0/100 | GF84: 0 | GG84: / | GH84: 100 | GI84: 0/100 | GJ84: 0 | GK84: / | GL84: 100 | GM84: 0/100 | GO84: 0 | GP84: 0 | GQ84: 0 | GR84: 0 | GS84: 0 | GT84: 0 | GU84: 0 | GV84: 0 | GW84: 0 | GX84: 0
A85: 0 | B85: 77 | C85: 77 | D85: 0 | N85: 0 | Q85: 0 | T85: 0 | U85: 0 | X85: 0 | AA85: 0 | AB85: 0 | AC85: 0.00 | AE85: 0 | AH85: 0 | AK85: 0 | AN85: 0 | AO85: 0 | AR85: 0 | AU85: 0 | AV85: 0 | AW85: 0.00 | AX85: E | AY85: 0 | BB85: 0 | BE85: 0 | BH85: 0 | BI85: 0 | BL85: 0 | BO85: 0 | BP85: 0 | BQ85: 0.00 | BR85: E | BS85: 0 | BV85: 0 | BY85: 0 | CB85: 0 | CC85: 0 | CF85: 0 | CI85: 0 | CJ85: 0 | CK85: 0.00 | CL85: E | CM85: 0 | CP85: 0 | CS85: 0 | CV85: 0 | CW85: 0 | CZ85: 0 | DC85: 0 | DD85: 0 | DE85: 0.00 | DF85: E | DG85: 0 | DJ85: 0 | DM85: 0 | DP85: 0 | DQ85: 0 | DT85: 0 | DW85: 0 | DX85: 0 | DY85: 0.00 | DZ85: E | EA85: 0 | EB85: 0 | EC85: 0 | ED85: 0 | EG85: 0 | EH85: 0.00 | EI85: E | EJ85: 0 | EK85: 0 | EL85: 0 | EM85: 0 | EP85: 0 | EQ85: 0.00 | ER85: E | ES85: 0 | ET85: 0 | EU85: 0 | EV85: 0 | EY85: 0 | EZ85: 0.00 | FA85: E | FB85: 0 | FF85: 0 | FG85: 0 | FO85: 0 | FP85: 0 | FQ85: 0 | FR85: 0 | FS85: 0 | FT85: 0 | FU85: 0 | FV85: 0 | FW85: 0 | FX85: 0 | FY85: 0 | GB85: 0 | GC85: / | GD85: 100 | GE85: 0/100 | GF85: 0 | GG85: / | GH85: 100 | GI85: 0/100 | GJ85: 0 | GK85: / | GL85: 100 | GM85: 0/100 | GO85: 0 | GP85: 0 | GQ85: 0 | GR85: 0 | GS85: 0 | GT85: 0 | GU85: 0 | GV85: 0 | GW85: 0 | GX85: 0
A86: 0 | B86: 78 | C86: 78 | D86: 0 | N86: 0 | Q86: 0 | T86: 0 | U86: 0 | X86: 0 | AA86: 0 | AB86: 0 | AC86: 0.00 | AE86: 0 | AH86: 0 | AK86: 0 | AN86: 0 | AO86: 0 | AR86: 0 | AU86: 0 | AV86: 0 | AW86: 0.00 | AX86: E | AY86: 0 | BB86: 0 | BE86: 0 | BH86: 0 | BI86: 0 | BL86: 0 | BO86: 0 | BP86: 0 | BQ86: 0.00 | BR86: E | BS86: 0 | BV86: 0 | BY86: 0 | CB86: 0 | CC86: 0 | CF86: 0 | CI86: 0 | CJ86: 0 | CK86: 0.00 | CL86: E | CM86: 0 | CP86: 0 | CS86: 0 | CV86: 0 | CW86: 0 | CZ86: 0 | DC86: 0 | DD86: 0 | DE86: 0.00 | DF86: E | DG86: 0 | DJ86: 0 | DM86: 0 | DP86: 0 | DQ86: 0 | DT86: 0 | DW86: 0 | DX86: 0 | DY86: 0.00 | DZ86: E | EA86: 0 | EB86: 0 | EC86: 0 | ED86: 0 | EG86: 0 | EH86: 0.00 | EI86: E | EJ86: 0 | EK86: 0 | EL86: 0 | EM86: 0 | EP86: 0 | EQ86: 0.00 | ER86: E | ES86: 0 | ET86: 0 | EU86: 0 | EV86: 0 | EY86: 0 | EZ86: 0.00 | FA86: E | FB86: 0 | FF86: 0 | FG86: 0 | FO86: 0 | FP86: 0 | FQ86: 0 | FR86: 0 | FS86: 0 | FT86: 0 | FU86: 0 | FV86: 0 | FW86: 0 | FX86: 0 | FY86: 0 | GB86: 0 | GC86: / | GD86: 100 | GE86: 0/100 | GF86: 0 | GG86: / | GH86: 100 | GI86: 0/100 | GJ86: 0 | GK86: / | GL86: 100 | GM86: 0/100 | GO86: 0 | GP86: 0 | GQ86: 0 | GR86: 0 | GS86: 0 | GT86: 0 | GU86: 0 | GV86: 0 | GW86: 0 | GX86: 0
A87: 0 | B87: 79 | C87: 79 | D87: 0 | N87: 0 | Q87: 0 | T87: 0 | U87: 0 | X87: 0 | AA87: 0 | AB87: 0 | AC87: 0.00 | AE87: 0 | AH87: 0 | AK87: 0 | AN87: 0 | AO87: 0 | AR87: 0 | AU87: 0 | AV87: 0 | AW87: 0.00 | AX87: E | AY87: 0 | BB87: 0 | BE87: 0 | BH87: 0 | BI87: 0 | BL87: 0 | BO87: 0 | BP87: 0 | BQ87: 0.00 | BR87: E | BS87: 0 | BV87: 0 | BY87: 0 | CB87: 0 | CC87: 0 | CF87: 0 | CI87: 0 | CJ87: 0 | CK87: 0.00 | CL87: E | CM87: 0 | CP87: 0 | CS87: 0 | CV87: 0 | CW87: 0 | CZ87: 0 | DC87: 0 | DD87: 0 | DE87: 0.00 | DF87: E | DG87: 0 | DJ87: 0 | DM87: 0 | DP87: 0 | DQ87: 0 | DT87: 0 | DW87: 0 | DX87: 0 | DY87: 0.00 | DZ87: E | EA87: 0 | EB87: 0 | EC87: 0 | ED87: 0 | EG87: 0 | EH87: 0.00 | EI87: E | EJ87: 0 | EK87: 0 | EL87: 0 | EM87: 0 | EP87: 0 | EQ87: 0.00 | ER87: E | ES87: 0 | ET87: 0 | EU87: 0 | EV87: 0 | EY87: 0 | EZ87: 0.00 | FA87: E | FB87: 0 | FF87: 0 | FG87: 0 | FO87: 0 | FP87: 0 | FQ87: 0 | FR87: 0 | FS87: 0 | FT87: 0 | FU87: 0 | FV87: 0 | FW87: 0 | FX87: 0 | FY87: 0 | GB87: 0 | GC87: / | GD87: 100 | GE87: 0/100 | GF87: 0 | GG87: / | GH87: 100 | GI87: 0/100 | GJ87: 0 | GK87: / | GL87: 100 | GM87: 0/100 | GO87: 0 | GP87: 0 | GQ87: 0 | GR87: 0 | GS87: 0 | GT87: 0 | GU87: 0 | GV87: 0 | GW87: 0 | GX87: 0
A88: 0 | B88: 80 | C88: 80 | D88: 0 | N88: 0 | Q88: 0 | T88: 0 | U88: 0 | X88: 0 | AA88: 0 | AB88: 0 | AC88: 0.00 | AE88: 0 | AH88: 0 | AK88: 0 | AN88: 0 | AO88: 0 | AR88: 0 | AU88: 0 | AV88: 0 | AW88: 0.00 | AX88: E | AY88: 0 | BB88: 0 | BE88: 0 | BH88: 0 | BI88: 0 | BL88: 0 | BO88: 0 | BP88: 0 | BQ88: 0.00 | BR88: E | BS88: 0 | BV88: 0 | BY88: 0 | CB88: 0 | CC88: 0 | CF88: 0 | CI88: 0 | CJ88: 0 | CK88: 0.00 | CL88: E | CM88: 0 | CP88: 0 | CS88: 0 | CV88: 0 | CW88: 0 | CZ88: 0 | DC88: 0 | DD88: 0 | DE88: 0.00 | DF88: E | DG88: 0 | DJ88: 0 | DM88: 0 | DP88: 0 | DQ88: 0 | DT88: 0 | DW88: 0 | DX88: 0 | DY88: 0.00 | DZ88: E | EA88: 0 | EB88: 0 | EC88: 0 | ED88: 0 | EG88: 0 | EH88: 0.00 | EI88: E | EJ88: 0 | EK88: 0 | EL88: 0 | EM88: 0 | EP88: 0 | EQ88: 0.00 | ER88: E | ES88: 0 | ET88: 0 | EU88: 0 | EV88: 0 | EY88: 0 | EZ88: 0.00 | FA88: E | FB88: 0 | FF88: 0 | FG88: 0 | FO88: 0 | FP88: 0 | FQ88: 0 | FR88: 0 | FS88: 0 | FT88: 0 | FU88: 0 | FV88: 0 | FW88: 0 | FX88: 0 | FY88: 0 | GB88: 0 | GC88: / | GD88: 100 | GE88: 0/100 | GF88: 0 | GG88: / | GH88: 100 | GI88: 0/100 | GJ88: 0 | GK88: / | GL88: 100 | GM88: 0/100 | GO88: 0 | GP88: 0 | GQ88: 0 | GR88: 0 | GS88: 0 | GT88: 0 | GU88: 0 | GV88: 0 | GW88: 0 | GX88: 0
A89: 0 | B89: 81 | C89: 81 | D89: 0 | N89: 0 | Q89: 0 | T89: 0 | U89: 0 | X89: 0 | AA89: 0 | AB89: 0 | AC89: 0.00 | AE89: 0 | AH89: 0 | AK89: 0 | AN89: 0 | AO89: 0 | AR89: 0 | AU89: 0 | AV89: 0 | AW89: 0.00 | AX89: E | AY89: 0 | BB89: 0 | BE89: 0 | BH89: 0 | BI89: 0 | BL89: 0 | BO89: 0 | BP89: 0 | BQ89: 0.00 | BR89: E | BS89: 0 | BV89: 0 | BY89: 0 | CB89: 0 | CC89: 0 | CF89: 0 | CI89: 0 | CJ89: 0 | CK89: 0.00 | CL89: E | CM89: 0 | CP89: 0 | CS89: 0 | CV89: 0 | CW89: 0 | CZ89: 0 | DC89: 0 | DD89: 0 | DE89: 0.00 | DF89: E | DG89: 0 | DJ89: 0 | DM89: 0 | DP89: 0 | DQ89: 0 | DT89: 0 | DW89: 0 | DX89: 0 | DY89: 0.00 | DZ89: E | EA89: 0 | EB89: 0 | EC89: 0 | ED89: 0 | EG89: 0 | EH89: 0.00 | EI89: E | EJ89: 0 | EK89: 0 | EL89: 0 | EM89: 0 | EP89: 0 | EQ89: 0.00 | ER89: E | ES89: 0 | ET89: 0 | EU89: 0 | EV89: 0 | EY89: 0 | EZ89: 0.00 | FA89: E | FB89: 0 | FF89: 0 | FG89: 0 | FO89: 0 | FP89: 0 | FQ89: 0 | FR89: 0 | FS89: 0 | FT89: 0 | FU89: 0 | FV89: 0 | FW89: 0 | FX89: 0 | FY89: 0 | GB89: 0 | GC89: / | GD89: 100 | GE89: 0/100 | GF89: 0 | GG89: / | GH89: 100 | GI89: 0/100 | GJ89: 0 | GK89: / | GL89: 100 | GM89: 0/100 | GO89: 0 | GP89: 0 | GQ89: 0 | GR89: 0 | GS89: 0 | GT89: 0 | GU89: 0 | GV89: 0 | GW89: 0 | GX89: 0
A90: 0 | B90: 82 | C90: 82 | D90: 0 | N90: 0 | Q90: 0 | T90: 0 | U90: 0 | X90: 0 | AA90: 0 | AB90: 0 | AC90: 0.00 | AE90: 0 | AH90: 0 | AK90: 0 | AN90: 0 | AO90: 0 | AR90: 0 | AU90: 0 | AV90: 0 | AW90: 0.00 | AX90: E | AY90: 0 | BB90: 0 | BE90: 0 | BH90: 0 | BI90: 0 | BL90: 0 | BO90: 0 | BP90: 0 | BQ90: 0.00 | BR90: E | BS90: 0 | BV90: 0 | BY90: 0 | CB90: 0 | CC90: 0 | CF90: 0 | CI90: 0 | CJ90: 0 | CK90: 0.00 | CL90: E | CM90: 0 | CP90: 0 | CS90: 0 | CV90: 0 | CW90: 0 | CZ90: 0 | DC90: 0 | DD90: 0 | DE90: 0.00 | DF90: E | DG90: 0 | DJ90: 0 | DM90: 0 | DP90: 0 | DQ90: 0 | DT90: 0 | DW90: 0 | DX90: 0 | DY90: 0.00 | DZ90: E | EA90: 0 | EB90: 0 | EC90: 0 | ED90: 0 | EG90: 0 | EH90: 0.00 | EI90: E | EJ90: 0 | EK90: 0 | EL90: 0 | EM90: 0 | EP90: 0 | EQ90: 0.00 | ER90: E | ES90: 0 | ET90: 0 | EU90: 0 | EV90: 0 | EY90: 0 | EZ90: 0.00 | FA90: E | FB90: 0 | FF90: 0 | FG90: 0 | FO90: 0 | FP90: 0 | FQ90: 0 | FR90: 0 | FS90: 0 | FT90: 0 | FU90: 0 | FV90: 0 | FW90: 0 | FX90: 0 | FY90: 0 | GB90: 0 | GC90: / | GD90: 100 | GE90: 0/100 | GF90: 0 | GG90: / | GH90: 100 | GI90: 0/100 | GJ90: 0 | GK90: / | GL90: 100 | GM90: 0/100 | GO90: 0 | GP90: 0 | GQ90: 0 | GR90: 0 | GS90: 0 | GT90: 0 | GU90: 0 | GV90: 0 | GW90: 0 | GX90: 0
A91: 0 | B91: 83 | C91: 83 | D91: 0 | N91: 0 | Q91: 0 | T91: 0 | U91: 0 | X91: 0 | AA91: 0 | AB91: 0 | AC91: 0.00 | AE91: 0 | AH91: 0 | AK91: 0 | AN91: 0 | AO91: 0 | AR91: 0 | AU91: 0 | AV91: 0 | AW91: 0.00 | AX91: E | AY91: 0 | BB91: 0 | BE91: 0 | BH91: 0 | BI91: 0 | BL91: 0 | BO91: 0 | BP91: 0 | BQ91: 0.00 | BR91: E | BS91: 0 | BV91: 0 | BY91: 0 | CB91: 0 | CC91: 0 | CF91: 0 | CI91: 0 | CJ91: 0 | CK91: 0.00 | CL91: E | CM91: 0 | CP91: 0 | CS91: 0 | CV91: 0 | CW91: 0 | CZ91: 0 | DC91: 0 | DD91: 0 | DE91: 0.00 | DF91: E | DG91: 0 | DJ91: 0 | DM91: 0 | DP91: 0 | DQ91: 0 | DT91: 0 | DW91: 0 | DX91: 0 | DY91: 0.00 | DZ91: E | EA91: 0 | EB91: 0 | EC91: 0 | ED91: 0 | EG91: 0 | EH91: 0.00 | EI91: E | EJ91: 0 | EK91: 0 | EL91: 0 | EM91: 0 | EP91: 0 | EQ91: 0.00 | ER91: E | ES91: 0 | ET91: 0 | EU91: 0 | EV91: 0 | EY91: 0 | EZ91: 0.00 | FA91: E | FB91: 0 | FF91: 0 | FG91: 0 | FO91: 0 | FP91: 0 | FQ91: 0 | FR91: 0 | FS91: 0 | FT91: 0 | FU91: 0 | FV91: 0 | FW91: 0 | FX91: 0 | FY91: 0 | GB91: 0 | GC91: / | GD91: 100 | GE91: 0/100 | GF91: 0 | GG91: / | GH91: 100 | GI91: 0/100 | GJ91: 0 | GK91: / | GL91: 100 | GM91: 0/100 | GO91: 0 | GP91: 0 | GQ91: 0 | GR91: 0 | GS91: 0 | GT91: 0 | GU91: 0 | GV91: 0 | GW91: 0 | GX91: 0
A92: 0 | B92: 84 | C92: 84 | D92: 0 | N92: 0 | Q92: 0 | T92: 0 | U92: 0 | X92: 0 | AA92: 0 | AB92: 0 | AC92: 0.00 | AE92: 0 | AH92: 0 | AK92: 0 | AN92: 0 | AO92: 0 | AR92: 0 | AU92: 0 | AV92: 0 | AW92: 0.00 | AX92: E | AY92: 0 | BB92: 0 | BE92: 0 | BH92: 0 | BI92: 0 | BL92: 0 | BO92: 0 | BP92: 0 | BQ92: 0.00 | BR92: E | BS92: 0 | BV92: 0 | BY92: 0 | CB92: 0 | CC92: 0 | CF92: 0 | CI92: 0 | CJ92: 0 | CK92: 0.00 | CL92: E | CM92: 0 | CP92: 0 | CS92: 0 | CV92: 0 | CW92: 0 | CZ92: 0 | DC92: 0 | DD92: 0 | DE92: 0.00 | DF92: E | DG92: 0 | DJ92: 0 | DM92: 0 | DP92: 0 | DQ92: 0 | DT92: 0 | DW92: 0 | DX92: 0 | DY92: 0.00 | DZ92: E | EA92: 0 | EB92: 0 | EC92: 0 | ED92: 0 | EG92: 0 | EH92: 0.00 | EI92: E | EJ92: 0 | EK92: 0 | EL92: 0 | EM92: 0 | EP92: 0 | EQ92: 0.00 | ER92: E | ES92: 0 | ET92: 0 | EU92: 0 | EV92: 0 | EY92: 0 | EZ92: 0.00 | FA92: E | FB92: 0 | FF92: 0 | FG92: 0 | FO92: 0 | FP92: 0 | FQ92: 0 | FR92: 0 | FS92: 0 | FT92: 0 | FU92: 0 | FV92: 0 | FW92: 0 | FX92: 0 | FY92: 0 | GB92: 0 | GC92: / | GD92: 100 | GE92: 0/100 | GF92: 0 | GG92: / | GH92: 100 | GI92: 0/100 | GJ92: 0 | GK92: / | GL92: 100 | GM92: 0/100 | GO92: 0 | GP92: 0 | GQ92: 0 | GR92: 0 | GS92: 0 | GT92: 0 | GU92: 0 | GV92: 0 | GW92: 0 | GX92: 0
A93: 0 | B93: 85 | C93: 85 | D93: 0 | N93: 0 | Q93: 0 | T93: 0 | U93: 0 | X93: 0 | AA93: 0 | AB93: 0 | AC93: 0.00 | AE93: 0 | AH93: 0 | AK93: 0 | AN93: 0 | AO93: 0 | AR93: 0 | AU93: 0 | AV93: 0 | AW93: 0.00 | AX93: E | AY93: 0 | BB93: 0 | BE93: 0 | BH93: 0 | BI93: 0 | BL93: 0 | BO93: 0 | BP93: 0 | BQ93: 0.00 | BR93: E | BS93: 0 | BV93: 0 | BY93: 0 | CB93: 0 | CC93: 0 | CF93: 0 | CI93: 0 | CJ93: 0 | CK93: 0.00 | CL93: E | CM93: 0 | CP93: 0 | CS93: 0 | CV93: 0 | CW93: 0 | CZ93: 0 | DC93: 0 | DD93: 0 | DE93: 0.00 | DF93: E | DG93: 0 | DJ93: 0 | DM93: 0 | DP93: 0 | DQ93: 0 | DT93: 0 | DW93: 0 | DX93: 0 | DY93: 0.00 | DZ93: E | EA93: 0 | EB93: 0 | EC93: 0 | ED93: 0 | EG93: 0 | EH93: 0.00 | EI93: E | EJ93: 0 | EK93: 0 | EL93: 0 | EM93: 0 | EP93: 0 | EQ93: 0.00 | ER93: E | ES93: 0 | ET93: 0 | EU93: 0 | EV93: 0 | EY93: 0 | EZ93: 0.00 | FA93: E | FB93: 0 | FF93: 0 | FG93: 0 | FO93: 0 | FP93: 0 | FQ93: 0 | FR93: 0 | FS93: 0 | FT93: 0 | FU93: 0 | FV93: 0 | FW93: 0 | FX93: 0 | FY93: 0 | GB93: 0 | GC93: / | GD93: 100 | GE93: 0/100 | GF93: 0 | GG93: / | GH93: 100 | GI93: 0/100 | GJ93: 0 | GK93: / | GL93: 100 | GM93: 0/100 | GO93: 0 | GP93: 0 | GQ93: 0 | GR93: 0 | GS93: 0 | GT93: 0 | GU93: 0 | GV93: 0 | GW93: 0 | GX93: 0
A94: 0 | B94: 86 | C94: 86 | D94: 0 | N94: 0 | Q94: 0 | T94: 0 | U94: 0 | X94: 0 | AA94: 0 | AB94: 0 | AC94: 0.00 | AE94: 0 | AH94: 0 | AK94: 0 | AN94: 0 | AO94: 0 | AR94: 0 | AU94: 0 | AV94: 0 | AW94: 0.00 | AX94: E | AY94: 0 | BB94: 0 | BE94: 0 | BH94: 0 | BI94: 0 | BL94: 0 | BO94: 0 | BP94: 0 | BQ94: 0.00 | BR94: E | BS94: 0 | BV94: 0 | BY94: 0 | CB94: 0 | CC94: 0 | CF94: 0 | CI94: 0 | CJ94: 0 | CK94: 0.00 | CL94: E | CM94: 0 | CP94: 0 | CS94: 0 | CV94: 0 | CW94: 0 | CZ94: 0 | DC94: 0 | DD94: 0 | DE94: 0.00 | DF94: E | DG94: 0 | DJ94: 0 | DM94: 0 | DP94: 0 | DQ94: 0 | DT94: 0 | DW94: 0 | DX94: 0 | DY94: 0.00 | DZ94: E | EA94: 0 | EB94: 0 | EC94: 0 | ED94: 0 | EG94: 0 | EH94: 0.00 | EI94: E | EJ94: 0 | EK94: 0 | EL94: 0 | EM94: 0 | EP94: 0 | EQ94: 0.00 | ER94: E | ES94: 0 | ET94: 0 | EU94: 0 | EV94: 0 | EY94: 0 | EZ94: 0.00 | FA94: E | FB94: 0 | FF94: 0 | FG94: 0 | FO94: 0 | FP94: 0 | FQ94: 0 | FR94: 0 | FS94: 0 | FT94: 0 | FU94: 0 | FV94: 0 | FW94: 0 | FX94: 0 | FY94: 0 | GB94: 0 | GC94: / | GD94: 100 | GE94: 0/100 | GF94: 0 | GG94: / | GH94: 100 | GI94: 0/100 | GJ94: 0 | GK94: / | GL94: 100 | GM94: 0/100 | GO94: 0 | GP94: 0 | GQ94: 0 | GR94: 0 | GS94: 0 | GT94: 0 | GU94: 0 | GV94: 0 | GW94: 0 | GX94: 0
A95: 0 | B95: 87 | C95: 87 | D95: 0 | N95: 0 | Q95: 0 | T95: 0 | U95: 0 | X95: 0 | AA95: 0 | AB95: 0 | AC95: 0.00 | AE95: 0 | AH95: 0 | AK95: 0 | AN95: 0 | AO95: 0 | AR95: 0 | AU95: 0 | AV95: 0 | AW95: 0.00 | AX95: E | AY95: 0 | BB95: 0 | BE95: 0 | BH95: 0 | BI95: 0 | BL95: 0 | BO95: 0 | BP95: 0 | BQ95: 0.00 | BR95: E | BS95: 0 | BV95: 0 | BY95: 0 | CB95: 0 | CC95: 0 | CF95: 0 | CI95: 0 | CJ95: 0 | CK95: 0.00 | CL95: E | CM95: 0 | CP95: 0 | CS95: 0 | CV95: 0 | CW95: 0 | CZ95: 0 | DC95: 0 | DD95: 0 | DE95: 0.00 | DF95: E | DG95: 0 | DJ95: 0 | DM95: 0 | DP95: 0 | DQ95: 0 | DT95: 0 | DW95: 0 | DX95: 0 | DY95: 0.00 | DZ95: E | EA95: 0 | EB95: 0 | EC95: 0 | ED95: 0 | EG95: 0 | EH95: 0.00 | EI95: E | EJ95: 0 | EK95: 0 | EL95: 0 | EM95: 0 | EP95: 0 | EQ95: 0.00 | ER95: E | ES95: 0 | ET95: 0 | EU95: 0 | EV95: 0 | EY95: 0 | EZ95: 0.00 | FA95: E | FB95: 0 | FF95: 0 | FG95: 0 | FO95: 0 | FP95: 0 | FQ95: 0 | FR95: 0 | FS95: 0 | FT95: 0 | FU95: 0 | FV95: 0 | FW95: 0 | FX95: 0 | FY95: 0 | GB95: 0 | GC95: / | GD95: 100 | GE95: 0/100 | GF95: 0 | GG95: / | GH95: 100 | GI95: 0/100 | GJ95: 0 | GK95: / | GL95: 100 | GM95: 0/100 | GO95: 0 | GP95: 0 | GQ95: 0 | GR95: 0 | GS95: 0 | GT95: 0 | GU95: 0 | GV95: 0 | GW95: 0 | GX95: 0
A96: 0 | B96: 88 | C96: 88 | D96: 0 | N96: 0 | Q96: 0 | T96: 0 | U96: 0 | X96: 0 | AA96: 0 | AB96: 0 | AC96: 0.00 | AE96: 0 | AH96: 0 | AK96: 0 | AN96: 0 | AO96: 0 | AR96: 0 | AU96: 0 | AV96: 0 | AW96: 0.00 | AX96: E | AY96: 0 | BB96: 0 | BE96: 0 | BH96: 0 | BI96: 0 | BL96: 0 | BO96: 0 | BP96: 0 | BQ96: 0.00 | BR96: E | BS96: 0 | BV96: 0 | BY96: 0 | CB96: 0 | CC96: 0 | CF96: 0 | CI96: 0 | CJ96: 0 | CK96: 0.00 | CL96: E | CM96: 0 | CP96: 0 | CS96: 0 | CV96: 0 | CW96: 0 | CZ96: 0 | DC96: 0 | DD96: 0 | DE96: 0.00 | DF96: E | DG96: 0 | DJ96: 0 | DM96: 0 | DP96: 0 | DQ96: 0 | DT96: 0 | DW96: 0 | DX96: 0 | DY96: 0.00 | DZ96: E | EA96: 0 | EB96: 0 | EC96: 0 | ED96: 0 | EG96: 0 | EH96: 0.00 | EI96: E | EJ96: 0 | EK96: 0 | EL96: 0 | EM96: 0 | EP96: 0 | EQ96: 0.00 | ER96: E | ES96: 0 | ET96: 0 | EU96: 0 | EV96: 0 | EY96: 0 | EZ96: 0.00 | FA96: E | FB96: 0 | FF96: 0 | FG96: 0 | FO96: 0 | FP96: 0 | FQ96: 0 | FR96: 0 | FS96: 0 | FT96: 0 | FU96: 0 | FV96: 0 | FW96: 0 | FX96: 0 | FY96: 0 | GB96: 0 | GC96: / | GD96: 100 | GE96: 0/100 | GF96: 0 | GG96: / | GH96: 100 | GI96: 0/100 | GJ96: 0 | GK96: / | GL96: 100 | GM96: 0/100 | GO96: 0 | GP96: 0 | GQ96: 0 | GR96: 0 | GS96: 0 | GT96: 0 | GU96: 0 | GV96: 0 | GW96: 0 | GX96: 0
A97: 0 | B97: 89 | C97: 89 | D97: 0 | N97: 0 | Q97: 0 | T97: 0 | U97: 0 | X97: 0 | AA97: 0 | AB97: 0 | AC97: 0.00 | AE97: 0 | AH97: 0 | AK97: 0 | AN97: 0 | AO97: 0 | AR97: 0 | AU97: 0 | AV97: 0 | AW97: 0.00 | AX97: E | AY97: 0 | BB97: 0 | BE97: 0 | BH97: 0 | BI97: 0 | BL97: 0 | BO97: 0 | BP97: 0 | BQ97: 0.00 | BR97: E | BS97: 0 | BV97: 0 | BY97: 0 | CB97: 0 | CC97: 0 | CF97: 0 | CI97: 0 | CJ97: 0 | CK97: 0.00 | CL97: E | CM97: 0 | CP97: 0 | CS97: 0 | CV97: 0 | CW97: 0 | CZ97: 0 | DC97: 0 | DD97: 0 | DE97: 0.00 | DF97: E | DG97: 0 | DJ97: 0 | DM97: 0 | DP97: 0 | DQ97: 0 | DT97: 0 | DW97: 0 | DX97: 0 | DY97: 0.00 | DZ97: E | EA97: 0 | EB97: 0 | EC97: 0 | ED97: 0 | EG97: 0 | EH97: 0.00 | EI97: E | EJ97: 0 | EK97: 0 | EL97: 0 | EM97: 0 | EP97: 0 | EQ97: 0.00 | ER97: E | ES97: 0 | ET97: 0 | EU97: 0 | EV97: 0 | EY97: 0 | EZ97: 0.00 | FA97: E | FB97: 0 | FF97: 0 | FG97: 0 | FO97: 0 | FP97: 0 | FQ97: 0 | FR97: 0 | FS97: 0 | FT97: 0 | FU97: 0 | FV97: 0 | FW97: 0 | FX97: 0 | FY97: 0 | GB97: 0 | GC97: / | GD97: 100 | GE97: 0/100 | GF97: 0 | GG97: / | GH97: 100 | GI97: 0/100 | GJ97: 0 | GK97: / | GL97: 100 | GM97: 0/100 | GO97: 0 | GP97: 0 | GQ97: 0 | GR97: 0 | GS97: 0 | GT97: 0 | GU97: 0 | GV97: 0 | GW97: 0 | GX97: 0
A98: 0 | B98: 90 | C98: 90 | D98: 0 | N98: 0 | Q98: 0 | T98: 0 | U98: 0 | X98: 0 | AA98: 0 | AB98: 0 | AC98: 0.00 | AE98: 0 | AH98: 0 | AK98: 0 | AN98: 0 | AO98: 0 | AR98: 0 | AU98: 0 | AV98: 0 | AW98: 0.00 | AX98: E | AY98: 0 | BB98: 0 | BE98: 0 | BH98: 0 | BI98: 0 | BL98: 0 | BO98: 0 | BP98: 0 | BQ98: 0.00 | BR98: E | BS98: 0 | BV98: 0 | BY98: 0 | CB98: 0 | CC98: 0 | CF98: 0 | CI98: 0 | CJ98: 0 | CK98: 0.00 | CL98: E | CM98: 0 | CP98: 0 | CS98: 0 | CV98: 0 | CW98: 0 | CZ98: 0 | DC98: 0 | DD98: 0 | DE98: 0.00 | DF98: E | DG98: 0 | DJ98: 0 | DM98: 0 | DP98: 0 | DQ98: 0 | DT98: 0 | DW98: 0 | DX98: 0 | DY98: 0.00 | DZ98: E | EA98: 0 | EB98: 0 | EC98: 0 | ED98: 0 | EG98: 0 | EH98: 0.00 | EI98: E | EJ98: 0 | EK98: 0 | EL98: 0 | EM98: 0 | EP98: 0 | EQ98: 0.00 | ER98: E | ES98: 0 | ET98: 0 | EU98: 0 | EV98: 0 | EY98: 0 | EZ98: 0.00 | FA98: E | FB98: 0 | FF98: 0 | FG98: 0 | FO98: 0 | FP98: 0 | FQ98: 0 | FR98: 0 | FS98: 0 | FT98: 0 | FU98: 0 | FV98: 0 | FW98: 0 | FX98: 0 | FY98: 0 | GB98: 0 | GC98: / | GD98: 100 | GE98: 0/100 | GF98: 0 | GG98: / | GH98: 100 | GI98: 0/100 | GJ98: 0 | GK98: / | GL98: 100 | GM98: 0/100 | GO98: 0 | GP98: 0 | GQ98: 0 | GR98: 0 | GS98: 0 | GT98: 0 | GU98: 0 | GV98: 0 | GW98: 0 | GX98: 0
A99: 0 | B99: 91 | C99: 91 | D99: 0 | N99: 0 | Q99: 0 | T99: 0 | U99: 0 | X99: 0 | AA99: 0 | AB99: 0 | AC99: 0.00 | AE99: 0 | AH99: 0 | AK99: 0 | AN99: 0 | AO99: 0 | AR99: 0 | AU99: 0 | AV99: 0 | AW99: 0.00 | AX99: E | AY99: 0 | BB99: 0 | BE99: 0 | BH99: 0 | BI99: 0 | BL99: 0 | BO99: 0 | BP99: 0 | BQ99: 0.00 | BR99: E | BS99: 0 | BV99: 0 | BY99: 0 | CB99: 0 | CC99: 0 | CF99: 0 | CI99: 0 | CJ99: 0 | CK99: 0.00 | CL99: E | CM99: 0 | CP99: 0 | CS99: 0 | CV99: 0 | CW99: 0 | CZ99: 0 | DC99: 0 | DD99: 0 | DE99: 0.00 | DF99: E | DG99: 0 | DJ99: 0 | DM99: 0 | DP99: 0 | DQ99: 0 | DT99: 0 | DW99: 0 | DX99: 0 | DY99: 0.00 | DZ99: E | EA99: 0 | EB99: 0 | EC99: 0 | ED99: 0 | EG99: 0 | EH99: 0.00 | EI99: E | EJ99: 0 | EK99: 0 | EL99: 0 | EM99: 0 | EP99: 0 | EQ99: 0.00 | ER99: E | ES99: 0 | ET99: 0 | EU99: 0 | EV99: 0 | EY99: 0 | EZ99: 0.00 | FA99: E | FB99: 0 | FF99: 0 | FG99: 0 | FO99: 0 | FP99: 0 | FQ99: 0 | FR99: 0 | FS99: 0 | FT99: 0 | FU99: 0 | FV99: 0 | FW99: 0 | FX99: 0 | FY99: 0 | GB99: 0 | GC99: / | GD99: 100 | GE99: 0/100 | GF99: 0 | GG99: / | GH99: 100 | GI99: 0/100 | GJ99: 0 | GK99: / | GL99: 100 | GM99: 0/100 | GO99: 0 | GP99: 0 | GQ99: 0 | GR99: 0 | GS99: 0 | GT99: 0 | GU99: 0 | GV99: 0 | GW99: 0 | GX99: 0
A100: 0 | B100: 92 | C100: 92 | D100: 0 | N100: 0 | Q100: 0 | T100: 0 | U100: 0 | X100: 0 | AA100: 0 | AB100: 0 | AC100: 0.00 | AE100: 0 | AH100: 0 | AK100: 0 | AN100: 0 | AO100: 0 | AR100: 0 | AU100: 0 | AV100: 0 | AW100: 0.00 | AX100: E | AY100: 0 | BB100: 0 | BE100: 0 | BH100: 0 | BI100: 0 | BL100: 0 | BO100: 0 | BP100: 0 | BQ100: 0.00 | BR100: E | BS100: 0 | BV100: 0 | BY100: 0 | CB100: 0 | CC100: 0 | CF100: 0 | CI100: 0 | CJ100: 0 | CK100: 0.00 | CL100: E | CM100: 0 | CP100: 0 | CS100: 0 | CV100: 0 | CW100: 0 | CZ100: 0 | DC100: 0 | DD100: 0 | DE100: 0.00 | DF100: E | DG100: 0 | DJ100: 0 | DM100: 0 | DP100: 0 | DQ100: 0 | DT100: 0 | DW100: 0 | DX100: 0 | DY100: 0.00 | DZ100: E | EA100: 0 | EB100: 0 | EC100: 0 | ED100: 0 | EG100: 0 | EH100: 0.00 | EI100: E | EJ100: 0 | EK100: 0 | EL100: 0 | EM100: 0 | EP100: 0 | EQ100: 0.00 | ER100: E | ES100: 0 | ET100: 0 | EU100: 0 | EV100: 0 | EY100: 0 | EZ100: 0.00 | FA100: E | FB100: 0 | FF100: 0 | FG100: 0 | FO100: 0 | FP100: 0 | FQ100: 0 | FR100: 0 | FS100: 0 | FT100: 0 | FU100: 0 | FV100: 0 | FW100: 0 | FX100: 0 | FY100: 0 | GB100: 0 | GC100: / | GD100: 100 | GE100: 0/100 | GF100: 0 | GG100: / | GH100: 100 | GI100: 0/100 | GJ100: 0 | GK100: / | GL100: 100 | GM100: 0/100 | GO100: 0 | GP100: 0 | GQ100: 0 | GR100: 0 | GS100: 0 | GT100: 0 | GU100: 0 | GV100: 0 | GW100: 0 | GX100: 0
A101: 0 | B101: 93 | C101: 93 | D101: 0 | N101: 0 | Q101: 0 | T101: 0 | U101: 0 | X101: 0 | AA101: 0 | AB101: 0 | AC101: 0.00 | AE101: 0 | AH101: 0 | AK101: 0 | AN101: 0 | AO101: 0 | AR101: 0 | AU101: 0 | AV101: 0 | AW101: 0.00 | AX101: E | AY101: 0 | BB101: 0 | BE101: 0 | BH101: 0 | BI101: 0 | BL101: 0 | BO101: 0 | BP101: 0 | BQ101: 0.00 | BR101: E | BS101: 0 | BV101: 0 | BY101: 0 | CB101: 0 | CC101: 0 | CF101: 0 | CI101: 0 | CJ101: 0 | CK101: 0.00 | CL101: E | CM101: 0 | CP101: 0 | CS101: 0 | CV101: 0 | CW101: 0 | CZ101: 0 | DC101: 0 | DD101: 0 | DE101: 0.00 | DF101: E | DG101: 0 | DJ101: 0 | DM101: 0 | DP101: 0 | DQ101: 0 | DT101: 0 | DW101: 0 | DX101: 0 | DY101: 0.00 | DZ101: E | EA101: 0 | EB101: 0 | EC101: 0 | ED101: 0 | EG101: 0 | EH101: 0.00 | EI101: E | EJ101: 0 | EK101: 0 | EL101: 0 | EM101: 0 | EP101: 0 | EQ101: 0.00 | ER101: E | ES101: 0 | ET101: 0 | EU101: 0 | EV101: 0 | EY101: 0 | EZ101: 0.00 | FA101: E | FB101: 0 | FF101: 0 | FG101: 0 | FO101: 0 | FP101: 0 | FQ101: 0 | FR101: 0 | FS101: 0 | FT101: 0 | FU101: 0 | FV101: 0 | FW101: 0 | FX101: 0 | FY101: 0 | GB101: 0 | GC101: / | GD101: 100 | GE101: 0/100 | GF101: 0 | GG101: / | GH101: 100 | GI101: 0/100 | GJ101: 0 | GK101: / | GL101: 100 | GM101: 0/100 | GO101: 0 | GP101: 0 | GQ101: 0 | GR101: 0 | GS101: 0 | GT101: 0 | GU101: 0 | GV101: 0 | GW101: 0 | GX101: 0
A102: 0 | B102: 94 | C102: 94 | D102: 0 | N102: 0 | Q102: 0 | T102: 0 | U102: 0 | X102: 0 | AA102: 0 | AB102: 0 | AC102: 0.00 | AE102: 0 | AH102: 0 | AK102: 0 | AN102: 0 | AO102: 0 | AR102: 0 | AU102: 0 | AV102: 0 | AW102: 0.00 | AX102: E | AY102: 0 | BB102: 0 | BE102: 0 | BH102: 0 | BI102: 0 | BL102: 0 | BO102: 0 | BP102: 0 | BQ102: 0.00 | BR102: E | BS102: 0 | BV102: 0 | BY102: 0 | CB102: 0 | CC102: 0 | CF102: 0 | CI102: 0 | CJ102: 0 | CK102: 0.00 | CL102: E | CM102: 0 | CP102: 0 | CS102: 0 | CV102: 0 | CW102: 0 | CZ102: 0 | DC102: 0 | DD102: 0 | DE102: 0.00 | DF102: E | DG102: 0 | DJ102: 0 | DM102: 0 | DP102: 0 | DQ102: 0 | DT102: 0 | DW102: 0 | DX102: 0 | DY102: 0.00 | DZ102: E | EA102: 0 | EB102: 0 | EC102: 0 | ED102: 0 | EG102: 0 | EH102: 0.00 | EI102: E | EJ102: 0 | EK102: 0 | EL102: 0 | EM102: 0 | EP102: 0 | EQ102: 0.00 | ER102: E | ES102: 0 | ET102: 0 | EU102: 0 | EV102: 0 | EY102: 0 | EZ102: 0.00 | FA102: E | FB102: 0 | FF102: 0 | FG102: 0 | FO102: 0 | FP102: 0 | FQ102: 0 | FR102: 0 | FS102: 0 | FT102: 0 | FU102: 0 | FV102: 0 | FW102: 0 | FX102: 0 | FY102: 0 | GB102: 0 | GC102: / | GD102: 100 | GE102: 0/100 | GF102: 0 | GG102: / | GH102: 100 | GI102: 0/100 | GJ102: 0 | GK102: / | GL102: 100 | GM102: 0/100 | GO102: 0 | GP102: 0 | GQ102: 0 | GR102: 0 | GS102: 0 | GT102: 0 | GU102: 0 | GV102: 0 | GW102: 0 | GX102: 0
A103: 0 | B103: 95 | C103: 95 | D103: 0 | N103: 0 | Q103: 0 | T103: 0 | U103: 0 | X103: 0 | AA103: 0 | AB103: 0 | AC103: 0.00 | AE103: 0 | AH103: 0 | AK103: 0 | AN103: 0 | AO103: 0 | AR103: 0 | AU103: 0 | AV103: 0 | AW103: 0.00 | AX103: E | AY103: 0 | BB103: 0 | BE103: 0 | BH103: 0 | BI103: 0 | BL103: 0 | BO103: 0 | BP103: 0 | BQ103: 0.00 | BR103: E | BS103: 0 | BV103: 0 | BY103: 0 | CB103: 0 | CC103: 0 | CF103: 0 | CI103: 0 | CJ103: 0 | CK103: 0.00 | CL103: E | CM103: 0 | CP103: 0 | CS103: 0 | CV103: 0 | CW103: 0 | CZ103: 0 | DC103: 0 | DD103: 0 | DE103: 0.00 | DF103: E | DG103: 0 | DJ103: 0 | DM103: 0 | DP103: 0 | DQ103: 0 | DT103: 0 | DW103: 0 | DX103: 0 | DY103: 0.00 | DZ103: E | EA103: 0 | EB103: 0 | EC103: 0 | ED103: 0 | EG103: 0 | EH103: 0.00 | EI103: E | EJ103: 0 | EK103: 0 | EL103: 0 | EM103: 0 | EP103: 0 | EQ103: 0.00 | ER103: E | ES103: 0 | ET103: 0 | EU103: 0 | EV103: 0 | EY103: 0 | EZ103: 0.00 | FA103: E | FB103: 0 | FF103: 0 | FG103: 0 | FO103: 0 | FP103: 0 | FQ103: 0 | FR103: 0 | FS103: 0 | FT103: 0 | FU103: 0 | FV103: 0 | FW103: 0 | FX103: 0 | FY103: 0 | GB103: 0 | GC103: / | GD103: 100 | GE103: 0/100 | GF103: 0 | GG103: / | GH103: 100 | GI103: 0/100 | GJ103: 0 | GK103: / | GL103: 100 | GM103: 0/100 | GO103: 0 | GP103: 0 | GQ103: 0 | GR103: 0 | GS103: 0 | GT103: 0 | GU103: 0 | GV103: 0 | GW103: 0 | GX103: 0
A104: 0 | B104: 96 | C104: 96 | D104: 0 | N104: 0 | Q104: 0 | T104: 0 | U104: 0 | X104: 0 | AA104: 0 | AB104: 0 | AC104: 0.00 | AE104: 0 | AH104: 0 | AK104: 0 | AN104: 0 | AO104: 0 | AR104: 0 | AU104: 0 | AV104: 0 | AW104: 0.00 | AX104: E | AY104: 0 | BB104: 0 | BE104: 0 | BH104: 0 | BI104: 0 | BL104: 0 | BO104: 0 | BP104: 0 | BQ104: 0.00 | BR104: E | BS104: 0 | BV104: 0 | BY104: 0 | CB104: 0 | CC104: 0 | CF104: 0 | CI104: 0 | CJ104: 0 | CK104: 0.00 | CL104: E | CM104: 0 | CP104: 0 | CS104: 0 | CV104: 0 | CW104: 0 | CZ104: 0 | DC104: 0 | DD104: 0 | DE104: 0.00 | DF104: E | DG104: 0 | DJ104: 0 | DM104: 0 | DP104: 0 | DQ104: 0 | DT104: 0 | DW104: 0 | DX104: 0 | DY104: 0.00 | DZ104: E | EA104: 0 | EB104: 0 | EC104: 0 | ED104: 0 | EG104: 0 | EH104: 0.00 | EI104: E | EJ104: 0 | EK104: 0 | EL104: 0 | EM104: 0 | EP104: 0 | EQ104: 0.00 | ER104: E | ES104: 0 | ET104: 0 | EU104: 0 | EV104: 0 | EY104: 0 | EZ104: 0.00 | FA104: E | FB104: 0 | FF104: 0 | FG104: 0 | FO104: 0 | FP104: 0 | FQ104: 0 | FR104: 0 | FS104: 0 | FT104: 0 | FU104: 0 | FV104: 0 | FW104: 0 | FX104: 0 | FY104: 0 | GB104: 0 | GC104: / | GD104: 100 | GE104: 0/100 | GF104: 0 | GG104: / | GH104: 100 | GI104: 0/100 | GJ104: 0 | GK104: / | GL104: 100 | GM104: 0/100 | GO104: 0 | GP104: 0 | GQ104: 0 | GR104: 0 | GS104: 0 | GT104: 0 | GU104: 0 | GV104: 0 | GW104: 0 | GX104: 0
A105: 0 | B105: 97 | C105: 97 | D105: 0 | N105: 0 | Q105: 0 | T105: 0 | U105: 0 | X105: 0 | AA105: 0 | AB105: 0 | AC105: 0.00 | AE105: 0 | AH105: 0 | AK105: 0 | AN105: 0 | AO105: 0 | AR105: 0 | AU105: 0 | AV105: 0 | AW105: 0.00 | AX105: E | AY105: 0 | BB105: 0 | BE105: 0 | BH105: 0 | BI105: 0 | BL105: 0 | BO105: 0 | BP105: 0 | BQ105: 0.00 | BR105: E | BS105: 0 | BV105: 0 | BY105: 0 | CB105: 0 | CC105: 0 | CF105: 0 | CI105: 0 | CJ105: 0 | CK105: 0.00 | CL105: E | CM105: 0 | CP105: 0 | CS105: 0 | CV105: 0 | CW105: 0 | CZ105: 0 | DC105: 0 | DD105: 0 | DE105: 0.00 | DF105: E | DG105: 0 | DJ105: 0 | DM105: 0 | DP105: 0 | DQ105: 0 | DT105: 0 | DW105: 0 | DX105: 0 | DY105: 0.00 | DZ105: E | EA105: 0 | EB105: 0 | EC105: 0 | ED105: 0 | EG105: 0 | EH105: 0.00 | EI105: E | EJ105: 0 | EK105: 0 | EL105: 0 | EM105: 0 | EP105: 0 | EQ105: 0.00 | ER105: E | ES105: 0 | ET105: 0 | EU105: 0 | EV105: 0 | EY105: 0 | EZ105: 0.00 | FA105: E | FB105: 0 | FF105: 0 | FG105: 0 | FO105: 0 | FP105: 0 | FQ105: 0 | FR105: 0 | FS105: 0 | FT105: 0 | FU105: 0 | FV105: 0 | FW105: 0 | FX105: 0 | FY105: 0 | GB105: 0 | GC105: / | GD105: 100 | GE105: 0/100 | GF105: 0 | GG105: / | GH105: 100 | GI105: 0/100 | GJ105: 0 | GK105: / | GL105: 100 | GM105: 0/100 | GO105: 0 | GP105: 0 | GQ105: 0 | GR105: 0 | GS105: 0 | GT105: 0 | GU105: 0 | GV105: 0 | GW105: 0 | GX105: 0
A106: 0 | B106: 98 | C106: 98 | D106: 0 | N106: 0 | Q106: 0 | T106: 0 | U106: 0 | X106: 0 | AA106: 0 | AB106: 0 | AC106: 0.00 | AE106: 0 | AH106: 0 | AK106: 0 | AN106: 0 | AO106: 0 | AR106: 0 | AU106: 0 | AV106: 0 | AW106: 0.00 | AX106: E | AY106: 0 | BB106: 0 | BE106: 0 | BH106: 0 | BI106: 0 | BL106: 0 | BO106: 0 | BP106: 0 | BQ106: 0.00 | BR106: E | BS106: 0 | BV106: 0 | BY106: 0 | CB106: 0 | CC106: 0 | CF106: 0 | CI106: 0 | CJ106: 0 | CK106: 0.00 | CL106: E | CM106: 0 | CP106: 0 | CS106: 0 | CV106: 0 | CW106: 0 | CZ106: 0 | DC106: 0 | DD106: 0 | DE106: 0.00 | DF106: E | DG106: 0 | DJ106: 0 | DM106: 0 | DP106: 0 | DQ106: 0 | DT106: 0 | DW106: 0 | DX106: 0 | DY106: 0.00 | DZ106: E | EA106: 0 | EB106: 0 | EC106: 0 | ED106: 0 | EG106: 0 | EH106: 0.00 | EI106: E | EJ106: 0 | EK106: 0 | EL106: 0 | EM106: 0 | EP106: 0 | EQ106: 0.00 | ER106: E | ES106: 0 | ET106: 0 | EU106: 0 | EV106: 0 | EY106: 0 | EZ106: 0.00 | FA106: E | FB106: 0 | FF106: 0 | FG106: 0 | FO106: 0 | FP106: 0 | FQ106: 0 | FR106: 0 | FS106: 0 | FT106: 0 | FU106: 0 | FV106: 0 | FW106: 0 | FX106: 0 | FY106: 0 | GB106: 0 | GC106: / | GD106: 100 | GE106: 0/100 | GF106: 0 | GG106: / | GH106: 100 | GI106: 0/100 | GJ106: 0 | GK106: / | GL106: 100 | GM106: 0/100 | GO106: 0 | GP106: 0 | GQ106: 0 | GR106: 0 | GS106: 0 | GT106: 0 | GU106: 0 | GV106: 0 | GW106: 0 | GX106: 0
A107: 0 | B107: 99 | C107: 99 | D107: 0 | N107: 0 | Q107: 0 | T107: 0 | U107: 0 | X107: 0 | AA107: 0 | AB107: 0 | AC107: 0.00 | AE107: 0 | AH107: 0 | AK107: 0 | AN107: 0 | AO107: 0 | AR107: 0 | AU107: 0 | AV107: 0 | AW107: 0.00 | AX107: E | AY107: 0 | BB107: 0 | BE107: 0 | BH107: 0 | BI107: 0 | BL107: 0 | BO107: 0 | BP107: 0 | BQ107: 0.00 | BR107: E | BS107: 0 | BV107: 0 | BY107: 0 | CB107: 0 | CC107: 0 | CF107: 0 | CI107: 0 | CJ107: 0 | CK107: 0.00 | CL107: E | CM107: 0 | CP107: 0 | CS107: 0 | CV107: 0 | CW107: 0 | CZ107: 0 | DC107: 0 | DD107: 0 | DE107: 0.00 | DF107: E | DG107: 0 | DJ107: 0 | DM107: 0 | DP107: 0 | DQ107: 0 | DT107: 0 | DW107: 0 | DX107: 0 | DY107: 0.00 | DZ107: E | EA107: 0 | EB107: 0 | EC107: 0 | ED107: 0 | EG107: 0 | EH107: 0.00 | EI107: E | EJ107: 0 | EK107: 0 | EL107: 0 | EM107: 0 | EP107: 0 | EQ107: 0.00 | ER107: E | ES107: 0 | ET107: 0 | EU107: 0 | EV107: 0 | EY107: 0 | EZ107: 0.00 | FA107: E | FB107: 0 | FF107: 0 | FG107: 0 | FO107: 0 | FP107: 0 | FQ107: 0 | FR107: 0 | FS107: 0 | FT107: 0 | FU107: 0 | FV107: 0 | FW107: 0 | FX107: 0 | FY107: 0 | GB107: 0 | GC107: / | GD107: 100 | GE107: 0/100 | GF107: 0 | GG107: / | GH107: 100 | GI107: 0/100 | GJ107: 0 | GK107: / | GL107: 100 | GM107: 0/100 | GO107: 0 | GP107: 0 | GQ107: 0 | GR107: 0 | GS107: 0 | GT107: 0 | GU107: 0 | GV107: 0 | GW107: 0 | GX107: 0
A108: 0 | B108: 100 | C108: 100 | D108: 0 | N108: 0 | Q108: 0 | T108: 0 | U108: 0 | X108: 0 | AA108: 0 | AB108: 0 | AC108: 0.00 | AE108: 0 | AH108: 0 | AK108: 0 | AN108: 0 | AO108: 0 | AR108: 0 | AU108: 0 | AV108: 0 | AW108: 0.00 | AX108: E | AY108: 0 | BB108: 0 | BE108: 0 | BH108: 0 | BI108: 0 | BL108: 0 | BO108: 0 | BP108: 0 | BQ108: 0.00 | BR108: E | BS108: 0 | BV108: 0 | BY108: 0 | CB108: 0 | CC108: 0 | CF108: 0 | CI108: 0 | CJ108: 0 | CK108: 0.00 | CL108: E | CM108: 0 | CP108: 0 | CS108: 0 | CV108: 0 | CW108: 0 | CZ108: 0 | DC108: 0 | DD108: 0 | DE108: 0.00 | DF108: E | DG108: 0 | DJ108: 0 | DM108: 0 | DP108: 0 | DQ108: 0 | DT108: 0 | DW108: 0 | DX108: 0 | DY108: 0.00 | DZ108: E | EA108: 0 | EB108: 0 | EC108: 0 | ED108: 0 | EG108: 0 | EH108: 0.00 | EI108: E | EJ108: 0 | EK108: 0 | EL108: 0 | EM108: 0 | EP108: 0 | EQ108: 0.00 | ER108: E | ES108: 0 | ET108: 0 | EU108: 0 | EV108: 0 | EY108: 0 | EZ108: 0.00 | FA108: E | FB108: 0 | FF108: 0 | FG108: 0 | FO108: 0 | FP108: 0 | FQ108: 0 | FR108: 0 | FS108: 0 | FT108: 0 | FU108: 0 | FV108: 0 | FW108: 0 | FX108: 0 | FY108: 0 | GB108: 0 | GC108: / | GD108: 100 | GE108: 0/100 | GF108: 0 | GG108: / | GH108: 100 | GI108: 0/100 | GJ108: 0 | GK108: / | GL108: 100 | GM108: 0/100 | GO108: 0 | GP108: 0 | GQ108: 0 | GR108: 0 | GS108: 0 | GT108: 0 | GU108: 0 | GV108: 0 | GW108: 0 | GX108: 0
B109: 1 | C109: 2 | D109: 3 | E109: 4 | F109: 5 | G109: 6 | H109: 7 | I109: 8 | J109: 9 | K109: 10 | L109: 11 | M109: 12 | N109: 13 | O109: 14 | P109: 15 | Q109: 16 | R109: 17 | S109: 18 | T109: 19 | U109: 20 | V109: 21 | W109: 22 | X109: 23 | Y109: 24 | Z109: 25 | AA109: 26 | AB109: 27 | AC109: 28 | AD109: 29 | AE109: 30 | AF109: 31 | AG109: 32 | AH109: 33 | AI109: 34 | AJ109: 35 | AK109: 36 | AL109: 37 | AM109: 38 | AN109: 39 | AO109: 40 | AP109: 41 | AQ109: 42 | AR109: 43 | AS109: 44 | AT109: 45 | AU109: 46 | AV109: 47 | AW109: 48 | AX109: 49 | AY109: 50 | AZ109: 51 | BA109: 52 | BB109: 53 | BC109: 54 | BD109: 55 | BE109: 56 | BF109: 57 | BG109: 58 | BH109: 59 | BI109: 60 | BJ109: 61 | BK109: 62 | BL109: 63 | BM109: 64 | BN109: 65 | BO109: 66 | BP109: 67 | BQ109: 68 | BR109: 69 | BS109: 70 | BT109: 71 | BU109: 72 | BV109: 73 | BW109: 74 | BX109: 75 | BY109: 76 | BZ109: 77 | CA109: 78 | CB109: 79 | CC109: 80 | CD109: 81 | CE109: 82 | CF109: 83 | CG109: 84 | CH109: 85 | CI109: 86 | CJ109: 87 | CK109: 88 | CL109: 89 | CM109: 90 | CN109: 91 | CO109: 92 | CP109: 93 | CQ109: 94 | CR109: 95 | CS109: 96 | CT109: 97 | CU109: 98 | CV109: 99 | CW109: 100 | CX109: 101 | CY109: 102 | CZ109: 103 | DA109: 104 | DB109: 105 | DC109: 106 | DD109: 107 | DE109: 108 | DF109: 109 | DG109: 110 | DH109: 111 | DI109: 112 | DJ109: 113 | DK109: 114 | DL109: 115 | DM109: 116 | DN109: 117 | DO109: 118 | DP109: 119 | DQ109: 120 | DR109: 121 | DS109: 122 | DT109: 123 | DU109: 124 | DV109: 125 | DW109: 126 | DX109: 127 | DY109: 128 | DZ109: 129 | EA109: 130 | EB109: 131 | EC109: 132 | ED109: 133 | EE109: 134 | EF109: 135 | EG109: 136 | EH109: 137 | EI109: 138 | EJ109: 139 | EK109: 140 | EL109: 141 | EM109: 142 | EN109: 143 | EO109: 144 | EP109: 145 | EQ109: 146 | ER109: 147 | ES109: 148 | ET109: 149 | EU109: 150 | EV109: 151 | EW109: 152 | EX109: 153 | EY109: 154 | EZ109: 155 | FA109: 156 | FB109: 157 | FC109: 158 | FD109: 159 | FE109: 160 | FF109: 161 | FG109: 162 | FH109: 163 | FI109: 164 | FJ109: 165 | FK109: 166 | FL109: 167 | FM109: 168 | FN109: 169 | FO109: 170 | FP109: 171 | FQ109: 172 | FR109: 173 | FS109: 174 | FT109: 175 | FU109: 176 | FV109: 177 | FW109: 178 | FX109: 179 | FY109: 180 | FZ109: 181 | GA109: 182 | GB109: 183 | GC109: 184 | GD109: 185 | GE109: 186 | GF109: 187 | GG109: 188 | GH109: 189 | GI109: 190 | GJ109: 191 | GK109: 192 | GL109: 193 | GM109: 194 | GN109: 195 | GO109: 196 | GP109: 197 | GQ109: 198 | GR109: 199 | GS109: 200 | GT109: 201 | GU109: 202 | GV109: 203 | GW109: 204 | GX109: 205 | GY109: 206 | GZ109: 207
I110: =Master!L7 -> HINDI | J110: =Master!N7 -> A
I111: =Master!L8 -> ENGLISH | J111: =Master!N8 -> B
I112: =Master!L9 -> SANSKRIT | J112: =Master!N9 -> C
I113: =Master!L10 -> SCIENCE | J113: =Master!N10 -> D
I114: =Master!L11 -> MATHEMATICS | J114: =Master!N11 -> E
I115: =Master!L12 -> SOCIAL SCIENCE | J115: =Master!N12 -> F
I116: =Master!L13 -> Work Exp. | J116: =Master!N13 -> G
I117: =Master!L14 -> Art Edu. | J117: =Master!N14 -> 0
I118: =Master!L15 -> H&P Edu. | J118: =Master!N15 -> 0
I119: =Master!L16 -> 0 | J119: =Master!N16 -> 0
I120: =Master!L17 -> 0 | J120: =Master!N19 -> 0
I121: =Master!L18 -> 0 | J121: =Master!N20 -> 0
I122: =Master!L19 -> 0 | J122: =Master!P7 -> 0
I123: =Master!L20 -> 0 | J123: =Master!P8 -> 0
J124: =Master!P9 -> 0
J125: =Master!P10 -> 0
J126: =Master!P11 -> 0
J127: =Master!P12 -> 0
J128: =Master!P13 -> 0
J129: =Master!P14 -> 0
J130: =Master!P15 -> 0
J131: =Master!P16 -> 0
J132: =Master!P19 -> 0
J133: =Master!P20 -> 0

Sheet Result Sheet
B2: Result Sheet | K2: ='Marks Entry'!L3 -> HINDI | AE2: ='Marks Entry'!AF3 -> ENGLISH | AY2: ='Marks Entry'!AZ3 -> SANSKRIT | BS2: ='Marks Entry'!BT3 -> SCIENCE | CM2: ='Marks Entry'!CN3 -> MATHEMATICS | DG2: ='Marks Entry'!DH3 -> SOCIAL SCIENCE | EA2: ='Marks Entry'!EB3 -> Work Exp. | EH2: ='Marks Entry'!EK3 -> Art Edu. | EO2: ='Marks Entry'!ET3 -> HEALTH & PHY. EDU. | EV2: Attendance | EY2: Statics | FG2: Remark
B3: School' Name:- | F3: =CONCATENATE(Master!E8,Master!E11) -> Govt. Sr. Secondary School P.S.-Bapini (Jodhpur) | K3: ='Marks Entry'!L4 -> 0 | AE3: ='Marks Entry'!AF4 -> 0 | AY3: ='Marks Entry'!AZ4 -> 0 | BS3: ='Marks Entry'!BT4 -> 0 | CM3: ='Marks Entry'!CN4 -> 0 | DG3: ='Marks Entry'!DH4 -> 0 | EA3: ='Marks Entry'!EB4 -> 0 | EH3: ='Marks Entry'!EK4 -> 0 | EO3: ='Marks Entry'!ET4 -> 0 | EV3: Total Attendance | EW3: Student's Attendance | EX3: Attandance % | EY3: Total Maximum Marks | EZ3: Obtained Marks | FA3: Percentage | FB3: Overall Div. | FC3: Overall Grade | FD3: Result | FF3: Position in Class
B4: Class:- | E4: =A7 -> 0 | F4: =CONCATENATE('Marks Entry'!G4,'Marks Entry'!J4) -> 6(A) | G4: Session:- | H4: =Master!E6 -> 2024-25 | K4: ='Marks Entry'!L5 -> First Test | N4: ='Marks Entry'!O5 -> Second Test | Q4: ='Marks Entry'!R5 -> No Bag Day Activity | T4: ='Marks Entry'!U5 -> Total Tests | U4: ='Marks Entry'!V5 -> Half Yearly | X4: ='Marks Entry'!Y5 -> Yearly Exam | AA4: ='Marks Entry'!AB5 -> Total Marks | AB4: ='Marks Entry'!AC5:AC7 ->  | AC4: ='Marks Entry'!AD5 -> 0 | AD4: ='Marks Entry'!AE5 -> Grd | AE4: ='Marks Entry'!AF5 -> First Test | AH4: ='Marks Entry'!AI5 -> Second Test | AK4: ='Marks Entry'!AL5 -> No Bag Day Activity | AN4: ='Marks Entry'!AO5 -> Total Tests | AO4: ='Marks Entry'!AP5 -> Half Yearly | AR4: ='Marks Entry'!AS5 -> Yearly Exam | AU4: ='Marks Entry'!AV5 -> Total Marks | AV4: ='Marks Entry'!AW5:AW7 ->  | AW4: ='Marks Entry'!AX5 -> 0 | AX4: ='Marks Entry'!AY5 -> Grd | AY4: ='Marks Entry'!AZ5 -> First Test | BB4: ='Marks Entry'!BC5 -> Second Test | BE4: ='Marks Entry'!BF5 -> No Bag Day Activity | BH4: ='Marks Entry'!BI5 -> Total Tests | BI4: ='Marks Entry'!BJ5 -> Half Yearly | BL4: ='Marks Entry'!BM5 -> Yearly Exam | BO4: ='Marks Entry'!BP5 -> Total Marks | BP4: ='Marks Entry'!BQ5:BQ7 ->  | BQ4: ='Marks Entry'!BR5 -> 0 | BR4: ='Marks Entry'!BS5 -> Grd | BS4: ='Marks Entry'!BT5 -> First Test | BV4: ='Marks Entry'!BW5 -> Second Test | BY4: ='Marks Entry'!BZ5 -> No Bag Day Activity | CB4: ='Marks Entry'!CC5 -> Total Tests | CC4: ='Marks Entry'!CD5 -> Half Yearly | CF4: ='Marks Entry'!CG5 -> Yearly Exam | CI4: ='Marks Entry'!CJ5 -> Total Marks | CJ4: ='Marks Entry'!CK5:CK7 ->  | CK4: ='Marks Entry'!CL5 -> 0 | CL4: ='Marks Entry'!CM5 -> Grd | CM4: ='Marks Entry'!CN5 -> First Test | CP4: ='Marks Entry'!CQ5 -> Second Test | CS4: ='Marks Entry'!CT5 -> No Bag Day Activity | CV4: ='Marks Entry'!CW5 -> Total Tests | CW4: ='Marks Entry'!CX5 -> Half Yearly | CZ4: ='Marks Entry'!DA5 -> Yearly Exam | DC4: ='Marks Entry'!DD5 -> Total Marks | DD4: ='Marks Entry'!DE5:DE7 ->  | DE4: ='Marks Entry'!DF5 -> 0 | DF4: ='Marks Entry'!DG5 -> Grd | DG4: ='Marks Entry'!DH5 -> First Test | DJ4: ='Marks Entry'!DK5 -> Second Test | DM4: ='Marks Entry'!DN5 -> No Bag Day Activity | DP4: ='Marks Entry'!DQ5 -> Total Tests | DQ4: ='Marks Entry'!DR5 -> Half Yearly | DT4: ='Marks Entry'!DU5 -> Yearly Exam | DW4: ='Marks Entry'!DX5 -> Total Marks | DX4: ='Marks Entry'!DY5:DY7 ->  | DY4: ='Marks Entry'!DZ5 -> 0 | DZ4: ='Marks Entry'!EA5 -> Grd | EA4: ='Marks Entry'!EB5 -> FIRST EVO. | EB4: ='Marks Entry'!EC5 -> SECOND EVO. | EC4: ='Marks Entry'!ED5 -> THIRD EVO. | ED4: ='Marks Entry'!EE5 -> FOURTH EVO. | EE4: ='Marks Entry'!EF5 -> FIFTH EVO. | EF4: Total | EG4: Grd. | EH4: ='Marks Entry'!EK5 -> FIRST EVO. | EI4: ='Marks Entry'!EL5 -> SECOND EVO. | EJ4: ='Marks Entry'!EM5 -> THIRD EVO. | EK4: ='Marks Entry'!EN5 -> FOURTH EVO. | EL4: ='Marks Entry'!EO5 -> FIFTH EVO. | EM4: Total | EN4: Grd. | EO4: ='Marks Entry'!ET5 -> FIRST EVO. | EP4: ='Marks Entry'!EU5 -> SECOND EVO. | EQ4: ='Marks Entry'!EV5 -> THIRD EVO. | ER4: ='Marks Entry'!EW5 -> FOURTH EVO. | ES4: ='Marks Entry'!EX5 -> FIFTH EVO. | ET4: Total | EU4: Grd.
B5: Sr. No. | C5: Class | D5: Scholar Number | E5: School Adm. Date | F5: Roll Number | G5: Student's Name | H5: Father's Name | I5: Mother's Name | J5: Date Of Birth | K5: ='Marks Entry'!L6 -> Written | L5: ='Marks Entry'!M6 -> Act/Oral | M5: ='Marks Entry'!N6 -> Total | N5: ='Marks Entry'!O6 -> Written | O5: ='Marks Entry'!P6 -> Act/Oral | P5: ='Marks Entry'!Q6 -> Total | Q5: ='Marks Entry'!R6 -> Activity | R5: ='Marks Entry'!S6 -> 0 | S5: ='Marks Entry'!T6 -> Total | U5: ='Marks Entry'!V6 -> Written | V5: ='Marks Entry'!W6 -> Act/Oral | W5: ='Marks Entry'!X6 -> Total H.Y. | X5: ='Marks Entry'!Y6 -> Written | Y5: ='Marks Entry'!Z6 -> Act/Oral | Z5: ='Marks Entry'!AA6 -> Total Yearly | AD5: ='Marks Entry'!AE6 -> A+/A/B/C/D | AE5: ='Marks Entry'!AF6 -> Written | AF5: ='Marks Entry'!AG6 -> Act/Oral | AG5: ='Marks Entry'!AH6 -> Total | AH5: ='Marks Entry'!AI6 -> Written | AI5: ='Marks Entry'!AJ6 -> Act/Oral | AJ5: ='Marks Entry'!AK6 -> Total | AK5: ='Marks Entry'!AL6 -> Activity | AL5: ='Marks Entry'!AM6 -> 0 | AM5: ='Marks Entry'!AN6 -> Total | AO5: ='Marks Entry'!AP6 -> Written | AP5: ='Marks Entry'!AQ6 -> Act/Oral | AQ5: ='Marks Entry'!AR6 -> Total H.Y. | AR5: ='Marks Entry'!AS6 -> Written | AS5: ='Marks Entry'!AT6 -> Act/Oral | AT5: ='Marks Entry'!AU6 -> Total Yearly | AX5: ='Marks Entry'!AY6 -> A+/A/B/C/D | AY5: ='Marks Entry'!AZ6 -> Written | AZ5: ='Marks Entry'!BA6 -> Act/Oral | BA5: ='Marks Entry'!BB6 -> Total | BB5: ='Marks Entry'!BC6 -> Written | BC5: ='Marks Entry'!BD6 -> Act/Oral | BD5: ='Marks Entry'!BE6 -> Total | BE5: ='Marks Entry'!BF6 -> Activity | BF5: ='Marks Entry'!BG6 -> 0 | BG5: ='Marks Entry'!BH6 -> Total | BI5: ='Marks Entry'!BJ6 -> Written | BJ5: ='Marks Entry'!BK6 -> Act/Oral | BK5: ='Marks Entry'!BL6 -> Total H.Y. | BL5: ='Marks Entry'!BM6 -> Written | BM5: ='Marks Entry'!BN6 -> Act/Oral | BN5: ='Marks Entry'!BO6 -> Total Yearly | BR5: ='Marks Entry'!BS6 -> A+/A/B/C/D | BS5: ='Marks Entry'!BT6 -> Written | BT5: ='Marks Entry'!BU6 -> Act/Oral | BU5: ='Marks Entry'!BV6 -> Total | BV5: ='Marks Entry'!BW6 -> Written | BW5: ='Marks Entry'!BX6 -> Act/Oral | BX5: ='Marks Entry'!BY6 -> Total | BY5: ='Marks Entry'!BZ6 -> Activity | BZ5: ='Marks Entry'!CA6 -> 0 | CA5: ='Marks Entry'!CB6 -> Total | CC5: ='Marks Entry'!CD6 -> Written | CD5: ='Marks Entry'!CE6 -> Act/Oral | CE5: ='Marks Entry'!CF6 -> Total H.Y. | CF5: ='Marks Entry'!CG6 -> Written | CG5: ='Marks Entry'!CH6 -> Act/Oral | CH5: ='Marks Entry'!CI6 -> Total Yearly | CL5: ='Marks Entry'!CM6 -> A+/A/B/C/D | CM5: ='Marks Entry'!CN6 -> Written | CN5: ='Marks Entry'!CO6 -> Act/Oral | CO5: ='Marks Entry'!CP6 -> Total | CP5: ='Marks Entry'!CQ6 -> Written | CQ5: ='Marks Entry'!CR6 -> Act/Oral | CR5: ='Marks Entry'!CS6 -> Total | CS5: ='Marks Entry'!CT6 -> Activity | CT5: ='Marks Entry'!CU6 -> 0 | CU5: ='Marks Entry'!CV6 -> Total | CW5: ='Marks Entry'!CX6 -> Written | CX5: ='Marks Entry'!CY6 -> Act/Oral | CY5: ='Marks Entry'!CZ6 -> Total H.Y. | CZ5: ='Marks Entry'!DA6 -> Written | DA5: ='Marks Entry'!DB6 -> Act/Oral | DB5: ='Marks Entry'!DC6 -> Total Yearly | DF5: ='Marks Entry'!DG6 -> A+/A/B/C/D | DG5: ='Marks Entry'!DH6 -> Written | DH5: ='Marks Entry'!DI6 -> Act/Oral | DI5: ='Marks Entry'!DJ6 -> Total | DJ5: ='Marks Entry'!DK6 -> Written | DK5: ='Marks Entry'!DL6 -> Act/Oral | DL5: ='Marks Entry'!DM6 -> Total | DM5: ='Marks Entry'!DN6 -> Activity | DN5: ='Marks Entry'!DO6 -> 0 | DO5: ='Marks Entry'!DP6 -> Total | DQ5: ='Marks Entry'!DR6 -> Written | DR5: ='Marks Entry'!DS6 -> Act/Oral | DS5: ='Marks Entry'!DT6 -> Total H.Y. | DT5: ='Marks Entry'!DU6 -> Written | DU5: ='Marks Entry'!DV6 -> Act/Oral | DV5: ='Marks Entry'!DW6 -> Total Yearly | DZ5: ='Marks Entry'!EA6 -> A+/A/B/C/D | EG5: ='Marks Entry'!EJ6 -> A/B/C/D/E | EN5: ='Marks Entry'!EJ6 -> A/B/C/D/E | EU5: ='Marks Entry'!EJ6 -> A/B/C/D/E
K6: ='Marks Entry'!L7 -> 5 | L6: ='Marks Entry'!M7 -> 5 | M6: ='Marks Entry'!N7 -> 10 | N6: ='Marks Entry'!O7 -> 5 | O6: ='Marks Entry'!P7 -> 5 | P6: ='Marks Entry'!Q7 -> 10 | Q6: ='Marks Entry'!R7 -> 10 | R6: ='Marks Entry'!S7 -> 0 | S6: ='Marks Entry'!T7 -> 10 | T6: ='Marks Entry'!U7 -> 30 | U6: ='Marks Entry'!V7 -> 50 | V6: ='Marks Entry'!W7 -> 20 | W6: ='Marks Entry'!X7 -> 70 | X6: ='Marks Entry'!Y7 -> 70 | Y6: ='Marks Entry'!Z7 -> 30 | Z6: ='Marks Entry'!AA7 -> 100 | AA6: ='Marks Entry'!AB7 -> 200 | AE6: ='Marks Entry'!AF7 -> 5 | AF6: ='Marks Entry'!AG7 -> 5 | AG6: ='Marks Entry'!AH7 -> 10 | AH6: ='Marks Entry'!AI7 -> 5 | AI6: ='Marks Entry'!AJ7 -> 5 | AJ6: ='Marks Entry'!AK7 -> 10 | AK6: ='Marks Entry'!AL7 -> 10 | AL6: ='Marks Entry'!AM7 -> 0 | AM6: ='Marks Entry'!AN7 -> 10 | AN6: ='Marks Entry'!AO7 -> 30 | AO6: ='Marks Entry'!AP7 -> 50 | AP6: ='Marks Entry'!AQ7 -> 20 | AQ6: ='Marks Entry'!AR7 -> 70 | AR6: ='Marks Entry'!AS7 -> 70 | AS6: ='Marks Entry'!AT7 -> 30 | AT6: ='Marks Entry'!AU7 -> 100 | AU6: ='Marks Entry'!AV7 -> 200 | AY6: ='Marks Entry'!AZ7 -> 5 | AZ6: ='Marks Entry'!BA7 -> 5 | BA6: ='Marks Entry'!BB7 -> 10 | BB6: ='Marks Entry'!BC7 -> 5 | BC6: ='Marks Entry'!BD7 -> 5 | BD6: ='Marks Entry'!BE7 -> 10 | BE6: ='Marks Entry'!BF7 -> 10 | BF6: ='Marks Entry'!BG7 -> 0 | BG6: ='Marks Entry'!BH7 -> 10 | BH6: ='Marks Entry'!BI7 -> 30 | BI6: ='Marks Entry'!BJ7 -> 50 | BJ6: ='Marks Entry'!BK7 -> 20 | BK6: ='Marks Entry'!BL7 -> 70 | BL6: ='Marks Entry'!BM7 -> 70 | BM6: ='Marks Entry'!BN7 -> 30 | BN6: ='Marks Entry'!BO7 -> 100 | BO6: ='Marks Entry'!BP7 -> 200 | BS6: ='Marks Entry'!BT7 -> 5 | BT6: ='Marks Entry'!BU7 -> 5 | BU6: ='Marks Entry'!BV7 -> 10 | BV6: ='Marks Entry'!BW7 -> 5 | BW6: ='Marks Entry'!BX7 -> 5 | BX6: ='Marks Entry'!BY7 -> 10 | BY6: ='Marks Entry'!BZ7 -> 10 | BZ6: ='Marks Entry'!CA7 -> 0 | CA6: ='Marks Entry'!CB7 -> 10 | CB6: ='Marks Entry'!CC7 -> 30 | CC6: ='Marks Entry'!CD7 -> 50 | CD6: ='Marks Entry'!CE7 -> 20 | CE6: ='Marks Entry'!CF7 -> 70 | CF6: ='Marks Entry'!CG7 -> 70 | CG6: ='Marks Entry'!CH7 -> 30 | CH6: ='Marks Entry'!CI7 -> 100 | CI6: ='Marks Entry'!CJ7 -> 200 | CM6: ='Marks Entry'!CN7 -> 5 | CN6: ='Marks Entry'!CO7 -> 5 | CO6: ='Marks Entry'!CP7 -> 10 | CP6: ='Marks Entry'!CQ7 -> 5 | CQ6: ='Marks Entry'!CR7 -> 5 | CR6: ='Marks Entry'!CS7 -> 10 | CS6: ='Marks Entry'!CT7 -> 10 | CT6: ='Marks Entry'!CU7 -> 0 | CU6: ='Marks Entry'!CV7 -> 10 | CV6: ='Marks Entry'!CW7 -> 30 | CW6: ='Marks Entry'!CX7 -> 50 | CX6: ='Marks Entry'!CY7 -> 20 | CY6: ='Marks Entry'!CZ7 -> 70 | CZ6: ='Marks Entry'!DA7 -> 70 | DA6: ='Marks Entry'!DB7 -> 30 | DB6: ='Marks Entry'!DC7 -> 100 | DC6: ='Marks Entry'!DD7 -> 200 | DG6: ='Marks Entry'!DH7 -> 5 | DH6: ='Marks Entry'!DI7 -> 5 | DI6: ='Marks Entry'!DJ7 -> 10 | DJ6: ='Marks Entry'!DK7 -> 5 | DK6: ='Marks Entry'!DL7 -> 5 | DL6: ='Marks Entry'!DM7 -> 10 | DM6: ='Marks Entry'!DN7 -> 10 | DN6: ='Marks Entry'!DO7 -> 0 | DO6: ='Marks Entry'!DP7 -> 10 | DP6: ='Marks Entry'!DQ7 -> 30 | DQ6: ='Marks Entry'!DR7 -> 50 | DR6: ='Marks Entry'!DS7 -> 20 | DS6: ='Marks Entry'!DT7 -> 70 | DT6: ='Marks Entry'!DU7 -> 70 | DU6: ='Marks Entry'!DV7 -> 30 | DV6: ='Marks Entry'!DW7 -> 100 | DW6: ='Marks Entry'!DX7 -> 200 | EA6: ='Marks Entry'!EB7 -> 20 | EB6: ='Marks Entry'!EC7 -> 20 | EC6: ='Marks Entry'!ED7 -> 20 | ED6: ='Marks Entry'!EE7 -> 20 | EE6: ='Marks Entry'!EF7 -> 20 | EF6: ='Marks Entry'!EG7 -> 100 | EH6: ='Marks Entry'!EJ7 -> 0 | EI6: ='Marks Entry'!EK7 -> 20 | EJ6: ='Marks Entry'!EL7 -> 20 | EK6: ='Marks Entry'!EM7 -> 20 | EL6: ='Marks Entry'!EN7 -> 20 | EM6: ='Marks Entry'!EP7 -> 100 | EO6: ='Marks Entry'!ET7 -> 20 | EP6: ='Marks Entry'!EU7 -> 20 | EQ6: ='Marks Entry'!EV7 -> 20 | ER6: ='Marks Entry'!EW7 -> 20 | ES6: ='Marks Entry'!EX7 -> 20 | ET6: ='Marks Entry'!EY7 -> 100
B7: =IF(F7>0,1,0) -> 1 | C7: ='Marks Entry'!D9 -> 6 | D7: ='Marks Entry'!E9 -> 793 | E7: ='Marks Entry'!F9 -> 0 | F7: ='Marks Entry'!G9 -> 901 | G7: ='Marks Entry'!H9 -> ABHISHEK | H7: ='Marks Entry'!I9 -> RAMU KHAN | I7: ='Marks Entry'!J9 -> SEEPA DEVI | J7: ='Marks Entry'!K9 -> 2005-07-22 | K7: ='Marks Entry'!L9 -> ml | L7: ='Marks Entry'!M9 -> 1 | M7: ='Marks Entry'!N9 -> ML | N7: ='Marks Entry'!O9 -> 5 | O7: ='Marks Entry'!P9 -> 2 | P7: ='Marks Entry'!Q9 -> 7 | Q7: ='Marks Entry'!R9 -> 2 | R7: ='Marks Entry'!S9 -> 0 | S7: ='Marks Entry'!T9 -> 2 | T7: ='Marks Entry'!U9 -> 9 | U7: ='Marks Entry'!V9 -> 30 | V7: ='Marks Entry'!W9 -> 5 | W7: ='Marks Entry'!X9 -> 35 | X7: ='Marks Entry'!Y9 -> 40 | Y7: ='Marks Entry'!Z9 -> 15 | Z7: ='Marks Entry'!AA9 -> 55 | AA7: ='Marks Entry'!AB9 -> 99 | AB7: ='Marks Entry'!AC9 -> 49.50 | AC7: ='Marks Entry'!AD9 -> D | AD7: ='Marks Entry'!AE9 -> D | AE7: ='Marks Entry'!AF9 -> 2 | AF7: ='Marks Entry'!AG9 -> 2 | AG7: ='Marks Entry'!AH9 -> 4 | AH7: ='Marks Entry'!AI9 -> 2 | AI7: ='Marks Entry'!AJ9 -> 2 | AJ7: ='Marks Entry'!AK9 -> 4 | AK7: ='Marks Entry'!AL9 -> 2 | AL7: ='Marks Entry'!AM9 -> 0 | AM7: ='Marks Entry'!AN9 -> 2 | AN7: ='Marks Entry'!AO9 -> 10 | AO7: ='Marks Entry'!AP9 -> 30 | AP7: ='Marks Entry'!AQ9 -> 5 | AQ7: ='Marks Entry'!AR9 -> 35 | AR7: ='Marks Entry'!AS9 -> 38 | AS7: ='Marks Entry'!AT9 -> 15 | AT7: ='Marks Entry'!AU9 -> 53 | AU7: ='Marks Entry'!AV9 -> 98 | AV7: ='Marks Entry'!AW9 -> 49.00 | AW7: ='Marks Entry'!AX9 -> D | AX7: ='Marks Entry'!AY9 -> D | AY7: ='Marks Entry'!AZ9 -> 2 | AZ7: ='Marks Entry'!BA9 -> 2 | BA7: ='Marks Entry'!BB9 -> 4 | BB7: ='Marks Entry'!BC9 -> 2 | BC7: ='Marks Entry'!BD9 -> 2 | BD7: ='Marks Entry'!BE9 -> 4 | BE7: ='Marks Entry'!BF9 -> 2 | BF7: ='Marks Entry'!BG9 -> 0 | BG7: ='Marks Entry'!BH9 -> 2 | BH7: ='Marks Entry'!BI9 -> 10 | BI7: ='Marks Entry'!BJ9 -> 30 | BJ7: ='Marks Entry'!BK9 -> 5 | BK7: ='Marks Entry'!BL9 -> 35 | BL7: ='Marks Entry'!BM9 -> 38 | BM7: ='Marks Entry'!BN9 -> 15 | BN7: ='Marks Entry'!BO9 -> 53 | BO7: ='Marks Entry'!BP9 -> 98 | BP7: ='Marks Entry'!BQ9 -> 49.00 | BQ7: ='Marks Entry'!BR9 -> D | BR7: ='Marks Entry'!BS9 -> D | BS7: ='Marks Entry'!BT9 -> 2 | BT7: ='Marks Entry'!BU9 -> 5 | BU7: ='Marks Entry'!BV9 -> 7 | BV7: ='Marks Entry'!BW9 -> 2 | BW7: ='Marks Entry'!BX9 -> 2 | BX7: ='Marks Entry'!BY9 -> 4 | BY7: ='Marks Entry'!BZ9 -> 2 | BZ7: ='Marks Entry'!CA9 -> 0 | CA7: ='Marks Entry'!CB9 -> 2 | CB7: ='Marks Entry'!CC9 -> 13 | CC7: ='Marks Entry'!CD9 -> 30 | CD7: ='Marks Entry'!CE9 -> 5 | CE7: ='Marks Entry'!CF9 -> 35 | CF7: ='Marks Entry'!CG9 -> 38 | CG7: ='Marks Entry'!CH9 -> 15 | CH7: ='Marks Entry'!CI9 -> 53 | CI7: ='Marks Entry'!CJ9 -> 101 | CJ7: ='Marks Entry'!CK9 -> 50.50 | CK7: ='Marks Entry'!CL9 -> D | CL7: ='Marks Entry'!CM9 -> D | CM7: ='Marks Entry'!CN9 -> 2 | CN7: ='Marks Entry'!CO9 -> 3 | CO7: ='Marks Entry'!CP9 -> 5 | CP7: ='Marks Entry'!CQ9 -> 2 | CQ7: ='Marks Entry'!CR9 -> 2 | CR7: ='Marks Entry'!CS9 -> 4 | CS7: ='Marks Entry'!CT9 -> 2 | CT7: ='Marks Entry'!CU9 -> 0 | CU7: ='Marks Entry'!CV9 -> 2 | CV7: ='Marks Entry'!CW9 -> 11 | CW7: ='Marks Entry'!CX9 -> 30 | CX7: ='Marks Entry'!CY9 -> 5 | CY7: ='Marks Entry'!CZ9 -> 35 | CZ7: ='Marks Entry'!DA9 -> 38 | DA7: ='Marks Entry'!DB9 -> 15 | DB7: ='Marks Entry'!DC9 -> 53 | DC7: ='Marks Entry'!DD9 -> 99 | DD7: ='Marks Entry'!DE9 -> 49.50 | DE7: ='Marks Entry'!DF9 -> D | DF7: ='Marks Entry'!DG9 -> D | DG7: ='Marks Entry'!DH9 -> 2 | DH7: ='Marks Entry'!DI9 -> 2 | DI7: ='Marks Entry'!DJ9 -> 4 | DJ7: ='Marks Entry'!DK9 -> 2 | DK7: ='Marks Entry'!DL9 -> 2 | DL7: ='Marks Entry'!DM9 -> 4 | DM7: ='Marks Entry'!DN9 -> 2 | DN7: ='Marks Entry'!DO9 -> 0 | DO7: ='Marks Entry'!DP9 -> 2 | DP7: ='Marks Entry'!DQ9 -> 10 | DQ7: ='Marks Entry'!DR9 -> 25 | DR7: ='Marks Entry'!DS9 -> 0 | DS7: ='Marks Entry'!DT9 -> 25 | DT7: ='Marks Entry'!DU9 -> 38 | DU7: ='Marks Entry'!DV9 -> 15 | DV7: ='Marks Entry'!DW9 -> 53 | DW7: ='Marks Entry'!DX9 -> 88 | DX7: ='Marks Entry'!DY9 -> 44.00 | DY7: ='Marks Entry'!DZ9 -> D | DZ7: ='Marks Entry'!EA9 -> D | EA7: ='Marks Entry'!EB9 -> 15 | EB7: ='Marks Entry'!EC9 -> 15 | EC7: ='Marks Entry'!ED9 -> 11 | ED7: ='Marks Entry'!EE9 -> 20 | EE7: ='Marks Entry'!EF9 -> 10 | EF7: ='Marks Entry'!EG9 -> 71 | EG7: ='Marks Entry'!EJ9 -> B | EH7: ='Marks Entry'!EK9 -> 15 | EI7: ='Marks Entry'!EL9 -> 15 | EJ7: ='Marks Entry'!EM9 -> 11 | EK7: ='Marks Entry'!EN9 -> 10 | EL7: ='Marks Entry'!EO9 -> 10 | EM7: ='Marks Entry'!EP9 -> 61 | EN7: ='Marks Entry'!ES9 -> C | EO7: ='Marks Entry'!ET9 -> 15 | EP7: ='Marks Entry'!EU9 -> 15 | EQ7: ='Marks Entry'!EV9 -> 11 | ER7: ='Marks Entry'!EW9 -> 10 | ES7: ='Marks Entry'!EX9 -> 10 | ET7: ='Marks Entry'!EY9 -> 61 | EU7: ='Marks Entry'!FB9 -> C | EV7: ='Marks Entry'!FC9 -> 362 | EW7: ='Marks Entry'!FD9 -> 274 | EX7: ='Marks Entry'!FE9 -> 75.69 | EY7: ='Marks Entry'!FF9 -> 1200 | EZ7: ='Marks Entry'!FG9 -> 583 | FA7: ='Marks Entry'!FH9 -> 48.58 | FB7: =IF(OR('Marks Entry'!FI9="First",'Marks Entry'!FI9="Second",'Marks Entry'!FI9="Third"),'Marks Entry'!FI9,"") -> Second | FC7: ='Marks Entry'!FJ9 -> D | FD7: ='Marks Entry'!FK9 -> PASSED | FE7: ='Marks Entry'!FL9 -> 48.58333333 | FF7: ='Marks Entry'!FM9 -> 3 | FG7: ='Marks Entry'!FO9 -> D
B8: =IF(F8>0,B7+1,0) -> 2 | C8: ='Marks Entry'!D10 -> 6 | D8: ='Marks Entry'!E10 -> 1490 | E8: ='Marks Entry'!F10 -> 0 | F8: ='Marks Entry'!G10 -> 902 | G8: ='Marks Entry'!H10 -> ACHALA RAM | H8: ='Marks Entry'!I10 -> HEMA RAM | I8: ='Marks Entry'!J10 -> TULACHHI DEVI | J8: ='Marks Entry'!K10 -> 2005-07-02 | K8: ='Marks Entry'!L10 -> 2 | L8: ='Marks Entry'!M10 -> 2 | M8: ='Marks Entry'!N10 -> 4 | N8: ='Marks Entry'!O10 -> 3 | O8: ='Marks Entry'!P10 -> 4 | P8: ='Marks Entry'!Q10 -> 7 | Q8: ='Marks Entry'!R10 -> 5 | R8: ='Marks Entry'!S10 -> 0 | S8: ='Marks Entry'!T10 -> 5 | T8: ='Marks Entry'!U10 -> 16 | U8: ='Marks Entry'!V10 -> 20 | V8: ='Marks Entry'!W10 -> 15 | W8: ='Marks Entry'!X10 -> 35 | X8: ='Marks Entry'!Y10 -> 40 | Y8: ='Marks Entry'!Z10 -> 25 | Z8: ='Marks Entry'!AA10 -> 65 | AA8: ='Marks Entry'!AB10 -> 116 | AB8: ='Marks Entry'!AC10 -> 58 | AC8: ='Marks Entry'!AD10 -> C | AD8: ='Marks Entry'!AE10 -> C | AE8: ='Marks Entry'!AF10 -> 4 | AF8: ='Marks Entry'!AG10 -> 5 | AG8: ='Marks Entry'!AH10 -> 9 | AH8: ='Marks Entry'!AI10 -> 4 | AI8: ='Marks Entry'!AJ10 -> 5 | AJ8: ='Marks Entry'!AK10 -> 9 | AK8: ='Marks Entry'!AL10 -> 2 | AL8: ='Marks Entry'!AM10 -> 0 | AM8: ='Marks Entry'!AN10 -> 2 | AN8: ='Marks Entry'!AO10 -> 20 | AO8: ='Marks Entry'!AP10 -> 35 | AP8: ='Marks Entry'!AQ10 -> 18 | AQ8: ='Marks Entry'!AR10 -> 53 | AR8: ='Marks Entry'!AS10 -> 45 | AS8: ='Marks Entry'!AT10 -> 20 | AT8: ='Marks Entry'!AU10 -> 65 | AU8: ='Marks Entry'!AV10 -> 138 | AV8: ='Marks Entry'!AW10 -> 69 | AW8: ='Marks Entry'!AX10 -> C | AX8: ='Marks Entry'!AY10 -> C | AY8: ='Marks Entry'!AZ10 -> 2 | AZ8: ='Marks Entry'!BA10 -> 3 | BA8: ='Marks Entry'!BB10 -> 5 | BB8: ='Marks Entry'!BC10 -> 5 | BC8: ='Marks Entry'!BD10 -> 3 | BD8: ='Marks Entry'!BE10 -> 8 | BE8: ='Marks Entry'!BF10 -> 2 | BF8: ='Marks Entry'!BG10 -> 0 | BG8: ='Marks Entry'!BH10 -> 2 | BH8: ='Marks Entry'!BI10 -> 15 | BI8: ='Marks Entry'!BJ10 -> 15 | BJ8: ='Marks Entry'!BK10 -> 20 | BK8: ='Marks Entry'!BL10 -> 35 | BL8: ='Marks Entry'!BM10 -> 45 | BM8: ='Marks Entry'!BN10 -> 15 | BN8: ='Marks Entry'!BO10 -> 60 | BO8: ='Marks Entry'!BP10 -> 110 | BP8: ='Marks Entry'!BQ10 -> 55 | BQ8: ='Marks Entry'!BR10 -> C | BR8: ='Marks Entry'!BS10 -> C | BS8: ='Marks Entry'!BT10 -> 1 | BT8: ='Marks Entry'!BU10 -> 1 | BU8: ='Marks Entry'!BV10 -> 2 | BV8: ='Marks Entry'!BW10 -> 1 | BW8: ='Marks Entry'!BX10 -> 1 | BX8: ='Marks Entry'!BY10 -> 2 | BY8: ='Marks Entry'!BZ10 -> 1 | BZ8: ='Marks Entry'!CA10 -> 0 | CA8: ='Marks Entry'!CB10 -> 1 | CB8: ='Marks Entry'!CC10 -> 5 | CC8: ='Marks Entry'!CD10 -> 15 | CD8: ='Marks Entry'!CE10 -> 15 | CE8: ='Marks Entry'!CF10 -> 30 | CF8: ='Marks Entry'!CG10 -> 35 | CG8: ='Marks Entry'!CH10 -> 20 | CH8: ='Marks Entry'!CI10 -> 55 | CI8: ='Marks Entry'!CJ10 -> 90 | CJ8: ='Marks Entry'!CK10 -> 45 | CK8: ='Marks Entry'!CL10 -> D | CL8: ='Marks Entry'!CM10 -> D | CM8: ='Marks Entry'!CN10 -> 1 | CN8: ='Marks Entry'!CO10 -> 1 | CO8: ='Marks Entry'!CP10 -> 2 | CP8: ='Marks Entry'!CQ10 -> 2 | CQ8: ='Marks Entry'!CR10 -> 2 | CR8: ='Marks Entry'!CS10 -> 4 | CS8: ='Marks Entry'!CT10 -> 2 | CT8: ='Marks Entry'!CU10 -> 0 | CU8: ='Marks Entry'!CV10 -> 2 | CV8: ='Marks Entry'!CW10 -> 8 | CW8: ='Marks Entry'!CX10 -> 25 | CX8: ='Marks Entry'!CY10 -> 20 | CY8: ='Marks Entry'!CZ10 -> 45 | CZ8: ='Marks Entry'!DA10 -> 33 | DA8: ='Marks Entry'!DB10 -> 17 | DB8: ='Marks Entry'!DC10 -> 50 | DC8: ='Marks Entry'!DD10 -> 103 | DD8: ='Marks Entry'!DE10 -> 51.5 | DE8: ='Marks Entry'!DF10 -> C | DF8: ='Marks Entry'!DG10 -> C | DG8: ='Marks Entry'!DH10 -> 3 | DH8: ='Marks Entry'!DI10 -> 3 | DI8: ='Marks Entry'!DJ10 -> 6 | DJ8: ='Marks Entry'!DK10 -> 3 | DK8: ='Marks Entry'!DL10 -> 3 | DL8: ='Marks Entry'!DM10 -> 6 | DM8: ='Marks Entry'!DN10 -> 3 | DN8: ='Marks Entry'!DO10 -> 0 | DO8: ='Marks Entry'!DP10 -> 3 | DP8: ='Marks Entry'!DQ10 -> 15 | DQ8: ='Marks Entry'!DR10 -> 25 | DR8: ='Marks Entry'!DS10 -> 20 | DS8: ='Marks Entry'!DT10 -> 45 | DT8: ='Marks Entry'!DU10 -> 45 | DU8: ='Marks Entry'!DV10 -> 20 | DV8: ='Marks Entry'!DW10 -> 65 | DW8: ='Marks Entry'!DX10 -> 125 | DX8: ='Marks Entry'!DY10 -> 62.5 | DY8: ='Marks Entry'!DZ10 -> C | DZ8: ='Marks Entry'!EA10 -> C | EA8: ='Marks Entry'!EB10 -> 10 | EB8: ='Marks Entry'!EC10 -> 10 | EC8: ='Marks Entry'!ED10 -> 10 | ED8: ='Marks Entry'!EE10 -> 10 | EE8: ='Marks Entry'!EF10 -> 10 | EF8: ='Marks Entry'!EG10 -> 50 | EG8: ='Marks Entry'!EJ10 -> D | EH8: ='Marks Entry'!EK10 -> 10 | EI8: ='Marks Entry'!EL10 -> 15 | EJ8: ='Marks Entry'!EM10 -> 20 | EK8: ='Marks Entry'!EN10 -> 20 | EL8: ='Marks Entry'!EO10 -> 15 | EM8: ='Marks Entry'!EP10 -> 80 | EN8: ='Marks Entry'!ES10 -> B | EO8: ='Marks Entry'!ET10 -> 15 | EP8: ='Marks Entry'!EU10 -> 15 | EQ8: ='Marks Entry'!EV10 -> 15 | ER8: ='Marks Entry'!EW10 -> 15 | ES8: ='Marks Entry'!EX10 -> 15 | ET8: ='Marks Entry'!EY10 -> 75 | EU8: ='Marks Entry'!FB10 -> B | EV8: ='Marks Entry'!FC10 -> 0 | EW8: ='Marks Entry'!FD10 -> 0 | EX8: ='Marks Entry'!FE10 ->  | EY8: ='Marks Entry'!FF10 -> 1200 | EZ8: ='Marks Entry'!FG10 -> 682 | FA8: ='Marks Entry'!FH10 -> 56.83 | FB8: =IF(OR('Marks Entry'!FI10="First",'Marks Entry'!FI10="Second",'Marks Entry'!FI10="Third"),'Marks Entry'!FI10,"") -> Second | FC8: ='Marks Entry'!FJ10 -> C | FD8: ='Marks Entry'!FK10 -> PASSED | FE8: ='Marks Entry'!FL10 -> 56.83333333 | FF8: ='Marks Entry'!FM10 -> 2 | FG8: ='Marks Entry'!FO10 -> C
B9: =IF(F9>0,B8+1,0) -> 3 | C9: ='Marks Entry'!D11 -> 6 | D9: ='Marks Entry'!E11 -> 1458 | E9: ='Marks Entry'!F11 -> 0 | F9: ='Marks Entry'!G11 -> 903 | G9: ='Marks Entry'!H11 -> ANITA | H9: ='Marks Entry'!I11 -> DUDA RAM | I9: ='Marks Entry'!J11 -> SUKHI | J9: ='Marks Entry'!K11 -> 2006-06-25 | K9: ='Marks Entry'!L11 -> 5 | L9: ='Marks Entry'!M11 -> 2 | M9: ='Marks Entry'!N11 -> 7 | N9: ='Marks Entry'!O11 -> 5 | O9: ='Marks Entry'!P11 -> 2 | P9: ='Marks Entry'!Q11 -> 7 | Q9: ='Marks Entry'!R11 -> 5 | R9: ='Marks Entry'!S11 -> 0 | S9: ='Marks Entry'!T11 -> 5 | T9: ='Marks Entry'!U11 -> 19 | U9: ='Marks Entry'!V11 -> 15 | V9: ='Marks Entry'!W11 -> 12 | W9: ='Marks Entry'!X11 -> 27 | X9: ='Marks Entry'!Y11 -> 15 | Y9: ='Marks Entry'!Z11 -> 12 | Z9: ='Marks Entry'!AA11 -> 27 | AA9: ='Marks Entry'!AB11 -> 73 | AB9: ='Marks Entry'!AC11 -> 36.5 | AC9: ='Marks Entry'!AD11 -> D | AD9: ='Marks Entry'!AE11 -> D | AE9: ='Marks Entry'!AF11 -> 5 | AF9: ='Marks Entry'!AG11 -> 2 | AG9: ='Marks Entry'!AH11 -> 7 | AH9: ='Marks Entry'!AI11 -> 5 | AI9: ='Marks Entry'!AJ11 -> 2 | AJ9: ='Marks Entry'!AK11 -> 7 | AK9: ='Marks Entry'!AL11 -> 5 | AL9: ='Marks Entry'!AM11 -> 0 | AM9: ='Marks Entry'!AN11 -> 5 | AN9: ='Marks Entry'!AO11 -> 19 | AO9: ='Marks Entry'!AP11 -> 30 | AP9: ='Marks Entry'!AQ11 -> 5 | AQ9: ='Marks Entry'!AR11 -> 35 | AR9: ='Marks Entry'!AS11 -> 30 | AS9: ='Marks Entry'!AT11 -> 5 | AT9: ='Marks Entry'!AU11 -> 35 | AU9: ='Marks Entry'!AV11 -> 89 | AV9: ='Marks Entry'!AW11 -> 44.5 | AW9: ='Marks Entry'!AX11 -> D | AX9: ='Marks Entry'!AY11 -> D | AY9: ='Marks Entry'!AZ11 -> 5 | AZ9: ='Marks Entry'!BA11 -> 2 | BA9: ='Marks Entry'!BB11 -> 7 | BB9: ='Marks Entry'!BC11 -> 5 | BC9: ='Marks Entry'!BD11 -> 2 | BD9: ='Marks Entry'!BE11 -> 7 | BE9: ='Marks Entry'!BF11 -> 5 | BF9: ='Marks Entry'!BG11 -> 0 | BG9: ='Marks Entry'!BH11 -> 5 | BH9: ='Marks Entry'!BI11 -> 19 | BI9: ='Marks Entry'!BJ11 -> 30 | BJ9: ='Marks Entry'!BK11 -> 5 | BK9: ='Marks Entry'!BL11 -> 35 | BL9: ='Marks Entry'!BM11 -> 30 | BM9: ='Marks Entry'!BN11 -> 5 | BN9: ='Marks Entry'!BO11 -> 35 | BO9: ='Marks Entry'!BP11 -> 89 | BP9: ='Marks Entry'!BQ11 -> 44.5 | BQ9: ='Marks Entry'!BR11 -> D | BR9: ='Marks Entry'!BS11 -> D | BS9: ='Marks Entry'!BT11 -> 5 | BT9: ='Marks Entry'!BU11 -> 2 | BU9: ='Marks Entry'!BV11 -> 7 | BV9: ='Marks Entry'!BW11 -> 5 | BW9: ='Marks Entry'!BX11 -> 2 | BX9: ='Marks Entry'!BY11 -> 7 | BY9: ='Marks Entry'!BZ11 -> 5 | BZ9: ='Marks Entry'!CA11 -> 0 | CA9: ='Marks Entry'!CB11 -> 5 | CB9: ='Marks Entry'!CC11 -> 19 | CC9: ='Marks Entry'!CD11 -> 30 | CD9: ='Marks Entry'!CE11 -> 5 | CE9: ='Marks Entry'!CF11 -> 35 | CF9: ='Marks Entry'!CG11 -> 30 | CG9: ='Marks Entry'!CH11 -> 5 | CH9: ='Marks Entry'!CI11 -> 35 | CI9: ='Marks Entry'!CJ11 -> 89 | CJ9: ='Marks Entry'!CK11 -> 44.5 | CK9: ='Marks Entry'!CL11 -> D | CL9: ='Marks Entry'!CM11 -> D | CM9: ='Marks Entry'!CN11 -> 5 | CN9: ='Marks Entry'!CO11 -> 2 | CO9: ='Marks Entry'!CP11 -> 7 | CP9: ='Marks Entry'!CQ11 -> 5 | CQ9: ='Marks Entry'!CR11 -> 2 | CR9: ='Marks Entry'!CS11 -> 7 | CS9: ='Marks Entry'!CT11 -> 5 | CT9: ='Marks Entry'!CU11 -> 0 | CU9: ='Marks Entry'!CV11 -> 5 | CV9: ='Marks Entry'!CW11 -> 19 | CW9: ='Marks Entry'!CX11 -> 30 | CX9: ='Marks Entry'!CY11 -> 5 | CY9: ='Marks Entry'!CZ11 -> 35 | CZ9: ='Marks Entry'!DA11 -> 30 | DA9: ='Marks Entry'!DB11 -> 5 | DB9: ='Marks Entry'!DC11 -> 35 | DC9: ='Marks Entry'!DD11 -> 89 | DD9: ='Marks Entry'!DE11 -> 44.5 | DE9: ='Marks Entry'!DF11 -> D | DF9: ='Marks Entry'!DG11 -> D | DG9: ='Marks Entry'!DH11 -> 5 | DH9: ='Marks Entry'!DI11 -> 2 | DI9: ='Marks Entry'!DJ11 -> 7 | DJ9: ='Marks Entry'!DK11 -> 5 | DK9: ='Marks Entry'!DL11 -> 2 | DL9: ='Marks Entry'!DM11 -> 7 | DM9: ='Marks Entry'!DN11 -> 5 | DN9: ='Marks Entry'!DO11 -> 0 | DO9: ='Marks Entry'!DP11 -> 5 | DP9: ='Marks Entry'!DQ11 -> 19 | DQ9: ='Marks Entry'!DR11 -> 30 | DR9: ='Marks Entry'!DS11 -> 5 | DS9: ='Marks Entry'!DT11 -> 35 | DT9: ='Marks Entry'!DU11 -> 30 | DU9: ='Marks Entry'!DV11 -> 5 | DV9: ='Marks Entry'!DW11 -> 35 | DW9: ='Marks Entry'!DX11 -> 89 | DX9: ='Marks Entry'!DY11 -> 44.5 | DY9: ='Marks Entry'!DZ11 -> D | DZ9: ='Marks Entry'!EA11 -> D | EA9: ='Marks Entry'!EB11 -> 15 | EB9: ='Marks Entry'!EC11 -> 15 | EC9: ='Marks Entry'!ED11 -> 11 | ED9: ='Marks Entry'!EE11 -> 20 | EE9: ='Marks Entry'!EF11 -> 10 | EF9: ='Marks Entry'!EG11 -> 71 | EG9: ='Marks Entry'!EJ11 -> B | EH9: ='Marks Entry'!EK11 -> 15 | EI9: ='Marks Entry'!EL11 -> 15 | EJ9: ='Marks Entry'!EM11 -> 11 | EK9: ='Marks Entry'!EN11 -> 20 | EL9: ='Marks Entry'!EO11 -> 10 | EM9: ='Marks Entry'!EP11 -> 71 | EN9: ='Marks Entry'!ES11 -> B | EO9: ='Marks Entry'!ET11 -> 15 | EP9: ='Marks Entry'!EU11 -> 15 | EQ9: ='Marks Entry'!EV11 -> 11 | ER9: ='Marks Entry'!EW11 -> 20 | ES9: ='Marks Entry'!EX11 -> 10 | ET9: ='Marks Entry'!EY11 -> 71 | EU9: ='Marks Entry'!FB11 -> B | EV9: ='Marks Entry'!FC11 -> 0 | EW9: ='Marks Entry'!FD11 -> 0 | EX9: ='Marks Entry'!FE11 ->  | EY9: ='Marks Entry'!FF11 -> 1200 | EZ9: ='Marks Entry'!FG11 -> 518 | FA9: ='Marks Entry'!FH11 -> 43.17 | FB9: =IF(OR('Marks Entry'!FI11="First",'Marks Entry'!FI11="Second",'Marks Entry'!FI11="Third"),'Marks Entry'!FI11,"") -> Third | FC9: ='Marks Entry'!FJ11 -> D | FD9: ='Marks Entry'!FK11 -> PASSED | FE9: ='Marks Entry'!FL11 -> 43.16666667 | FF9: ='Marks Entry'!FM11 -> 6 | FG9: ='Marks Entry'!FO11 -> D
B10: 4 | C10: ='Marks Entry'!D12 -> 6 | D10: ='Marks Entry'!E12 -> 1470 | E10: ='Marks Entry'!F12 -> 0 | F10: ='Marks Entry'!G12 -> 904 | G10: ='Marks Entry'!H12 -> ANOPI | H10: ='Marks Entry'!I12 -> HARI RAM | I10: ='Marks Entry'!J12 -> RUKI | J10: ='Marks Entry'!K12 -> 2007-08-15 | K10: ='Marks Entry'!L12 -> 3 | L10: ='Marks Entry'!M12 -> 4 | M10: ='Marks Entry'!N12 -> 7 | N10: ='Marks Entry'!O12 -> 3 | O10: ='Marks Entry'!P12 -> 4 | P10: ='Marks Entry'!Q12 -> 7 | Q10: ='Marks Entry'!R12 -> 3 | R10: ='Marks Entry'!S12 -> 0 | S10: ='Marks Entry'!T12 -> 3 | T10: ='Marks Entry'!U12 -> 17 | U10: ='Marks Entry'!V12 -> 20 | V10: ='Marks Entry'!W12 -> 18 | W10: ='Marks Entry'!X12 -> 38 | X10: ='Marks Entry'!Y12 -> 20 | Y10: ='Marks Entry'!Z12 -> 18 | Z10: ='Marks Entry'!AA12 -> 38 | AA10: ='Marks Entry'!AB12 -> 93 | AB10: ='Marks Entry'!AC12 -> 46.5 | AC10: ='Marks Entry'!AD12 -> D | AD10: ='Marks Entry'!AE12 -> D | AE10: ='Marks Entry'!AF12 -> 3 | AF10: ='Marks Entry'!AG12 -> 4 | AG10: ='Marks Entry'!AH12 -> 7 | AH10: ='Marks Entry'!AI12 -> 3 | AI10: ='Marks Entry'!AJ12 -> 4 | AJ10: ='Marks Entry'!AK12 -> 7 | AK10: ='Marks Entry'!AL12 -> 3 | AL10: ='Marks Entry'!AM12 -> 0 | AM10: ='Marks Entry'!AN12 -> 3 | AN10: ='Marks Entry'!AO12 -> 17 | AO10: ='Marks Entry'!AP12 -> 20 | AP10: ='Marks Entry'!AQ12 -> 15 | AQ10: ='Marks Entry'!AR12 -> 35 | AR10: ='Marks Entry'!AS12 -> 20 | AS10: ='Marks Entry'!AT12 -> 15 | AT10: ='Marks Entry'!AU12 -> 35 | AU10: ='Marks Entry'!AV12 -> 87 | AV10: ='Marks Entry'!AW12 -> 43.5 | AW10: ='Marks Entry'!AX12 -> D | AX10: ='Marks Entry'!AY12 -> D | AY10: ='Marks Entry'!AZ12 -> 3 | AZ10: ='Marks Entry'!BA12 -> 4 | BA10: ='Marks Entry'!BB12 -> 7 | BB10: ='Marks Entry'!BC12 -> 3 | BC10: ='Marks Entry'!BD12 -> 4 | BD10: ='Marks Entry'!BE12 -> 7 | BE10: ='Marks Entry'!BF12 -> 3 | BF10: ='Marks Entry'!BG12 -> 0 | BG10: ='Marks Entry'!BH12 -> 3 | BH10: ='Marks Entry'!BI12 -> 17 | BI10: ='Marks Entry'!BJ12 -> 20 | BJ10: ='Marks Entry'!BK12 -> 15 | BK10: ='Marks Entry'!BL12 -> 35 | BL10: ='Marks Entry'!BM12 -> 20 | BM10: ='Marks Entry'!BN12 -> 15 | BN10: ='Marks Entry'!BO12 -> 35 | BO10: ='Marks Entry'!BP12 -> 87 | BP10: ='Marks Entry'!BQ12 -> 43.5 | BQ10: ='Marks Entry'!BR12 -> D | BR10: ='Marks Entry'!BS12 -> D | BS10: ='Marks Entry'!BT12 -> 3 | BT10: ='Marks Entry'!BU12 -> 4 | BU10: ='Marks Entry'!BV12 -> 7 | BV10: ='Marks Entry'!BW12 -> 3 | BW10: ='Marks Entry'!BX12 -> 4 | BX10: ='Marks Entry'!BY12 -> 7 | BY10: ='Marks Entry'!BZ12 -> 3 | BZ10: ='Marks Entry'!CA12 -> 0 | CA10: ='Marks Entry'!CB12 -> 3 | CB10: ='Marks Entry'!CC12 -> 17 | CC10: ='Marks Entry'!CD12 -> 20 | CD10: ='Marks Entry'!CE12 -> 15 | CE10: ='Marks Entry'!CF12 -> 35 | CF10: ='Marks Entry'!CG12 -> 20 | CG10: ='Marks Entry'!CH12 -> 15 | CH10: ='Marks Entry'!CI12 -> 35 | CI10: ='Marks Entry'!CJ12 -> 87 | CJ10: ='Marks Entry'!CK12 -> 43.5 | CK10: ='Marks Entry'!CL12 -> D | CL10: ='Marks Entry'!CM12 -> D | CM10: ='Marks Entry'!CN12 -> 3 | CN10: ='Marks Entry'!CO12 -> 4 | CO10: ='Marks Entry'!CP12 -> 7 | CP10: ='Marks Entry'!CQ12 -> 3 | CQ10: ='Marks Entry'!CR12 -> 4 | CR10: ='Marks Entry'!CS12 -> 7 | CS10: ='Marks Entry'!CT12 -> 3 | CT10: ='Marks Entry'!CU12 -> 0 | CU10: ='Marks Entry'!CV12 -> 3 | CV10: ='Marks Entry'!CW12 -> 17 | CW10: ='Marks Entry'!CX12 -> 20 | CX10: ='Marks Entry'!CY12 -> 15 | CY10: ='Marks Entry'!CZ12 -> 35 | CZ10: ='Marks Entry'!DA12 -> 20 | DA10: ='Marks Entry'!DB12 -> 15 | DB10: ='Marks Entry'!DC12 -> 35 | DC10: ='Marks Entry'!DD12 -> 87 | DD10: ='Marks Entry'!DE12 -> 43.5 | DE10: ='Marks Entry'!DF12 -> D | DF10: ='Marks Entry'!DG12 -> D | DG10: ='Marks Entry'!DH12 -> 3 | DH10: ='Marks Entry'!DI12 -> 4 | DI10: ='Marks Entry'!DJ12 -> 7 | DJ10: ='Marks Entry'!DK12 -> 3 | DK10: ='Marks Entry'!DL12 -> 4 | DL10: ='Marks Entry'!DM12 -> 7 | DM10: ='Marks Entry'!DN12 -> 3 | DN10: ='Marks Entry'!DO12 -> 0 | DO10: ='Marks Entry'!DP12 -> 3 | DP10: ='Marks Entry'!DQ12 -> 17 | DQ10: ='Marks Entry'!DR12 -> 20 | DR10: ='Marks Entry'!DS12 -> 15 | DS10: ='Marks Entry'!DT12 -> 35 | DT10: ='Marks Entry'!DU12 -> 20 | DU10: ='Marks Entry'!DV12 -> 15 | DV10: ='Marks Entry'!DW12 -> 35 | DW10: ='Marks Entry'!DX12 -> 87 | DX10: ='Marks Entry'!DY12 -> 43.5 | DY10: ='Marks Entry'!DZ12 -> D | DZ10: ='Marks Entry'!EA12 -> D | EA10: ='Marks Entry'!EB12 -> 15 | EB10: ='Marks Entry'!EC12 -> 15 | EC10: ='Marks Entry'!ED12 -> 11 | ED10: ='Marks Entry'!EE12 -> 20 | EE10: ='Marks Entry'!EF12 -> 10 | EF10: ='Marks Entry'!EG12 -> 71 | EG10: ='Marks Entry'!EJ12 -> B | EH10: ='Marks Entry'!EK12 -> 15 | EI10: ='Marks Entry'!EL12 -> 15 | EJ10: ='Marks Entry'!EM12 -> 11 | EK10: ='Marks Entry'!EN12 -> 20 | EL10: ='Marks Entry'!EO12 -> 10 | EM10: ='Marks Entry'!EP12 -> 71 | EN10: ='Marks Entry'!ES12 -> B | EO10: ='Marks Entry'!ET12 -> 15 | EP10: ='Marks Entry'!EU12 -> 15 | EQ10: ='Marks Entry'!EV12 -> 11 | ER10: ='Marks Entry'!EW12 -> 20 | ES10: ='Marks Entry'!EX12 -> 10 | ET10: ='Marks Entry'!EY12 -> 71 | EU10: ='Marks Entry'!FB12 -> B | EV10: ='Marks Entry'!FC12 -> 0 | EW10: ='Marks Entry'!FD12 -> 0 | EX10: ='Marks Entry'!FE12 ->  | EY10: ='Marks Entry'!FF12 -> 1200 | EZ10: ='Marks Entry'!FG12 -> 528 | FA10: ='Marks Entry'!FH12 -> 44.00 | FB10: =IF(OR('Marks Entry'!FI12="First",'Marks Entry'!FI12="Second",'Marks Entry'!FI12="Third"),'Marks Entry'!FI12,"") -> Third | FC10: ='Marks Entry'!FJ12 -> D | FD10: ='Marks Entry'!FK12 -> PASSED | FE10: ='Marks Entry'!FL12 -> 44 | FF10: ='Marks Entry'!FM12 -> 5 | FG10: ='Marks Entry'!FO12 -> D
B11: 5 | C11: ='Marks Entry'!D13 -> 6 | D11: ='Marks Entry'!E13 -> 968 | E11: ='Marks Entry'!F13 -> 0 | F11: ='Marks Entry'!G13 -> 905 | G11: ='Marks Entry'!H13 -> ANU JANDU | H11: ='Marks Entry'!I13 -> HEERA RAM JANDU | I11: ='Marks Entry'!J13 -> MANU DEVI | J11: ='Marks Entry'!K13 -> 2006-08-17 | K11: ='Marks Entry'!L13 -> 5 | L11: ='Marks Entry'!M13 -> 2 | M11: ='Marks Entry'!N13 -> 7 | N11: ='Marks Entry'!O13 -> 5 | O11: ='Marks Entry'!P13 -> 2 | P11: ='Marks Entry'!Q13 -> 7 | Q11: ='Marks Entry'!R13 -> 5 | R11: ='Marks Entry'!S13 -> 0 | S11: ='Marks Entry'!T13 -> 5 | T11: ='Marks Entry'!U13 -> 19 | U11: ='Marks Entry'!V13 -> 15 | V11: ='Marks Entry'!W13 -> 12 | W11: ='Marks Entry'!X13 -> 27 | X11: ='Marks Entry'!Y13 -> 15 | Y11: ='Marks Entry'!Z13 -> 12 | Z11: ='Marks Entry'!AA13 -> 27 | AA11: ='Marks Entry'!AB13 -> 73 | AB11: ='Marks Entry'!AC13 -> 36.5 | AC11: ='Marks Entry'!AD13 -> D | AD11: ='Marks Entry'!AE13 -> D | AE11: ='Marks Entry'!AF13 -> 5 | AF11: ='Marks Entry'!AG13 -> 2 | AG11: ='Marks Entry'!AH13 -> 7 | AH11: ='Marks Entry'!AI13 -> 5 | AI11: ='Marks Entry'!AJ13 -> 2 | AJ11: ='Marks Entry'!AK13 -> 7 | AK11: ='Marks Entry'!AL13 -> 5 | AL11: ='Marks Entry'!AM13 -> 0 | AM11: ='Marks Entry'!AN13 -> 5 | AN11: ='Marks Entry'!AO13 -> 19 | AO11: ='Marks Entry'!AP13 -> 15 | AP11: ='Marks Entry'!AQ13 -> 12 | AQ11: ='Marks Entry'!AR13 -> 27 | AR11: ='Marks Entry'!AS13 -> 15 | AS11: ='Marks Entry'!AT13 -> 12 | AT11: ='Marks Entry'!AU13 -> 27 | AU11: ='Marks Entry'!AV13 -> 73 | AV11: ='Marks Entry'!AW13 -> 36.5 | AW11: ='Marks Entry'!AX13 -> D | AX11: ='Marks Entry'!AY13 -> D | AY11: ='Marks Entry'!AZ13 -> 5 | AZ11: ='Marks Entry'!BA13 -> 2 | BA11: ='Marks Entry'!BB13 -> 7 | BB11: ='Marks Entry'!BC13 -> 5 | BC11: ='Marks Entry'!BD13 -> 2 | BD11: ='Marks Entry'!BE13 -> 7 | BE11: ='Marks Entry'!BF13 -> 5 | BF11: ='Marks Entry'!BG13 -> 0 | BG11: ='Marks Entry'!BH13 -> 5 | BH11: ='Marks Entry'!BI13 -> 19 | BI11: ='Marks Entry'!BJ13 -> 15 | BJ11: ='Marks Entry'!BK13 -> 12 | BK11: ='Marks Entry'!BL13 -> 27 | BL11: ='Marks Entry'!BM13 -> 15 | BM11: ='Marks Entry'!BN13 -> 12 | BN11: ='Marks Entry'!BO13 -> 27 | BO11: ='Marks Entry'!BP13 -> 73 | BP11: ='Marks Entry'!BQ13 -> 36.5 | BQ11: ='Marks Entry'!BR13 -> D | BR11: ='Marks Entry'!BS13 -> D | BS11: ='Marks Entry'!BT13 -> 5 | BT11: ='Marks Entry'!BU13 -> 2 | BU11: ='Marks Entry'!BV13 -> 7 | BV11: ='Marks Entry'!BW13 -> 5 | BW11: ='Marks Entry'!BX13 -> 2 | BX11: ='Marks Entry'!BY13 -> 7 | BY11: ='Marks Entry'!BZ13 -> 5 | BZ11: ='Marks Entry'!CA13 -> 0 | CA11: ='Marks Entry'!CB13 -> 5 | CB11: ='Marks Entry'!CC13 -> 19 | CC11: ='Marks Entry'!CD13 -> 15 | CD11: ='Marks Entry'!CE13 -> 12 | CE11: ='Marks Entry'!CF13 -> 27 | CF11: ='Marks Entry'!CG13 -> 15 | CG11: ='Marks Entry'!CH13 -> 12 | CH11: ='Marks Entry'!CI13 -> 27 | CI11: ='Marks Entry'!CJ13 -> 73 | CJ11: ='Marks Entry'!CK13 -> 36.5 | CK11: ='Marks Entry'!CL13 -> D | CL11: ='Marks Entry'!CM13 -> D | CM11: ='Marks Entry'!CN13 -> 5 | CN11: ='Marks Entry'!CO13 -> 2 | CO11: ='Marks Entry'!CP13 -> 7 | CP11: ='Marks Entry'!CQ13 -> 5 | CQ11: ='Marks Entry'!CR13 -> 2 | CR11: ='Marks Entry'!CS13 -> 7 | CS11: ='Marks Entry'!CT13 -> 5 | CT11: ='Marks Entry'!CU13 -> 0 | CU11: ='Marks Entry'!CV13 -> 5 | CV11: ='Marks Entry'!CW13 -> 19 | CW11: ='Marks Entry'!CX13 -> 15 | CX11: ='Marks Entry'!CY13 -> 12 | CY11: ='Marks Entry'!CZ13 -> 27 | CZ11: ='Marks Entry'!DA13 -> 15 | DA11: ='Marks Entry'!DB13 -> 12 | DB11: ='Marks Entry'!DC13 -> 27 | DC11: ='Marks Entry'!DD13 -> 73 | DD11: ='Marks Entry'!DE13 -> 36.5 | DE11: ='Marks Entry'!DF13 -> D | DF11: ='Marks Entry'!DG13 -> D | DG11: ='Marks Entry'!DH13 -> 5 | DH11: ='Marks Entry'!DI13 -> 2 | DI11: ='Marks Entry'!DJ13 -> 7 | DJ11: ='Marks Entry'!DK13 -> 5 | DK11: ='Marks Entry'!DL13 -> 2 | DL11: ='Marks Entry'!DM13 -> 7 | DM11: ='Marks Entry'!DN13 -> 5 | DN11: ='Marks Entry'!DO13 -> 0 | DO11: ='Marks Entry'!DP13 -> 5 | DP11: ='Marks Entry'!DQ13 -> 19 | DQ11: ='Marks Entry'!DR13 -> 15 | DR11: ='Marks Entry'!DS13 -> 12 | DS11: ='Marks Entry'!DT13 -> 27 | DT11: ='Marks Entry'!DU13 -> 15 | DU11: ='Marks Entry'!DV13 -> 12 | DV11: ='Marks Entry'!DW13 -> 27 | DW11: ='Marks Entry'!DX13 -> 73 | DX11: ='Marks Entry'!DY13 -> 36.5 | DY11: ='Marks Entry'!DZ13 -> D | DZ11: ='Marks Entry'!EA13 -> D | EA11: ='Marks Entry'!EB13 -> 15 | EB11: ='Marks Entry'!EC13 -> 15 | EC11: ='Marks Entry'!ED13 -> 11 | ED11: ='Marks Entry'!EE13 -> 20 | EE11: ='Marks Entry'!EF13 -> 10 | EF11: ='Marks Entry'!EG13 -> 71 | EG11: ='Marks Entry'!EJ13 -> B | EH11: ='Marks Entry'!EK13 -> 15 | EI11: ='Marks Entry'!EL13 -> 15 | EJ11: ='Marks Entry'!EM13 -> 11 | EK11: ='Marks Entry'!EN13 -> 20 | EL11: ='Marks Entry'!EO13 -> 10 | EM11: ='Marks Entry'!EP13 -> 71 | EN11: ='Marks Entry'!ES13 -> B | EO11: ='Marks Entry'!ET13 -> 15 | EP11: ='Marks Entry'!EU13 -> 15 | EQ11: ='Marks Entry'!EV13 -> 11 | ER11: ='Marks Entry'!EW13 -> 20 | ES11: ='Marks Entry'!EX13 -> 10 | ET11: ='Marks Entry'!EY13 -> 71 | EU11: ='Marks Entry'!FB13 -> B | EV11: ='Marks Entry'!FC13 -> 0 | EW11: ='Marks Entry'!FD13 -> 0 | EX11: ='Marks Entry'!FE13 ->  | EY11: ='Marks Entry'!FF13 -> 1200 | EZ11: ='Marks Entry'!FG13 -> 438 | FA11: ='Marks Entry'!FH13 -> 36.50 | FB11: =IF(OR('Marks Entry'!FI13="First",'Marks Entry'!FI13="Second",'Marks Entry'!FI13="Third"),'Marks Entry'!FI13,"") -> Third | FC11: ='Marks Entry'!FJ13 -> D | FD11: ='Marks Entry'!FK13 -> PASSED | FE11: ='Marks Entry'!FL13 -> 36.5 | FF11: ='Marks Entry'!FM13 -> 7 | FG11: ='Marks Entry'!FO13 -> D
B12: 6 | C12: ='Marks Entry'!D14 -> 6 | D12: ='Marks Entry'!E14 -> 1404 | E12: ='Marks Entry'!F14 -> 0 | F12: ='Marks Entry'!G14 -> 906 | G12: ='Marks Entry'!H14 -> ASHOKA SUTHAR | H12: ='Marks Entry'!I14 -> SATYNARYAN | I12: ='Marks Entry'!J14 -> SANTU | J12: ='Marks Entry'!K14 -> 2006-06-08 | K12: ='Marks Entry'!L14 -> 3 | L12: ='Marks Entry'!M14 -> 4 | M12: ='Marks Entry'!N14 -> 7 | N12: ='Marks Entry'!O14 -> 3 | O12: ='Marks Entry'!P14 -> 4 | P12: ='Marks Entry'!Q14 -> 7 | Q12: ='Marks Entry'!R14 -> 3 | R12: ='Marks Entry'!S14 -> 0 | S12: ='Marks Entry'!T14 -> 3 | T12: ='Marks Entry'!U14 -> 17 | U12: ='Marks Entry'!V14 -> 20 | V12: ='Marks Entry'!W14 -> 18 | W12: ='Marks Entry'!X14 -> 38 | X12: ='Marks Entry'!Y14 -> 20 | Y12: ='Marks Entry'!Z14 -> 18 | Z12: ='Marks Entry'!AA14 -> 38 | AA12: ='Marks Entry'!AB14 -> 93 | AB12: ='Marks Entry'!AC14 -> 46.5 | AC12: ='Marks Entry'!AD14 -> D | AD12: ='Marks Entry'!AE14 -> D | AE12: ='Marks Entry'!AF14 -> 3 | AF12: ='Marks Entry'!AG14 -> 4 | AG12: ='Marks Entry'!AH14 -> 7 | AH12: ='Marks Entry'!AI14 -> 3 | AI12: ='Marks Entry'!AJ14 -> 4 | AJ12: ='Marks Entry'!AK14 -> 7 | AK12: ='Marks Entry'!AL14 -> 3 | AL12: ='Marks Entry'!AM14 -> 0 | AM12: ='Marks Entry'!AN14 -> 3 | AN12: ='Marks Entry'!AO14 -> 17 | AO12: ='Marks Entry'!AP14 -> 20 | AP12: ='Marks Entry'!AQ14 -> 18 | AQ12: ='Marks Entry'!AR14 -> 38 | AR12: ='Marks Entry'!AS14 -> 20 | AS12: ='Marks Entry'!AT14 -> 18 | AT12: ='Marks Entry'!AU14 -> 38 | AU12: ='Marks Entry'!AV14 -> 93 | AV12: ='Marks Entry'!AW14 -> 46.5 | AW12: ='Marks Entry'!AX14 -> D | AX12: ='Marks Entry'!AY14 -> D | AY12: ='Marks Entry'!AZ14 -> 3 | AZ12: ='Marks Entry'!BA14 -> 4 | BA12: ='Marks Entry'!BB14 -> 7 | BB12: ='Marks Entry'!BC14 -> 3 | BC12: ='Marks Entry'!BD14 -> 4 | BD12: ='Marks Entry'!BE14 -> 7 | BE12: ='Marks Entry'!BF14 -> 3 | BF12: ='Marks Entry'!BG14 -> 0 | BG12: ='Marks Entry'!BH14 -> 3 | BH12: ='Marks Entry'!BI14 -> 17 | BI12: ='Marks Entry'!BJ14 -> 20 | BJ12: ='Marks Entry'!BK14 -> 18 | BK12: ='Marks Entry'!BL14 -> 38 | BL12: ='Marks Entry'!BM14 -> 20 | BM12: ='Marks Entry'!BN14 -> 18 | BN12: ='Marks Entry'!BO14 -> 38 | BO12: ='Marks Entry'!BP14 -> 93 | BP12: ='Marks Entry'!BQ14 -> 46.5 | BQ12: ='Marks Entry'!BR14 -> D | BR12: ='Marks Entry'!BS14 -> D | BS12: ='Marks Entry'!BT14 -> 3 | BT12: ='Marks Entry'!BU14 -> 4 | BU12: ='Marks Entry'!BV14 -> 7 | BV12: ='Marks Entry'!BW14 -> 3 | BW12: ='Marks Entry'!BX14 -> 4 | BX12: ='Marks Entry'!BY14 -> 7 | BY12: ='Marks Entry'!BZ14 -> 3 | BZ12: ='Marks Entry'!CA14 -> 0 | CA12: ='Marks Entry'!CB14 -> 3 | CB12: ='Marks Entry'!CC14 -> 17 | CC12: ='Marks Entry'!CD14 -> 20 | CD12: ='Marks Entry'!CE14 -> 18 | CE12: ='Marks Entry'!CF14 -> 38 | CF12: ='Marks Entry'!CG14 -> 20 | CG12: ='Marks Entry'!CH14 -> 18 | CH12: ='Marks Entry'!CI14 -> 38 | CI12: ='Marks Entry'!CJ14 -> 93 | CJ12: ='Marks Entry'!CK14 -> 46.5 | CK12: ='Marks Entry'!CL14 -> D | CL12: ='Marks Entry'!CM14 -> D | CM12: ='Marks Entry'!CN14 -> 3 | CN12: ='Marks Entry'!CO14 -> 4 | CO12: ='Marks Entry'!CP14 -> 7 | CP12: ='Marks Entry'!CQ14 -> 3 | CQ12: ='Marks Entry'!CR14 -> 4 | CR12: ='Marks Entry'!CS14 -> 7 | CS12: ='Marks Entry'!CT14 -> 3 | CT12: ='Marks Entry'!CU14 -> 0 | CU12: ='Marks Entry'!CV14 -> 3 | CV12: ='Marks Entry'!CW14 -> 17 | CW12: ='Marks Entry'!CX14 -> 20 | CX12: ='Marks Entry'!CY14 -> 18 | CY12: ='Marks Entry'!CZ14 -> 38 | CZ12: ='Marks Entry'!DA14 -> 20 | DA12: ='Marks Entry'!DB14 -> 18 | DB12: ='Marks Entry'!DC14 -> 38 | DC12: ='Marks Entry'!DD14 -> 93 | DD12: ='Marks Entry'!DE14 -> 46.5 | DE12: ='Marks Entry'!DF14 -> D | DF12: ='Marks Entry'!DG14 -> D | DG12: ='Marks Entry'!DH14 -> 3 | DH12: ='Marks Entry'!DI14 -> 4 | DI12: ='Marks Entry'!DJ14 -> 7 | DJ12: ='Marks Entry'!DK14 -> 3 | DK12: ='Marks Entry'!DL14 -> 4 | DL12: ='Marks Entry'!DM14 -> 7 | DM12: ='Marks Entry'!DN14 -> 3 | DN12: ='Marks Entry'!DO14 -> 0 | DO12: ='Marks Entry'!DP14 -> 3 | DP12: ='Marks Entry'!DQ14 -> 17 | DQ12: ='Marks Entry'!DR14 -> 20 | DR12: ='Marks Entry'!DS14 -> 18 | DS12: ='Marks Entry'!DT14 -> 38 | DT12: ='Marks Entry'!DU14 -> 20 | DU12: ='Marks Entry'!DV14 -> 18 | DV12: ='Marks Entry'!DW14 -> 38 | DW12: ='Marks Entry'!DX14 -> 93 | DX12: ='Marks Entry'!DY14 -> 46.5 | DY12: ='Marks Entry'!DZ14 -> D | DZ12: ='Marks Entry'!EA14 -> D | EA12: ='Marks Entry'!EB14 -> 15 | EB12: ='Marks Entry'!EC14 -> 15 | EC12: ='Marks Entry'!ED14 -> 11 | ED12: ='Marks Entry'!EE14 -> 20 | EE12: ='Marks Entry'!EF14 -> 10 | EF12: ='Marks Entry'!EG14 -> 71 | EG12: ='Marks Entry'!EJ14 -> B | EH12: ='Marks Entry'!EK14 -> 15 | EI12: ='Marks Entry'!EL14 -> 15 | EJ12: ='Marks Entry'!EM14 -> 11 | EK12: ='Marks Entry'!EN14 -> 20 | EL12: ='Marks Entry'!EO14 -> 10 | EM12: ='Marks Entry'!EP14 -> 71 | EN12: ='Marks Entry'!ES14 -> B | EO12: ='Marks Entry'!ET14 -> 15 | EP12: ='Marks Entry'!EU14 -> 15 | EQ12: ='Marks Entry'!EV14 -> 11 | ER12: ='Marks Entry'!EW14 -> 20 | ES12: ='Marks Entry'!EX14 -> 10 | ET12: ='Marks Entry'!EY14 -> 71 | EU12: ='Marks Entry'!FB14 -> B | EV12: ='Marks Entry'!FC14 -> 0 | EW12: ='Marks Entry'!FD14 -> 0 | EX12: ='Marks Entry'!FE14 ->  | EY12: ='Marks Entry'!FF14 -> 1200 | EZ12: ='Marks Entry'!FG14 -> 558 | FA12: ='Marks Entry'!FH14 -> 46.50 | FB12: =IF(OR('Marks Entry'!FI14="First",'Marks Entry'!FI14="Second",'Marks Entry'!FI14="Third"),'Marks Entry'!FI14,"") -> Third | FC12: ='Marks Entry'!FJ14 -> D | FD12: ='Marks Entry'!FK14 -> PASSED | FE12: ='Marks Entry'!FL14 -> 46.5 | FF12: ='Marks Entry'!FM14 -> 4 | FG12: ='Marks Entry'!FO14 -> D
B13: 7 | C13: ='Marks Entry'!D15 -> 6 | D13: ='Marks Entry'!E15 -> 1453 | E13: ='Marks Entry'!F15 -> 0 | F13: ='Marks Entry'!G15 -> 907 | G13: ='Marks Entry'!H15 -> BAJRANG VISHNOI | H13: ='Marks Entry'!I15 -> OM PRAKASH VISHNOI | I13: ='Marks Entry'!J15 -> LOONGA DEVI | J13: ='Marks Entry'!K15 -> 2006-10-01 | K13: ='Marks Entry'!L15 -> 2 | L13: ='Marks Entry'!M15 -> 2 | M13: ='Marks Entry'!N15 -> 4 | N13: ='Marks Entry'!O15 -> 2 | O13: ='Marks Entry'!P15 -> 2 | P13: ='Marks Entry'!Q15 -> 4 | Q13: ='Marks Entry'!R15 -> 2 | R13: ='Marks Entry'!S15 -> 0 | S13: ='Marks Entry'!T15 -> 2 | T13: ='Marks Entry'!U15 -> 10 | U13: ='Marks Entry'!V15 -> 15 | V13: ='Marks Entry'!W15 -> 15 | W13: ='Marks Entry'!X15 -> 30 | X13: ='Marks Entry'!Y15 -> 45 | Y13: ='Marks Entry'!Z15 -> 15 | Z13: ='Marks Entry'!AA15 -> 60 | AA13: ='Marks Entry'!AB15 -> 100 | AB13: ='Marks Entry'!AC15 -> 50 | AC13: ='Marks Entry'!AD15 -> D | AD13: ='Marks Entry'!AE15 -> D | AE13: ='Marks Entry'!AF15 -> 3 | AF13: ='Marks Entry'!AG15 -> 3 | AG13: ='Marks Entry'!AH15 -> 6 | AH13: ='Marks Entry'!AI15 -> 3 | AI13: ='Marks Entry'!AJ15 -> 3 | AJ13: ='Marks Entry'!AK15 -> 6 | AK13: ='Marks Entry'!AL15 -> 3 | AL13: ='Marks Entry'!AM15 -> 0 | AM13: ='Marks Entry'!AN15 -> 3 | AN13: ='Marks Entry'!AO15 -> 15 | AO13: ='Marks Entry'!AP15 -> 25 | AP13: ='Marks Entry'!AQ15 -> 15 | AQ13: ='Marks Entry'!AR15 -> 40 | AR13: ='Marks Entry'!AS15 -> 55 | AS13: ='Marks Entry'!AT15 -> 15 | AT13: ='Marks Entry'!AU15 -> 70 | AU13: ='Marks Entry'!AV15 -> 125 | AV13: ='Marks Entry'!AW15 -> 62.5 | AW13: ='Marks Entry'!AX15 -> C | AX13: ='Marks Entry'!AY15 -> C | AY13: ='Marks Entry'!AZ15 -> 4 | AZ13: ='Marks Entry'!BA15 -> 4 | BA13: ='Marks Entry'!BB15 -> 8 | BB13: ='Marks Entry'!BC15 -> 4 | BC13: ='Marks Entry'!BD15 -> 4 | BD13: ='Marks Entry'!BE15 -> 8 | BE13: ='Marks Entry'!BF15 -> 4 | BF13: ='Marks Entry'!BG15 -> 0 | BG13: ='Marks Entry'!BH15 -> 4 | BH13: ='Marks Entry'!BI15 -> 20 | BI13: ='Marks Entry'!BJ15 -> 25 | BJ13: ='Marks Entry'!BK15 -> 20 | BK13: ='Marks Entry'!BL15 -> 45 | BL13: ='Marks Entry'!BM15 -> 65 | BM13: ='Marks Entry'!BN15 -> 15 | BN13: ='Marks Entry'!BO15 -> 80 | BO13: ='Marks Entry'!BP15 -> 145 | BP13: ='Marks Entry'!BQ15 -> 72.5 | BQ13: ='Marks Entry'!BR15 -> B | BR13: ='Marks Entry'!BS15 -> B | BS13: ='Marks Entry'!BT15 -> 2 | BT13: ='Marks Entry'!BU15 -> 2 | BU13: ='Marks Entry'!BV15 -> 4 | BV13: ='Marks Entry'!BW15 -> 2 | BW13: ='Marks Entry'!BX15 -> 2 | BX13: ='Marks Entry'!BY15 -> 4 | BY13: ='Marks Entry'!BZ15 -> 2 | BZ13: ='Marks Entry'!CA15 -> 0 | CA13: ='Marks Entry'!CB15 -> 2 | CB13: ='Marks Entry'!CC15 -> 10 | CC13: ='Marks Entry'!CD15 -> 30 | CD13: ='Marks Entry'!CE15 -> 15 | CE13: ='Marks Entry'!CF15 -> 45 | CF13: ='Marks Entry'!CG15 -> 45 | CG13: ='Marks Entry'!CH15 -> 15 | CH13: ='Marks Entry'!CI15 -> 60 | CI13: ='Marks Entry'!CJ15 -> 115 | CJ13: ='Marks Entry'!CK15 -> 57.5 | CK13: ='Marks Entry'!CL15 -> C | CL13: ='Marks Entry'!CM15 -> C | CM13: ='Marks Entry'!CN15 -> 4 | CN13: ='Marks Entry'!CO15 -> 4 | CO13: ='Marks Entry'!CP15 -> 8 | CP13: ='Marks Entry'!CQ15 -> 4 | CQ13: ='Marks Entry'!CR15 -> 4 | CR13: ='Marks Entry'!CS15 -> 8 | CS13: ='Marks Entry'!CT15 -> 4 | CT13: ='Marks Entry'!CU15 -> 0 | CU13: ='Marks Entry'!CV15 -> 4 | CV13: ='Marks Entry'!CW15 -> 20 | CW13: ='Marks Entry'!CX15 -> 15 | CX13: ='Marks Entry'!CY15 -> 15 | CY13: ='Marks Entry'!CZ15 -> 30 | CZ13: ='Marks Entry'!DA15 -> 45 | DA13: ='Marks Entry'!DB15 -> 15 | DB13: ='Marks Entry'!DC15 -> 60 | DC13: ='Marks Entry'!DD15 -> 110 | DD13: ='Marks Entry'!DE15 -> 55 | DE13: ='Marks Entry'!DF15 -> C | DF13: ='Marks Entry'!DG15 -> C | DG13: ='Marks Entry'!DH15 -> 5 | DH13: ='Marks Entry'!DI15 -> 5 | DI13: ='Marks Entry'!DJ15 -> 10 | DJ13: ='Marks Entry'!DK15 -> 5 | DK13: ='Marks Entry'!DL15 -> 5 | DL13: ='Marks Entry'!DM15 -> 10 | DM13: ='Marks Entry'!DN15 -> 5 | DN13: ='Marks Entry'!DO15 -> 0 | DO13: ='Marks Entry'!DP15 -> 5 | DP13: ='Marks Entry'!DQ15 -> 25 | DQ13: ='Marks Entry'!DR15 -> 25 | DR13: ='Marks Entry'!DS15 -> 15 | DS13: ='Marks Entry'!DT15 -> 40 | DT13: ='Marks Entry'!DU15 -> 65 | DU13: ='Marks Entry'!DV15 -> 25 | DV13: ='Marks Entry'!DW15 -> 90 | DW13: ='Marks Entry'!DX15 -> 155 | DX13: ='Marks Entry'!DY15 -> 77.5 | DY13: ='Marks Entry'!DZ15 -> B | DZ13: ='Marks Entry'!EA15 -> B | EA13: ='Marks Entry'!EB15 -> 15 | EB13: ='Marks Entry'!EC15 -> 15 | EC13: ='Marks Entry'!ED15 -> 11 | ED13: ='Marks Entry'!EE15 -> 20 | EE13: ='Marks Entry'!EF15 -> 10 | EF13: ='Marks Entry'!EG15 -> 71 | EG13: ='Marks Entry'!EJ15 -> B | EH13: ='Marks Entry'!EK15 -> 15 | EI13: ='Marks Entry'!EL15 -> 15 | EJ13: ='Marks Entry'!EM15 -> 11 | EK13: ='Marks Entry'!EN15 -> 20 | EL13: ='Marks Entry'!EO15 -> 10 | EM13: ='Marks Entry'!EP15 -> 71 | EN13: ='Marks Entry'!ES15 -> B | EO13: ='Marks Entry'!ET15 -> 15 | EP13: ='Marks Entry'!EU15 -> 15 | EQ13: ='Marks Entry'!EV15 -> 11 | ER13: ='Marks Entry'!EW15 -> 20 | ES13: ='Marks Entry'!EX15 -> 10 | ET13: ='Marks Entry'!EY15 -> 71 | EU13: ='Marks Entry'!FB15 -> B | EV13: ='Marks Entry'!FC15 -> 0 | EW13: ='Marks Entry'!FD15 -> 0 | EX13: ='Marks Entry'!FE15 ->  | EY13: ='Marks Entry'!FF15 -> 1200 | EZ13: ='Marks Entry'!FG15 -> 750 | FA13: ='Marks Entry'!FH15 -> 62.50 | FB13: =IF(OR('Marks Entry'!FI15="First",'Marks Entry'!FI15="Second",'Marks Entry'!FI15="Third"),'Marks Entry'!FI15,"") -> First | FC13: ='Marks Entry'!FJ15 -> C | FD13: ='Marks Entry'!FK15 -> PASSED | FE13: ='Marks Entry'!FL15 -> 62.5 | FF13: ='Marks Entry'!FM15 -> 1 | FG13: ='Marks Entry'!FO15 -> D
B14: 8 | C14: ='Marks Entry'!D16 -> 6 | D14: ='Marks Entry'!E16 -> 1 | E14: ='Marks Entry'!F16 -> 0 | F14: ='Marks Entry'!G16 -> 908 | G14: ='Marks Entry'!H16 -> 0 | H14: ='Marks Entry'!I16 -> 0 | I14: ='Marks Entry'!J16 -> 0 | J14: ='Marks Entry'!K16 -> 00:00:00 | K14: ='Marks Entry'!L16 -> 0 | L14: ='Marks Entry'!M16 -> 0 | M14: ='Marks Entry'!N16 -> 0 | N14: ='Marks Entry'!O16 -> 0 | O14: ='Marks Entry'!P16 -> 0 | P14: ='Marks Entry'!Q16 -> 0 | Q14: ='Marks Entry'!R16 -> 0 | R14: ='Marks Entry'!S16 -> 0 | S14: ='Marks Entry'!T16 -> 0 | T14: ='Marks Entry'!U16 -> 0 | U14: ='Marks Entry'!V16 -> 0 | V14: ='Marks Entry'!W16 -> 0 | W14: ='Marks Entry'!X16 -> 0 | X14: ='Marks Entry'!Y16 -> 0 | Y14: ='Marks Entry'!Z16 -> 0 | Z14: ='Marks Entry'!AA16 -> 0 | AA14: ='Marks Entry'!AB16 -> 0 | AB14: ='Marks Entry'!AC16 -> 0 | AC14: ='Marks Entry'!AD16 -> E | AD14: ='Marks Entry'!AE16 -> E | AE14: ='Marks Entry'!AF16 -> 0 | AF14: ='Marks Entry'!AG16 -> 0 | AG14: ='Marks Entry'!AH16 -> 0 | AH14: ='Marks Entry'!AI16 -> 0 | AI14: ='Marks Entry'!AJ16 -> 0 | AJ14: ='Marks Entry'!AK16 -> 0 | AK14: ='Marks Entry'!AL16 -> 0 | AL14: ='Marks Entry'!AM16 -> 0 | AM14: ='Marks Entry'!AN16 -> 0 | AN14: ='Marks Entry'!AO16 -> 0 | AO14: ='Marks Entry'!AP16 -> 0 | AP14: ='Marks Entry'!AQ16 -> 0 | AQ14: ='Marks Entry'!AR16 -> 0 | AR14: ='Marks Entry'!AS16 -> 0 | AS14: ='Marks Entry'!AT16 -> 0 | AT14: ='Marks Entry'!AU16 -> 0 | AU14: ='Marks Entry'!AV16 -> 0 | AV14: ='Marks Entry'!AW16 -> 0 | AW14: ='Marks Entry'!AX16 -> E | AX14: ='Marks Entry'!AY16 -> E | AY14: ='Marks Entry'!AZ16 -> 0 | AZ14: ='Marks Entry'!BA16 -> 0 | BA14: ='Marks Entry'!BB16 -> 0 | BB14: ='Marks Entry'!BC16 -> 0 | BC14: ='Marks Entry'!BD16 -> 0 | BD14: ='Marks Entry'!BE16 -> 0 | BE14: ='Marks Entry'!BF16 -> 0 | BF14: ='Marks Entry'!BG16 -> 0 | BG14: ='Marks Entry'!BH16 -> 0 | BH14: ='Marks Entry'!BI16 -> 0 | BI14: ='Marks Entry'!BJ16 -> 0 | BJ14: ='Marks Entry'!BK16 -> 0 | BK14: ='Marks Entry'!BL16 -> 0 | BL14: ='Marks Entry'!BM16 -> 0 | BM14: ='Marks Entry'!BN16 -> 0 | BN14: ='Marks Entry'!BO16 -> 0 | BO14: ='Marks Entry'!BP16 -> 0 | BP14: ='Marks Entry'!BQ16 -> 0 | BQ14: ='Marks Entry'!BR16 -> E | BR14: ='Marks Entry'!BS16 -> E | BS14: ='Marks Entry'!BT16 -> 0 | BT14: ='Marks Entry'!BU16 -> 0 | BU14: ='Marks Entry'!BV16 -> 0 | BV14: ='Marks Entry'!BW16 -> 0 | BW14: ='Marks Entry'!BX16 -> 0 | BX14: ='Marks Entry'!BY16 -> 0 | BY14: ='Marks Entry'!BZ16 -> 0 | BZ14: ='Marks Entry'!CA16 -> 0 | CA14: ='Marks Entry'!CB16 -> 0 | CB14: ='Marks Entry'!CC16 -> 0 | CC14: ='Marks Entry'!CD16 -> 0 | CD14: ='Marks Entry'!CE16 -> 0 | CE14: ='Marks Entry'!CF16 -> 0 | CF14: ='Marks Entry'!CG16 -> 0 | CG14: ='Marks Entry'!CH16 -> 0 | CH14: ='Marks Entry'!CI16 -> 0 | CI14: ='Marks Entry'!CJ16 -> 0 | CJ14: ='Marks Entry'!CK16 -> 0 | CK14: ='Marks Entry'!CL16 -> E | CL14: ='Marks Entry'!CM16 -> E | CM14: ='Marks Entry'!CN16 -> 0 | CN14: ='Marks Entry'!CO16 -> 0 | CO14: ='Marks Entry'!CP16 -> 0 | CP14: ='Marks Entry'!CQ16 -> 0 | CQ14: ='Marks Entry'!CR16 -> 0 | CR14: ='Marks Entry'!CS16 -> 0 | CS14: ='Marks Entry'!CT16 -> 0 | CT14: ='Marks Entry'!CU16 -> 0 | CU14: ='Marks Entry'!CV16 -> 0 | CV14: ='Marks Entry'!CW16 -> 0 | CW14: ='Marks Entry'!CX16 -> 0 | CX14: ='Marks Entry'!CY16 -> 0 | CY14: ='Marks Entry'!CZ16 -> 0 | CZ14: ='Marks Entry'!DA16 -> 0 | DA14: ='Marks Entry'!DB16 -> 0 | DB14: ='Marks Entry'!DC16 -> 0 | DC14: ='Marks Entry'!DD16 -> 0 | DD14: ='Marks Entry'!DE16 -> 0 | DE14: ='Marks Entry'!DF16 -> E | DF14: ='Marks Entry'!DG16 -> E | DG14: ='Marks Entry'!DH16 -> 0 | DH14: ='Marks Entry'!DI16 -> 0 | DI14: ='Marks Entry'!DJ16 -> 0 | DJ14: ='Marks Entry'!DK16 -> 0 | DK14: ='Marks Entry'!DL16 -> 0 | DL14: ='Marks Entry'!DM16 -> 0 | DM14: ='Marks Entry'!DN16 -> 0 | DN14: ='Marks Entry'!DO16 -> 0 | DO14: ='Marks Entry'!DP16 -> 0 | DP14: ='Marks Entry'!DQ16 -> 0 | DQ14: ='Marks Entry'!DR16 -> 0 | DR14: ='Marks Entry'!DS16 -> 0 | DS14: ='Marks Entry'!DT16 -> 0 | DT14: ='Marks Entry'!DU16 -> 0 | DU14: ='Marks Entry'!DV16 -> 0 | DV14: ='Marks Entry'!DW16 -> 0 | DW14: ='Marks Entry'!DX16 -> 0 | DX14: ='Marks Entry'!DY16 -> 0 | DY14: ='Marks Entry'!DZ16 -> E | DZ14: ='Marks Entry'!EA16 -> E | EA14: ='Marks Entry'!EB16 -> 0 | EB14: ='Marks Entry'!EC16 -> 0 | EC14: ='Marks Entry'!ED16 -> 0 | ED14: ='Marks Entry'!EE16 -> 0 | EE14: ='Marks Entry'!EF16 -> 0 | EF14: ='Marks Entry'!EG16 -> 0 | EG14: ='Marks Entry'!EJ16 -> E | EH14: ='Marks Entry'!EK16 -> 0 | EI14: ='Marks Entry'!EL16 -> 0 | EJ14: ='Marks Entry'!EM16 -> 0 | EK14: ='Marks Entry'!EN16 -> 0 | EL14: ='Marks Entry'!EO16 -> 0 | EM14: ='Marks Entry'!EP16 -> 0 | EN14: ='Marks Entry'!ES16 -> E | EO14: ='Marks Entry'!ET16 -> 0 | EP14: ='Marks Entry'!EU16 -> 0 | EQ14: ='Marks Entry'!EV16 -> 0 | ER14: ='Marks Entry'!EW16 -> 0 | ES14: ='Marks Entry'!EX16 -> 0 | ET14: ='Marks Entry'!EY16 -> 0 | EU14: ='Marks Entry'!FB16 -> E | EV14: ='Marks Entry'!FC16 -> 0 | EW14: ='Marks Entry'!FD16 -> 0 | EX14: ='Marks Entry'!FE16 ->  | EY14: ='Marks Entry'!FF16 -> 1200 | EZ14: ='Marks Entry'!FG16 -> 0 | FA14: ='Marks Entry'!FH16 -> 0.00 | FB14: =IF(OR('Marks Entry'!FI16="First",'Marks Entry'!FI16="Second",'Marks Entry'!FI16="Third"),'Marks Entry'!FI16,"") ->  | FC14: ='Marks Entry'!FJ16 ->  | FD14: ='Marks Entry'!FK16 -> PROMOTED | FE14: ='Marks Entry'!FL16 ->  | FF14: ='Marks Entry'!FM16 ->  | FG14: ='Marks Entry'!FO16 -> E
B15: 9 | C15: ='Marks Entry'!D17 -> 6 | D15: ='Marks Entry'!E17 -> 2 | E15: ='Marks Entry'!F17 -> 0 | F15: ='Marks Entry'!G17 -> 909 | G15: ='Marks Entry'!H17 -> 0 | H15: ='Marks Entry'!I17 -> 0 | I15: ='Marks Entry'!J17 -> 0 | J15: ='Marks Entry'!K17 -> 00:00:00 | K15: ='Marks Entry'!L17 -> 0 | L15: ='Marks Entry'!M17 -> 0 | M15: ='Marks Entry'!N17 -> 0 | N15: ='Marks Entry'!O17 -> 0 | O15: ='Marks Entry'!P17 -> 0 | P15: ='Marks Entry'!Q17 -> 0 | Q15: ='Marks Entry'!R17 -> 0 | R15: ='Marks Entry'!S17 -> 0 | S15: ='Marks Entry'!T17 -> 0 | T15: ='Marks Entry'!U17 -> 0 | U15: ='Marks Entry'!V17 -> 0 | V15: ='Marks Entry'!W17 -> 0 | W15: ='Marks Entry'!X17 -> 0 | X15: ='Marks Entry'!Y17 -> 0 | Y15: ='Marks Entry'!Z17 -> 0 | Z15: ='Marks Entry'!AA17 -> 0 | AA15: ='Marks Entry'!AB17 -> 0 | AB15: ='Marks Entry'!AC17 -> 0 | AC15: ='Marks Entry'!AD17 -> E | AD15: ='Marks Entry'!AE17 -> E | AE15: ='Marks Entry'!AF17 -> 0 | AF15: ='Marks Entry'!AG17 -> 0 | AG15: ='Marks Entry'!AH17 -> 0 | AH15: ='Marks Entry'!AI17 -> 0 | AI15: ='Marks Entry'!AJ17 -> 0 | AJ15: ='Marks Entry'!AK17 -> 0 | AK15: ='Marks Entry'!AL17 -> 0 | AL15: ='Marks Entry'!AM17 -> 0 | AM15: ='Marks Entry'!AN17 -> 0 | AN15: ='Marks Entry'!AO17 -> 0 | AO15: ='Marks Entry'!AP17 -> 0 | AP15: ='Marks Entry'!AQ17 -> 0 | AQ15: ='Marks Entry'!AR17 -> 0 | AR15: ='Marks Entry'!AS17 -> 0 | AS15: ='Marks Entry'!AT17 -> 0 | AT15: ='Marks Entry'!AU17 -> 0 | AU15: ='Marks Entry'!AV17 -> 0 | AV15: ='Marks Entry'!AW17 -> 0 | AW15: ='Marks Entry'!AX17 -> E | AX15: ='Marks Entry'!AY17 -> E | AY15: ='Marks Entry'!AZ17 -> 0 | AZ15: ='Marks Entry'!BA17 -> 0 | BA15: ='Marks Entry'!BB17 -> 0 | BB15: ='Marks Entry'!BC17 -> 0 | BC15: ='Marks Entry'!BD17 -> 0 | BD15: ='Marks Entry'!BE17 -> 0 | BE15: ='Marks Entry'!BF17 -> 0 | BF15: ='Marks Entry'!BG17 -> 0 | BG15: ='Marks Entry'!BH17 -> 0 | BH15: ='Marks Entry'!BI17 -> 0 | BI15: ='Marks Entry'!BJ17 -> 0 | BJ15: ='Marks Entry'!BK17 -> 0 | BK15: ='Marks Entry'!BL17 -> 0 | BL15: ='Marks Entry'!BM17 -> 0 | BM15: ='Marks Entry'!BN17 -> 0 | BN15: ='Marks Entry'!BO17 -> 0 | BO15: ='Marks Entry'!BP17 -> 0 | BP15: ='Marks Entry'!BQ17 -> 0 | BQ15: ='Marks Entry'!BR17 -> E | BR15: ='Marks Entry'!BS17 -> E | BS15: ='Marks Entry'!BT17 -> 0 | BT15: ='Marks Entry'!BU17 -> 0 | BU15: ='Marks Entry'!BV17 -> 0 | BV15: ='Marks Entry'!BW17 -> 0 | BW15: ='Marks Entry'!BX17 -> 0 | BX15: ='Marks Entry'!BY17 -> 0 | BY15: ='Marks Entry'!BZ17 -> 0 | BZ15: ='Marks Entry'!CA17 -> 0 | CA15: ='Marks Entry'!CB17 -> 0 | CB15: ='Marks Entry'!CC17 -> 0 | CC15: ='Marks Entry'!CD17 -> 0 | CD15: ='Marks Entry'!CE17 -> 0 | CE15: ='Marks Entry'!CF17 -> 0 | CF15: ='Marks Entry'!CG17 -> 0 | CG15: ='Marks Entry'!CH17 -> 0 | CH15: ='Marks Entry'!CI17 -> 0 | CI15: ='Marks Entry'!CJ17 -> 0 | CJ15: ='Marks Entry'!CK17 -> 0 | CK15: ='Marks Entry'!CL17 -> E | CL15: ='Marks Entry'!CM17 -> E | CM15: ='Marks Entry'!CN17 -> 0 | CN15: ='Marks Entry'!CO17 -> 0 | CO15: ='Marks Entry'!CP17 -> 0 | CP15: ='Marks Entry'!CQ17 -> 0 | CQ15: ='Marks Entry'!CR17 -> 0 | CR15: ='Marks Entry'!CS17 -> 0 | CS15: ='Marks Entry'!CT17 -> 0 | CT15: ='Marks Entry'!CU17 -> 0 | CU15: ='Marks Entry'!CV17 -> 0 | CV15: ='Marks Entry'!CW17 -> 0 | CW15: ='Marks Entry'!CX17 -> 0 | CX15: ='Marks Entry'!CY17 -> 0 | CY15: ='Marks Entry'!CZ17 -> 0 | CZ15: ='Marks Entry'!DA17 -> 0 | DA15: ='Marks Entry'!DB17 -> 0 | DB15: ='Marks Entry'!DC17 -> 0 | DC15: ='Marks Entry'!DD17 -> 0 | DD15: ='Marks Entry'!DE17 -> 0 | DE15: ='Marks Entry'!DF17 -> E | DF15: ='Marks Entry'!DG17 -> E | DG15: ='Marks Entry'!DH17 -> 0 | DH15: ='Marks Entry'!DI17 -> 0 | DI15: ='Marks Entry'!DJ17 -> 0 | DJ15: ='Marks Entry'!DK17 -> 0 | DK15: ='Marks Entry'!DL17 -> 0 | DL15: ='Marks Entry'!DM17 -> 0 | DM15: ='Marks Entry'!DN17 -> 0 | DN15: ='Marks Entry'!DO17 -> 0 | DO15: ='Marks Entry'!DP17 -> 0 | DP15: ='Marks Entry'!DQ17 -> 0 | DQ15: ='Marks Entry'!DR17 -> 0 | DR15: ='Marks Entry'!DS17 -> 0 | DS15: ='Marks Entry'!DT17 -> 0 | DT15: ='Marks Entry'!DU17 -> 0 | DU15: ='Marks Entry'!DV17 -> 0 | DV15: ='Marks Entry'!DW17 -> 0 | DW15: ='Marks Entry'!DX17 -> 0 | DX15: ='Marks Entry'!DY17 -> 0 | DY15: ='Marks Entry'!DZ17 -> E | DZ15: ='Marks Entry'!EA17 -> E | EA15: ='Marks Entry'!EB17 -> 0 | EB15: ='Marks Entry'!EC17 -> 0 | EC15: ='Marks Entry'!ED17 -> 0 | ED15: ='Marks Entry'!EE17 -> 0 | EE15: ='Marks Entry'!EF17 -> 0 | EF15: ='Marks Entry'!EG17 -> 0 | EG15: ='Marks Entry'!EJ17 -> E | EH15: ='Marks Entry'!EK17 -> 0 | EI15: ='Marks Entry'!EL17 -> 0 | EJ15: ='Marks Entry'!EM17 -> 0 | EK15: ='Marks Entry'!EN17 -> 0 | EL15: ='Marks Entry'!EO17 -> 0 | EM15: ='Marks Entry'!EP17 -> 0 | EN15: ='Marks Entry'!ES17 -> E | EO15: ='Marks Entry'!ET17 -> 0 | EP15: ='Marks Entry'!EU17 -> 0 | EQ15: ='Marks Entry'!EV17 -> 0 | ER15: ='Marks Entry'!EW17 -> 0 | ES15: ='Marks Entry'!EX17 -> 0 | ET15: ='Marks Entry'!EY17 -> 0 | EU15: ='Marks Entry'!FB17 -> E | EV15: ='Marks Entry'!FC17 -> 0 | EW15: ='Marks Entry'!FD17 -> 0 | EX15: ='Marks Entry'!FE17 ->  | EY15: ='Marks Entry'!FF17 -> 1200 | EZ15: ='Marks Entry'!FG17 -> 0 | FA15: ='Marks Entry'!FH17 -> 0.00 | FB15: =IF(OR('Marks Entry'!FI17="First",'Marks Entry'!FI17="Second",'Marks Entry'!FI17="Third"),'Marks Entry'!FI17,"") ->  | FC15: ='Marks Entry'!FJ17 ->  | FD15: ='Marks Entry'!FK17 -> PROMOTED | FE15: ='Marks Entry'!FL17 ->  | FF15: ='Marks Entry'!FM17 ->  | FG15: ='Marks Entry'!FO17 -> E
B16: 0 | C16: ='Marks Entry'!D18 -> 0 | D16: ='Marks Entry'!E18 -> 0 | E16: ='Marks Entry'!F18 -> 0 | F16: ='Marks Entry'!G18 -> 0 | G16: ='Marks Entry'!H18 -> 0 | H16: ='Marks Entry'!I18 -> 0 | I16: ='Marks Entry'!J18 -> 0 | J16: ='Marks Entry'!K18 -> 00:00:00 | K16: ='Marks Entry'!L18 -> 0 | L16: ='Marks Entry'!M18 -> 0 | M16: ='Marks Entry'!N18 -> 0 | N16: ='Marks Entry'!O18 -> 0 | O16: ='Marks Entry'!P18 -> 0 | P16: ='Marks Entry'!Q18 -> 0 | Q16: ='Marks Entry'!R18 -> 0 | R16: ='Marks Entry'!S18 -> 0 | S16: ='Marks Entry'!T18 -> 0 | T16: ='Marks Entry'!U18 -> 0 | U16: ='Marks Entry'!V18 -> 0 | V16: ='Marks Entry'!W18 -> 0 | W16: ='Marks Entry'!X18 -> 0 | X16: ='Marks Entry'!Y18 -> 0 | Y16: ='Marks Entry'!Z18 -> 0 | Z16: ='Marks Entry'!AA18 -> 0 | AA16: ='Marks Entry'!AB18 -> 0 | AB16: ='Marks Entry'!AC18 -> 0 | AC16: ='Marks Entry'!AD18 ->  | AD16: ='Marks Entry'!AE18 -> 0 | AE16: ='Marks Entry'!AF18 -> 0 | AF16: ='Marks Entry'!AG18 -> 0 | AG16: ='Marks Entry'!AH18 -> 0 | AH16: ='Marks Entry'!AI18 -> 0 | AI16: ='Marks Entry'!AJ18 -> 0 | AJ16: ='Marks Entry'!AK18 -> 0 | AK16: ='Marks Entry'!AL18 -> 0 | AL16: ='Marks Entry'!AM18 -> 0 | AM16: ='Marks Entry'!AN18 -> 0 | AN16: ='Marks Entry'!AO18 -> 0 | AO16: ='Marks Entry'!AP18 -> 0 | AP16: ='Marks Entry'!AQ18 -> 0 | AQ16: ='Marks Entry'!AR18 -> 0 | AR16: ='Marks Entry'!AS18 -> 0 | AS16: ='Marks Entry'!AT18 -> 0 | AT16: ='Marks Entry'!AU18 -> 0 | AU16: ='Marks Entry'!AV18 -> 0 | AV16: ='Marks Entry'!AW18 -> 0 | AW16: ='Marks Entry'!AX18 -> E | AX16: ='Marks Entry'!AY18 -> 0 | AY16: ='Marks Entry'!AZ18 -> 0 | AZ16: ='Marks Entry'!BA18 -> 0 | BA16: ='Marks Entry'!BB18 -> 0 | BB16: ='Marks Entry'!BC18 -> 0 | BC16: ='Marks Entry'!BD18 -> 0 | BD16: ='Marks Entry'!BE18 -> 0 | BE16: ='Marks Entry'!BF18 -> 0 | BF16: ='Marks Entry'!BG18 -> 0 | BG16: ='Marks Entry'!BH18 -> 0 | BH16: ='Marks Entry'!BI18 -> 0 | BI16: ='Marks Entry'!BJ18 -> 0 | BJ16: ='Marks Entry'!BK18 -> 0 | BK16: ='Marks Entry'!BL18 -> 0 | BL16: ='Marks Entry'!BM18 -> 0 | BM16: ='Marks Entry'!BN18 -> 0 | BN16: ='Marks Entry'!BO18 -> 0 | BO16: ='Marks Entry'!BP18 -> 0 | BP16: ='Marks Entry'!BQ18 -> 0 | BQ16: ='Marks Entry'!BR18 -> E | BR16: ='Marks Entry'!BS18 -> 0 | BS16: ='Marks Entry'!BT18 -> 0 | BT16: ='Marks Entry'!BU18 -> 0 | BU16: ='Marks Entry'!BV18 -> 0 | BV16: ='Marks Entry'!BW18 -> 0 | BW16: ='Marks Entry'!BX18 -> 0 | BX16: ='Marks Entry'!BY18 -> 0 | BY16: ='Marks Entry'!BZ18 -> 0 | BZ16: ='Marks Entry'!CA18 -> 0 | CA16: ='Marks Entry'!CB18 -> 0 | CB16: ='Marks Entry'!CC18 -> 0 | CC16: ='Marks Entry'!CD18 -> 0 | CD16: ='Marks Entry'!CE18 -> 0 | CE16: ='Marks Entry'!CF18 -> 0 | CF16: ='Marks Entry'!CG18 -> 0 | CG16: ='Marks Entry'!CH18 -> 0 | CH16: ='Marks Entry'!CI18 -> 0 | CI16: ='Marks Entry'!CJ18 -> 0 | CJ16: ='Marks Entry'!CK18 -> 0 | CK16: ='Marks Entry'!CL18 -> E | CL16: ='Marks Entry'!CM18 -> 0 | CM16: ='Marks Entry'!CN18 -> 0 | CN16: ='Marks Entry'!CO18 -> 0 | CO16: ='Marks Entry'!CP18 -> 0 | CP16: ='Marks Entry'!CQ18 -> 0 | CQ16: ='Marks Entry'!CR18 -> 0 | CR16: ='Marks Entry'!CS18 -> 0 | CS16: ='Marks Entry'!CT18 -> 0 | CT16: ='Marks Entry'!CU18 -> 0 | CU16: ='Marks Entry'!CV18 -> 0 | CV16: ='Marks Entry'!CW18 -> 0 | CW16: ='Marks Entry'!CX18 -> 0 | CX16: ='Marks Entry'!CY18 -> 0 | CY16: ='Marks Entry'!CZ18 -> 0 | CZ16: ='Marks Entry'!DA18 -> 0 | DA16: ='Marks Entry'!DB18 -> 0 | DB16: ='Marks Entry'!DC18 -> 0 | DC16: ='Marks Entry'!DD18 -> 0 | DD16: ='Marks Entry'!DE18 -> 0 | DE16: ='Marks Entry'!DF18 -> E | DF16: ='Marks Entry'!DG18 -> 0 | DG16: ='Marks Entry'!DH18 -> 0 | DH16: ='Marks Entry'!DI18 -> 0 | DI16: ='Marks Entry'!DJ18 -> 0 | DJ16: ='Marks Entry'!DK18 -> 0 | DK16: ='Marks Entry'!DL18 -> 0 | DL16: ='Marks Entry'!DM18 -> 0 | DM16: ='Marks Entry'!DN18 -> 0 | DN16: ='Marks Entry'!DO18 -> 0 | DO16: ='Marks Entry'!DP18 -> 0 | DP16: ='Marks Entry'!DQ18 -> 0 | DQ16: ='Marks Entry'!DR18 -> 0 | DR16: ='Marks Entry'!DS18 -> 0 | DS16: ='Marks Entry'!DT18 -> 0 | DT16: ='Marks Entry'!DU18 -> 0 | DU16: ='Marks Entry'!DV18 -> 0 | DV16: ='Marks Entry'!DW18 -> 0 | DW16: ='Marks Entry'!DX18 -> 0 | DX16: ='Marks Entry'!DY18 -> 0 | DY16: ='Marks Entry'!DZ18 -> E | DZ16: ='Marks Entry'!EA18 -> 0 | EA16: ='Marks Entry'!EB18 -> 0 | EB16: ='Marks Entry'!EC18 -> 0 | EC16: ='Marks Entry'!ED18 -> 0 | ED16: ='Marks Entry'!EE18 -> 0 | EE16: ='Marks Entry'!EF18 -> 0 | EF16: ='Marks Entry'!EG18 -> 0 | EG16: ='Marks Entry'!EJ18 -> 0 | EH16: ='Marks Entry'!EK18 -> 0 | EI16: ='Marks Entry'!EL18 -> 0 | EJ16: ='Marks Entry'!EM18 -> 0 | EK16: ='Marks Entry'!EN18 -> 0 | EL16: ='Marks Entry'!EO18 -> 0 | EM16: ='Marks Entry'!EP18 -> 0 | EN16: ='Marks Entry'!ES18 -> 0 | EO16: ='Marks Entry'!ET18 -> 0 | EP16: ='Marks Entry'!EU18 -> 0 | EQ16: ='Marks Entry'!EV18 -> 0 | ER16: ='Marks Entry'!EW18 -> 0 | ES16: ='Marks Entry'!EX18 -> 0 | ET16: ='Marks Entry'!EY18 -> 0 | EU16: ='Marks Entry'!FB18 -> 0 | EV16: ='Marks Entry'!FC18 -> 0 | EW16: ='Marks Entry'!FD18 -> 0 | EX16: ='Marks Entry'!FE18 ->  | EY16: ='Marks Entry'!FF18 -> 0 | EZ16: ='Marks Entry'!FG18 -> 0 | FA16: ='Marks Entry'!FH18 ->  | FB16: =IF(OR('Marks Entry'!FI18="First",'Marks Entry'!FI18="Second",'Marks Entry'!FI18="Third"),'Marks Entry'!FI18,"") ->  | FC16: ='Marks Entry'!FJ18 ->  | FD16: ='Marks Entry'!FK18 ->  | FE16: ='Marks Entry'!FL18 ->  | FF16: ='Marks Entry'!FM18 ->  | FG16: ='Marks Entry'!FO18 -> 0
B17: 0 | C17: ='Marks Entry'!D19 -> 0 | D17: ='Marks Entry'!E19 -> 0 | E17: ='Marks Entry'!F19 -> 0 | F17: ='Marks Entry'!G19 -> 0 | G17: ='Marks Entry'!H19 -> 0 | H17: ='Marks Entry'!I19 -> 0 | I17: ='Marks Entry'!J19 -> 0 | J17: ='Marks Entry'!K19 -> 00:00:00 | K17: ='Marks Entry'!L19 -> 0 | L17: ='Marks Entry'!M19 -> 0 | M17: ='Marks Entry'!N19 -> 0 | N17: ='Marks Entry'!O19 -> 0 | O17: ='Marks Entry'!P19 -> 0 | P17: ='Marks Entry'!Q19 -> 0 | Q17: ='Marks Entry'!R19 -> 0 | R17: ='Marks Entry'!S19 -> 0 | S17: ='Marks Entry'!T19 -> 0 | T17: ='Marks Entry'!U19 -> 0 | U17: ='Marks Entry'!V19 -> 0 | V17: ='Marks Entry'!W19 -> 0 | W17: ='Marks Entry'!X19 -> 0 | X17: ='Marks Entry'!Y19 -> 0 | Y17: ='Marks Entry'!Z19 -> 0 | Z17: ='Marks Entry'!AA19 -> 0 | AA17: ='Marks Entry'!AB19 -> 0 | AB17: ='Marks Entry'!AC19 -> 0 | AC17: ='Marks Entry'!AD19 ->  | AD17: ='Marks Entry'!AE19 -> 0 | AE17: ='Marks Entry'!AF19 -> 0 | AF17: ='Marks Entry'!AG19 -> 0 | AG17: ='Marks Entry'!AH19 -> 0 | AH17: ='Marks Entry'!AI19 -> 0 | AI17: ='Marks Entry'!AJ19 -> 0 | AJ17: ='Marks Entry'!AK19 -> 0 | AK17: ='Marks Entry'!AL19 -> 0 | AL17: ='Marks Entry'!AM19 -> 0 | AM17: ='Marks Entry'!AN19 -> 0 | AN17: ='Marks Entry'!AO19 -> 0 | AO17: ='Marks Entry'!AP19 -> 0 | AP17: ='Marks Entry'!AQ19 -> 0 | AQ17: ='Marks Entry'!AR19 -> 0 | AR17: ='Marks Entry'!AS19 -> 0 | AS17: ='Marks Entry'!AT19 -> 0 | AT17: ='Marks Entry'!AU19 -> 0 | AU17: ='Marks Entry'!AV19 -> 0 | AV17: ='Marks Entry'!AW19 -> 0 | AW17: ='Marks Entry'!AX19 -> E | AX17: ='Marks Entry'!AY19 -> 0 | AY17: ='Marks Entry'!AZ19 -> 0 | AZ17: ='Marks Entry'!BA19 -> 0 | BA17: ='Marks Entry'!BB19 -> 0 | BB17: ='Marks Entry'!BC19 -> 0 | BC17: ='Marks Entry'!BD19 -> 0 | BD17: ='Marks Entry'!BE19 -> 0 | BE17: ='Marks Entry'!BF19 -> 0 | BF17: ='Marks Entry'!BG19 -> 0 | BG17: ='Marks Entry'!BH19 -> 0 | BH17: ='Marks Entry'!BI19 -> 0 | BI17: ='Marks Entry'!BJ19 -> 0 | BJ17: ='Marks Entry'!BK19 -> 0 | BK17: ='Marks Entry'!BL19 -> 0 | BL17: ='Marks Entry'!BM19 -> 0 | BM17: ='Marks Entry'!BN19 -> 0 | BN17: ='Marks Entry'!BO19 -> 0 | BO17: ='Marks Entry'!BP19 -> 0 | BP17: ='Marks Entry'!BQ19 -> 0 | BQ17: ='Marks Entry'!BR19 -> E | BR17: ='Marks Entry'!BS19 -> 0 | BS17: ='Marks Entry'!BT19 -> 0 | BT17: ='Marks Entry'!BU19 -> 0 | BU17: ='Marks Entry'!BV19 -> 0 | BV17: ='Marks Entry'!BW19 -> 0 | BW17: ='Marks Entry'!BX19 -> 0 | BX17: ='Marks Entry'!BY19 -> 0 | BY17: ='Marks Entry'!BZ19 -> 0 | BZ17: ='Marks Entry'!CA19 -> 0 | CA17: ='Marks Entry'!CB19 -> 0 | CB17: ='Marks Entry'!CC19 -> 0 | CC17: ='Marks Entry'!CD19 -> 0 | CD17: ='Marks Entry'!CE19 -> 0 | CE17: ='Marks Entry'!CF19 -> 0 | CF17: ='Marks Entry'!CG19 -> 0 | CG17: ='Marks Entry'!CH19 -> 0 | CH17: ='Marks Entry'!CI19 -> 0 | CI17: ='Marks Entry'!CJ19 -> 0 | CJ17: ='Marks Entry'!CK19 -> 0 | CK17: ='Marks Entry'!CL19 -> E | CL17: ='Marks Entry'!CM19 -> 0 | CM17: ='Marks Entry'!CN19 -> 0 | CN17: ='Marks Entry'!CO19 -> 0 | CO17: ='Marks Entry'!CP19 -> 0 | CP17: ='Marks Entry'!CQ19 -> 0 | CQ17: ='Marks Entry'!CR19 -> 0 | CR17: ='Marks Entry'!CS19 -> 0 | CS17: ='Marks Entry'!CT19 -> 0 | CT17: ='Marks Entry'!CU19 -> 0 | CU17: ='Marks Entry'!CV19 -> 0 | CV17: ='Marks Entry'!CW19 -> 0 | CW17: ='Marks Entry'!CX19 -> 0 | CX17: ='Marks Entry'!CY19 -> 0 | CY17: ='Marks Entry'!CZ19 -> 0 | CZ17: ='Marks Entry'!DA19 -> 0 | DA17: ='Marks Entry'!DB19 -> 0 | DB17: ='Marks Entry'!DC19 -> 0 | DC17: ='Marks Entry'!DD19 -> 0 | DD17: ='Marks Entry'!DE19 -> 0 | DE17: ='Marks Entry'!DF19 -> E | DF17: ='Marks Entry'!DG19 -> 0 | DG17: ='Marks Entry'!DH19 -> 0 | DH17: ='Marks Entry'!DI19 -> 0 | DI17: ='Marks Entry'!DJ19 -> 0 | DJ17: ='Marks Entry'!DK19 -> 0 | DK17: ='Marks Entry'!DL19 -> 0 | DL17: ='Marks Entry'!DM19 -> 0 | DM17: ='Marks Entry'!DN19 -> 0 | DN17: ='Marks Entry'!DO19 -> 0 | DO17: ='Marks Entry'!DP19 -> 0 | DP17: ='Marks Entry'!DQ19 -> 0 | DQ17: ='Marks Entry'!DR19 -> 0 | DR17: ='Marks Entry'!DS19 -> 0 | DS17: ='Marks Entry'!DT19 -> 0 | DT17: ='Marks Entry'!DU19 -> 0 | DU17: ='Marks Entry'!DV19 -> 0 | DV17: ='Marks Entry'!DW19 -> 0 | DW17: ='Marks Entry'!DX19 -> 0 | DX17: ='Marks Entry'!DY19 -> 0 | DY17: ='Marks Entry'!DZ19 -> E | DZ17: ='Marks Entry'!EA19 -> 0 | EA17: ='Marks Entry'!EB19 -> 0 | EB17: ='Marks Entry'!EC19 -> 0 | EC17: ='Marks Entry'!ED19 -> 0 | ED17: ='Marks Entry'!EE19 -> 0 | EE17: ='Marks Entry'!EF19 -> 0 | EF17: ='Marks Entry'!EG19 -> 0 | EG17: ='Marks Entry'!EJ19 -> 0 | EH17: ='Marks Entry'!EK19 -> 0 | EI17: ='Marks Entry'!EL19 -> 0 | EJ17: ='Marks Entry'!EM19 -> 0 | EK17: ='Marks Entry'!EN19 -> 0 | EL17: ='Marks Entry'!EO19 -> 0 | EM17: ='Marks Entry'!EP19 -> 0 | EN17: ='Marks Entry'!ES19 -> 0 | EO17: ='Marks Entry'!ET19 -> 0 | EP17: ='Marks Entry'!EU19 -> 0 | EQ17: ='Marks Entry'!EV19 -> 0 | ER17: ='Marks Entry'!EW19 -> 0 | ES17: ='Marks Entry'!EX19 -> 0 | ET17: ='Marks Entry'!EY19 -> 0 | EU17: ='Marks Entry'!FB19 -> 0 | EV17: ='Marks Entry'!FC19 -> 0 | EW17: ='Marks Entry'!FD19 -> 0 | EX17: ='Marks Entry'!FE19 ->  | EY17: ='Marks Entry'!FF19 -> 0 | EZ17: ='Marks Entry'!FG19 -> 0 | FA17: ='Marks Entry'!FH19 ->  | FB17: =IF(OR('Marks Entry'!FI19="First",'Marks Entry'!FI19="Second",'Marks Entry'!FI19="Third"),'Marks Entry'!FI19,"") ->  | FC17: ='Marks Entry'!FJ19 ->  | FD17: ='Marks Entry'!FK19 ->  | FE17: ='Marks Entry'!FL19 ->  | FF17: ='Marks Entry'!FM19 ->  | FG17: ='Marks Entry'!FO19 -> 0
B18: 0 | C18: ='Marks Entry'!D20 -> 0 | D18: ='Marks Entry'!E20 -> 0 | E18: ='Marks Entry'!F20 -> 0 | F18: ='Marks Entry'!G20 -> 0 | G18: ='Marks Entry'!H20 -> 0 | H18: ='Marks Entry'!I20 -> 0 | I18: ='Marks Entry'!J20 -> 0 | J18: ='Marks Entry'!K20 -> 00:00:00 | K18: ='Marks Entry'!L20 -> 0 | L18: ='Marks Entry'!M20 -> 0 | M18: ='Marks Entry'!N20 -> 0 | N18: ='Marks Entry'!O20 -> 0 | O18: ='Marks Entry'!P20 -> 0 | P18: ='Marks Entry'!Q20 -> 0 | Q18: ='Marks Entry'!R20 -> 0 | R18: ='Marks Entry'!S20 -> 0 | S18: ='Marks Entry'!T20 -> 0 | T18: ='Marks Entry'!U20 -> 0 | U18: ='Marks Entry'!V20 -> 0 | V18: ='Marks Entry'!W20 -> 0 | W18: ='Marks Entry'!X20 -> 0 | X18: ='Marks Entry'!Y20 -> 0 | Y18: ='Marks Entry'!Z20 -> 0 | Z18: ='Marks Entry'!AA20 -> 0 | AA18: ='Marks Entry'!AB20 -> 0 | AB18: ='Marks Entry'!AC20 -> 0 | AC18: ='Marks Entry'!AD20 ->  | AD18: ='Marks Entry'!AE20 -> 0 | AE18: ='Marks Entry'!AF20 -> 0 | AF18: ='Marks Entry'!AG20 -> 0 | AG18: ='Marks Entry'!AH20 -> 0 | AH18: ='Marks Entry'!AI20 -> 0 | AI18: ='Marks Entry'!AJ20 -> 0 | AJ18: ='Marks Entry'!AK20 -> 0 | AK18: ='Marks Entry'!AL20 -> 0 | AL18: ='Marks Entry'!AM20 -> 0 | AM18: ='Marks Entry'!AN20 -> 0 | AN18: ='Marks Entry'!AO20 -> 0 | AO18: ='Marks Entry'!AP20 -> 0 | AP18: ='Marks Entry'!AQ20 -> 0 | AQ18: ='Marks Entry'!AR20 -> 0 | AR18: ='Marks Entry'!AS20 -> 0 | AS18: ='Marks Entry'!AT20 -> 0 | AT18: ='Marks Entry'!AU20 -> 0 | AU18: ='Marks Entry'!AV20 -> 0 | AV18: ='Marks Entry'!AW20 -> 0 | AW18: ='Marks Entry'!AX20 -> E | AX18: ='Marks Entry'!AY20 -> 0 | AY18: ='Marks Entry'!AZ20 -> 0 | AZ18: ='Marks Entry'!BA20 -> 0 | BA18: ='Marks Entry'!BB20 -> 0 | BB18: ='Marks Entry'!BC20 -> 0 | BC18: ='Marks Entry'!BD20 -> 0 | BD18: ='Marks Entry'!BE20 -> 0 | BE18: ='Marks Entry'!BF20 -> 0 | BF18: ='Marks Entry'!BG20 -> 0 | BG18: ='Marks Entry'!BH20 -> 0 | BH18: ='Marks Entry'!BI20 -> 0 | BI18: ='Marks Entry'!BJ20 -> 0 | BJ18: ='Marks Entry'!BK20 -> 0 | BK18: ='Marks Entry'!BL20 -> 0 | BL18: ='Marks Entry'!BM20 -> 0 | BM18: ='Marks Entry'!BN20 -> 0 | BN18: ='Marks Entry'!BO20 -> 0 | BO18: ='Marks Entry'!BP20 -> 0 | BP18: ='Marks Entry'!BQ20 -> 0 | BQ18: ='Marks Entry'!BR20 -> E | BR18: ='Marks Entry'!BS20 -> 0 | BS18: ='Marks Entry'!BT20 -> 0 | BT18: ='Marks Entry'!BU20 -> 0 | BU18: ='Marks Entry'!BV20 -> 0 | BV18: ='Marks Entry'!BW20 -> 0 | BW18: ='Marks Entry'!BX20 -> 0 | BX18: ='Marks Entry'!BY20 -> 0 | BY18: ='Marks Entry'!BZ20 -> 0 | BZ18: ='Marks Entry'!CA20 -> 0 | CA18: ='Marks Entry'!CB20 -> 0 | CB18: ='Marks Entry'!CC20 -> 0 | CC18: ='Marks Entry'!CD20 -> 0 | CD18: ='Marks Entry'!CE20 -> 0 | CE18: ='Marks Entry'!CF20 -> 0 | CF18: ='Marks Entry'!CG20 -> 0 | CG18: ='Marks Entry'!CH20 -> 0 | CH18: ='Marks Entry'!CI20 -> 0 | CI18: ='Marks Entry'!CJ20 -> 0 | CJ18: ='Marks Entry'!CK20 -> 0 | CK18: ='Marks Entry'!CL20 -> E | CL18: ='Marks Entry'!CM20 -> 0 | CM18: ='Marks Entry'!CN20 -> 0 | CN18: ='Marks Entry'!CO20 -> 0 | CO18: ='Marks Entry'!CP20 -> 0 | CP18: ='Marks Entry'!CQ20 -> 0 | CQ18: ='Marks Entry'!CR20 -> 0 | CR18: ='Marks Entry'!CS20 -> 0 | CS18: ='Marks Entry'!CT20 -> 0 | CT18: ='Marks Entry'!CU20 -> 0 | CU18: ='Marks Entry'!CV20 -> 0 | CV18: ='Marks Entry'!CW20 -> 0 | CW18: ='Marks Entry'!CX20 -> 0 | CX18: ='Marks Entry'!CY20 -> 0 | CY18: ='Marks Entry'!CZ20 -> 0 | CZ18: ='Marks Entry'!DA20 -> 0 | DA18: ='Marks Entry'!DB20 -> 0 | DB18: ='Marks Entry'!DC20 -> 0 | DC18: ='Marks Entry'!DD20 -> 0 | DD18: ='Marks Entry'!DE20 -> 0 | DE18: ='Marks Entry'!DF20 -> E | DF18: ='Marks Entry'!DG20 -> 0 | DG18: ='Marks Entry'!DH20 -> 0 | DH18: ='Marks Entry'!DI20 -> 0 | DI18: ='Marks Entry'!DJ20 -> 0 | DJ18: ='Marks Entry'!DK20 -> 0 | DK18: ='Marks Entry'!DL20 -> 0 | DL18: ='Marks Entry'!DM20 -> 0 | DM18: ='Marks Entry'!DN20 -> 0 | DN18: ='Marks Entry'!DO20 -> 0 | DO18: ='Marks Entry'!DP20 -> 0 | DP18: ='Marks Entry'!DQ20 -> 0 | DQ18: ='Marks Entry'!DR20 -> 0 | DR18: ='Marks Entry'!DS20 -> 0 | DS18: ='Marks Entry'!DT20 -> 0 | DT18: ='Marks Entry'!DU20 -> 0 | DU18: ='Marks Entry'!DV20 -> 0 | DV18: ='Marks Entry'!DW20 -> 0 | DW18: ='Marks Entry'!DX20 -> 0 | DX18: ='Marks Entry'!DY20 -> 0 | DY18: ='Marks Entry'!DZ20 -> E | DZ18: ='Marks Entry'!EA20 -> 0 | EA18: ='Marks Entry'!EB20 -> 0 | EB18: ='Marks Entry'!EC20 -> 0 | EC18: ='Marks Entry'!ED20 -> 0 | ED18: ='Marks Entry'!EE20 -> 0 | EE18: ='Marks Entry'!EF20 -> 0 | EF18: ='Marks Entry'!EG20 -> 0 | EG18: ='Marks Entry'!EJ20 -> 0 | EH18: ='Marks Entry'!EK20 -> 0 | EI18: ='Marks Entry'!EL20 -> 0 | EJ18: ='Marks Entry'!EM20 -> 0 | EK18: ='Marks Entry'!EN20 -> 0 | EL18: ='Marks Entry'!EO20 -> 0 | EM18: ='Marks Entry'!EP20 -> 0 | EN18: ='Marks Entry'!ES20 -> 0 | EO18: ='Marks Entry'!ET20 -> 0 | EP18: ='Marks Entry'!EU20 -> 0 | EQ18: ='Marks Entry'!EV20 -> 0 | ER18: ='Marks Entry'!EW20 -> 0 | ES18: ='Marks Entry'!EX20 -> 0 | ET18: ='Marks Entry'!EY20 -> 0 | EU18: ='Marks Entry'!FB20 -> 0 | EV18: ='Marks Entry'!FC20 -> 0 | EW18: ='Marks Entry'!FD20 -> 0 | EX18: ='Marks Entry'!FE20 ->  | EY18: ='Marks Entry'!FF20 -> 0 | EZ18: ='Marks Entry'!FG20 -> 0 | FA18: ='Marks Entry'!FH20 ->  | FB18: =IF(OR('Marks Entry'!FI20="First",'Marks Entry'!FI20="Second",'Marks Entry'!FI20="Third"),'Marks Entry'!FI20,"") ->  | FC18: ='Marks Entry'!FJ20 ->  | FD18: ='Marks Entry'!FK20 ->  | FE18: ='Marks Entry'!FL20 ->  | FF18: ='Marks Entry'!FM20 ->  | FG18: ='Marks Entry'!FO20 -> 0
B19: 0 | C19: ='Marks Entry'!D21 -> 0 | D19: ='Marks Entry'!E21 -> 0 | E19: ='Marks Entry'!F21 -> 0 | F19: ='Marks Entry'!G21 -> 0 | G19: ='Marks Entry'!H21 -> 0 | H19: ='Marks Entry'!I21 -> 0 | I19: ='Marks Entry'!J21 -> 0 | J19: ='Marks Entry'!K21 -> 00:00:00 | K19: ='Marks Entry'!L21 -> 0 | L19: ='Marks Entry'!M21 -> 0 | M19: ='Marks Entry'!N21 -> 0 | N19: ='Marks Entry'!O21 -> 0 | O19: ='Marks Entry'!P21 -> 0 | P19: ='Marks Entry'!Q21 -> 0 | Q19: ='Marks Entry'!R21 -> 0 | R19: ='Marks Entry'!S21 -> 0 | S19: ='Marks Entry'!T21 -> 0 | T19: ='Marks Entry'!U21 -> 0 | U19: ='Marks Entry'!V21 -> 0 | V19: ='Marks Entry'!W21 -> 0 | W19: ='Marks Entry'!X21 -> 0 | X19: ='Marks Entry'!Y21 -> 0 | Y19: ='Marks Entry'!Z21 -> 0 | Z19: ='Marks Entry'!AA21 -> 0 | AA19: ='Marks Entry'!AB21 -> 0 | AB19: ='Marks Entry'!AC21 -> 0 | AC19: ='Marks Entry'!AD21 ->  | AD19: ='Marks Entry'!AE21 -> 0 | AE19: ='Marks Entry'!AF21 -> 0 | AF19: ='Marks Entry'!AG21 -> 0 | AG19: ='Marks Entry'!AH21 -> 0 | AH19: ='Marks Entry'!AI21 -> 0 | AI19: ='Marks Entry'!AJ21 -> 0 | AJ19: ='Marks Entry'!AK21 -> 0 | AK19: ='Marks Entry'!AL21 -> 0 | AL19: ='Marks Entry'!AM21 -> 0 | AM19: ='Marks Entry'!AN21 -> 0 | AN19: ='Marks Entry'!AO21 -> 0 | AO19: ='Marks Entry'!AP21 -> 0 | AP19: ='Marks Entry'!AQ21 -> 0 | AQ19: ='Marks Entry'!AR21 -> 0 | AR19: ='Marks Entry'!AS21 -> 0 | AS19: ='Marks Entry'!AT21 -> 0 | AT19: ='Marks Entry'!AU21 -> 0 | AU19: ='Marks Entry'!AV21 -> 0 | AV19: ='Marks Entry'!AW21 -> 0 | AW19: ='Marks Entry'!AX21 -> E | AX19: ='Marks Entry'!AY21 -> 0 | AY19: ='Marks Entry'!AZ21 -> 0 | AZ19: ='Marks Entry'!BA21 -> 0 | BA19: ='Marks Entry'!BB21 -> 0 | BB19: ='Marks Entry'!BC21 -> 0 | BC19: ='Marks Entry'!BD21 -> 0 | BD19: ='Marks Entry'!BE21 -> 0 | BE19: ='Marks Entry'!BF21 -> 0 | BF19: ='Marks Entry'!BG21 -> 0 | BG19: ='Marks Entry'!BH21 -> 0 | BH19: ='Marks Entry'!BI21 -> 0 | BI19: ='Marks Entry'!BJ21 -> 0 | BJ19: ='Marks Entry'!BK21 -> 0 | BK19: ='Marks Entry'!BL21 -> 0 | BL19: ='Marks Entry'!BM21 -> 0 | BM19: ='Marks Entry'!BN21 -> 0 | BN19: ='Marks Entry'!BO21 -> 0 | BO19: ='Marks Entry'!BP21 -> 0 | BP19: ='Marks Entry'!BQ21 -> 0 | BQ19: ='Marks Entry'!BR21 -> E | BR19: ='Marks Entry'!BS21 -> 0 | BS19: ='Marks Entry'!BT21 -> 0 | BT19: ='Marks Entry'!BU21 -> 0 | BU19: ='Marks Entry'!BV21 -> 0 | BV19: ='Marks Entry'!BW21 -> 0 | BW19: ='Marks Entry'!BX21 -> 0 | BX19: ='Marks Entry'!BY21 -> 0 | BY19: ='Marks Entry'!BZ21 -> 0 | BZ19: ='Marks Entry'!CA21 -> 0 | CA19: ='Marks Entry'!CB21 -> 0 | CB19: ='Marks Entry'!CC21 -> 0 | CC19: ='Marks Entry'!CD21 -> 0 | CD19: ='Marks Entry'!CE21 -> 0 | CE19: ='Marks Entry'!CF21 -> 0 | CF19: ='Marks Entry'!CG21 -> 0 | CG19: ='Marks Entry'!CH21 -> 0 | CH19: ='Marks Entry'!CI21 -> 0 | CI19: ='Marks Entry'!CJ21 -> 0 | CJ19: ='Marks Entry'!CK21 -> 0 | CK19: ='Marks Entry'!CL21 -> E | CL19: ='Marks Entry'!CM21 -> 0 | CM19: ='Marks Entry'!CN21 -> 0 | CN19: ='Marks Entry'!CO21 -> 0 | CO19: ='Marks Entry'!CP21 -> 0 | CP19: ='Marks Entry'!CQ21 -> 0 | CQ19: ='Marks Entry'!CR21 -> 0 | CR19: ='Marks Entry'!CS21 -> 0 | CS19: ='Marks Entry'!CT21 -> 0 | CT19: ='Marks Entry'!CU21 -> 0 | CU19: ='Marks Entry'!CV21 -> 0 | CV19: ='Marks Entry'!CW21 -> 0 | CW19: ='Marks Entry'!CX21 -> 0 | CX19: ='Marks Entry'!CY21 -> 0 | CY19: ='Marks Entry'!CZ21 -> 0 | CZ19: ='Marks Entry'!DA21 -> 0 | DA19: ='Marks Entry'!DB21 -> 0 | DB19: ='Marks Entry'!DC21 -> 0 | DC19: ='Marks Entry'!DD21 -> 0 | DD19: ='Marks Entry'!DE21 -> 0 | DE19: ='Marks Entry'!DF21 -> E | DF19: ='Marks Entry'!DG21 -> 0 | DG19: ='Marks Entry'!DH21 -> 0 | DH19: ='Marks Entry'!DI21 -> 0 | DI19: ='Marks Entry'!DJ21 -> 0 | DJ19: ='Marks Entry'!DK21 -> 0 | DK19: ='Marks Entry'!DL21 -> 0 | DL19: ='Marks Entry'!DM21 -> 0 | DM19: ='Marks Entry'!DN21 -> 0 | DN19: ='Marks Entry'!DO21 -> 0 | DO19: ='Marks Entry'!DP21 -> 0 | DP19: ='Marks Entry'!DQ21 -> 0 | DQ19: ='Marks Entry'!DR21 -> 0 | DR19: ='Marks Entry'!DS21 -> 0 | DS19: ='Marks Entry'!DT21 -> 0 | DT19: ='Marks Entry'!DU21 -> 0 | DU19: ='Marks Entry'!DV21 -> 0 | DV19: ='Marks Entry'!DW21 -> 0 | DW19: ='Marks Entry'!DX21 -> 0 | DX19: ='Marks Entry'!DY21 -> 0 | DY19: ='Marks Entry'!DZ21 -> E | DZ19: ='Marks Entry'!EA21 -> 0 | EA19: ='Marks Entry'!EB21 -> 0 | EB19: ='Marks Entry'!EC21 -> 0 | EC19: ='Marks Entry'!ED21 -> 0 | ED19: ='Marks Entry'!EE21 -> 0 | EE19: ='Marks Entry'!EF21 -> 0 | EF19: ='Marks Entry'!EG21 -> 0 | EG19: ='Marks Entry'!EJ21 -> 0 | EH19: ='Marks Entry'!EK21 -> 0 | EI19: ='Marks Entry'!EL21 -> 0 | EJ19: ='Marks Entry'!EM21 -> 0 | EK19: ='Marks Entry'!EN21 -> 0 | EL19: ='Marks Entry'!EO21 -> 0 | EM19: ='Marks Entry'!EP21 -> 0 | EN19: ='Marks Entry'!ES21 -> 0 | EO19: ='Marks Entry'!ET21 -> 0 | EP19: ='Marks Entry'!EU21 -> 0 | EQ19: ='Marks Entry'!EV21 -> 0 | ER19: ='Marks Entry'!EW21 -> 0 | ES19: ='Marks Entry'!EX21 -> 0 | ET19: ='Marks Entry'!EY21 -> 0 | EU19: ='Marks Entry'!FB21 -> 0 | EV19: ='Marks Entry'!FC21 -> 0 | EW19: ='Marks Entry'!FD21 -> 0 | EX19: ='Marks Entry'!FE21 ->  | EY19: ='Marks Entry'!FF21 -> 0 | EZ19: ='Marks Entry'!FG21 -> 0 | FA19: ='Marks Entry'!FH21 ->  | FB19: =IF(OR('Marks Entry'!FI21="First",'Marks Entry'!FI21="Second",'Marks Entry'!FI21="Third"),'Marks Entry'!FI21,"") ->  | FC19: ='Marks Entry'!FJ21 ->  | FD19: ='Marks Entry'!FK21 ->  | FE19: ='Marks Entry'!FL21 ->  | FF19: ='Marks Entry'!FM21 ->  | FG19: ='Marks Entry'!FO21 -> 0
B20: 0 | C20: ='Marks Entry'!D22 -> 0 | D20: ='Marks Entry'!E22 -> 0 | E20: ='Marks Entry'!F22 -> 0 | F20: ='Marks Entry'!G22 -> 0 | G20: ='Marks Entry'!H22 -> 0 | H20: ='Marks Entry'!I22 -> 0 | I20: ='Marks Entry'!J22 -> 0 | J20: ='Marks Entry'!K22 -> 00:00:00 | K20: ='Marks Entry'!L22 -> 0 | L20: ='Marks Entry'!M22 -> 0 | M20: ='Marks Entry'!N22 -> 0 | N20: ='Marks Entry'!O22 -> 0 | O20: ='Marks Entry'!P22 -> 0 | P20: ='Marks Entry'!Q22 -> 0 | Q20: ='Marks Entry'!R22 -> 0 | R20: ='Marks Entry'!S22 -> 0 | S20: ='Marks Entry'!T22 -> 0 | T20: ='Marks Entry'!U22 -> 0 | U20: ='Marks Entry'!V22 -> 0 | V20: ='Marks Entry'!W22 -> 0 | W20: ='Marks Entry'!X22 -> 0 | X20: ='Marks Entry'!Y22 -> 0 | Y20: ='Marks Entry'!Z22 -> 0 | Z20: ='Marks Entry'!AA22 -> 0 | AA20: ='Marks Entry'!AB22 -> 0 | AB20: ='Marks Entry'!AC22 -> 0 | AC20: ='Marks Entry'!AD22 ->  | AD20: ='Marks Entry'!AE22 -> 0 | AE20: ='Marks Entry'!AF22 -> 0 | AF20: ='Marks Entry'!AG22 -> 0 | AG20: ='Marks Entry'!AH22 -> 0 | AH20: ='Marks Entry'!AI22 -> 0 | AI20: ='Marks Entry'!AJ22 -> 0 | AJ20: ='Marks Entry'!AK22 -> 0 | AK20: ='Marks Entry'!AL22 -> 0 | AL20: ='Marks Entry'!AM22 -> 0 | AM20: ='Marks Entry'!AN22 -> 0 | AN20: ='Marks Entry'!AO22 -> 0 | AO20: ='Marks Entry'!AP22 -> 0 | AP20: ='Marks Entry'!AQ22 -> 0 | AQ20: ='Marks Entry'!AR22 -> 0 | AR20: ='Marks Entry'!AS22 -> 0 | AS20: ='Marks Entry'!AT22 -> 0 | AT20: ='Marks Entry'!AU22 -> 0 | AU20: ='Marks Entry'!AV22 -> 0 | AV20: ='Marks Entry'!AW22 -> 0 | AW20: ='Marks Entry'!AX22 -> E | AX20: ='Marks Entry'!AY22 -> 0 | AY20: ='Marks Entry'!AZ22 -> 0 | AZ20: ='Marks Entry'!BA22 -> 0 | BA20: ='Marks Entry'!BB22 -> 0 | BB20: ='Marks Entry'!BC22 -> 0 | BC20: ='Marks Entry'!BD22 -> 0 | BD20: ='Marks Entry'!BE22 -> 0 | BE20: ='Marks Entry'!BF22 -> 0 | BF20: ='Marks Entry'!BG22 -> 0 | BG20: ='Marks Entry'!BH22 -> 0 | BH20: ='Marks Entry'!BI22 -> 0 | BI20: ='Marks Entry'!BJ22 -> 0 | BJ20: ='Marks Entry'!BK22 -> 0 | BK20: ='Marks Entry'!BL22 -> 0 | BL20: ='Marks Entry'!BM22 -> 0 | BM20: ='Marks Entry'!BN22 -> 0 | BN20: ='Marks Entry'!BO22 -> 0 | BO20: ='Marks Entry'!BP22 -> 0 | BP20: ='Marks Entry'!BQ22 -> 0 | BQ20: ='Marks Entry'!BR22 -> E | BR20: ='Marks Entry'!BS22 -> 0 | BS20: ='Marks Entry'!BT22 -> 0 | BT20: ='Marks Entry'!BU22 -> 0 | BU20: ='Marks Entry'!BV22 -> 0 | BV20: ='Marks Entry'!BW22 -> 0 | BW20: ='Marks Entry'!BX22 -> 0 | BX20: ='Marks Entry'!BY22 -> 0 | BY20: ='Marks Entry'!BZ22 -> 0 | BZ20: ='Marks Entry'!CA22 -> 0 | CA20: ='Marks Entry'!CB22 -> 0 | CB20: ='Marks Entry'!CC22 -> 0 | CC20: ='Marks Entry'!CD22 -> 0 | CD20: ='Marks Entry'!CE22 -> 0 | CE20: ='Marks Entry'!CF22 -> 0 | CF20: ='Marks Entry'!CG22 -> 0 | CG20: ='Marks Entry'!CH22 -> 0 | CH20: ='Marks Entry'!CI22 -> 0 | CI20: ='Marks Entry'!CJ22 -> 0 | CJ20: ='Marks Entry'!CK22 -> 0 | CK20: ='Marks Entry'!CL22 -> E | CL20: ='Marks Entry'!CM22 -> 0 | CM20: ='Marks Entry'!CN22 -> 0 | CN20: ='Marks Entry'!CO22 -> 0 | CO20: ='Marks Entry'!CP22 -> 0 | CP20: ='Marks Entry'!CQ22 -> 0 | CQ20: ='Marks Entry'!CR22 -> 0 | CR20: ='Marks Entry'!CS22 -> 0 | CS20: ='Marks Entry'!CT22 -> 0 | CT20: ='Marks Entry'!CU22 -> 0 | CU20: ='Marks Entry'!CV22 -> 0 | CV20: ='Marks Entry'!CW22 -> 0 | CW20: ='Marks Entry'!CX22 -> 0 | CX20: ='Marks Entry'!CY22 -> 0 | CY20: ='Marks Entry'!CZ22 -> 0 | CZ20: ='Marks Entry'!DA22 -> 0 | DA20: ='Marks Entry'!DB22 -> 0 | DB20: ='Marks Entry'!DC22 -> 0 | DC20: ='Marks Entry'!DD22 -> 0 | DD20: ='Marks Entry'!DE22 -> 0 | DE20: ='Marks Entry'!DF22 -> E | DF20: ='Marks Entry'!DG22 -> 0 | DG20: ='Marks Entry'!DH22 -> 0 | DH20: ='Marks Entry'!DI22 -> 0 | DI20: ='Marks Entry'!DJ22 -> 0 | DJ20: ='Marks Entry'!DK22 -> 0 | DK20: ='Marks Entry'!DL22 -> 0 | DL20: ='Marks Entry'!DM22 -> 0 | DM20: ='Marks Entry'!DN22 -> 0 | DN20: ='Marks Entry'!DO22 -> 0 | DO20: ='Marks Entry'!DP22 -> 0 | DP20: ='Marks Entry'!DQ22 -> 0 | DQ20: ='Marks Entry'!DR22 -> 0 | DR20: ='Marks Entry'!DS22 -> 0 | DS20: ='Marks Entry'!DT22 -> 0 | DT20: ='Marks Entry'!DU22 -> 0 | DU20: ='Marks Entry'!DV22 -> 0 | DV20: ='Marks Entry'!DW22 -> 0 | DW20: ='Marks Entry'!DX22 -> 0 | DX20: ='Marks Entry'!DY22 -> 0 | DY20: ='Marks Entry'!DZ22 -> E | DZ20: ='Marks Entry'!EA22 -> 0 | EA20: ='Marks Entry'!EB22 -> 0 | EB20: ='Marks Entry'!EC22 -> 0 | EC20: ='Marks Entry'!ED22 -> 0 | ED20: ='Marks Entry'!EE22 -> 0 | EE20: ='Marks Entry'!EF22 -> 0 | EF20: ='Marks Entry'!EG22 -> 0 | EG20: ='Marks Entry'!EJ22 -> 0 | EH20: ='Marks Entry'!EK22 -> 0 | EI20: ='Marks Entry'!EL22 -> 0 | EJ20: ='Marks Entry'!EM22 -> 0 | EK20: ='Marks Entry'!EN22 -> 0 | EL20: ='Marks Entry'!EO22 -> 0 | EM20: ='Marks Entry'!EP22 -> 0 | EN20: ='Marks Entry'!ES22 -> 0 | EO20: ='Marks Entry'!ET22 -> 0 | EP20: ='Marks Entry'!EU22 -> 0 | EQ20: ='Marks Entry'!EV22 -> 0 | ER20: ='Marks Entry'!EW22 -> 0 | ES20: ='Marks Entry'!EX22 -> 0 | ET20: ='Marks Entry'!EY22 -> 0 | EU20: ='Marks Entry'!FB22 -> 0 | EV20: ='Marks Entry'!FC22 -> 0 | EW20: ='Marks Entry'!FD22 -> 0 | EX20: ='Marks Entry'!FE22 ->  | EY20: ='Marks Entry'!FF22 -> 0 | EZ20: ='Marks Entry'!FG22 -> 0 | FA20: ='Marks Entry'!FH22 ->  | FB20: =IF(OR('Marks Entry'!FI22="First",'Marks Entry'!FI22="Second",'Marks Entry'!FI22="Third"),'Marks Entry'!FI22,"") ->  | FC20: ='Marks Entry'!FJ22 ->  | FD20: ='Marks Entry'!FK22 ->  | FE20: ='Marks Entry'!FL22 ->  | FF20: ='Marks Entry'!FM22 ->  | FG20: ='Marks Entry'!FO22 -> 0
B21: 0 | C21: ='Marks Entry'!D23 -> 0 | D21: ='Marks Entry'!E23 -> 0 | E21: ='Marks Entry'!F23 -> 0 | F21: ='Marks Entry'!G23 -> 0 | G21: ='Marks Entry'!H23 -> 0 | H21: ='Marks Entry'!I23 -> 0 | I21: ='Marks Entry'!J23 -> 0 | J21: ='Marks Entry'!K23 -> 00:00:00 | K21: ='Marks Entry'!L23 -> 0 | L21: ='Marks Entry'!M23 -> 0 | M21: ='Marks Entry'!N23 -> 0 | N21: ='Marks Entry'!O23 -> 0 | O21: ='Marks Entry'!P23 -> 0 | P21: ='Marks Entry'!Q23 -> 0 | Q21: ='Marks Entry'!R23 -> 0 | R21: ='Marks Entry'!S23 -> 0 | S21: ='Marks Entry'!T23 -> 0 | T21: ='Marks Entry'!U23 -> 0 | U21: ='Marks Entry'!V23 -> 0 | V21: ='Marks Entry'!W23 -> 0 | W21: ='Marks Entry'!X23 -> 0 | X21: ='Marks Entry'!Y23 -> 0 | Y21: ='Marks Entry'!Z23 -> 0 | Z21: ='Marks Entry'!AA23 -> 0 | AA21: ='Marks Entry'!AB23 -> 0 | AB21: ='Marks Entry'!AC23 -> 0 | AC21: ='Marks Entry'!AD23 ->  | AD21: ='Marks Entry'!AE23 -> 0 | AE21: ='Marks Entry'!AF23 -> 0 | AF21: ='Marks Entry'!AG23 -> 0 | AG21: ='Marks Entry'!AH23 -> 0 | AH21: ='Marks Entry'!AI23 -> 0 | AI21: ='Marks Entry'!AJ23 -> 0 | AJ21: ='Marks Entry'!AK23 -> 0 | AK21: ='Marks Entry'!AL23 -> 0 | AL21: ='Marks Entry'!AM23 -> 0 | AM21: ='Marks Entry'!AN23 -> 0 | AN21: ='Marks Entry'!AO23 -> 0 | AO21: ='Marks Entry'!AP23 -> 0 | AP21: ='Marks Entry'!AQ23 -> 0 | AQ21: ='Marks Entry'!AR23 -> 0 | AR21: ='Marks Entry'!AS23 -> 0 | AS21: ='Marks Entry'!AT23 -> 0 | AT21: ='Marks Entry'!AU23 -> 0 | AU21: ='Marks Entry'!AV23 -> 0 | AV21: ='Marks Entry'!AW23 -> 0 | AW21: ='Marks Entry'!AX23 -> E | AX21: ='Marks Entry'!AY23 -> 0 | AY21: ='Marks Entry'!AZ23 -> 0 | AZ21: ='Marks Entry'!BA23 -> 0 | BA21: ='Marks Entry'!BB23 -> 0 | BB21: ='Marks Entry'!BC23 -> 0 | BC21: ='Marks Entry'!BD23 -> 0 | BD21: ='Marks Entry'!BE23 -> 0 | BE21: ='Marks Entry'!BF23 -> 0 | BF21: ='Marks Entry'!BG23 -> 0 | BG21: ='Marks Entry'!BH23 -> 0 | BH21: ='Marks Entry'!BI23 -> 0 | BI21: ='Marks Entry'!BJ23 -> 0 | BJ21: ='Marks Entry'!BK23 -> 0 | BK21: ='Marks Entry'!BL23 -> 0 | BL21: ='Marks Entry'!BM23 -> 0 | BM21: ='Marks Entry'!BN23 -> 0 | BN21: ='Marks Entry'!BO23 -> 0 | BO21: ='Marks Entry'!BP23 -> 0 | BP21: ='Marks Entry'!BQ23 -> 0 | BQ21: ='Marks Entry'!BR23 -> E | BR21: ='Marks Entry'!BS23 -> 0 | BS21: ='Marks Entry'!BT23 -> 0 | BT21: ='Marks Entry'!BU23 -> 0 | BU21: ='Marks Entry'!BV23 -> 0 | BV21: ='Marks Entry'!BW23 -> 0 | BW21: ='Marks Entry'!BX23 -> 0 | BX21: ='Marks Entry'!BY23 -> 0 | BY21: ='Marks Entry'!BZ23 -> 0 | BZ21: ='Marks Entry'!CA23 -> 0 | CA21: ='Marks Entry'!CB23 -> 0 | CB21: ='Marks Entry'!CC23 -> 0 | CC21: ='Marks Entry'!CD23 -> 0 | CD21: ='Marks Entry'!CE23 -> 0 | CE21: ='Marks Entry'!CF23 -> 0 | CF21: ='Marks Entry'!CG23 -> 0 | CG21: ='Marks Entry'!CH23 -> 0 | CH21: ='Marks Entry'!CI23 -> 0 | CI21: ='Marks Entry'!CJ23 -> 0 | CJ21: ='Marks Entry'!CK23 -> 0 | CK21: ='Marks Entry'!CL23 -> E | CL21: ='Marks Entry'!CM23 -> 0 | CM21: ='Marks Entry'!CN23 -> 0 | CN21: ='Marks Entry'!CO23 -> 0 | CO21: ='Marks Entry'!CP23 -> 0 | CP21: ='Marks Entry'!CQ23 -> 0 | CQ21: ='Marks Entry'!CR23 -> 0 | CR21: ='Marks Entry'!CS23 -> 0 | CS21: ='Marks Entry'!CT23 -> 0 | CT21: ='Marks Entry'!CU23 -> 0 | CU21: ='Marks Entry'!CV23 -> 0 | CV21: ='Marks Entry'!CW23 -> 0 | CW21: ='Marks Entry'!CX23 -> 0 | CX21: ='Marks Entry'!CY23 -> 0 | CY21: ='Marks Entry'!CZ23 -> 0 | CZ21: ='Marks Entry'!DA23 -> 0 | DA21: ='Marks Entry'!DB23 -> 0 | DB21: ='Marks Entry'!DC23 -> 0 | DC21: ='Marks Entry'!DD23 -> 0 | DD21: ='Marks Entry'!DE23 -> 0 | DE21: ='Marks Entry'!DF23 -> E | DF21: ='Marks Entry'!DG23 -> 0 | DG21: ='Marks Entry'!DH23 -> 0 | DH21: ='Marks Entry'!DI23 -> 0 | DI21: ='Marks Entry'!DJ23 -> 0 | DJ21: ='Marks Entry'!DK23 -> 0 | DK21: ='Marks Entry'!DL23 -> 0 | DL21: ='Marks Entry'!DM23 -> 0 | DM21: ='Marks Entry'!DN23 -> 0 | DN21: ='Marks Entry'!DO23 -> 0 | DO21: ='Marks Entry'!DP23 -> 0 | DP21: ='Marks Entry'!DQ23 -> 0 | DQ21: ='Marks Entry'!DR23 -> 0 | DR21: ='Marks Entry'!DS23 -> 0 | DS21: ='Marks Entry'!DT23 -> 0 | DT21: ='Marks Entry'!DU23 -> 0 | DU21: ='Marks Entry'!DV23 -> 0 | DV21: ='Marks Entry'!DW23 -> 0 | DW21: ='Marks Entry'!DX23 -> 0 | DX21: ='Marks Entry'!DY23 -> 0 | DY21: ='Marks Entry'!DZ23 -> E | DZ21: ='Marks Entry'!EA23 -> 0 | EA21: ='Marks Entry'!EB23 -> 0 | EB21: ='Marks Entry'!EC23 -> 0 | EC21: ='Marks Entry'!ED23 -> 0 | ED21: ='Marks Entry'!EE23 -> 0 | EE21: ='Marks Entry'!EF23 -> 0 | EF21: ='Marks Entry'!EG23 -> 0 | EG21: ='Marks Entry'!EJ23 -> 0 | EH21: ='Marks Entry'!EK23 -> 0 | EI21: ='Marks Entry'!EL23 -> 0 | EJ21: ='Marks Entry'!EM23 -> 0 | EK21: ='Marks Entry'!EN23 -> 0 | EL21: ='Marks Entry'!EO23 -> 0 | EM21: ='Marks Entry'!EP23 -> 0 | EN21: ='Marks Entry'!ES23 -> 0 | EO21: ='Marks Entry'!ET23 -> 0 | EP21: ='Marks Entry'!EU23 -> 0 | EQ21: ='Marks Entry'!EV23 -> 0 | ER21: ='Marks Entry'!EW23 -> 0 | ES21: ='Marks Entry'!EX23 -> 0 | ET21: ='Marks Entry'!EY23 -> 0 | EU21: ='Marks Entry'!FB23 -> 0 | EV21: ='Marks Entry'!FC23 -> 0 | EW21: ='Marks Entry'!FD23 -> 0 | EX21: ='Marks Entry'!FE23 ->  | EY21: ='Marks Entry'!FF23 -> 0 | EZ21: ='Marks Entry'!FG23 -> 0 | FA21: ='Marks Entry'!FH23 ->  | FB21: =IF(OR('Marks Entry'!FI23="First",'Marks Entry'!FI23="Second",'Marks Entry'!FI23="Third"),'Marks Entry'!FI23,"") ->  | FC21: ='Marks Entry'!FJ23 ->  | FD21: ='Marks Entry'!FK23 ->  | FE21: ='Marks Entry'!FL23 ->  | FF21: ='Marks Entry'!FM23 ->  | FG21: ='Marks Entry'!FO23 -> 0
B22: 0 | C22: ='Marks Entry'!D24 -> 0 | D22: ='Marks Entry'!E24 -> 0 | E22: ='Marks Entry'!F24 -> 0 | F22: ='Marks Entry'!G24 -> 0 | G22: ='Marks Entry'!H24 -> 0 | H22: ='Marks Entry'!I24 -> 0 | I22: ='Marks Entry'!J24 -> 0 | J22: ='Marks Entry'!K24 -> 00:00:00 | K22: ='Marks Entry'!L24 -> 0 | L22: ='Marks Entry'!M24 -> 0 | M22: ='Marks Entry'!N24 -> 0 | N22: ='Marks Entry'!O24 -> 0 | O22: ='Marks Entry'!P24 -> 0 | P22: ='Marks Entry'!Q24 -> 0 | Q22: ='Marks Entry'!R24 -> 0 | R22: ='Marks Entry'!S24 -> 0 | S22: ='Marks Entry'!T24 -> 0 | T22: ='Marks Entry'!U24 -> 0 | U22: ='Marks Entry'!V24 -> 0 | V22: ='Marks Entry'!W24 -> 0 | W22: ='Marks Entry'!X24 -> 0 | X22: ='Marks Entry'!Y24 -> 0 | Y22: ='Marks Entry'!Z24 -> 0 | Z22: ='Marks Entry'!AA24 -> 0 | AA22: ='Marks Entry'!AB24 -> 0 | AB22: ='Marks Entry'!AC24 -> 0 | AC22: ='Marks Entry'!AD24 ->  | AD22: ='Marks Entry'!AE24 -> 0 | AE22: ='Marks Entry'!AF24 -> 0 | AF22: ='Marks Entry'!AG24 -> 0 | AG22: ='Marks Entry'!AH24 -> 0 | AH22: ='Marks Entry'!AI24 -> 0 | AI22: ='Marks Entry'!AJ24 -> 0 | AJ22: ='Marks Entry'!AK24 -> 0 | AK22: ='Marks Entry'!AL24 -> 0 | AL22: ='Marks Entry'!AM24 -> 0 | AM22: ='Marks Entry'!AN24 -> 0 | AN22: ='Marks Entry'!AO24 -> 0 | AO22: ='Marks Entry'!AP24 -> 0 | AP22: ='Marks Entry'!AQ24 -> 0 | AQ22: ='Marks Entry'!AR24 -> 0 | AR22: ='Marks Entry'!AS24 -> 0 | AS22: ='Marks Entry'!AT24 -> 0 | AT22: ='Marks Entry'!AU24 -> 0 | AU22: ='Marks Entry'!AV24 -> 0 | AV22: ='Marks Entry'!AW24 -> 0 | AW22: ='Marks Entry'!AX24 -> E | AX22: ='Marks Entry'!AY24 -> 0 | AY22: ='Marks Entry'!AZ24 -> 0 | AZ22: ='Marks Entry'!BA24 -> 0 | BA22: ='Marks Entry'!BB24 -> 0 | BB22: ='Marks Entry'!BC24 -> 0 | BC22: ='Marks Entry'!BD24 -> 0 | BD22: ='Marks Entry'!BE24 -> 0 | BE22: ='Marks Entry'!BF24 -> 0 | BF22: ='Marks Entry'!BG24 -> 0 | BG22: ='Marks Entry'!BH24 -> 0 | BH22: ='Marks Entry'!BI24 -> 0 | BI22: ='Marks Entry'!BJ24 -> 0 | BJ22: ='Marks Entry'!BK24 -> 0 | BK22: ='Marks Entry'!BL24 -> 0 | BL22: ='Marks Entry'!BM24 -> 0 | BM22: ='Marks Entry'!BN24 -> 0 | BN22: ='Marks Entry'!BO24 -> 0 | BO22: ='Marks Entry'!BP24 -> 0 | BP22: ='Marks Entry'!BQ24 -> 0 | BQ22: ='Marks Entry'!BR24 -> E | BR22: ='Marks Entry'!BS24 -> 0 | BS22: ='Marks Entry'!BT24 -> 0 | BT22: ='Marks Entry'!BU24 -> 0 | BU22: ='Marks Entry'!BV24 -> 0 | BV22: ='Marks Entry'!BW24 -> 0 | BW22: ='Marks Entry'!BX24 -> 0 | BX22: ='Marks Entry'!BY24 -> 0 | BY22: ='Marks Entry'!BZ24 -> 0 | BZ22: ='Marks Entry'!CA24 -> 0 | CA22: ='Marks Entry'!CB24 -> 0 | CB22: ='Marks Entry'!CC24 -> 0 | CC22: ='Marks Entry'!CD24 -> 0 | CD22: ='Marks Entry'!CE24 -> 0 | CE22: ='Marks Entry'!CF24 -> 0 | CF22: ='Marks Entry'!CG24 -> 0 | CG22: ='Marks Entry'!CH24 -> 0 | CH22: ='Marks Entry'!CI24 -> 0 | CI22: ='Marks Entry'!CJ24 -> 0 | CJ22: ='Marks Entry'!CK24 -> 0 | CK22: ='Marks Entry'!CL24 -> E | CL22: ='Marks Entry'!CM24 -> 0 | CM22: ='Marks Entry'!CN24 -> 0 | CN22: ='Marks Entry'!CO24 -> 0 | CO22: ='Marks Entry'!CP24 -> 0 | CP22: ='Marks Entry'!CQ24 -> 0 | CQ22: ='Marks Entry'!CR24 -> 0 | CR22: ='Marks Entry'!CS24 -> 0 | CS22: ='Marks Entry'!CT24 -> 0 | CT22: ='Marks Entry'!CU24 -> 0 | CU22: ='Marks Entry'!CV24 -> 0 | CV22: ='Marks Entry'!CW24 -> 0 | CW22: ='Marks Entry'!CX24 -> 0 | CX22: ='Marks Entry'!CY24 -> 0 | CY22: ='Marks Entry'!CZ24 -> 0 | CZ22: ='Marks Entry'!DA24 -> 0 | DA22: ='Marks Entry'!DB24 -> 0 | DB22: ='Marks Entry'!DC24 -> 0 | DC22: ='Marks Entry'!DD24 -> 0 | DD22: ='Marks Entry'!DE24 -> 0 | DE22: ='Marks Entry'!DF24 -> E | DF22: ='Marks Entry'!DG24 -> 0 | DG22: ='Marks Entry'!DH24 -> 0 | DH22: ='Marks Entry'!DI24 -> 0 | DI22: ='Marks Entry'!DJ24 -> 0 | DJ22: ='Marks Entry'!DK24 -> 0 | DK22: ='Marks Entry'!DL24 -> 0 | DL22: ='Marks Entry'!DM24 -> 0 | DM22: ='Marks Entry'!DN24 -> 0 | DN22: ='Marks Entry'!DO24 -> 0 | DO22: ='Marks Entry'!DP24 -> 0 | DP22: ='Marks Entry'!DQ24 -> 0 | DQ22: ='Marks Entry'!DR24 -> 0 | DR22: ='Marks Entry'!DS24 -> 0 | DS22: ='Marks Entry'!DT24 -> 0 | DT22: ='Marks Entry'!DU24 -> 0 | DU22: ='Marks Entry'!DV24 -> 0 | DV22: ='Marks Entry'!DW24 -> 0 | DW22: ='Marks Entry'!DX24 -> 0 | DX22: ='Marks Entry'!DY24 -> 0 | DY22: ='Marks Entry'!DZ24 -> E | DZ22: ='Marks Entry'!EA24 -> 0 | EA22: ='Marks Entry'!EB24 -> 0 | EB22: ='Marks Entry'!EC24 -> 0 | EC22: ='Marks Entry'!ED24 -> 0 | ED22: ='Marks Entry'!EE24 -> 0 | EE22: ='Marks Entry'!EF24 -> 0 | EF22: ='Marks Entry'!EG24 -> 0 | EG22: ='Marks Entry'!EJ24 -> 0 | EH22: ='Marks Entry'!EK24 -> 0 | EI22: ='Marks Entry'!EL24 -> 0 | EJ22: ='Marks Entry'!EM24 -> 0 | EK22: ='Marks Entry'!EN24 -> 0 | EL22: ='Marks Entry'!EO24 -> 0 | EM22: ='Marks Entry'!EP24 -> 0 | EN22: ='Marks Entry'!ES24 -> 0 | EO22: ='Marks Entry'!ET24 -> 0 | EP22: ='Marks Entry'!EU24 -> 0 | EQ22: ='Marks Entry'!EV24 -> 0 | ER22: ='Marks Entry'!EW24 -> 0 | ES22: ='Marks Entry'!EX24 -> 0 | ET22: ='Marks Entry'!EY24 -> 0 | EU22: ='Marks Entry'!FB24 -> 0 | EV22: ='Marks Entry'!FC24 -> 0 | EW22: ='Marks Entry'!FD24 -> 0 | EX22: ='Marks Entry'!FE24 ->  | EY22: ='Marks Entry'!FF24 -> 0 | EZ22: ='Marks Entry'!FG24 -> 0 | FA22: ='Marks Entry'!FH24 ->  | FB22: =IF(OR('Marks Entry'!FI24="First",'Marks Entry'!FI24="Second",'Marks Entry'!FI24="Third"),'Marks Entry'!FI24,"") ->  | FC22: ='Marks Entry'!FJ24 ->  | FD22: ='Marks Entry'!FK24 ->  | FE22: ='Marks Entry'!FL24 ->  | FF22: ='Marks Entry'!FM24 ->  | FG22: ='Marks Entry'!FO24 -> 0
B23: 0 | C23: ='Marks Entry'!D25 -> 0 | D23: ='Marks Entry'!E25 -> 0 | E23: ='Marks Entry'!F25 -> 0 | F23: ='Marks Entry'!G25 -> 0 | G23: ='Marks Entry'!H25 -> 0 | H23: ='Marks Entry'!I25 -> 0 | I23: ='Marks Entry'!J25 -> 0 | J23: ='Marks Entry'!K25 -> 00:00:00 | K23: ='Marks Entry'!L25 -> 0 | L23: ='Marks Entry'!M25 -> 0 | M23: ='Marks Entry'!N25 -> 0 | N23: ='Marks Entry'!O25 -> 0 | O23: ='Marks Entry'!P25 -> 0 | P23: ='Marks Entry'!Q25 -> 0 | Q23: ='Marks Entry'!R25 -> 0 | R23: ='Marks Entry'!S25 -> 0 | S23: ='Marks Entry'!T25 -> 0 | T23: ='Marks Entry'!U25 -> 0 | U23: ='Marks Entry'!V25 -> 0 | V23: ='Marks Entry'!W25 -> 0 | W23: ='Marks Entry'!X25 -> 0 | X23: ='Marks Entry'!Y25 -> 0 | Y23: ='Marks Entry'!Z25 -> 0 | Z23: ='Marks Entry'!AA25 -> 0 | AA23: ='Marks Entry'!AB25 -> 0 | AB23: ='Marks Entry'!AC25 -> 0 | AC23: ='Marks Entry'!AD25 ->  | AD23: ='Marks Entry'!AE25 -> 0 | AE23: ='Marks Entry'!AF25 -> 0 | AF23: ='Marks Entry'!AG25 -> 0 | AG23: ='Marks Entry'!AH25 -> 0 | AH23: ='Marks Entry'!AI25 -> 0 | AI23: ='Marks Entry'!AJ25 -> 0 | AJ23: ='Marks Entry'!AK25 -> 0 | AK23: ='Marks Entry'!AL25 -> 0 | AL23: ='Marks Entry'!AM25 -> 0 | AM23: ='Marks Entry'!AN25 -> 0 | AN23: ='Marks Entry'!AO25 -> 0 | AO23: ='Marks Entry'!AP25 -> 0 | AP23: ='Marks Entry'!AQ25 -> 0 | AQ23: ='Marks Entry'!AR25 -> 0 | AR23: ='Marks Entry'!AS25 -> 0 | AS23: ='Marks Entry'!AT25 -> 0 | AT23: ='Marks Entry'!AU25 -> 0 | AU23: ='Marks Entry'!AV25 -> 0 | AV23: ='Marks Entry'!AW25 -> 0 | AW23: ='Marks Entry'!AX25 -> E | AX23: ='Marks Entry'!AY25 -> 0 | AY23: ='Marks Entry'!AZ25 -> 0 | AZ23: ='Marks Entry'!BA25 -> 0 | BA23: ='Marks Entry'!BB25 -> 0 | BB23: ='Marks Entry'!BC25 -> 0 | BC23: ='Marks Entry'!BD25 -> 0 | BD23: ='Marks Entry'!BE25 -> 0 | BE23: ='Marks Entry'!BF25 -> 0 | BF23: ='Marks Entry'!BG25 -> 0 | BG23: ='Marks Entry'!BH25 -> 0 | BH23: ='Marks Entry'!BI25 -> 0 | BI23: ='Marks Entry'!BJ25 -> 0 | BJ23: ='Marks Entry'!BK25 -> 0 | BK23: ='Marks Entry'!BL25 -> 0 | BL23: ='Marks Entry'!BM25 -> 0 | BM23: ='Marks Entry'!BN25 -> 0 | BN23: ='Marks Entry'!BO25 -> 0 | BO23: ='Marks Entry'!BP25 -> 0 | BP23: ='Marks Entry'!BQ25 -> 0 | BQ23: ='Marks Entry'!BR25 -> E | BR23: ='Marks Entry'!BS25 -> 0 | BS23: ='Marks Entry'!BT25 -> 0 | BT23: ='Marks Entry'!BU25 -> 0 | BU23: ='Marks Entry'!BV25 -> 0 | BV23: ='Marks Entry'!BW25 -> 0 | BW23: ='Marks Entry'!BX25 -> 0 | BX23: ='Marks Entry'!BY25 -> 0 | BY23: ='Marks Entry'!BZ25 -> 0 | BZ23: ='Marks Entry'!CA25 -> 0 | CA23: ='Marks Entry'!CB25 -> 0 | CB23: ='Marks Entry'!CC25 -> 0 | CC23: ='Marks Entry'!CD25 -> 0 | CD23: ='Marks Entry'!CE25 -> 0 | CE23: ='Marks Entry'!CF25 -> 0 | CF23: ='Marks Entry'!CG25 -> 0 | CG23: ='Marks Entry'!CH25 -> 0 | CH23: ='Marks Entry'!CI25 -> 0 | CI23: ='Marks Entry'!CJ25 -> 0 | CJ23: ='Marks Entry'!CK25 -> 0 | CK23: ='Marks Entry'!CL25 -> E | CL23: ='Marks Entry'!CM25 -> 0 | CM23: ='Marks Entry'!CN25 -> 0 | CN23: ='Marks Entry'!CO25 -> 0 | CO23: ='Marks Entry'!CP25 -> 0 | CP23: ='Marks Entry'!CQ25 -> 0 | CQ23: ='Marks Entry'!CR25 -> 0 | CR23: ='Marks Entry'!CS25 -> 0 | CS23: ='Marks Entry'!CT25 -> 0 | CT23: ='Marks Entry'!CU25 -> 0 | CU23: ='Marks Entry'!CV25 -> 0 | CV23: ='Marks Entry'!CW25 -> 0 | CW23: ='Marks Entry'!CX25 -> 0 | CX23: ='Marks Entry'!CY25 -> 0 | CY23: ='Marks Entry'!CZ25 -> 0 | CZ23: ='Marks Entry'!DA25 -> 0 | DA23: ='Marks Entry'!DB25 -> 0 | DB23: ='Marks Entry'!DC25 -> 0 | DC23: ='Marks Entry'!DD25 -> 0 | DD23: ='Marks Entry'!DE25 -> 0 | DE23: ='Marks Entry'!DF25 -> E | DF23: ='Marks Entry'!DG25 -> 0 | DG23: ='Marks Entry'!DH25 -> 0 | DH23: ='Marks Entry'!DI25 -> 0 | DI23: ='Marks Entry'!DJ25 -> 0 | DJ23: ='Marks Entry'!DK25 -> 0 | DK23: ='Marks Entry'!DL25 -> 0 | DL23: ='Marks Entry'!DM25 -> 0 | DM23: ='Marks Entry'!DN25 -> 0 | DN23: ='Marks Entry'!DO25 -> 0 | DO23: ='Marks Entry'!DP25 -> 0 | DP23: ='Marks Entry'!DQ25 -> 0 | DQ23: ='Marks Entry'!DR25 -> 0 | DR23: ='Marks Entry'!DS25 -> 0 | DS23: ='Marks Entry'!DT25 -> 0 | DT23: ='Marks Entry'!DU25 -> 0 | DU23: ='Marks Entry'!DV25 -> 0 | DV23: ='Marks Entry'!DW25 -> 0 | DW23: ='Marks Entry'!DX25 -> 0 | DX23: ='Marks Entry'!DY25 -> 0 | DY23: ='Marks Entry'!DZ25 -> E | DZ23: ='Marks Entry'!EA25 -> 0 | EA23: ='Marks Entry'!EB25 -> 0 | EB23: ='Marks Entry'!EC25 -> 0 | EC23: ='Marks Entry'!ED25 -> 0 | ED23: ='Marks Entry'!EE25 -> 0 | EE23: ='Marks Entry'!EF25 -> 0 | EF23: ='Marks Entry'!EG25 -> 0 | EG23: ='Marks Entry'!EJ25 -> 0 | EH23: ='Marks Entry'!EK25 -> 0 | EI23: ='Marks Entry'!EL25 -> 0 | EJ23: ='Marks Entry'!EM25 -> 0 | EK23: ='Marks Entry'!EN25 -> 0 | EL23: ='Marks Entry'!EO25 -> 0 | EM23: ='Marks Entry'!EP25 -> 0 | EN23: ='Marks Entry'!ES25 -> 0 | EO23: ='Marks Entry'!ET25 -> 0 | EP23: ='Marks Entry'!EU25 -> 0 | EQ23: ='Marks Entry'!EV25 -> 0 | ER23: ='Marks Entry'!EW25 -> 0 | ES23: ='Marks Entry'!EX25 -> 0 | ET23: ='Marks Entry'!EY25 -> 0 | EU23: ='Marks Entry'!FB25 -> 0 | EV23: ='Marks Entry'!FC25 -> 0 | EW23: ='Marks Entry'!FD25 -> 0 | EX23: ='Marks Entry'!FE25 ->  | EY23: ='Marks Entry'!FF25 -> 0 | EZ23: ='Marks Entry'!FG25 -> 0 | FA23: ='Marks Entry'!FH25 ->  | FB23: =IF(OR('Marks Entry'!FI25="First",'Marks Entry'!FI25="Second",'Marks Entry'!FI25="Third"),'Marks Entry'!FI25,"") ->  | FC23: ='Marks Entry'!FJ25 ->  | FD23: ='Marks Entry'!FK25 ->  | FE23: ='Marks Entry'!FL25 ->  | FF23: ='Marks Entry'!FM25 ->  | FG23: ='Marks Entry'!FO25 -> 0
B24: 0 | C24: ='Marks Entry'!D26 -> 0 | D24: ='Marks Entry'!E26 -> 0 | E24: ='Marks Entry'!F26 -> 0 | F24: ='Marks Entry'!G26 -> 0 | G24: ='Marks Entry'!H26 -> 0 | H24: ='Marks Entry'!I26 -> 0 | I24: ='Marks Entry'!J26 -> 0 | J24: ='Marks Entry'!K26 -> 00:00:00 | K24: ='Marks Entry'!L26 -> 0 | L24: ='Marks Entry'!M26 -> 0 | M24: ='Marks Entry'!N26 -> 0 | N24: ='Marks Entry'!O26 -> 0 | O24: ='Marks Entry'!P26 -> 0 | P24: ='Marks Entry'!Q26 -> 0 | Q24: ='Marks Entry'!R26 -> 0 | R24: ='Marks Entry'!S26 -> 0 | S24: ='Marks Entry'!T26 -> 0 | T24: ='Marks Entry'!U26 -> 0 | U24: ='Marks Entry'!V26 -> 0 | V24: ='Marks Entry'!W26 -> 0 | W24: ='Marks Entry'!X26 -> 0 | X24: ='Marks Entry'!Y26 -> 0 | Y24: ='Marks Entry'!Z26 -> 0 | Z24: ='Marks Entry'!AA26 -> 0 | AA24: ='Marks Entry'!AB26 -> 0 | AB24: ='Marks Entry'!AC26 -> 0 | AC24: ='Marks Entry'!AD26 ->  | AD24: ='Marks Entry'!AE26 -> 0 | AE24: ='Marks Entry'!AF26 -> 0 | AF24: ='Marks Entry'!AG26 -> 0 | AG24: ='Marks Entry'!AH26 -> 0 | AH24: ='Marks Entry'!AI26 -> 0 | AI24: ='Marks Entry'!AJ26 -> 0 | AJ24: ='Marks Entry'!AK26 -> 0 | AK24: ='Marks Entry'!AL26 -> 0 | AL24: ='Marks Entry'!AM26 -> 0 | AM24: ='Marks Entry'!AN26 -> 0 | AN24: ='Marks Entry'!AO26 -> 0 | AO24: ='Marks Entry'!AP26 -> 0 | AP24: ='Marks Entry'!AQ26 -> 0 | AQ24: ='Marks Entry'!AR26 -> 0 | AR24: ='Marks Entry'!AS26 -> 0 | AS24: ='Marks Entry'!AT26 -> 0 | AT24: ='Marks Entry'!AU26 -> 0 | AU24: ='Marks Entry'!AV26 -> 0 | AV24: ='Marks Entry'!AW26 -> 0 | AW24: ='Marks Entry'!AX26 -> E | AX24: ='Marks Entry'!AY26 -> 0 | AY24: ='Marks Entry'!AZ26 -> 0 | AZ24: ='Marks Entry'!BA26 -> 0 | BA24: ='Marks Entry'!BB26 -> 0 | BB24: ='Marks Entry'!BC26 -> 0 | BC24: ='Marks Entry'!BD26 -> 0 | BD24: ='Marks Entry'!BE26 -> 0 | BE24: ='Marks Entry'!BF26 -> 0 | BF24: ='Marks Entry'!BG26 -> 0 | BG24: ='Marks Entry'!BH26 -> 0 | BH24: ='Marks Entry'!BI26 -> 0 | BI24: ='Marks Entry'!BJ26 -> 0 | BJ24: ='Marks Entry'!BK26 -> 0 | BK24: ='Marks Entry'!BL26 -> 0 | BL24: ='Marks Entry'!BM26 -> 0 | BM24: ='Marks Entry'!BN26 -> 0 | BN24: ='Marks Entry'!BO26 -> 0 | BO24: ='Marks Entry'!BP26 -> 0 | BP24: ='Marks Entry'!BQ26 -> 0 | BQ24: ='Marks Entry'!BR26 -> E | BR24: ='Marks Entry'!BS26 -> 0 | BS24: ='Marks Entry'!BT26 -> 0 | BT24: ='Marks Entry'!BU26 -> 0 | BU24: ='Marks Entry'!BV26 -> 0 | BV24: ='Marks Entry'!BW26 -> 0 | BW24: ='Marks Entry'!BX26 -> 0 | BX24: ='Marks Entry'!BY26 -> 0 | BY24: ='Marks Entry'!BZ26 -> 0 | BZ24: ='Marks Entry'!CA26 -> 0 | CA24: ='Marks Entry'!CB26 -> 0 | CB24: ='Marks Entry'!CC26 -> 0 | CC24: ='Marks Entry'!CD26 -> 0 | CD24: ='Marks Entry'!CE26 -> 0 | CE24: ='Marks Entry'!CF26 -> 0 | CF24: ='Marks Entry'!CG26 -> 0 | CG24: ='Marks Entry'!CH26 -> 0 | CH24: ='Marks Entry'!CI26 -> 0 | CI24: ='Marks Entry'!CJ26 -> 0 | CJ24: ='Marks Entry'!CK26 -> 0 | CK24: ='Marks Entry'!CL26 -> E | CL24: ='Marks Entry'!CM26 -> 0 | CM24: ='Marks Entry'!CN26 -> 0 | CN24: ='Marks Entry'!CO26 -> 0 | CO24: ='Marks Entry'!CP26 -> 0 | CP24: ='Marks Entry'!CQ26 -> 0 | CQ24: ='Marks Entry'!CR26 -> 0 | CR24: ='Marks Entry'!CS26 -> 0 | CS24: ='Marks Entry'!CT26 -> 0 | CT24: ='Marks Entry'!CU26 -> 0 | CU24: ='Marks Entry'!CV26 -> 0 | CV24: ='Marks Entry'!CW26 -> 0 | CW24: ='Marks Entry'!CX26 -> 0 | CX24: ='Marks Entry'!CY26 -> 0 | CY24: ='Marks Entry'!CZ26 -> 0 | CZ24: ='Marks Entry'!DA26 -> 0 | DA24: ='Marks Entry'!DB26 -> 0 | DB24: ='Marks Entry'!DC26 -> 0 | DC24: ='Marks Entry'!DD26 -> 0 | DD24: ='Marks Entry'!DE26 -> 0 | DE24: ='Marks Entry'!DF26 -> E | DF24: ='Marks Entry'!DG26 -> 0 | DG24: ='Marks Entry'!DH26 -> 0 | DH24: ='Marks Entry'!DI26 -> 0 | DI24: ='Marks Entry'!DJ26 -> 0 | DJ24: ='Marks Entry'!DK26 -> 0 | DK24: ='Marks Entry'!DL26 -> 0 | DL24: ='Marks Entry'!DM26 -> 0 | DM24: ='Marks Entry'!DN26 -> 0 | DN24: ='Marks Entry'!DO26 -> 0 | DO24: ='Marks Entry'!DP26 -> 0 | DP24: ='Marks Entry'!DQ26 -> 0 | DQ24: ='Marks Entry'!DR26 -> 0 | DR24: ='Marks Entry'!DS26 -> 0 | DS24: ='Marks Entry'!DT26 -> 0 | DT24: ='Marks Entry'!DU26 -> 0 | DU24: ='Marks Entry'!DV26 -> 0 | DV24: ='Marks Entry'!DW26 -> 0 | DW24: ='Marks Entry'!DX26 -> 0 | DX24: ='Marks Entry'!DY26 -> 0 | DY24: ='Marks Entry'!DZ26 -> E | DZ24: ='Marks Entry'!EA26 -> 0 | EA24: ='Marks Entry'!EB26 -> 0 | EB24: ='Marks Entry'!EC26 -> 0 | EC24: ='Marks Entry'!ED26 -> 0 | ED24: ='Marks Entry'!EE26 -> 0 | EE24: ='Marks Entry'!EF26 -> 0 | EF24: ='Marks Entry'!EG26 -> 0 | EG24: ='Marks Entry'!EJ26 -> 0 | EH24: ='Marks Entry'!EK26 -> 0 | EI24: ='Marks Entry'!EL26 -> 0 | EJ24: ='Marks Entry'!EM26 -> 0 | EK24: ='Marks Entry'!EN26 -> 0 | EL24: ='Marks Entry'!EO26 -> 0 | EM24: ='Marks Entry'!EP26 -> 0 | EN24: ='Marks Entry'!ES26 -> 0 | EO24: ='Marks Entry'!ET26 -> 0 | EP24: ='Marks Entry'!EU26 -> 0 | EQ24: ='Marks Entry'!EV26 -> 0 | ER24: ='Marks Entry'!EW26 -> 0 | ES24: ='Marks Entry'!EX26 -> 0 | ET24: ='Marks Entry'!EY26 -> 0 | EU24: ='Marks Entry'!FB26 -> 0 | EV24: ='Marks Entry'!FC26 -> 0 | EW24: ='Marks Entry'!FD26 -> 0 | EX24: ='Marks Entry'!FE26 ->  | EY24: ='Marks Entry'!FF26 -> 0 | EZ24: ='Marks Entry'!FG26 -> 0 | FA24: ='Marks Entry'!FH26 ->  | FB24: =IF(OR('Marks Entry'!FI26="First",'Marks Entry'!FI26="Second",'Marks Entry'!FI26="Third"),'Marks Entry'!FI26,"") ->  | FC24: ='Marks Entry'!FJ26 ->  | FD24: ='Marks Entry'!FK26 ->  | FE24: ='Marks Entry'!FL26 ->  | FF24: ='Marks Entry'!FM26 ->  | FG24: ='Marks Entry'!FO26 -> 0
B25: 0 | C25: ='Marks Entry'!D27 -> 0 | D25: ='Marks Entry'!E27 -> 0 | E25: ='Marks Entry'!F27 -> 0 | F25: ='Marks Entry'!G27 -> 0 | G25: ='Marks Entry'!H27 -> 0 | H25: ='Marks Entry'!I27 -> 0 | I25: ='Marks Entry'!J27 -> 0 | J25: ='Marks Entry'!K27 -> 00:00:00 | K25: ='Marks Entry'!L27 -> 0 | L25: ='Marks Entry'!M27 -> 0 | M25: ='Marks Entry'!N27 -> 0 | N25: ='Marks Entry'!O27 -> 0 | O25: ='Marks Entry'!P27 -> 0 | P25: ='Marks Entry'!Q27 -> 0 | Q25: ='Marks Entry'!R27 -> 0 | R25: ='Marks Entry'!S27 -> 0 | S25: ='Marks Entry'!T27 -> 0 | T25: ='Marks Entry'!U27 -> 0 | U25: ='Marks Entry'!V27 -> 0 | V25: ='Marks Entry'!W27 -> 0 | W25: ='Marks Entry'!X27 -> 0 | X25: ='Marks Entry'!Y27 -> 0 | Y25: ='Marks Entry'!Z27 -> 0 | Z25: ='Marks Entry'!AA27 -> 0 | AA25: ='Marks Entry'!AB27 -> 0 | AB25: ='Marks Entry'!AC27 -> 0 | AC25: ='Marks Entry'!AD27 ->  | AD25: ='Marks Entry'!AE27 -> 0 | AE25: ='Marks Entry'!AF27 -> 0 | AF25: ='Marks Entry'!AG27 -> 0 | AG25: ='Marks Entry'!AH27 -> 0 | AH25: ='Marks Entry'!AI27 -> 0 | AI25: ='Marks Entry'!AJ27 -> 0 | AJ25: ='Marks Entry'!AK27 -> 0 | AK25: ='Marks Entry'!AL27 -> 0 | AL25: ='Marks Entry'!AM27 -> 0 | AM25: ='Marks Entry'!AN27 -> 0 | AN25: ='Marks Entry'!AO27 -> 0 | AO25: ='Marks Entry'!AP27 -> 0 | AP25: ='Marks Entry'!AQ27 -> 0 | AQ25: ='Marks Entry'!AR27 -> 0 | AR25: ='Marks Entry'!AS27 -> 0 | AS25: ='Marks Entry'!AT27 -> 0 | AT25: ='Marks Entry'!AU27 -> 0 | AU25: ='Marks Entry'!AV27 -> 0 | AV25: ='Marks Entry'!AW27 -> 0 | AW25: ='Marks Entry'!AX27 -> E | AX25: ='Marks Entry'!AY27 -> 0 | AY25: ='Marks Entry'!AZ27 -> 0 | AZ25: ='Marks Entry'!BA27 -> 0 | BA25: ='Marks Entry'!BB27 -> 0 | BB25: ='Marks Entry'!BC27 -> 0 | BC25: ='Marks Entry'!BD27 -> 0 | BD25: ='Marks Entry'!BE27 -> 0 | BE25: ='Marks Entry'!BF27 -> 0 | BF25: ='Marks Entry'!BG27 -> 0 | BG25: ='Marks Entry'!BH27 -> 0 | BH25: ='Marks Entry'!BI27 -> 0 | BI25: ='Marks Entry'!BJ27 -> 0 | BJ25: ='Marks Entry'!BK27 -> 0 | BK25: ='Marks Entry'!BL27 -> 0 | BL25: ='Marks Entry'!BM27 -> 0 | BM25: ='Marks Entry'!BN27 -> 0 | BN25: ='Marks Entry'!BO27 -> 0 | BO25: ='Marks Entry'!BP27 -> 0 | BP25: ='Marks Entry'!BQ27 -> 0 | BQ25: ='Marks Entry'!BR27 -> E | BR25: ='Marks Entry'!BS27 -> 0 | BS25: ='Marks Entry'!BT27 -> 0 | BT25: ='Marks Entry'!BU27 -> 0 | BU25: ='Marks Entry'!BV27 -> 0 | BV25: ='Marks Entry'!BW27 -> 0 | BW25: ='Marks Entry'!BX27 -> 0 | BX25: ='Marks Entry'!BY27 -> 0 | BY25: ='Marks Entry'!BZ27 -> 0 | BZ25: ='Marks Entry'!CA27 -> 0 | CA25: ='Marks Entry'!CB27 -> 0 | CB25: ='Marks Entry'!CC27 -> 0 | CC25: ='Marks Entry'!CD27 -> 0 | CD25: ='Marks Entry'!CE27 -> 0 | CE25: ='Marks Entry'!CF27 -> 0 | CF25: ='Marks Entry'!CG27 -> 0 | CG25: ='Marks Entry'!CH27 -> 0 | CH25: ='Marks Entry'!CI27 -> 0 | CI25: ='Marks Entry'!CJ27 -> 0 | CJ25: ='Marks Entry'!CK27 -> 0 | CK25: ='Marks Entry'!CL27 -> E | CL25: ='Marks Entry'!CM27 -> 0 | CM25: ='Marks Entry'!CN27 -> 0 | CN25: ='Marks Entry'!CO27 -> 0 | CO25: ='Marks Entry'!CP27 -> 0 | CP25: ='Marks Entry'!CQ27 -> 0 | CQ25: ='Marks Entry'!CR27 -> 0 | CR25: ='Marks Entry'!CS27 -> 0 | CS25: ='Marks Entry'!CT27 -> 0 | CT25: ='Marks Entry'!CU27 -> 0 | CU25: ='Marks Entry'!CV27 -> 0 | CV25: ='Marks Entry'!CW27 -> 0 | CW25: ='Marks Entry'!CX27 -> 0 | CX25: ='Marks Entry'!CY27 -> 0 | CY25: ='Marks Entry'!CZ27 -> 0 | CZ25: ='Marks Entry'!DA27 -> 0 | DA25: ='Marks Entry'!DB27 -> 0 | DB25: ='Marks Entry'!DC27 -> 0 | DC25: ='Marks Entry'!DD27 -> 0 | DD25: ='Marks Entry'!DE27 -> 0 | DE25: ='Marks Entry'!DF27 -> E | DF25: ='Marks Entry'!DG27 -> 0 | DG25: ='Marks Entry'!DH27 -> 0 | DH25: ='Marks Entry'!DI27 -> 0 | DI25: ='Marks Entry'!DJ27 -> 0 | DJ25: ='Marks Entry'!DK27 -> 0 | DK25: ='Marks Entry'!DL27 -> 0 | DL25: ='Marks Entry'!DM27 -> 0 | DM25: ='Marks Entry'!DN27 -> 0 | DN25: ='Marks Entry'!DO27 -> 0 | DO25: ='Marks Entry'!DP27 -> 0 | DP25: ='Marks Entry'!DQ27 -> 0 | DQ25: ='Marks Entry'!DR27 -> 0 | DR25: ='Marks Entry'!DS27 -> 0 | DS25: ='Marks Entry'!DT27 -> 0 | DT25: ='Marks Entry'!DU27 -> 0 | DU25: ='Marks Entry'!DV27 -> 0 | DV25: ='Marks Entry'!DW27 -> 0 | DW25: ='Marks Entry'!DX27 -> 0 | DX25: ='Marks Entry'!DY27 -> 0 | DY25: ='Marks Entry'!DZ27 -> E | DZ25: ='Marks Entry'!EA27 -> 0 | EA25: ='Marks Entry'!EB27 -> 0 | EB25: ='Marks Entry'!EC27 -> 0 | EC25: ='Marks Entry'!ED27 -> 0 | ED25: ='Marks Entry'!EE27 -> 0 | EE25: ='Marks Entry'!EF27 -> 0 | EF25: ='Marks Entry'!EG27 -> 0 | EG25: ='Marks Entry'!EJ27 -> 0 | EH25: ='Marks Entry'!EK27 -> 0 | EI25: ='Marks Entry'!EL27 -> 0 | EJ25: ='Marks Entry'!EM27 -> 0 | EK25: ='Marks Entry'!EN27 -> 0 | EL25: ='Marks Entry'!EO27 -> 0 | EM25: ='Marks Entry'!EP27 -> 0 | EN25: ='Marks Entry'!ES27 -> 0 | EO25: ='Marks Entry'!ET27 -> 0 | EP25: ='Marks Entry'!EU27 -> 0 | EQ25: ='Marks Entry'!EV27 -> 0 | ER25: ='Marks Entry'!EW27 -> 0 | ES25: ='Marks Entry'!EX27 -> 0 | ET25: ='Marks Entry'!EY27 -> 0 | EU25: ='Marks Entry'!FB27 -> 0 | EV25: ='Marks Entry'!FC27 -> 0 | EW25: ='Marks Entry'!FD27 -> 0 | EX25: ='Marks Entry'!FE27 ->  | EY25: ='Marks Entry'!FF27 -> 0 | EZ25: ='Marks Entry'!FG27 -> 0 | FA25: ='Marks Entry'!FH27 ->  | FB25: =IF(OR('Marks Entry'!FI27="First",'Marks Entry'!FI27="Second",'Marks Entry'!FI27="Third"),'Marks Entry'!FI27,"") ->  | FC25: ='Marks Entry'!FJ27 ->  | FD25: ='Marks Entry'!FK27 ->  | FE25: ='Marks Entry'!FL27 ->  | FF25: ='Marks Entry'!FM27 ->  | FG25: ='Marks Entry'!FO27 -> 0
B26: 0 | C26: ='Marks Entry'!D28 -> 0 | D26: ='Marks Entry'!E28 -> 0 | E26: ='Marks Entry'!F28 -> 0 | F26: ='Marks Entry'!G28 -> 0 | G26: ='Marks Entry'!H28 -> 0 | H26: ='Marks Entry'!I28 -> 0 | I26: ='Marks Entry'!J28 -> 0 | J26: ='Marks Entry'!K28 -> 00:00:00 | K26: ='Marks Entry'!L28 -> 0 | L26: ='Marks Entry'!M28 -> 0 | M26: ='Marks Entry'!N28 -> 0 | N26: ='Marks Entry'!O28 -> 0 | O26: ='Marks Entry'!P28 -> 0 | P26: ='Marks Entry'!Q28 -> 0 | Q26: ='Marks Entry'!R28 -> 0 | R26: ='Marks Entry'!S28 -> 0 | S26: ='Marks Entry'!T28 -> 0 | T26: ='Marks Entry'!U28 -> 0 | U26: ='Marks Entry'!V28 -> 0 | V26: ='Marks Entry'!W28 -> 0 | W26: ='Marks Entry'!X28 -> 0 | X26: ='Marks Entry'!Y28 -> 0 | Y26: ='Marks Entry'!Z28 -> 0 | Z26: ='Marks Entry'!AA28 -> 0 | AA26: ='Marks Entry'!AB28 -> 0 | AB26: ='Marks Entry'!AC28 -> 0 | AC26: ='Marks Entry'!AD28 ->  | AD26: ='Marks Entry'!AE28 -> 0 | AE26: ='Marks Entry'!AF28 -> 0 | AF26: ='Marks Entry'!AG28 -> 0 | AG26: ='Marks Entry'!AH28 -> 0 | AH26: ='Marks Entry'!AI28 -> 0 | AI26: ='Marks Entry'!AJ28 -> 0 | AJ26: ='Marks Entry'!AK28 -> 0 | AK26: ='Marks Entry'!AL28 -> 0 | AL26: ='Marks Entry'!AM28 -> 0 | AM26: ='Marks Entry'!AN28 -> 0 | AN26: ='Marks Entry'!AO28 -> 0 | AO26: ='Marks Entry'!AP28 -> 0 | AP26: ='Marks Entry'!AQ28 -> 0 | AQ26: ='Marks Entry'!AR28 -> 0 | AR26: ='Marks Entry'!AS28 -> 0 | AS26: ='Marks Entry'!AT28 -> 0 | AT26: ='Marks Entry'!AU28 -> 0 | AU26: ='Marks Entry'!AV28 -> 0 | AV26: ='Marks Entry'!AW28 -> 0 | AW26: ='Marks Entry'!AX28 -> E | AX26: ='Marks Entry'!AY28 -> 0 | AY26: ='Marks Entry'!AZ28 -> 0 | AZ26: ='Marks Entry'!BA28 -> 0 | BA26: ='Marks Entry'!BB28 -> 0 | BB26: ='Marks Entry'!BC28 -> 0 | BC26: ='Marks Entry'!BD28 -> 0 | BD26: ='Marks Entry'!BE28 -> 0 | BE26: ='Marks Entry'!BF28 -> 0 | BF26: ='Marks Entry'!BG28 -> 0 | BG26: ='Marks Entry'!BH28 -> 0 | BH26: ='Marks Entry'!BI28 -> 0 | BI26: ='Marks Entry'!BJ28 -> 0 | BJ26: ='Marks Entry'!BK28 -> 0 | BK26: ='Marks Entry'!BL28 -> 0 | BL26: ='Marks Entry'!BM28 -> 0 | BM26: ='Marks Entry'!BN28 -> 0 | BN26: ='Marks Entry'!BO28 -> 0 | BO26: ='Marks Entry'!BP28 -> 0 | BP26: ='Marks Entry'!BQ28 -> 0 | BQ26: ='Marks Entry'!BR28 -> E | BR26: ='Marks Entry'!BS28 -> 0 | BS26: ='Marks Entry'!BT28 -> 0 | BT26: ='Marks Entry'!BU28 -> 0 | BU26: ='Marks Entry'!BV28 -> 0 | BV26: ='Marks Entry'!BW28 -> 0 | BW26: ='Marks Entry'!BX28 -> 0 | BX26: ='Marks Entry'!BY28 -> 0 | BY26: ='Marks Entry'!BZ28 -> 0 | BZ26: ='Marks Entry'!CA28 -> 0 | CA26: ='Marks Entry'!CB28 -> 0 | CB26: ='Marks Entry'!CC28 -> 0 | CC26: ='Marks Entry'!CD28 -> 0 | CD26: ='Marks Entry'!CE28 -> 0 | CE26: ='Marks Entry'!CF28 -> 0 | CF26: ='Marks Entry'!CG28 -> 0 | CG26: ='Marks Entry'!CH28 -> 0 | CH26: ='Marks Entry'!CI28 -> 0 | CI26: ='Marks Entry'!CJ28 -> 0 | CJ26: ='Marks Entry'!CK28 -> 0 | CK26: ='Marks Entry'!CL28 -> E | CL26: ='Marks Entry'!CM28 -> 0 | CM26: ='Marks Entry'!CN28 -> 0 | CN26: ='Marks Entry'!CO28 -> 0 | CO26: ='Marks Entry'!CP28 -> 0 | CP26: ='Marks Entry'!CQ28 -> 0 | CQ26: ='Marks Entry'!CR28 -> 0 | CR26: ='Marks Entry'!CS28 -> 0 | CS26: ='Marks Entry'!CT28 -> 0 | CT26: ='Marks Entry'!CU28 -> 0 | CU26: ='Marks Entry'!CV28 -> 0 | CV26: ='Marks Entry'!CW28 -> 0 | CW26: ='Marks Entry'!CX28 -> 0 | CX26: ='Marks Entry'!CY28 -> 0 | CY26: ='Marks Entry'!CZ28 -> 0 | CZ26: ='Marks Entry'!DA28 -> 0 | DA26: ='Marks Entry'!DB28 -> 0 | DB26: ='Marks Entry'!DC28 -> 0 | DC26: ='Marks Entry'!DD28 -> 0 | DD26: ='Marks Entry'!DE28 -> 0 | DE26: ='Marks Entry'!DF28 -> E | DF26: ='Marks Entry'!DG28 -> 0 | DG26: ='Marks Entry'!DH28 -> 0 | DH26: ='Marks Entry'!DI28 -> 0 | DI26: ='Marks Entry'!DJ28 -> 0 | DJ26: ='Marks Entry'!DK28 -> 0 | DK26: ='Marks Entry'!DL28 -> 0 | DL26: ='Marks Entry'!DM28 -> 0 | DM26: ='Marks Entry'!DN28 -> 0 | DN26: ='Marks Entry'!DO28 -> 0 | DO26: ='Marks Entry'!DP28 -> 0 | DP26: ='Marks Entry'!DQ28 -> 0 | DQ26: ='Marks Entry'!DR28 -> 0 | DR26: ='Marks Entry'!DS28 -> 0 | DS26: ='Marks Entry'!DT28 -> 0 | DT26: ='Marks Entry'!DU28 -> 0 | DU26: ='Marks Entry'!DV28 -> 0 | DV26: ='Marks Entry'!DW28 -> 0 | DW26: ='Marks Entry'!DX28 -> 0 | DX26: ='Marks Entry'!DY28 -> 0 | DY26: ='Marks Entry'!DZ28 -> E | DZ26: ='Marks Entry'!EA28 -> 0 | EA26: ='Marks Entry'!EB28 -> 0 | EB26: ='Marks Entry'!EC28 -> 0 | EC26: ='Marks Entry'!ED28 -> 0 | ED26: ='Marks Entry'!EE28 -> 0 | EE26: ='Marks Entry'!EF28 -> 0 | EF26: ='Marks Entry'!EG28 -> 0 | EG26: ='Marks Entry'!EJ28 -> 0 | EH26: ='Marks Entry'!EK28 -> 0 | EI26: ='Marks Entry'!EL28 -> 0 | EJ26: ='Marks Entry'!EM28 -> 0 | EK26: ='Marks Entry'!EN28 -> 0 | EL26: ='Marks Entry'!EO28 -> 0 | EM26: ='Marks Entry'!EP28 -> 0 | EN26: ='Marks Entry'!ES28 -> 0 | EO26: ='Marks Entry'!ET28 -> 0 | EP26: ='Marks Entry'!EU28 -> 0 | EQ26: ='Marks Entry'!EV28 -> 0 | ER26: ='Marks Entry'!EW28 -> 0 | ES26: ='Marks Entry'!EX28 -> 0 | ET26: ='Marks Entry'!EY28 -> 0 | EU26: ='Marks Entry'!FB28 -> 0 | EV26: ='Marks Entry'!FC28 -> 0 | EW26: ='Marks Entry'!FD28 -> 0 | EX26: ='Marks Entry'!FE28 ->  | EY26: ='Marks Entry'!FF28 -> 0 | EZ26: ='Marks Entry'!FG28 -> 0 | FA26: ='Marks Entry'!FH28 ->  | FB26: =IF(OR('Marks Entry'!FI28="First",'Marks Entry'!FI28="Second",'Marks Entry'!FI28="Third"),'Marks Entry'!FI28,"") ->  | FC26: ='Marks Entry'!FJ28 ->  | FD26: ='Marks Entry'!FK28 ->  | FE26: ='Marks Entry'!FL28 ->  | FF26: ='Marks Entry'!FM28 ->  | FG26: ='Marks Entry'!FO28 -> 0
B27: 0 | C27: ='Marks Entry'!D29 -> 0 | D27: ='Marks Entry'!E29 -> 0 | E27: ='Marks Entry'!F29 -> 0 | F27: ='Marks Entry'!G29 -> 0 | G27: ='Marks Entry'!H29 -> 0 | H27: ='Marks Entry'!I29 -> 0 | I27: ='Marks Entry'!J29 -> 0 | J27: ='Marks Entry'!K29 -> 00:00:00 | K27: ='Marks Entry'!L29 -> 0 | L27: ='Marks Entry'!M29 -> 0 | M27: ='Marks Entry'!N29 -> 0 | N27: ='Marks Entry'!O29 -> 0 | O27: ='Marks Entry'!P29 -> 0 | P27: ='Marks Entry'!Q29 -> 0 | Q27: ='Marks Entry'!R29 -> 0 | R27: ='Marks Entry'!S29 -> 0 | S27: ='Marks Entry'!T29 -> 0 | T27: ='Marks Entry'!U29 -> 0 | U27: ='Marks Entry'!V29 -> 0 | V27: ='Marks Entry'!W29 -> 0 | W27: ='Marks Entry'!X29 -> 0 | X27: ='Marks Entry'!Y29 -> 0 | Y27: ='Marks Entry'!Z29 -> 0 | Z27: ='Marks Entry'!AA29 -> 0 | AA27: ='Marks Entry'!AB29 -> 0 | AB27: ='Marks Entry'!AC29 -> 0 | AC27: ='Marks Entry'!AD29 ->  | AD27: ='Marks Entry'!AE29 -> 0 | AE27: ='Marks Entry'!AF29 -> 0 | AF27: ='Marks Entry'!AG29 -> 0 | AG27: ='Marks Entry'!AH29 -> 0 | AH27: ='Marks Entry'!AI29 -> 0 | AI27: ='Marks Entry'!AJ29 -> 0 | AJ27: ='Marks Entry'!AK29 -> 0 | AK27: ='Marks Entry'!AL29 -> 0 | AL27: ='Marks Entry'!AM29 -> 0 | AM27: ='Marks Entry'!AN29 -> 0 | AN27: ='Marks Entry'!AO29 -> 0 | AO27: ='Marks Entry'!AP29 -> 0 | AP27: ='Marks Entry'!AQ29 -> 0 | AQ27: ='Marks Entry'!AR29 -> 0 | AR27: ='Marks Entry'!AS29 -> 0 | AS27: ='Marks Entry'!AT29 -> 0 | AT27: ='Marks Entry'!AU29 -> 0 | AU27: ='Marks Entry'!AV29 -> 0 | AV27: ='Marks Entry'!AW29 -> 0 | AW27: ='Marks Entry'!AX29 -> E | AX27: ='Marks Entry'!AY29 -> 0 | AY27: ='Marks Entry'!AZ29 -> 0 | AZ27: ='Marks Entry'!BA29 -> 0 | BA27: ='Marks Entry'!BB29 -> 0 | BB27: ='Marks Entry'!BC29 -> 0 | BC27: ='Marks Entry'!BD29 -> 0 | BD27: ='Marks Entry'!BE29 -> 0 | BE27: ='Marks Entry'!BF29 -> 0 | BF27: ='Marks Entry'!BG29 -> 0 | BG27: ='Marks Entry'!BH29 -> 0 | BH27: ='Marks Entry'!BI29 -> 0 | BI27: ='Marks Entry'!BJ29 -> 0 | BJ27: ='Marks Entry'!BK29 -> 0 | BK27: ='Marks Entry'!BL29 -> 0 | BL27: ='Marks Entry'!BM29 -> 0 | BM27: ='Marks Entry'!BN29 -> 0 | BN27: ='Marks Entry'!BO29 -> 0 | BO27: ='Marks Entry'!BP29 -> 0 | BP27: ='Marks Entry'!BQ29 -> 0 | BQ27: ='Marks Entry'!BR29 -> E | BR27: ='Marks Entry'!BS29 -> 0 | BS27: ='Marks Entry'!BT29 -> 0 | BT27: ='Marks Entry'!BU29 -> 0 | BU27: ='Marks Entry'!BV29 -> 0 | BV27: ='Marks Entry'!BW29 -> 0 | BW27: ='Marks Entry'!BX29 -> 0 | BX27: ='Marks Entry'!BY29 -> 0 | BY27: ='Marks Entry'!BZ29 -> 0 | BZ27: ='Marks Entry'!CA29 -> 0 | CA27: ='Marks Entry'!CB29 -> 0 | CB27: ='Marks Entry'!CC29 -> 0 | CC27: ='Marks Entry'!CD29 -> 0 | CD27: ='Marks Entry'!CE29 -> 0 | CE27: ='Marks Entry'!CF29 -> 0 | CF27: ='Marks Entry'!CG29 -> 0 | CG27: ='Marks Entry'!CH29 -> 0 | CH27: ='Marks Entry'!CI29 -> 0 | CI27: ='Marks Entry'!CJ29 -> 0 | CJ27: ='Marks Entry'!CK29 -> 0 | CK27: ='Marks Entry'!CL29 -> E | CL27: ='Marks Entry'!CM29 -> 0 | CM27: ='Marks Entry'!CN29 -> 0 | CN27: ='Marks Entry'!CO29 -> 0 | CO27: ='Marks Entry'!CP29 -> 0 | CP27: ='Marks Entry'!CQ29 -> 0 | CQ27: ='Marks Entry'!CR29 -> 0 | CR27: ='Marks Entry'!CS29 -> 0 | CS27: ='Marks Entry'!CT29 -> 0 | CT27: ='Marks Entry'!CU29 -> 0 | CU27: ='Marks Entry'!CV29 -> 0 | CV27: ='Marks Entry'!CW29 -> 0 | CW27: ='Marks Entry'!CX29 -> 0 | CX27: ='Marks Entry'!CY29 -> 0 | CY27: ='Marks Entry'!CZ29 -> 0 | CZ27: ='Marks Entry'!DA29 -> 0 | DA27: ='Marks Entry'!DB29 -> 0 | DB27: ='Marks Entry'!DC29 -> 0 | DC27: ='Marks Entry'!DD29 -> 0 | DD27: ='Marks Entry'!DE29 -> 0 | DE27: ='Marks Entry'!DF29 -> E | DF27: ='Marks Entry'!DG29 -> 0 | DG27: ='Marks Entry'!DH29 -> 0 | DH27: ='Marks Entry'!DI29 -> 0 | DI27: ='Marks Entry'!DJ29 -> 0 | DJ27: ='Marks Entry'!DK29 -> 0 | DK27: ='Marks Entry'!DL29 -> 0 | DL27: ='Marks Entry'!DM29 -> 0 | DM27: ='Marks Entry'!DN29 -> 0 | DN27: ='Marks Entry'!DO29 -> 0 | DO27: ='Marks Entry'!DP29 -> 0 | DP27: ='Marks Entry'!DQ29 -> 0 | DQ27: ='Marks Entry'!DR29 -> 0 | DR27: ='Marks Entry'!DS29 -> 0 | DS27: ='Marks Entry'!DT29 -> 0 | DT27: ='Marks Entry'!DU29 -> 0 | DU27: ='Marks Entry'!DV29 -> 0 | DV27: ='Marks Entry'!DW29 -> 0 | DW27: ='Marks Entry'!DX29 -> 0 | DX27: ='Marks Entry'!DY29 -> 0 | DY27: ='Marks Entry'!DZ29 -> E | DZ27: ='Marks Entry'!EA29 -> 0 | EA27: ='Marks Entry'!EB29 -> 0 | EB27: ='Marks Entry'!EC29 -> 0 | EC27: ='Marks Entry'!ED29 -> 0 | ED27: ='Marks Entry'!EE29 -> 0 | EE27: ='Marks Entry'!EF29 -> 0 | EF27: ='Marks Entry'!EG29 -> 0 | EG27: ='Marks Entry'!EJ29 -> 0 | EH27: ='Marks Entry'!EK29 -> 0 | EI27: ='Marks Entry'!EL29 -> 0 | EJ27: ='Marks Entry'!EM29 -> 0 | EK27: ='Marks Entry'!EN29 -> 0 | EL27: ='Marks Entry'!EO29 -> 0 | EM27: ='Marks Entry'!EP29 -> 0 | EN27: ='Marks Entry'!ES29 -> 0 | EO27: ='Marks Entry'!ET29 -> 0 | EP27: ='Marks Entry'!EU29 -> 0 | EQ27: ='Marks Entry'!EV29 -> 0 | ER27: ='Marks Entry'!EW29 -> 0 | ES27: ='Marks Entry'!EX29 -> 0 | ET27: ='Marks Entry'!EY29 -> 0 | EU27: ='Marks Entry'!FB29 -> 0 | EV27: ='Marks Entry'!FC29 -> 0 | EW27: ='Marks Entry'!FD29 -> 0 | EX27: ='Marks Entry'!FE29 ->  | EY27: ='Marks Entry'!FF29 -> 0 | EZ27: ='Marks Entry'!FG29 -> 0 | FA27: ='Marks Entry'!FH29 ->  | FB27: =IF(OR('Marks Entry'!FI29="First",'Marks Entry'!FI29="Second",'Marks Entry'!FI29="Third"),'Marks Entry'!FI29,"") ->  | FC27: ='Marks Entry'!FJ29 ->  | FD27: ='Marks Entry'!FK29 ->  | FE27: ='Marks Entry'!FL29 ->  | FF27: ='Marks Entry'!FM29 ->  | FG27: ='Marks Entry'!FO29 -> 0
B28: 0 | C28: ='Marks Entry'!D30 -> 0 | D28: ='Marks Entry'!E30 -> 0 | E28: ='Marks Entry'!F30 -> 0 | F28: ='Marks Entry'!G30 -> 0 | G28: ='Marks Entry'!H30 -> 0 | H28: ='Marks Entry'!I30 -> 0 | I28: ='Marks Entry'!J30 -> 0 | J28: ='Marks Entry'!K30 -> 00:00:00 | K28: ='Marks Entry'!L30 -> 0 | L28: ='Marks Entry'!M30 -> 0 | M28: ='Marks Entry'!N30 -> 0 | N28: ='Marks Entry'!O30 -> 0 | O28: ='Marks Entry'!P30 -> 0 | P28: ='Marks Entry'!Q30 -> 0 | Q28: ='Marks Entry'!R30 -> 0 | R28: ='Marks Entry'!S30 -> 0 | S28: ='Marks Entry'!T30 -> 0 | T28: ='Marks Entry'!U30 -> 0 | U28: ='Marks Entry'!V30 -> 0 | V28: ='Marks Entry'!W30 -> 0 | W28: ='Marks Entry'!X30 -> 0 | X28: ='Marks Entry'!Y30 -> 0 | Y28: ='Marks Entry'!Z30 -> 0 | Z28: ='Marks Entry'!AA30 -> 0 | AA28: ='Marks Entry'!AB30 -> 0 | AB28: ='Marks Entry'!AC30 -> 0 | AC28: ='Marks Entry'!AD30 ->  | AD28: ='Marks Entry'!AE30 -> 0 | AE28: ='Marks Entry'!AF30 -> 0 | AF28: ='Marks Entry'!AG30 -> 0 | AG28: ='Marks Entry'!AH30 -> 0 | AH28: ='Marks Entry'!AI30 -> 0 | AI28: ='Marks Entry'!AJ30 -> 0 | AJ28: ='Marks Entry'!AK30 -> 0 | AK28: ='Marks Entry'!AL30 -> 0 | AL28: ='Marks Entry'!AM30 -> 0 | AM28: ='Marks Entry'!AN30 -> 0 | AN28: ='Marks Entry'!AO30 -> 0 | AO28: ='Marks Entry'!AP30 -> 0 | AP28: ='Marks Entry'!AQ30 -> 0 | AQ28: ='Marks Entry'!AR30 -> 0 | AR28: ='Marks Entry'!AS30 -> 0 | AS28: ='Marks Entry'!AT30 -> 0 | AT28: ='Marks Entry'!AU30 -> 0 | AU28: ='Marks Entry'!AV30 -> 0 | AV28: ='Marks Entry'!AW30 -> 0 | AW28: ='Marks Entry'!AX30 -> E | AX28: ='Marks Entry'!AY30 -> 0 | AY28: ='Marks Entry'!AZ30 -> 0 | AZ28: ='Marks Entry'!BA30 -> 0 | BA28: ='Marks Entry'!BB30 -> 0 | BB28: ='Marks Entry'!BC30 -> 0 | BC28: ='Marks Entry'!BD30 -> 0 | BD28: ='Marks Entry'!BE30 -> 0 | BE28: ='Marks Entry'!BF30 -> 0 | BF28: ='Marks Entry'!BG30 -> 0 | BG28: ='Marks Entry'!BH30 -> 0 | BH28: ='Marks Entry'!BI30 -> 0 | BI28: ='Marks Entry'!BJ30 -> 0 | BJ28: ='Marks Entry'!BK30 -> 0 | BK28: ='Marks Entry'!BL30 -> 0 | BL28: ='Marks Entry'!BM30 -> 0 | BM28: ='Marks Entry'!BN30 -> 0 | BN28: ='Marks Entry'!BO30 -> 0 | BO28: ='Marks Entry'!BP30 -> 0 | BP28: ='Marks Entry'!BQ30 -> 0 | BQ28: ='Marks Entry'!BR30 -> E | BR28: ='Marks Entry'!BS30 -> 0 | BS28: ='Marks Entry'!BT30 -> 0 | BT28: ='Marks Entry'!BU30 -> 0 | BU28: ='Marks Entry'!BV30 -> 0 | BV28: ='Marks Entry'!BW30 -> 0 | BW28: ='Marks Entry'!BX30 -> 0 | BX28: ='Marks Entry'!BY30 -> 0 | BY28: ='Marks Entry'!BZ30 -> 0 | BZ28: ='Marks Entry'!CA30 -> 0 | CA28: ='Marks Entry'!CB30 -> 0 | CB28: ='Marks Entry'!CC30 -> 0 | CC28: ='Marks Entry'!CD30 -> 0 | CD28: ='Marks Entry'!CE30 -> 0 | CE28: ='Marks Entry'!CF30 -> 0 | CF28: ='Marks Entry'!CG30 -> 0 | CG28: ='Marks Entry'!CH30 -> 0 | CH28: ='Marks Entry'!CI30 -> 0 | CI28: ='Marks Entry'!CJ30 -> 0 | CJ28: ='Marks Entry'!CK30 -> 0 | CK28: ='Marks Entry'!CL30 -> E | CL28: ='Marks Entry'!CM30 -> 0 | CM28: ='Marks Entry'!CN30 -> 0 | CN28: ='Marks Entry'!CO30 -> 0 | CO28: ='Marks Entry'!CP30 -> 0 | CP28: ='Marks Entry'!CQ30 -> 0 | CQ28: ='Marks Entry'!CR30 -> 0 | CR28: ='Marks Entry'!CS30 -> 0 | CS28: ='Marks Entry'!CT30 -> 0 | CT28: ='Marks Entry'!CU30 -> 0 | CU28: ='Marks Entry'!CV30 -> 0 | CV28: ='Marks Entry'!CW30 -> 0 | CW28: ='Marks Entry'!CX30 -> 0 | CX28: ='Marks Entry'!CY30 -> 0 | CY28: ='Marks Entry'!CZ30 -> 0 | CZ28: ='Marks Entry'!DA30 -> 0 | DA28: ='Marks Entry'!DB30 -> 0 | DB28: ='Marks Entry'!DC30 -> 0 | DC28: ='Marks Entry'!DD30 -> 0 | DD28: ='Marks Entry'!DE30 -> 0 | DE28: ='Marks Entry'!DF30 -> E | DF28: ='Marks Entry'!DG30 -> 0 | DG28: ='Marks Entry'!DH30 -> 0 | DH28: ='Marks Entry'!DI30 -> 0 | DI28: ='Marks Entry'!DJ30 -> 0 | DJ28: ='Marks Entry'!DK30 -> 0 | DK28: ='Marks Entry'!DL30 -> 0 | DL28: ='Marks Entry'!DM30 -> 0 | DM28: ='Marks Entry'!DN30 -> 0 | DN28: ='Marks Entry'!DO30 -> 0 | DO28: ='Marks Entry'!DP30 -> 0 | DP28: ='Marks Entry'!DQ30 -> 0 | DQ28: ='Marks Entry'!DR30 -> 0 | DR28: ='Marks Entry'!DS30 -> 0 | DS28: ='Marks Entry'!DT30 -> 0 | DT28: ='Marks Entry'!DU30 -> 0 | DU28: ='Marks Entry'!DV30 -> 0 | DV28: ='Marks Entry'!DW30 -> 0 | DW28: ='Marks Entry'!DX30 -> 0 | DX28: ='Marks Entry'!DY30 -> 0 | DY28: ='Marks Entry'!DZ30 -> E | DZ28: ='Marks Entry'!EA30 -> 0 | EA28: ='Marks Entry'!EB30 -> 0 | EB28: ='Marks Entry'!EC30 -> 0 | EC28: ='Marks Entry'!ED30 -> 0 | ED28: ='Marks Entry'!EE30 -> 0 | EE28: ='Marks Entry'!EF30 -> 0 | EF28: ='Marks Entry'!EG30 -> 0 | EG28: ='Marks Entry'!EJ30 -> 0 | EH28: ='Marks Entry'!EK30 -> 0 | EI28: ='Marks Entry'!EL30 -> 0 | EJ28: ='Marks Entry'!EM30 -> 0 | EK28: ='Marks Entry'!EN30 -> 0 | EL28: ='Marks Entry'!EO30 -> 0 | EM28: ='Marks Entry'!EP30 -> 0 | EN28: ='Marks Entry'!ES30 -> 0 | EO28: ='Marks Entry'!ET30 -> 0 | EP28: ='Marks Entry'!EU30 -> 0 | EQ28: ='Marks Entry'!EV30 -> 0 | ER28: ='Marks Entry'!EW30 -> 0 | ES28: ='Marks Entry'!EX30 -> 0 | ET28: ='Marks Entry'!EY30 -> 0 | EU28: ='Marks Entry'!FB30 -> 0 | EV28: ='Marks Entry'!FC30 -> 0 | EW28: ='Marks Entry'!FD30 -> 0 | EX28: ='Marks Entry'!FE30 ->  | EY28: ='Marks Entry'!FF30 -> 0 | EZ28: ='Marks Entry'!FG30 -> 0 | FA28: ='Marks Entry'!FH30 ->  | FB28: =IF(OR('Marks Entry'!FI30="First",'Marks Entry'!FI30="Second",'Marks Entry'!FI30="Third"),'Marks Entry'!FI30,"") ->  | FC28: ='Marks Entry'!FJ30 ->  | FD28: ='Marks Entry'!FK30 ->  | FE28: ='Marks Entry'!FL30 ->  | FF28: ='Marks Entry'!FM30 ->  | FG28: ='Marks Entry'!FO30 -> 0
B29: 0 | C29: ='Marks Entry'!D31 -> 0 | D29: ='Marks Entry'!E31 -> 0 | E29: ='Marks Entry'!F31 -> 0 | F29: ='Marks Entry'!G31 -> 0 | G29: ='Marks Entry'!H31 -> 0 | H29: ='Marks Entry'!I31 -> 0 | I29: ='Marks Entry'!J31 -> 0 | J29: ='Marks Entry'!K31 -> 00:00:00 | K29: ='Marks Entry'!L31 -> 0 | L29: ='Marks Entry'!M31 -> 0 | M29: ='Marks Entry'!N31 -> 0 | N29: ='Marks Entry'!O31 -> 0 | O29: ='Marks Entry'!P31 -> 0 | P29: ='Marks Entry'!Q31 -> 0 | Q29: ='Marks Entry'!R31 -> 0 | R29: ='Marks Entry'!S31 -> 0 | S29: ='Marks Entry'!T31 -> 0 | T29: ='Marks Entry'!U31 -> 0 | U29: ='Marks Entry'!V31 -> 0 | V29: ='Marks Entry'!W31 -> 0 | W29: ='Marks Entry'!X31 -> 0 | X29: ='Marks Entry'!Y31 -> 0 | Y29: ='Marks Entry'!Z31 -> 0 | Z29: ='Marks Entry'!AA31 -> 0 | AA29: ='Marks Entry'!AB31 -> 0 | AB29: ='Marks Entry'!AC31 -> 0 | AC29: ='Marks Entry'!AD31 ->  | AD29: ='Marks Entry'!AE31 -> 0 | AE29: ='Marks Entry'!AF31 -> 0 | AF29: ='Marks Entry'!AG31 -> 0 | AG29: ='Marks Entry'!AH31 -> 0 | AH29: ='Marks Entry'!AI31 -> 0 | AI29: ='Marks Entry'!AJ31 -> 0 | AJ29: ='Marks Entry'!AK31 -> 0 | AK29: ='Marks Entry'!AL31 -> 0 | AL29: ='Marks Entry'!AM31 -> 0 | AM29: ='Marks Entry'!AN31 -> 0 | AN29: ='Marks Entry'!AO31 -> 0 | AO29: ='Marks Entry'!AP31 -> 0 | AP29: ='Marks Entry'!AQ31 -> 0 | AQ29: ='Marks Entry'!AR31 -> 0 | AR29: ='Marks Entry'!AS31 -> 0 | AS29: ='Marks Entry'!AT31 -> 0 | AT29: ='Marks Entry'!AU31 -> 0 | AU29: ='Marks Entry'!AV31 -> 0 | AV29: ='Marks Entry'!AW31 -> 0 | AW29: ='Marks Entry'!AX31 -> E | AX29: ='Marks Entry'!AY31 -> 0 | AY29: ='Marks Entry'!AZ31 -> 0 | AZ29: ='Marks Entry'!BA31 -> 0 | BA29: ='Marks Entry'!BB31 -> 0 | BB29: ='Marks Entry'!BC31 -> 0 | BC29: ='Marks Entry'!BD31 -> 0 | BD29: ='Marks Entry'!BE31 -> 0 | BE29: ='Marks Entry'!BF31 -> 0 | BF29: ='Marks Entry'!BG31 -> 0 | BG29: ='Marks Entry'!BH31 -> 0 | BH29: ='Marks Entry'!BI31 -> 0 | BI29: ='Marks Entry'!BJ31 -> 0 | BJ29: ='Marks Entry'!BK31 -> 0 | BK29: ='Marks Entry'!BL31 -> 0 | BL29: ='Marks Entry'!BM31 -> 0 | BM29: ='Marks Entry'!BN31 -> 0 | BN29: ='Marks Entry'!BO31 -> 0 | BO29: ='Marks Entry'!BP31 -> 0 | BP29: ='Marks Entry'!BQ31 -> 0 | BQ29: ='Marks Entry'!BR31 -> E | BR29: ='Marks Entry'!BS31 -> 0 | BS29: ='Marks Entry'!BT31 -> 0 | BT29: ='Marks Entry'!BU31 -> 0 | BU29: ='Marks Entry'!BV31 -> 0 | BV29: ='Marks Entry'!BW31 -> 0 | BW29: ='Marks Entry'!BX31 -> 0 | BX29: ='Marks Entry'!BY31 -> 0 | BY29: ='Marks Entry'!BZ31 -> 0 | BZ29: ='Marks Entry'!CA31 -> 0 | CA29: ='Marks Entry'!CB31 -> 0 | CB29: ='Marks Entry'!CC31 -> 0 | CC29: ='Marks Entry'!CD31 -> 0 | CD29: ='Marks Entry'!CE31 -> 0 | CE29: ='Marks Entry'!CF31 -> 0 | CF29: ='Marks Entry'!CG31 -> 0 | CG29: ='Marks Entry'!CH31 -> 0 | CH29: ='Marks Entry'!CI31 -> 0 | CI29: ='Marks Entry'!CJ31 -> 0 | CJ29: ='Marks Entry'!CK31 -> 0 | CK29: ='Marks Entry'!CL31 -> E | CL29: ='Marks Entry'!CM31 -> 0 | CM29: ='Marks Entry'!CN31 -> 0 | CN29: ='Marks Entry'!CO31 -> 0 | CO29: ='Marks Entry'!CP31 -> 0 | CP29: ='Marks Entry'!CQ31 -> 0 | CQ29: ='Marks Entry'!CR31 -> 0 | CR29: ='Marks Entry'!CS31 -> 0 | CS29: ='Marks Entry'!CT31 -> 0 | CT29: ='Marks Entry'!CU31 -> 0 | CU29: ='Marks Entry'!CV31 -> 0 | CV29: ='Marks Entry'!CW31 -> 0 | CW29: ='Marks Entry'!CX31 -> 0 | CX29: ='Marks Entry'!CY31 -> 0 | CY29: ='Marks Entry'!CZ31 -> 0 | CZ29: ='Marks Entry'!DA31 -> 0 | DA29: ='Marks Entry'!DB31 -> 0 | DB29: ='Marks Entry'!DC31 -> 0 | DC29: ='Marks Entry'!DD31 -> 0 | DD29: ='Marks Entry'!DE31 -> 0 | DE29: ='Marks Entry'!DF31 -> E | DF29: ='Marks Entry'!DG31 -> 0 | DG29: ='Marks Entry'!DH31 -> 0 | DH29: ='Marks Entry'!DI31 -> 0 | DI29: ='Marks Entry'!DJ31 -> 0 | DJ29: ='Marks Entry'!DK31 -> 0 | DK29: ='Marks Entry'!DL31 -> 0 | DL29: ='Marks Entry'!DM31 -> 0 | DM29: ='Marks Entry'!DN31 -> 0 | DN29: ='Marks Entry'!DO31 -> 0 | DO29: ='Marks Entry'!DP31 -> 0 | DP29: ='Marks Entry'!DQ31 -> 0 | DQ29: ='Marks Entry'!DR31 -> 0 | DR29: ='Marks Entry'!DS31 -> 0 | DS29: ='Marks Entry'!DT31 -> 0 | DT29: ='Marks Entry'!DU31 -> 0 | DU29: ='Marks Entry'!DV31 -> 0 | DV29: ='Marks Entry'!DW31 -> 0 | DW29: ='Marks Entry'!DX31 -> 0 | DX29: ='Marks Entry'!DY31 -> 0 | DY29: ='Marks Entry'!DZ31 -> E | DZ29: ='Marks Entry'!EA31 -> 0 | EA29: ='Marks Entry'!EB31 -> 0 | EB29: ='Marks Entry'!EC31 -> 0 | EC29: ='Marks Entry'!ED31 -> 0 | ED29: ='Marks Entry'!EE31 -> 0 | EE29: ='Marks Entry'!EF31 -> 0 | EF29: ='Marks Entry'!EG31 -> 0 | EG29: ='Marks Entry'!EJ31 -> 0 | EH29: ='Marks Entry'!EK31 -> 0 | EI29: ='Marks Entry'!EL31 -> 0 | EJ29: ='Marks Entry'!EM31 -> 0 | EK29: ='Marks Entry'!EN31 -> 0 | EL29: ='Marks Entry'!EO31 -> 0 | EM29: ='Marks Entry'!EP31 -> 0 | EN29: ='Marks Entry'!ES31 -> 0 | EO29: ='Marks Entry'!ET31 -> 0 | EP29: ='Marks Entry'!EU31 -> 0 | EQ29: ='Marks Entry'!EV31 -> 0 | ER29: ='Marks Entry'!EW31 -> 0 | ES29: ='Marks Entry'!EX31 -> 0 | ET29: ='Marks Entry'!EY31 -> 0 | EU29: ='Marks Entry'!FB31 -> 0 | EV29: ='Marks Entry'!FC31 -> 0 | EW29: ='Marks Entry'!FD31 -> 0 | EX29: ='Marks Entry'!FE31 ->  | EY29: ='Marks Entry'!FF31 -> 0 | EZ29: ='Marks Entry'!FG31 -> 0 | FA29: ='Marks Entry'!FH31 ->  | FB29: =IF(OR('Marks Entry'!FI31="First",'Marks Entry'!FI31="Second",'Marks Entry'!FI31="Third"),'Marks Entry'!FI31,"") ->  | FC29: ='Marks Entry'!FJ31 ->  | FD29: ='Marks Entry'!FK31 ->  | FE29: ='Marks Entry'!FL31 ->  | FF29: ='Marks Entry'!FM31 ->  | FG29: ='Marks Entry'!FO31 -> 0
